Workbook

Sheet Cover Page
D1: Last updated:02/08/2016
C2: Burkina Faso: Rural Land Governance Project
B9: ERR Version | C9: Original ERR | D9: Closeout ERR
B10: Amount of MCC funds* | C10: $59.9 million | D10: $66.2 million
B11: Project Description | C11: The project will assist the Government in fulfilling the commitment to adopting improved laws, regulations and administrative proess to meet the rural land tenure vision in order to improve land tenure security and land management. | D11: The project will assist the Government in fulfilling the commitment to adopting improved laws, regulations and administrative proess to meet the rural land tenure vision in order to improve land tenure security and land management.
B12: Benefit streams included in ERR | C12: N/A | D12: Improvements in land productivity Reduced dispute resolution costs
B13: Costs included in ERR (not borne by MCC) | C13: N/A | D13: None beyond MCC investment
B14: ERR estimations and time horizon | C14: None | D14: 5.8% over 20 years
B15: *The amount of MCC funds at closeout includes administrative costs, whereas the amount of MCC funds pertaining to the original project excludes these costs as MCC's practices have changed over time. The current standard practice is to pro-rate compact overhead costs and include them in the project costs.
B17: Table of Contents
B18: Project Description
B19: One should read this first, as it offers a summary of the activity, a list of components, and states the economic rationale for the project.
B20: ERR & Sensitivity Analysis
B21: A brief summary of the project's key parameters and ERR calculations.
B22: Cost-Benefit Summary
B23: This sheet compares the annual costs and benefits for the project and computes the resulting ERR over a 20-year time period.
B24: ERR Combined Calculation
B25: This sheet compares the annual costs and benefits for each phase of the project and computers the resulting ERR.
B26: Common Assumptions
B27: This sheet lists the mains parameters and assumptions of the model.
B28: Commune Level Assumptions
B29: This sheet lists the main assumptions per commune.
B30: DiD Estimates
B31: This page provides difference-in-difference estimates using survey data.
B32: Costs
B33: This sheet lists the annual costs for the two phases of the project.
B34: Quaterly Costs
B35: This sheet list the quaterly costs of the project by activity level.
B36: Sensitivity
B37: This sheet provides a more detailed sensitivity analysis to changes in the underlying parameters.
B38: Monte Carlo Simulation
B39: This sheet provides a Monte Carlo Simulation on the changes in productivity improvement.
B40: Monte Carlo Draws
B41: This sheet calculates the draws for the Monte Carol simulation.

Sheet Project Description
B2: Burkina Faso: Rural Land Governance Project
B4: Activity Design History
B6: Original Project
B8: The objective of the Rural Land Governance Projectis to increase investment in land and rural productivity through improved land tenure security and land management. The Government has demonstrated commitment to adopting improved land laws, regulations and administrative processes to meet its ambitious rural land tenure vision. The project seeks to assist the Government in fulfilling this commitment.
B11: Closeout
B13: The project contributed to the adoption of the 2009 Rural Land Law, the 2012 Agrarian and Land Reorganization Law, and 52 other implementing decrees and regulations. These reforms established the framework for decentralized land governance, more efficient land conflict resolution, improved recognition of citizens' rights to land and better land management. At the end of the compact, the project trained more than 8,700 local officials in 47 rural communes on participatory land-use management, land-service operations and conflict mediation in accordance with the new laws.
B15: Project Components
B17: 1. Legal and Procedural Change and Communication: This activity will support the Government's effort to develop and implement improved rural land legislation and to develop, revise and implement other legal and procedural frameworks.
B19: 2. Institutional Development and Capacity Building: This activity, in conjunction with the Legal and Procedural Change and Communication activity, will improve the instutional capacity to deliver land services in rural areas through improved land registration and mapping services, decentralization of land tenure services, and capacity building to mediate land conflicts.
B21: 3. Site-Specific Land Tenure Interventions: This activity will ensure that the above mentioned activities will yield their intended benefits across municipalities and in targeted agricultural development zones. The activity employs a cluster approach to project design and supports participatory land use management planning and clarifying and securing rights in developed zones.
B23: Economic Rationale
B25: The project incorporated monitoring and evaluation needs as a key component of project design. Although no ERR was made available at Entry Into Force, the project was structured into two distinct phases. In the first phase, a subsample[1] (“treatment”) of Burkina Faso’s most conflict-prone communes were “treated” by the project. If evidence from these communes suggested an ERR of at least 12.5%, a phasing decision in 2012 would approve a second phase of communes to receive the same treatment.
B27: There are two primary causal chains leading to higher incomes included in the ERR. First, an improvement in the perception of land tenure security increases the appropriability of investments in land-productivity improving private investments. These may include investments in higher-value crops, better seeds or irrigation systems. Importantly, current occupants should respond to the perception of improved tenure security which may or may not be closely linked to the actual incidence of conflict. Land titles are generally viewed as a more secure form of tenure security than traditional forms of tenure security practiced in sub-Saharan Africa.
B29: Therefore, the project assumes that improved tenure security, caused by the titling-related activities, increase expected or perceived tenure security which in turn provides incentives to invest. Farm outputs therefore should grow at a higher rate, providing more income for beneficiary households working this land.
B31: The second causal chain included in the ERR is the reduction in the number of land conflicts. As the population of Burkina Faso has grown, more households have begun to compete for the same number of land parcels. This has resulted in a steadily rising incidence of conflict when traditional forms of dispute resolution prove inadequate. This suggests that ex-ante (traditional) dispute resolution approaches were failing to deter conflicts over land. The existence of clear formal titles over these parcels can act as a deterrent by substantiating unambiguous ownership claims in at least some land disputes. For examples, the boundaries of parcels are unambiguous and matters of public record; it is therefore more difficult to enter into disputes opportunistically, since frivolous claims are more difficult to prove.
B33: Thus, if a decrease in the incidence of land conflict can be attributed to the project, the cost of the damages caused by these conflicts is never incurred. This benefit exists even if the costs associated with each conflict have not changed.

Sheet CB_DATA_ (hidden)

Sheet ERR & Sensitivity Analysis
G1: Last updated: 10/26/2015
B2: Burkina Faso: Rural Land Governance
B3: ERR and sensitivity analysis
B5: Change the "User Input" cells in the table below to see the effect on the compact's Economic Rate of Return (ERR) and net benefits (see chart below). To reset all values to the default MCC estimates, click the "Reset Parameters" button at right. Be sure to reset all summary parameters to their original values ("MCC Estimate" values) before changing specific parameters.
B7: Parameter type | C7: Description of key parameters | D7: Parameter values
D8: User Input | E8: MCC Estimate | F8: Plausible Range | G8: Values used in ERR computation | I8: All summary parameters set to initial values?
B9: Summary | C9: Actual costs as a percentage of estimated costs | D9: 1 | E9: 1 | F9: 80%-120% | G9: =IF($I$9="Y",E9,IF(D9<0,0%,D9)) -> 1 | I9: =IF(D9=E9,IF(D10=E10,"Y","N"),"N") -> Y
B10: Summary | C10: Actual benefits as a percentage of estimated benefits | D10: 1 | E10: 1 | F10: 80%-120% | G10: =IF($I$9="Y",E10,IF(D10<0,0%,D10)) -> 1
B12: Specific | C12: Average cost of property damage or loss, per dispute (USD) | D12: 200 | E12: 200 | F12: 100-300 | G12: =IF($I$13="Y",E12,IF(D12<0,0%,D12)) -> 200 | I12: All specific parameters set to initial values?
B13: Specific | C13: Resolution cost of each dispute (USD) | D13: 28 | E13: 28 | F13: 14-42 | G13: =IF($I$13="Y",E13,IF(D13<0,0%,D13)) -> 28 | I13: =IF(D12=E12,IF(D13=E13,IF(D14=E14,IF(D15=E15,IF(D16=E16,IF(D17=E17,IF(D18=E18,IF(D19=E19,IF(D20=E20,IF(D21=E21,"Y","N"),"N"),"N"),"N"),"N"),"N"),"N"),"N"),"N"),"N") -> Y
B14: Specific | C14: Fraction of households experiencing conflict, 2007 (%) | D14: 0.0412 | E14: 0.0412 | F14: 2-6% | G14: =IF($I$13="Y",E14,IF(D14<0,0%,D14)) -> 0.0412
B15: Specific | C15: Annual growth rate of conflict incidence (%) | D15: 0.0365 | E15: 0.0365 | F15: 0-5% | G15: 0.0365
B16: Specific | C16: Decrease in conflicts attributable to dispute resolution (% of total) | D16: 0.121 | E16: 0.121 | F16: 5-15% | G16: =IF($I$13="Y",E16,IF(D16<0,0%,D16)) -> 0.121
B17: Specific | C17: Operation & Maintenance (O&M) costs per building, as percent of building value | D17: 0.03 | E17: 0.03 | F17: 2-5% | G17: =IF($I$13="Y",E17,IF(D17<0,0%,D17)) -> 0.03
B18: Specific | C18: Average household size | D18: 6.3 | E18: 6.3 | F18: 5.7-6.9 | G18: =IF($I$13="Y",E18,IF(D18<0,0%,D18)) -> 6.3
B19: Specific | C19: Average rate of population growth1 | D19: 0.0307 | E19: 0.0307 | F19: 2.7-3.4% | G19: =IF($I$13="Y",E19,IF(D19<0,0%,D19)) -> 0.0307
B20: Specific | C20: [Monte Carlo] Correlation coefficient for perceptions draws | D20: 0.5 | E20: 0.5 | F20: 0-100% | G20: 0.5
B21: Specific | C21: [Monte Carlo] Correlation coefficient for productivity draws | D21: 0.5 | E21: 0.5 | F21: 0-75% | G21: =IF($I$13="Y",E21,IF(D21<0,0%,D21)) -> 0.5
B23: 1 Default value from the CIA world factbook, 2007-2027.
B24: =IF(I9="N",IF(I13="N","Reminder: Please reset all summary parameters to original values before changing specific parameters. Specific parameters will only be used in ERR computation when all summary parameters are set to initial values",0),0) -> 0
C26: User Generated Economic rate of return (ERR): | D26: ='Cost-Benefit Summary'!$C$17 -> 0.05787402175 | F26: Median ERR from Monte Carlo: | G26: =Sensitivity!$H$30 -> 0.05624377313
C29: MCC Estimated ERRs: | E29: Closeout
D30: ERR | E30: 0.0579
D31: Date | E31: 2016-02-08
C33: Present Value (PV) of Benefits: | D33: ='Cost-Benefit Summary'!C25 -> 35237844.15
C35: Present Value (PV) of MCC Costs: | D35: ='Cost-Benefit Summary'!C26 -> 46363358.98
C81: 1 This graph presents the yearly benefits accrued as a result of the project, minus the yearly costs to MCC and other organizations of implementing the project.
C82: 2 This graph was produced by running a simulation of the project's ERR 5,000 times, each of which varied a sub-sample of the "Specific Parameters" listed in the table above as well as the empirically estimated producitivity changes, according to a specified probabilistic distribution. It is meant to illustrate the uncertainty around the final ERR figure presented in this spreadsheet, and to give an idea of how likely higher and lower ERRs given this uncertainty.

Sheet Cost-Benefit Summary
A1: =IF('ERR & Sensitivity Analysis'!$I$9="N","Note: Current calculations are based on user input and are not the original MCC estimates.",IF('ERR & Sensitivity Analysis'!$I$13="N","Note: Current calculations are based on user input and are not the original MCC estimates.",0)) -> 0 | J1: Last updated: 2/8/2016
B2: Burkina Faso: Rural Land Governance
C4: Compact Year
B5: Phase One Communes | C5: 1 | D5: =C5+1 -> 2 | E5: =D5+1 -> 3 | F5: 4 | G5: 5 | H5: 6 | I5: 7 | J5: 8 | K5: 9 | L5: 10 | M5: 11 | N5: 12 | O5: 13 | P5: 14 | Q5: 15 | R5: 16 | S5: 17 | T5: 18 | U5: 19 | V5: 20
B6: Total Costs (USD'000) | C6: =('ERR Combined Calculation'!C$26+'ERR Combined Calculation'!C$28+'ERR Combined Calculation'!C$30)/1000 -> 1736.548353 | D6: =('ERR Combined Calculation'!D$26+'ERR Combined Calculation'!D$28+'ERR Combined Calculation'!D$30)/1000 -> 7130.934453 | E6: =('ERR Combined Calculation'!E$26+'ERR Combined Calculation'!E$28+'ERR Combined Calculation'!E$30)/1000 -> 7499.453719 | F6: =('ERR Combined Calculation'!F$26+'ERR Combined Calculation'!F$28+'ERR Combined Calculation'!F$30)/1000 -> 8145.138593 | G6: =('ERR Combined Calculation'!G$26+'ERR Combined Calculation'!G$28+'ERR Combined Calculation'!G$30)/1000 -> 220.35519 | H6: =('ERR Combined Calculation'!H$26+'ERR Combined Calculation'!H$28+'ERR Combined Calculation'!H$30)/1000 -> 220.35519 | I6: =('ERR Combined Calculation'!I$26+'ERR Combined Calculation'!I$28+'ERR Combined Calculation'!I$30)/1000 -> 220.35519 | J6: =('ERR Combined Calculation'!J$26+'ERR Combined Calculation'!J$28+'ERR Combined Calculation'!J$30)/1000 -> 220.35519 | K6: =('ERR Combined Calculation'!K$26+'ERR Combined Calculation'!K$28+'ERR Combined Calculation'!K$30)/1000 -> 220.35519 | L6: =('ERR Combined Calculation'!L$26+'ERR Combined Calculation'!L$28+'ERR Combined Calculation'!L$30)/1000 -> 220.35519 | M6: =('ERR Combined Calculation'!M$26+'ERR Combined Calculation'!M$28+'ERR Combined Calculation'!M$30)/1000 -> 220.35519 | N6: =('ERR Combined Calculation'!N$26+'ERR Combined Calculation'!N$28+'ERR Combined Calculation'!N$30)/1000 -> 220.35519 | O6: =('ERR Combined Calculation'!O$26+'ERR Combined Calculation'!O$28+'ERR Combined Calculation'!O$30)/1000 -> 220.35519 | P6: =('ERR Combined Calculation'!P$26+'ERR Combined Calculation'!P$28+'ERR Combined Calculation'!P$30)/1000 -> 220.35519 | Q6: =('ERR Combined Calculation'!Q$26+'ERR Combined Calculation'!Q$28+'ERR Combined Calculation'!Q$30)/1000 -> 220.35519 | R6: =('ERR Combined Calculation'!R$26+'ERR Combined Calculation'!R$28+'ERR Combined Calculation'!R$30)/1000 -> 220.35519 | S6: =('ERR Combined Calculation'!S$26+'ERR Combined Calculation'!S$28+'ERR Combined Calculation'!S$30)/1000 -> 220.35519 | T6: =('ERR Combined Calculation'!T$26+'ERR Combined Calculation'!T$28+'ERR Combined Calculation'!T$30)/1000 -> 220.35519 | U6: =('ERR Combined Calculation'!U$26+'ERR Combined Calculation'!U$28+'ERR Combined Calculation'!U$30)/1000 -> 220.35519 | V6: =('ERR Combined Calculation'!V$26+'ERR Combined Calculation'!V$28+'ERR Combined Calculation'!V$30)/1000 -> 220.35519
B7: Benefits (USD'000) | C7: =('ERR Combined Calculation'!C$22+'ERR Combined Calculation'!C$24)/1000 -> 0 | D7: =('ERR Combined Calculation'!D$22+'ERR Combined Calculation'!D$24)/1000 -> 282.0861936 | E7: =('ERR Combined Calculation'!E$22+'ERR Combined Calculation'!E$24)/1000 -> 796.5115234 | F7: =('ERR Combined Calculation'!F$22+'ERR Combined Calculation'!F$24)/1000 -> 1685.035906 | G7: =('ERR Combined Calculation'!G$22+'ERR Combined Calculation'!G$24)/1000 -> 2206.610064 | H7: =('ERR Combined Calculation'!H$22+'ERR Combined Calculation'!H$24)/1000 -> 2539.400274 | I7: =('ERR Combined Calculation'!I$22+'ERR Combined Calculation'!I$24)/1000 -> 2655.847399 | J7: =('ERR Combined Calculation'!J$22+'ERR Combined Calculation'!J$24)/1000 -> 2777.760219 | K7: =('ERR Combined Calculation'!K$22+'ERR Combined Calculation'!K$24)/1000 -> 2905.403462 | L7: =('ERR Combined Calculation'!L$22+'ERR Combined Calculation'!L$24)/1000 -> 3039.055201 | M7: =('ERR Combined Calculation'!M$22+'ERR Combined Calculation'!M$24)/1000 -> 3179.007556 | N7: =('ERR Combined Calculation'!N$22+'ERR Combined Calculation'!N$24)/1000 -> 3325.567436 | O7: =('ERR Combined Calculation'!O$22+'ERR Combined Calculation'!O$24)/1000 -> 3479.057325 | P7: =('ERR Combined Calculation'!P$22+'ERR Combined Calculation'!P$24)/1000 -> 3639.816112 | Q7: =('ERR Combined Calculation'!Q$22+'ERR Combined Calculation'!Q$24)/1000 -> 3808.199964 | R7: =('ERR Combined Calculation'!R$22+'ERR Combined Calculation'!R$24)/1000 -> 3984.583253 | S7: =('ERR Combined Calculation'!S$22+'ERR Combined Calculation'!S$24)/1000 -> 4169.359527 | T7: =('ERR Combined Calculation'!T$22+'ERR Combined Calculation'!T$24)/1000 -> 4362.942548 | U7: =('ERR Combined Calculation'!U$22+'ERR Combined Calculation'!U$24)/1000 -> 4565.767373 | V7: =('ERR Combined Calculation'!V$22+'ERR Combined Calculation'!V$24)/1000 -> 4778.291515
B8: Net Incremental Benefits | C8: =C$7-C$6 -> -1736.548353 | D8: =D$7-D$6 -> -6848.848259 | E8: -6702.942196 | F8: -6460.102687 | G8: 1986.254874 | H8: 2319.045084 | I8: 2435.492209 | J8: 2557.405029 | K8: 2685.048272 | L8: 2818.700011 | M8: 2958.652366 | N8: 3105.212246 | O8: 3258.702135 | P8: 3419.460922 | Q8: 3587.844774 | R8: 3764.228063 | S8: 3949.004337 | T8: 4142.587358 | U8: 4345.412183 | V8: =V$7-V$6 -> 4557.936325
B10: Phase Two Communes | C10: 1 | D10: =C10+1 -> 2 | E10: =D10+1 -> 3 | F10: 4 | G10: 5 | H10: 6 | I10: 7 | J10: 8 | K10: 9 | L10: 10 | M10: 11 | N10: 12 | O10: 13 | P10: 14 | Q10: 15 | R10: 16 | S10: 17 | T10: 18 | U10: 19 | V10: 20
B11: Total Costs (USD'000) | C11: =('ERR Combined Calculation'!C$27+'ERR Combined Calculation'!C$29+'ERR Combined Calculation'!C$31)/1000 -> 0 | D11: =('ERR Combined Calculation'!D$27+'ERR Combined Calculation'!D$29+'ERR Combined Calculation'!D$31)/1000 -> 0 | E11: =('ERR Combined Calculation'!E$27+'ERR Combined Calculation'!E$29+'ERR Combined Calculation'!E$31)/1000 -> 0 | F11: =('ERR Combined Calculation'!F$27+'ERR Combined Calculation'!F$29+'ERR Combined Calculation'!F$31)/1000 -> 0 | G11: =('ERR Combined Calculation'!G$27+'ERR Combined Calculation'!G$29+'ERR Combined Calculation'!G$31)/1000 -> 18145.75177 | H11: =('ERR Combined Calculation'!H$27+'ERR Combined Calculation'!H$29+'ERR Combined Calculation'!H$31)/1000 -> 24150.01217 | I11: =('ERR Combined Calculation'!I$27+'ERR Combined Calculation'!I$29+'ERR Combined Calculation'!I$31)/1000 -> 388.8621 | J11: =('ERR Combined Calculation'!J$27+'ERR Combined Calculation'!J$29+'ERR Combined Calculation'!J$31)/1000 -> 388.8621 | K11: =('ERR Combined Calculation'!K$27+'ERR Combined Calculation'!K$29+'ERR Combined Calculation'!K$31)/1000 -> 388.8621 | L11: =('ERR Combined Calculation'!L$27+'ERR Combined Calculation'!L$29+'ERR Combined Calculation'!L$31)/1000 -> 388.8621 | M11: =('ERR Combined Calculation'!M$27+'ERR Combined Calculation'!M$29+'ERR Combined Calculation'!M$31)/1000 -> 388.8621 | N11: =('ERR Combined Calculation'!N$27+'ERR Combined Calculation'!N$29+'ERR Combined Calculation'!N$31)/1000 -> 388.8621 | O11: =('ERR Combined Calculation'!O$27+'ERR Combined Calculation'!O$29+'ERR Combined Calculation'!O$31)/1000 -> 388.8621 | P11: =('ERR Combined Calculation'!P$27+'ERR Combined Calculation'!P$29+'ERR Combined Calculation'!P$31)/1000 -> 388.8621 | Q11: =('ERR Combined Calculation'!Q$27+'ERR Combined Calculation'!Q$29+'ERR Combined Calculation'!Q$31)/1000 -> 388.8621 | R11: =('ERR Combined Calculation'!R$27+'ERR Combined Calculation'!R$29+'ERR Combined Calculation'!R$31)/1000 -> 388.8621 | S11: =('ERR Combined Calculation'!S$27+'ERR Combined Calculation'!S$29+'ERR Combined Calculation'!S$31)/1000 -> 388.8621 | T11: =('ERR Combined Calculation'!T$27+'ERR Combined Calculation'!T$29+'ERR Combined Calculation'!T$31)/1000 -> 388.8621 | U11: =('ERR Combined Calculation'!U$27+'ERR Combined Calculation'!U$29+'ERR Combined Calculation'!U$31)/1000 -> 388.8621 | V11: =('ERR Combined Calculation'!V$27+'ERR Combined Calculation'!V$29+'ERR Combined Calculation'!V$31)/1000 -> 388.8621
B12: Benefits (USD'000) | C12: =('ERR Combined Calculation'!C$23+'ERR Combined Calculation'!C$25)/1000 -> 0 | D12: =('ERR Combined Calculation'!D$23+'ERR Combined Calculation'!D$25)/1000 -> 0 | E12: =('ERR Combined Calculation'!E$23+'ERR Combined Calculation'!E$25)/1000 -> 0 | F12: =('ERR Combined Calculation'!F$23+'ERR Combined Calculation'!F$25)/1000 -> 0 | G12: =('ERR Combined Calculation'!G$23+'ERR Combined Calculation'!G$25)/1000 -> 371.1413795 | H12: =('ERR Combined Calculation'!H$23+'ERR Combined Calculation'!H$25)/1000 -> 1048.026114 | I12: =('ERR Combined Calculation'!I$23+'ERR Combined Calculation'!I$25)/1000 -> 2217.296788 | J12: =('ERR Combined Calculation'!J$23+'ERR Combined Calculation'!J$25)/1000 -> 2903.666737 | K12: =('ERR Combined Calculation'!K$23+'ERR Combined Calculation'!K$25)/1000 -> 3341.599543 | L12: =('ERR Combined Calculation'!L$23+'ERR Combined Calculation'!L$25)/1000 -> 3494.827816 | M12: =('ERR Combined Calculation'!M$23+'ERR Combined Calculation'!M$25)/1000 -> 3655.247884 | N12: =('ERR Combined Calculation'!N$23+'ERR Combined Calculation'!N$25)/1000 -> 3823.208061 | O12: =('ERR Combined Calculation'!O$23+'ERR Combined Calculation'!O$25)/1000 -> 3999.074215 | P12: =('ERR Combined Calculation'!P$23+'ERR Combined Calculation'!P$25)/1000 -> 4183.230695 | Q12: =('ERR Combined Calculation'!Q$23+'ERR Combined Calculation'!Q$25)/1000 -> 4376.081308 | R12: =('ERR Combined Calculation'!R$23+'ERR Combined Calculation'!R$25)/1000 -> 4578.050352 | S12: =('ERR Combined Calculation'!S$23+'ERR Combined Calculation'!S$25)/1000 -> 4789.583708 | T12: =('ERR Combined Calculation'!T$23+'ERR Combined Calculation'!T$25)/1000 -> 5011.149988 | U12: =('ERR Combined Calculation'!U$23+'ERR Combined Calculation'!U$25)/1000 -> 5243.241753 | V12: =('ERR Combined Calculation'!V$23+'ERR Combined Calculation'!V$25)/1000 -> 5486.376795
B13: Net Incremental Benefits | C13: =C$12-C$11 -> 0 | D13: =D$12-D$11 -> 0 | E13: 0 | F13: 0 | G13: -17774.61039 | H13: -23101.98606 | I13: 1828.434688 | J13: 2514.804637 | K13: 2952.737443 | L13: 3105.965716 | M13: 3266.385784 | N13: 3434.345961 | O13: 3610.212115 | P13: 3794.368595 | Q13: 3987.219208 | R13: 4189.188252 | S13: 4400.721608 | T13: 4622.287888 | U13: 4854.379653 | V13: =V$12-V$11 -> 5097.514695
B15: Total Incremental Benefits | C15: =C$13+C$8 -> -1736.548353 | D15: =D$13+D$8 -> -6848.848259 | E15: -6702.942196 | F15: -6460.102687 | G15: -15788.35552 | H15: -20782.94097 | I15: 4263.926898 | J15: 5072.209666 | K15: 5637.785715 | L15: 5924.665728 | M15: 6225.03815 | N15: 6539.558207 | O15: 6868.91425 | P15: 7213.829517 | Q15: 7575.063982 | R15: 7953.416315 | S15: 8349.725945 | T15: 8764.875246 | U15: 9199.791836 | V15: 9655.45102
B17: ERR | C17: =IRR(C15:V15,10) -> 0.05787402175
B19: Total Costs | C19: =1000*(C$6+C$11) -> 1736548.353 | D19: =1000*(D$6+D$11) -> 7130934.453 | E19: 7499453.719 | F19: 8145138.593 | G19: 18366106.96 | H19: 24370367.36 | I19: 609217.29 | J19: 609217.29 | K19: 609217.29 | L19: 609217.29 | M19: 609217.29 | N19: 609217.29 | O19: 609217.29 | P19: 609217.29 | Q19: 609217.29 | R19: 609217.29 | S19: 609217.29 | T19: 609217.29 | U19: 609217.29 | V19: 609217.29
B20: MCC Costs Excluding Overhead | C20: ='ERR Combined Calculation'!C$8 -> 1543967.5 | D20: ='ERR Combined Calculation'!D$8 -> 6340123.51 | E20: ='ERR Combined Calculation'!E$8 -> 6667774.49 | F20: ='ERR Combined Calculation'!F$8 -> 7045935.69 | G20: ='ERR Combined Calculation'!G$8 -> 16133412.55 | H20: ='ERR Combined Calculation'!H$8 -> 21126070.81 | I20: ='ERR Combined Calculation'!I$8 -> 0 | J20: ='ERR Combined Calculation'!J$8 -> 0 | K20: ='ERR Combined Calculation'!K$8 -> 0 | L20: ='ERR Combined Calculation'!L$8 -> 0 | M20: ='ERR Combined Calculation'!M$8 -> 0 | N20: ='ERR Combined Calculation'!N$8 -> 0 | O20: ='ERR Combined Calculation'!O$8 -> 0 | P20: ='ERR Combined Calculation'!P$8 -> 0 | Q20: ='ERR Combined Calculation'!Q$8 -> 0 | R20: ='ERR Combined Calculation'!R$8 -> 0 | S20: ='ERR Combined Calculation'!S$8 -> 0 | T20: ='ERR Combined Calculation'!T$8 -> 0 | U20: ='ERR Combined Calculation'!U$8 -> 0 | V20: ='ERR Combined Calculation'!V$8 -> 0
B21: Total Benefits | C21: =1000*(C$7+C$12) -> 0 | D21: =1000*(D$7+D$12) -> 282086.1936 | E21: =1000*(E$7+E$12) -> 796511.5234 | F21: 1685035.906 | G21: 2577751.443 | H21: 3587426.387 | I21: 4873144.188 | J21: 5681426.956 | K21: 6247003.005 | L21: 6533883.018 | M21: 6834255.44 | N21: 7148775.497 | O21: 7478131.54 | P21: 7823046.807 | Q21: 8184281.272 | R21: 8562633.605 | S21: 8958943.235 | T21: 9374092.536 | U21: 9809009.126 | V21: 10264668.31
B23: NPV | C23: =1000*NPV(0.1,$C$15:$V$15) -> -11125514.83
B25: Present Value (PV) of Benefits | C25: =NPV(0.1,C21:V21) -> 35237844.15
B26: Present Value (PV) of Costs | C26: =NPV(0.1,C$19:V$19) -> 46363358.98
B28: Undiscounted MCC Project Costs | C28: =+SUM(C20:V20) -> 58857284.55
B29: Overhead Costs pro-rated @ 12% | C29: =Costs!$B$21*Costs!$B$18 -> 7386340.987
B30: Total MCC Investment | C30: =$C$28+$C$29 -> 66243625.54

Sheet ERR Combined Calculation
A1: =IF('ERR & Sensitivity Analysis'!$I$9="N","Note: Current calculations are based on user input and are not the original MCC estimates.",IF('ERR & Sensitivity Analysis'!$I$13="N","Note: Current calculations are based on user input and are not the original MCC estimates.",0)) -> 0 | H1: Last updated: 2/8/2016
C3: Year
C4: 1 | D4: 2 | E4: 3 | F4: 4 | G4: 5 | H4: 6 | I4: 7 | J4: 8 | K4: 9 | L4: 10 | M4: 11 | N4: 12 | O4: 13 | P4: 14 | Q4: 15 | R4: 16 | S4: 17 | T4: 18 | U4: 19 | V4: 20
B5: ERR Calculation, Combined
B6: Increased production due to project | C6: =C$22+C$23 -> 0 | D6: =D$22+D$23 -> 194904.035 | E6: 610234.54 | F6: 1486032.376 | G6: 2250500.731 | H6: 3115333.544 | I6: 4368797.701 | J6: 5142623.24 | K6: 5671387.923 | L6: 5918941.597 | M6: 6177300.883 | N6: 6446937.443 | O6: 6728343.525 | P6: 7022032.862 | Q6: 7328541.614 | R6: 7648429.342 | S6: 7982280.035 | T6: 8330703.168 | U6: 8694334.823 | V6: 9073838.845
B7: Reduced dispute resolution costs due to project | C7: =C$24+C$25 -> 0 | D7: =D$24+D$25 -> 87182.15865 | E7: 186276.9834 | F7: 199003.5293 | G7: 327250.7125 | H7: 472092.8436 | I7: 504346.4864 | J7: 538803.7157 | K7: 575615.0819 | L7: 614941.4209 | M7: 656954.557 | N7: 701838.0536 | O7: 749788.0155 | P7: 801013.9451 | Q7: 855739.6584 | R7: 914204.2625 | S7: 976663.2005 | T7: 1043389.368 | U7: 1114674.303 | V7: 1190829.464
B8: Project costs | C8: =C$26+C$27 -> 1543967.5 | D8: =D$26+D$27 -> 6340123.51 | E8: 6667774.49 | F8: 7045935.69 | G8: 16133412.55 | H8: 21126070.81 | I8: 0 | J8: 0 | K8: 0 | L8: 0 | M8: 0 | N8: 0 | O8: 0 | P8: 0 | Q8: 0 | R8: 0 | S8: 0 | T8: 0 | U8: 0 | V8: 0
B9: Compact Overhead and M&E pro-rated (12%) | C9: =Costs!$B$21*C$8 -> 192580.8532 | D9: =Costs!$B$21*D$8 -> 790810.943 | E9: =Costs!$B$21*E$8 -> 831679.229 | F9: =Costs!$B$21*F$8 -> 878847.7131 | G9: =Costs!$B$21*G$8 -> 2012339.219 | H9: =Costs!$B$21*H$8 -> 2635079.262 | I9: =Costs!$B$21*I$8 -> 0 | J9: =Costs!$B$21*J$8 -> 0 | K9: =Costs!$B$21*K$8 -> 0 | L9: =Costs!$B$21*L$8 -> 0 | M9: =Costs!$B$21*M$8 -> 0 | N9: =Costs!$B$21*N$8 -> 0 | O9: =Costs!$B$21*O$8 -> 0 | P9: =Costs!$B$21*P$8 -> 0 | Q9: =Costs!$B$21*Q$8 -> 0 | R9: =Costs!$B$21*R$8 -> 0 | S9: =Costs!$B$21*S$8 -> 0 | T9: =Costs!$B$21*T$8 -> 0 | U9: =Costs!$B$21*U$8 -> 0 | V9: =Costs!$B$21*V$8 -> 0
B10: Building O&M costs (3% of building value) | C10: =C$30+C$31 -> 0 | D10: =D$30+D$31 -> 0 | E10: 0 | F10: 220355.19 | G10: 220355.19 | H10: 609217.29 | I10: 609217.29 | J10: 609217.29 | K10: 609217.29 | L10: 609217.29 | M10: 609217.29 | N10: 609217.29 | O10: 609217.29 | P10: 609217.29 | Q10: 609217.29 | R10: 609217.29 | S10: 609217.29 | T10: 609217.29 | U10: 609217.29 | V10: 609217.29
B11: Net Benefit | C11: =C$6+C$7-(C$8+C$9+C$10) -> -1736548.353 | D11: =D$6+D$7-(D$8+D$9+D$10) -> -6848848.259 | E11: -6702942.196 | F11: -6460102.687 | G11: -15788355.52 | H11: -20782940.97 | I11: 4263926.898 | J11: 5072209.666 | K11: 5637785.715 | L11: 5924665.728 | M11: 6225038.15 | N11: 6539558.207 | O11: 6868914.25 | P11: 7213829.517 | Q11: 7575063.982 | R11: 7953416.315 | S11: 8349725.945 | T11: 8764875.246 | U11: 9199791.836 | V11: 9655451.02
B12: ERR | C12: =IRR($C$11:$V$11,10) -> 0.05787402175
B14: Benefits | C14: =C$6+C$7 -> 0 | D14: =D$6+D$7 -> 282086.1936 | E14: 796511.5234 | F14: 1685035.906 | G14: 2577751.443 | H14: 3587426.387 | I14: 4873144.188 | J14: 5681426.956 | K14: 6247003.005 | L14: 6533883.018 | M14: 6834255.44 | N14: 7148775.497 | O14: 7478131.54 | P14: 7823046.807 | Q14: 8184281.272 | R14: 8562633.605 | S14: 8958943.235 | T14: 9374092.536 | U14: 9809009.126 | V14: 10264668.31
B15: MCC Costs (excluding O&M) | C15: =C$8+C$9 -> 1736548.353 | D15: =D$8+D$9 -> 7130934.453 | E15: 7499453.719 | F15: 7924783.403 | G15: 18145751.77 | H15: 23761150.07 | I15: 0 | J15: 0 | K15: 0 | L15: 0 | M15: 0 | N15: 0 | O15: 0 | P15: 0 | Q15: 0 | R15: 0 | S15: 0 | T15: 0 | U15: 0 | V15: 0
B17: PV of Benefits at 10% | C17: =NPV(0.1,C14:V14) -> 35237844.15
B18: PV of Costs at 10% | C18: =NPV(0.1,C15:V15) -> 43198832.81
B19: NPV at 10% | C19: =$C$17-$C$18 -> -7960988.66
B21: Disaggregated by Project Phase
B22: Increased production due to project, Phase 1 | C22: ='ERR & Sensitivity Analysis'!$G$10*(C$62-C$48) -> 0 | D22: ='ERR & Sensitivity Analysis'!$G$10*(D$62-D$48) -> 194904.035 | E22: ='ERR & Sensitivity Analysis'!$G$10*(E$62-E$48) -> 610234.54 | F22: ='ERR & Sensitivity Analysis'!$G$10*(F$62-F$48) -> 1486032.376 | G22: ='ERR & Sensitivity Analysis'!$G$10*(G$62-G$48) -> 1994010.504 | H22: ='ERR & Sensitivity Analysis'!$G$10*(H$62-H$48) -> 2312275.795 | I22: ='ERR & Sensitivity Analysis'!$G$10*(I$62-I$48) -> 2413205.651 | J22: ='ERR & Sensitivity Analysis'!$G$10*(J$62-J$48) -> 2518541.053 | K22: ='ERR & Sensitivity Analysis'!$G$10*(K$62-K$48) -> 2628474.3 | L22: ='ERR & Sensitivity Analysis'!$G$10*(L$62-L$48) -> 2743206.087 | M22: ='ERR & Sensitivity Analysis'!$G$10*(M$62-M$48) -> 2862945.868 | N22: ='ERR & Sensitivity Analysis'!$G$10*(N$62-N$48) -> 2987912.239 | O22: ='ERR & Sensitivity Analysis'!$G$10*(O$62-O$48) -> 3118333.339 | P22: ='ERR & Sensitivity Analysis'!$G$10*(P$62-P$48) -> 3254447.265 | Q22: ='ERR & Sensitivity Analysis'!$G$10*(Q$62-Q$48) -> 3396502.506 | R22: ='ERR & Sensitivity Analysis'!$G$10*(R$62-R$48) -> 3544758.398 | S22: ='ERR & Sensitivity Analysis'!$G$10*(S$62-S$48) -> 3699485.596 | T22: ='ERR & Sensitivity Analysis'!$G$10*(T$62-T$48) -> 3860966.571 | U22: ='ERR & Sensitivity Analysis'!$G$10*(U$62-U$48) -> 4029496.122 | V22: ='ERR & Sensitivity Analysis'!$G$10*(V$62-V$48) -> 4205381.916
B23: Increased production due to project, Phase 2 | C23: ='ERR & Sensitivity Analysis'!$G$10*(C$63-C$49) -> 0 | D23: ='ERR & Sensitivity Analysis'!$G$10*(D$63-D$49) -> 0 | E23: ='ERR & Sensitivity Analysis'!$G$10*(E$63-E$49) -> 0 | F23: ='ERR & Sensitivity Analysis'!$G$10*(F$63-F$49) -> 0 | G23: ='ERR & Sensitivity Analysis'!$G$10*(G$63-G$49) -> 256490.2268 | H23: ='ERR & Sensitivity Analysis'!$G$10*(H$63-H$49) -> 803057.7488 | I23: ='ERR & Sensitivity Analysis'!$G$10*(I$63-I$49) -> 1955592.05 | J23: ='ERR & Sensitivity Analysis'!$G$10*(J$63-J$49) -> 2624082.187 | K23: ='ERR & Sensitivity Analysis'!$G$10*(K$63-K$49) -> 3042913.622 | L23: ='ERR & Sensitivity Analysis'!$G$10*(L$63-L$49) -> 3175735.51 | M23: ='ERR & Sensitivity Analysis'!$G$10*(M$63-M$49) -> 3314355.016 | N23: ='ERR & Sensitivity Analysis'!$G$10*(N$63-N$49) -> 3459025.204 | O23: ='ERR & Sensitivity Analysis'!$G$10*(O$63-O$49) -> 3610010.185 | P23: ='ERR & Sensitivity Analysis'!$G$10*(P$63-P$49) -> 3767585.597 | Q23: ='ERR & Sensitivity Analysis'!$G$10*(Q$63-Q$49) -> 3932039.108 | R23: ='ERR & Sensitivity Analysis'!$G$10*(R$63-R$49) -> 4103670.945 | S23: ='ERR & Sensitivity Analysis'!$G$10*(S$63-S$49) -> 4282794.439 | T23: ='ERR & Sensitivity Analysis'!$G$10*(T$63-T$49) -> 4469736.597 | U23: ='ERR & Sensitivity Analysis'!$G$10*(U$63-U$49) -> 4664838.701 | V23: ='ERR & Sensitivity Analysis'!$G$10*(V$63-V$49) -> 4868456.929
B24: Reduced dispute resolution costs due to project, Phase 1 | C24: ='ERR & Sensitivity Analysis'!$G$10*(C$44-C$58) -> 0 | D24: ='ERR & Sensitivity Analysis'!$G$10*(D$44-D$58) -> 87182.15865 | E24: ='ERR & Sensitivity Analysis'!$G$10*(E$44-E$58) -> 186276.9834 | F24: ='ERR & Sensitivity Analysis'!$G$10*(F$44-F$58) -> 199003.5293 | G24: ='ERR & Sensitivity Analysis'!$G$10*(G$44-G$58) -> 212599.5599 | H24: ='ERR & Sensitivity Analysis'!$G$10*(H$44-H$58) -> 227124.4787 | I24: ='ERR & Sensitivity Analysis'!$G$10*(I$44-I$58) -> 242641.748 | J24: ='ERR & Sensitivity Analysis'!$G$10*(J$44-J$58) -> 259219.1657 | K24: ='ERR & Sensitivity Analysis'!$G$10*(K$44-K$58) -> 276929.1617 | L24: ='ERR & Sensitivity Analysis'!$G$10*(L$44-L$58) -> 295849.1143 | M24: ='ERR & Sensitivity Analysis'!$G$10*(M$44-M$58) -> 316061.6885 | N24: ='ERR & Sensitivity Analysis'!$G$10*(N$44-N$58) -> 337655.1969 | O24: ='ERR & Sensitivity Analysis'!$G$10*(O$44-O$58) -> 360723.9857 | P24: ='ERR & Sensitivity Analysis'!$G$10*(P$44-P$58) -> 385368.8468 | Q24: ='ERR & Sensitivity Analysis'!$G$10*(Q$44-Q$58) -> 411697.4584 | R24: ='ERR & Sensitivity Analysis'!$G$10*(R$44-R$58) -> 439824.8552 | S24: ='ERR & Sensitivity Analysis'!$G$10*(S$44-S$58) -> 469873.9312 | T24: ='ERR & Sensitivity Analysis'!$G$10*(T$44-T$58) -> 501975.9766 | U24: ='ERR & Sensitivity Analysis'!$G$10*(U$44-U$58) -> 536271.2514 | V24: ='ERR & Sensitivity Analysis'!$G$10*(V$44-V$58) -> 572909.5982
B25: Reduced dispute resolution costs due to project, Phase 2 | C25: ='ERR & Sensitivity Analysis'!$G$10*(C$45-C$59) -> 0 | D25: ='ERR & Sensitivity Analysis'!$G$10*(D$45-D$59) -> 0 | E25: ='ERR & Sensitivity Analysis'!$G$10*(E$45-E$59) -> 0 | F25: ='ERR & Sensitivity Analysis'!$G$10*(F$45-F$59) -> 0 | G25: ='ERR & Sensitivity Analysis'!$G$10*(G$45-G$59) -> 114651.1526 | H25: ='ERR & Sensitivity Analysis'!$G$10*(H$45-H$59) -> 244968.3649 | I25: ='ERR & Sensitivity Analysis'!$G$10*(I$45-I$59) -> 261704.7383 | J25: ='ERR & Sensitivity Analysis'!$G$10*(J$45-J$59) -> 279584.55 | K25: ='ERR & Sensitivity Analysis'!$G$10*(K$45-K$59) -> 298685.9202 | L25: ='ERR & Sensitivity Analysis'!$G$10*(L$45-L$59) -> 319092.3065 | M25: ='ERR & Sensitivity Analysis'!$G$10*(M$45-M$59) -> 340892.8684 | N25: ='ERR & Sensitivity Analysis'!$G$10*(N$45-N$59) -> 364182.8567 | O25: ='ERR & Sensitivity Analysis'!$G$10*(O$45-O$59) -> 389064.0298 | P25: ='ERR & Sensitivity Analysis'!$G$10*(P$45-P$59) -> 415645.0983 | Q25: ='ERR & Sensitivity Analysis'!$G$10*(Q$45-Q$59) -> 444042.2 | R25: ='ERR & Sensitivity Analysis'!$G$10*(R$45-R$59) -> 474379.4073 | S25: ='ERR & Sensitivity Analysis'!$G$10*(S$45-S$59) -> 506789.2693 | T25: ='ERR & Sensitivity Analysis'!$G$10*(T$45-T$59) -> 541413.3909 | U25: ='ERR & Sensitivity Analysis'!$G$10*(U$45-U$59) -> 578403.0516 | V25: ='ERR & Sensitivity Analysis'!$G$10*(V$45-V$59) -> 617919.8662
B26: Project costs, Phase 1 | C26: ='ERR & Sensitivity Analysis'!$G$9*Costs!B$9 -> 1543967.5 | D26: ='ERR & Sensitivity Analysis'!$G$9*Costs!C$9 -> 6340123.51 | E26: ='ERR & Sensitivity Analysis'!$G$9*Costs!D$9 -> 6667774.49 | F26: ='ERR & Sensitivity Analysis'!$G$9*Costs!E$9 -> 7045935.69 | G26: ='ERR & Sensitivity Analysis'!$G$9*Costs!F$9 -> 0 | H26: ='ERR & Sensitivity Analysis'!$G$9*Costs!G$9 -> 0 | I26: ='ERR & Sensitivity Analysis'!$G$9*Costs!H$9 -> 0 | J26: ='ERR & Sensitivity Analysis'!$G$9*Costs!I$9 -> 0 | K26: ='ERR & Sensitivity Analysis'!$G$9*Costs!J$9 -> 0 | L26: ='ERR & Sensitivity Analysis'!$G$9*Costs!K$9 -> 0 | M26: ='ERR & Sensitivity Analysis'!$G$9*Costs!L$9 -> 0 | N26: ='ERR & Sensitivity Analysis'!$G$9*Costs!M$9 -> 0 | O26: ='ERR & Sensitivity Analysis'!$G$9*Costs!N$9 -> 0 | P26: ='ERR & Sensitivity Analysis'!$G$9*Costs!O$9 -> 0 | Q26: ='ERR & Sensitivity Analysis'!$G$9*Costs!P$9 -> 0 | R26: ='ERR & Sensitivity Analysis'!$G$9*Costs!Q$9 -> 0 | S26: ='ERR & Sensitivity Analysis'!$G$9*Costs!R$9 -> 0 | T26: ='ERR & Sensitivity Analysis'!$G$9*Costs!S$9 -> 0 | U26: ='ERR & Sensitivity Analysis'!$G$9*Costs!T$9 -> 0 | V26: ='ERR & Sensitivity Analysis'!$G$9*Costs!U$9 -> 0
B27: Project costs, Phase 2 | C27: ='ERR & Sensitivity Analysis'!$G$9*Costs!B$10 -> 0 | D27: ='ERR & Sensitivity Analysis'!$G$9*Costs!C$10 -> 0 | E27: ='ERR & Sensitivity Analysis'!$G$9*Costs!D$10 -> 0 | F27: ='ERR & Sensitivity Analysis'!$G$9*Costs!E$10 -> 0 | G27: ='ERR & Sensitivity Analysis'!$G$9*Costs!F$10 -> 16133412.55 | H27: ='ERR & Sensitivity Analysis'!$G$9*Costs!G$10 -> 21126070.81 | I27: ='ERR & Sensitivity Analysis'!$G$9*Costs!H$10 -> 0 | J27: ='ERR & Sensitivity Analysis'!$G$9*Costs!I$10 -> 0 | K27: ='ERR & Sensitivity Analysis'!$G$9*Costs!J$10 -> 0 | L27: ='ERR & Sensitivity Analysis'!$G$9*Costs!K$10 -> 0 | M27: ='ERR & Sensitivity Analysis'!$G$9*Costs!L$10 -> 0 | N27: ='ERR & Sensitivity Analysis'!$G$9*Costs!M$10 -> 0 | O27: ='ERR & Sensitivity Analysis'!$G$9*Costs!N$10 -> 0 | P27: ='ERR & Sensitivity Analysis'!$G$9*Costs!O$10 -> 0 | Q27: ='ERR & Sensitivity Analysis'!$G$9*Costs!P$10 -> 0 | R27: ='ERR & Sensitivity Analysis'!$G$9*Costs!Q$10 -> 0 | S27: ='ERR & Sensitivity Analysis'!$G$9*Costs!R$10 -> 0 | T27: ='ERR & Sensitivity Analysis'!$G$9*Costs!S$10 -> 0 | U27: ='ERR & Sensitivity Analysis'!$G$9*Costs!T$10 -> 0 | V27: ='ERR & Sensitivity Analysis'!$G$9*Costs!U$10 -> 0
B28: Compact Overhead and M&E prorated (12%), Phase 1 | C28: ='ERR & Sensitivity Analysis'!$G$9*Costs!$B$21*C$26 -> 192580.8532 | D28: ='ERR & Sensitivity Analysis'!$G$9*Costs!$B$21*D$26 -> 790810.943 | E28: ='ERR & Sensitivity Analysis'!$G$9*Costs!$B$21*E$26 -> 831679.229 | F28: ='ERR & Sensitivity Analysis'!$G$9*Costs!$B$21*F$26 -> 878847.7131 | G28: ='ERR & Sensitivity Analysis'!$G$9*Costs!$B$21*G$26 -> 0 | H28: ='ERR & Sensitivity Analysis'!$G$9*Costs!$B$21*H$26 -> 0 | I28: ='ERR & Sensitivity Analysis'!$G$9*Costs!$B$21*I$26 -> 0 | J28: ='ERR & Sensitivity Analysis'!$G$9*Costs!$B$21*J$26 -> 0 | K28: ='ERR & Sensitivity Analysis'!$G$9*Costs!$B$21*K$26 -> 0 | L28: ='ERR & Sensitivity Analysis'!$G$9*Costs!$B$21*L$26 -> 0 | M28: ='ERR & Sensitivity Analysis'!$G$9*Costs!$B$21*M$26 -> 0 | N28: ='ERR & Sensitivity Analysis'!$G$9*Costs!$B$21*N$26 -> 0 | O28: ='ERR & Sensitivity Analysis'!$G$9*Costs!$B$21*O$26 -> 0 | P28: ='ERR & Sensitivity Analysis'!$G$9*Costs!$B$21*P$26 -> 0 | Q28: ='ERR & Sensitivity Analysis'!$G$9*Costs!$B$21*Q$26 -> 0 | R28: ='ERR & Sensitivity Analysis'!$G$9*Costs!$B$21*R$26 -> 0 | S28: ='ERR & Sensitivity Analysis'!$G$9*Costs!$B$21*S$26 -> 0 | T28: ='ERR & Sensitivity Analysis'!$G$9*Costs!$B$21*T$26 -> 0 | U28: ='ERR & Sensitivity Analysis'!$G$9*Costs!$B$21*U$26 -> 0 | V28: ='ERR & Sensitivity Analysis'!$G$9*Costs!$B$21*V$26 -> 0
B29: Compact Overhead and M&E prorated (12%), Phase 2 | C29: ='ERR & Sensitivity Analysis'!$G$9*Costs!$B$21*C$27 -> 0 | D29: ='ERR & Sensitivity Analysis'!$G$9*Costs!$B$21*D$27 -> 0 | E29: ='ERR & Sensitivity Analysis'!$G$9*Costs!$B$21*E$27 -> 0 | F29: ='ERR & Sensitivity Analysis'!$G$9*Costs!$B$21*F$27 -> 0 | G29: ='ERR & Sensitivity Analysis'!$G$9*Costs!$B$21*G$27 -> 2012339.219 | H29: ='ERR & Sensitivity Analysis'!$G$9*Costs!$B$21*H$27 -> 2635079.262 | I29: ='ERR & Sensitivity Analysis'!$G$9*Costs!$B$21*I$27 -> 0 | J29: ='ERR & Sensitivity Analysis'!$G$9*Costs!$B$21*J$27 -> 0 | K29: ='ERR & Sensitivity Analysis'!$G$9*Costs!$B$21*K$27 -> 0 | L29: ='ERR & Sensitivity Analysis'!$G$9*Costs!$B$21*L$27 -> 0 | M29: ='ERR & Sensitivity Analysis'!$G$9*Costs!$B$21*M$27 -> 0 | N29: ='ERR & Sensitivity Analysis'!$G$9*Costs!$B$21*N$27 -> 0 | O29: ='ERR & Sensitivity Analysis'!$G$9*Costs!$B$21*O$27 -> 0 | P29: ='ERR & Sensitivity Analysis'!$G$9*Costs!$B$21*P$27 -> 0 | Q29: ='ERR & Sensitivity Analysis'!$G$9*Costs!$B$21*Q$27 -> 0 | R29: ='ERR & Sensitivity Analysis'!$G$9*Costs!$B$21*R$27 -> 0 | S29: ='ERR & Sensitivity Analysis'!$G$9*Costs!$B$21*S$27 -> 0 | T29: ='ERR & Sensitivity Analysis'!$G$9*Costs!$B$21*T$27 -> 0 | U29: ='ERR & Sensitivity Analysis'!$G$9*Costs!$B$21*U$27 -> 0 | V29: ='ERR & Sensitivity Analysis'!$G$9*Costs!$B$21*V$27 -> 0
B30: Building O&M costs (3% of building value), Phase 1 | C30: ='ERR & Sensitivity Analysis'!$G$9*Costs!B$11 -> 0 | D30: ='ERR & Sensitivity Analysis'!$G$9*Costs!C$11 -> 0 | E30: ='ERR & Sensitivity Analysis'!$G$9*Costs!D$11 -> 0 | F30: ='ERR & Sensitivity Analysis'!$G$9*Costs!E$11 -> 220355.19 | G30: ='ERR & Sensitivity Analysis'!$G$9*Costs!F$11 -> 220355.19 | H30: ='ERR & Sensitivity Analysis'!$G$9*Costs!G$11 -> 220355.19 | I30: ='ERR & Sensitivity Analysis'!$G$9*Costs!H$11 -> 220355.19 | J30: ='ERR & Sensitivity Analysis'!$G$9*Costs!I$11 -> 220355.19 | K30: ='ERR & Sensitivity Analysis'!$G$9*Costs!J$11 -> 220355.19 | L30: ='ERR & Sensitivity Analysis'!$G$9*Costs!K$11 -> 220355.19 | M30: ='ERR & Sensitivity Analysis'!$G$9*Costs!L$11 -> 220355.19 | N30: ='ERR & Sensitivity Analysis'!$G$9*Costs!M$11 -> 220355.19 | O30: ='ERR & Sensitivity Analysis'!$G$9*Costs!N$11 -> 220355.19 | P30: ='ERR & Sensitivity Analysis'!$G$9*Costs!O$11 -> 220355.19 | Q30: ='ERR & Sensitivity Analysis'!$G$9*Costs!P$11 -> 220355.19 | R30: ='ERR & Sensitivity Analysis'!$G$9*Costs!Q$11 -> 220355.19 | S30: ='ERR & Sensitivity Analysis'!$G$9*Costs!R$11 -> 220355.19 | T30: ='ERR & Sensitivity Analysis'!$G$9*Costs!S$11 -> 220355.19 | U30: ='ERR & Sensitivity Analysis'!$G$9*Costs!T$11 -> 220355.19 | V30: ='ERR & Sensitivity Analysis'!$G$9*Costs!U$11 -> 220355.19
B31: Building O&M costs (3% of building value), Phase 2 | C31: ='ERR & Sensitivity Analysis'!$G$9*Costs!B$12 -> 0 | D31: ='ERR & Sensitivity Analysis'!$G$9*Costs!C$12 -> 0 | E31: ='ERR & Sensitivity Analysis'!$G$9*Costs!D$12 -> 0 | F31: ='ERR & Sensitivity Analysis'!$G$9*Costs!E$12 -> 0 | G31: ='ERR & Sensitivity Analysis'!$G$9*Costs!F$12 -> 0 | H31: ='ERR & Sensitivity Analysis'!$G$9*Costs!G$12 -> 388862.1 | I31: ='ERR & Sensitivity Analysis'!$G$9*Costs!H$12 -> 388862.1 | J31: ='ERR & Sensitivity Analysis'!$G$9*Costs!I$12 -> 388862.1 | K31: ='ERR & Sensitivity Analysis'!$G$9*Costs!J$12 -> 388862.1 | L31: ='ERR & Sensitivity Analysis'!$G$9*Costs!K$12 -> 388862.1 | M31: ='ERR & Sensitivity Analysis'!$G$9*Costs!L$12 -> 388862.1 | N31: ='ERR & Sensitivity Analysis'!$G$9*Costs!M$12 -> 388862.1 | O31: ='ERR & Sensitivity Analysis'!$G$9*Costs!N$12 -> 388862.1 | P31: ='ERR & Sensitivity Analysis'!$G$9*Costs!O$12 -> 388862.1 | Q31: ='ERR & Sensitivity Analysis'!$G$9*Costs!P$12 -> 388862.1 | R31: ='ERR & Sensitivity Analysis'!$G$9*Costs!Q$12 -> 388862.1 | S31: ='ERR & Sensitivity Analysis'!$G$9*Costs!R$12 -> 388862.1 | T31: ='ERR & Sensitivity Analysis'!$G$9*Costs!S$12 -> 388862.1 | U31: ='ERR & Sensitivity Analysis'!$G$9*Costs!T$12 -> 388862.1 | V31: ='ERR & Sensitivity Analysis'!$G$9*Costs!U$12 -> 388862.1
B32: Net Benefit, Phase 1 | C32: =C$22+C$24-(C$26+C$28+C$30) -> -1736548.353 | D32: =D$22+D$24-(D$26+D$28+D$30) -> -6848848.259 | E32: -6702942.196 | F32: -6460102.687 | G32: 1986254.874 | H32: 2319045.084 | I32: 2435492.209 | J32: 2557405.029 | K32: 2685048.272 | L32: 2818700.011 | M32: 2958652.366 | N32: 3105212.246 | O32: 3258702.135 | P32: 3419460.922 | Q32: 3587844.774 | R32: 3764228.063 | S32: 3949004.337 | T32: 4142587.358 | U32: 4345412.183 | V32: 4557936.325
B33: Net Benefit, Phase 2 | C33: =C$23+C$25-(C$27+C$29+C$31) -> 0 | D33: =D$23+D$25-(D$27+D$29+D$31) -> 0 | E33: 0 | F33: 0 | G33: -17774610.39 | H33: -23101986.06 | I33: 1828434.688 | J33: 2514804.637 | K33: 2952737.443 | L33: 3105965.716 | M33: 3266385.784 | N33: 3434345.961 | O33: 3610212.115 | P33: 3794368.595 | Q33: 3987219.208 | R33: 4189188.252 | S33: 4400721.608 | T33: 4622287.888 | U33: 4854379.653 | V33: 5097514.695
B34: ERR, Phase 1 | C34: =IRR($C$32:$V$32,10) -> 0.09228549172
B35: ERR, Phase 2 | C35: =IRR($C$33:$V$33,10) -> 0.027306346
B37: Without Project
B38: % of HHs experiencing conflict, phase 1 communes | C38: ='Common Assumptions'!$C$6 -> 0.0412 | D38: =C38*(1+'Common Assumptions'!$C$7) -> 0.0427038 | E38: =D38*(1+'Common Assumptions'!$C$7) -> 0.0442624887 | F38: =E38*(1+'Common Assumptions'!$C$7) -> 0.04587806954 | G38: =F38*(1+'Common Assumptions'!$C$7) -> 0.04755261908 | H38: =G38*(1+'Common Assumptions'!$C$7) -> 0.04928828967 | I38: =H38*(1+'Common Assumptions'!$C$7) -> 0.05108731224 | J38: =I38*(1+'Common Assumptions'!$C$7) -> 0.05295199914 | K38: =J38*(1+'Common Assumptions'!$C$7) -> 0.05488474711 | L38: =K38*(1+'Common Assumptions'!$C$7) -> 0.05688804038 | M38: =L38*(1+'Common Assumptions'!$C$7) -> 0.05896445385 | N38: =M38*(1+'Common Assumptions'!$C$7) -> 0.06111665642 | O38: =N38*(1+'Common Assumptions'!$C$7) -> 0.06334741438 | P38: =O38*(1+'Common Assumptions'!$C$7) -> 0.065659595 | Q38: =P38*(1+'Common Assumptions'!$C$7) -> 0.06805617022 | R38: =Q38*(1+'Common Assumptions'!$C$7) -> 0.07054022043 | S38: =R38*(1+'Common Assumptions'!$C$7) -> 0.07311493848 | T38: =S38*(1+'Common Assumptions'!$C$7) -> 0.07578363373 | U38: =T38*(1+'Common Assumptions'!$C$7) -> 0.07854973637 | V38: =U38*(1+'Common Assumptions'!$C$7) -> 0.08141680174
B39: % of HHs experiencing conflict, phase 2 communes | C39: ='Common Assumptions'!$C$6 -> 0.0412 | D39: =C39*(1+'Common Assumptions'!$C$7) -> 0.0427038 | E39: =D39*(1+'Common Assumptions'!$C$7) -> 0.0442624887 | F39: =E39*(1+'Common Assumptions'!$C$7) -> 0.04587806954 | G39: =F39*(1+'Common Assumptions'!$C$7) -> 0.04755261908 | H39: =G39*(1+'Common Assumptions'!$C$7) -> 0.04928828967 | I39: =H39*(1+'Common Assumptions'!$C$7) -> 0.05108731224 | J39: =I39*(1+'Common Assumptions'!$C$7) -> 0.05295199914 | K39: =J39*(1+'Common Assumptions'!$C$7) -> 0.05488474711 | L39: =K39*(1+'Common Assumptions'!$C$7) -> 0.05688804038 | M39: =L39*(1+'Common Assumptions'!$C$7) -> 0.05896445385 | N39: =M39*(1+'Common Assumptions'!$C$7) -> 0.06111665642 | O39: =N39*(1+'Common Assumptions'!$C$7) -> 0.06334741438 | P39: =O39*(1+'Common Assumptions'!$C$7) -> 0.065659595 | Q39: =P39*(1+'Common Assumptions'!$C$7) -> 0.06805617022 | R39: =Q39*(1+'Common Assumptions'!$C$7) -> 0.07054022043 | S39: =R39*(1+'Common Assumptions'!$C$7) -> 0.07311493848 | T39: =S39*(1+'Common Assumptions'!$C$7) -> 0.07578363373 | U39: =T39*(1+'Common Assumptions'!$C$7) -> 0.07854973637 | V39: =U39*(1+'Common Assumptions'!$C$7) -> 0.08141680174
B40: Project impact on conflict perceptions, phase 1 communes | C40: 0 | D40: 0 | E40: 0 | F40: 0 | G40: 0 | H40: 0 | I40: 0 | J40: 0 | K40: 0 | L40: 0 | M40: 0 | N40: 0 | O40: 0 | P40: 0 | Q40: 0 | R40: 0 | S40: 0 | T40: 0 | U40: 0 | V40: 0
B41: Project impact on conflict perceptions, phase 2 communes | C41: 0 | D41: 0 | E41: 0 | F41: 0 | G41: 0 | H41: 0 | I41: 0 | J41: 0 | K41: 0 | L41: 0 | M41: 0 | N41: 0 | O41: 0 | P41: 0 | Q41: 0 | R41: 0 | S41: 0 | T41: 0 | U41: 0 | V41: 0
B42: Perceptions impact on producitivity, phase 1 communes | C42: =C40*'Common Assumptions'!$C$27 -> 0 | D42: =D40*'Common Assumptions'!$C$27 -> 0 | E42: =E40*'Common Assumptions'!$C$27 -> 0 | F42: =F40*'Common Assumptions'!$C$27 -> 0 | G42: =G40*'Common Assumptions'!$C$27 -> 0 | H42: =H40*'Common Assumptions'!$C$27 -> 0 | I42: =I40*'Common Assumptions'!$C$27 -> 0 | J42: =J40*'Common Assumptions'!$C$27 -> 0 | K42: =K40*'Common Assumptions'!$C$27 -> 0 | L42: =L40*'Common Assumptions'!$C$27 -> 0 | M42: =M40*'Common Assumptions'!$C$27 -> 0 | N42: =N40*'Common Assumptions'!$C$27 -> 0 | O42: =O40*'Common Assumptions'!$C$27 -> 0 | P42: =P40*'Common Assumptions'!$C$27 -> 0 | Q42: =Q40*'Common Assumptions'!$C$27 -> 0 | R42: =R40*'Common Assumptions'!$C$27 -> 0 | S42: =S40*'Common Assumptions'!$C$27 -> 0 | T42: =T40*'Common Assumptions'!$C$27 -> 0 | U42: =U40*'Common Assumptions'!$C$27 -> 0 | V42: =V40*'Common Assumptions'!$C$27 -> 0
B43: Perceptions impact on producitivity, phase 2 communes | C43: =C41*'Common Assumptions'!$C$27 -> 0 | D43: =D41*'Common Assumptions'!$C$27 -> 0 | E43: =E41*'Common Assumptions'!$C$27 -> 0 | F43: =F41*'Common Assumptions'!$C$27 -> 0 | G43: =G41*'Common Assumptions'!$C$27 -> 0 | H43: =H41*'Common Assumptions'!$C$27 -> 0 | I43: =I41*'Common Assumptions'!$C$27 -> 0 | J43: =J41*'Common Assumptions'!$C$27 -> 0 | K43: =K41*'Common Assumptions'!$C$27 -> 0 | L43: =L41*'Common Assumptions'!$C$27 -> 0 | M43: =M41*'Common Assumptions'!$C$27 -> 0 | N43: =N41*'Common Assumptions'!$C$27 -> 0 | O43: =O41*'Common Assumptions'!$C$27 -> 0 | P43: =P41*'Common Assumptions'!$C$27 -> 0 | Q43: =Q41*'Common Assumptions'!$C$27 -> 0 | R43: =R41*'Common Assumptions'!$C$27 -> 0 | S43: =S41*'Common Assumptions'!$C$27 -> 0 | T43: =T41*'Common Assumptions'!$C$27 -> 0 | U43: =U41*'Common Assumptions'!$C$27 -> 0 | V43: =V41*'Common Assumptions'!$C$27 -> 0
B44: Direct costs due to conflict, phase 1 communes | C44: =('Commune Level Assumptions'!$H$31/'Common Assumptions'!$C$57)*C38*('Common Assumptions'!$C$28+'Common Assumptions'!$C$29) -> 1348871.755 | D44: =('Commune Level Assumptions'!$H$31/'Common Assumptions'!$C$57)*D38*('Common Assumptions'!$C$28+'Common Assumptions'!$C$29)*((1+'Common Assumptions'!$C$58)^(D$4-1)) -> 1441027.416 | E44: =('Commune Level Assumptions'!$H$31/'Common Assumptions'!$C$57)*E38*('Common Assumptions'!$C$28+'Common Assumptions'!$C$29)*((1+'Common Assumptions'!$C$58)^(E$4-1)) -> 1539479.201 | F44: =('Commune Level Assumptions'!$H$31/'Common Assumptions'!$C$57)*F38*('Common Assumptions'!$C$28+'Common Assumptions'!$C$29)*((1+'Common Assumptions'!$C$58)^(F$4-1)) -> 1644657.267 | G44: =('Commune Level Assumptions'!$H$31/'Common Assumptions'!$C$57)*G38*('Common Assumptions'!$C$28+'Common Assumptions'!$C$29)*((1+'Common Assumptions'!$C$58)^(G$4-1)) -> 1757021.156 | H44: =('Commune Level Assumptions'!$H$31/'Common Assumptions'!$C$57)*H38*('Common Assumptions'!$C$28+'Common Assumptions'!$C$29)*((1+'Common Assumptions'!$C$58)^(H$4-1)) -> 1877061.808 | I44: =('Commune Level Assumptions'!$H$31/'Common Assumptions'!$C$57)*I38*('Common Assumptions'!$C$28+'Common Assumptions'!$C$29)*((1+'Common Assumptions'!$C$58)^(I$4-1)) -> 2005303.703 | J44: =('Commune Level Assumptions'!$H$31/'Common Assumptions'!$C$57)*J38*('Common Assumptions'!$C$28+'Common Assumptions'!$C$29)*((1+'Common Assumptions'!$C$58)^(J$4-1)) -> 2142307.155 | K44: =('Commune Level Assumptions'!$H$31/'Common Assumptions'!$C$57)*K38*('Common Assumptions'!$C$28+'Common Assumptions'!$C$29)*((1+'Common Assumptions'!$C$58)^(K$4-1)) -> 2288670.758 | L44: =('Commune Level Assumptions'!$H$31/'Common Assumptions'!$C$57)*L38*('Common Assumptions'!$C$28+'Common Assumptions'!$C$29)*((1+'Common Assumptions'!$C$58)^(L$4-1)) -> 2445034.003 | M44: =('Commune Level Assumptions'!$H$31/'Common Assumptions'!$C$57)*M38*('Common Assumptions'!$C$28+'Common Assumptions'!$C$29)*((1+'Common Assumptions'!$C$58)^(M$4-1)) -> 2612080.071 | N44: =('Commune Level Assumptions'!$H$31/'Common Assumptions'!$C$57)*N38*('Common Assumptions'!$C$28+'Common Assumptions'!$C$29)*((1+'Common Assumptions'!$C$58)^(N$4-1)) -> 2790538.818 | O44: =('Commune Level Assumptions'!$H$31/'Common Assumptions'!$C$57)*O38*('Common Assumptions'!$C$28+'Common Assumptions'!$C$29)*((1+'Common Assumptions'!$C$58)^(O$4-1)) -> 2981189.965 | P44: =('Commune Level Assumptions'!$H$31/'Common Assumptions'!$C$57)*P38*('Common Assumptions'!$C$28+'Common Assumptions'!$C$29)*((1+'Common Assumptions'!$C$58)^(P$4-1)) -> 3184866.503 | Q44: =('Commune Level Assumptions'!$H$31/'Common Assumptions'!$C$57)*Q38*('Common Assumptions'!$C$28+'Common Assumptions'!$C$29)*((1+'Common Assumptions'!$C$58)^(Q$4-1)) -> 3402458.334 | R44: =('Commune Level Assumptions'!$H$31/'Common Assumptions'!$C$57)*R38*('Common Assumptions'!$C$28+'Common Assumptions'!$C$29)*((1+'Common Assumptions'!$C$58)^(R$4-1)) -> 3634916.158 | S44: =('Commune Level Assumptions'!$H$31/'Common Assumptions'!$C$57)*S38*('Common Assumptions'!$C$28+'Common Assumptions'!$C$29)*((1+'Common Assumptions'!$C$58)^(S$4-1)) -> 3883255.63 | T44: =('Commune Level Assumptions'!$H$31/'Common Assumptions'!$C$57)*T38*('Common Assumptions'!$C$28+'Common Assumptions'!$C$29)*((1+'Common Assumptions'!$C$58)^(T$4-1)) -> 4148561.79 | U44: =('Commune Level Assumptions'!$H$31/'Common Assumptions'!$C$57)*U38*('Common Assumptions'!$C$28+'Common Assumptions'!$C$29)*((1+'Common Assumptions'!$C$58)^(U$4-1)) -> 4431993.813 | V44: =('Commune Level Assumptions'!$H$31/'Common Assumptions'!$C$57)*V38*('Common Assumptions'!$C$28+'Common Assumptions'!$C$29)*((1+'Common Assumptions'!$C$58)^(V$4-1)) -> 4734790.068
B45: Direct costs due to conflict, phase 2 communes | C45: =('Commune Level Assumptions'!$H$62/'Common Assumptions'!$C$57)*C39*('Common Assumptions'!$C$28+'Common Assumptions'!$C$29) -> 1454844.983 | D45: =('Commune Level Assumptions'!$H$62/'Common Assumptions'!$C$57)*D39*('Common Assumptions'!$C$28+'Common Assumptions'!$C$29)*((1+'Common Assumptions'!$C$58)^(D$4-1)) -> 1554240.792 | E45: =('Commune Level Assumptions'!$H$62/'Common Assumptions'!$C$57)*E39*('Common Assumptions'!$C$28+'Common Assumptions'!$C$29)*((1+'Common Assumptions'!$C$58)^(E$4-1)) -> 1660427.378 | F45: =('Commune Level Assumptions'!$H$62/'Common Assumptions'!$C$57)*F39*('Common Assumptions'!$C$28+'Common Assumptions'!$C$29)*((1+'Common Assumptions'!$C$58)^(F$4-1)) -> 1773868.69 | G45: =('Commune Level Assumptions'!$H$62/'Common Assumptions'!$C$57)*G39*('Common Assumptions'!$C$28+'Common Assumptions'!$C$29)*((1+'Common Assumptions'!$C$58)^(G$4-1)) -> 1895060.374 | H45: =('Commune Level Assumptions'!$H$62/'Common Assumptions'!$C$57)*H39*('Common Assumptions'!$C$28+'Common Assumptions'!$C$29)*((1+'Common Assumptions'!$C$58)^(H$4-1)) -> 2024531.941 | I45: =('Commune Level Assumptions'!$H$62/'Common Assumptions'!$C$57)*I39*('Common Assumptions'!$C$28+'Common Assumptions'!$C$29)*((1+'Common Assumptions'!$C$58)^(I$4-1)) -> 2162849.077 | J45: =('Commune Level Assumptions'!$H$62/'Common Assumptions'!$C$57)*J39*('Common Assumptions'!$C$28+'Common Assumptions'!$C$29)*((1+'Common Assumptions'!$C$58)^(J$4-1)) -> 2310616.115 | K45: =('Commune Level Assumptions'!$H$62/'Common Assumptions'!$C$57)*K39*('Common Assumptions'!$C$28+'Common Assumptions'!$C$29)*((1+'Common Assumptions'!$C$58)^(K$4-1)) -> 2468478.679 | L45: =('Commune Level Assumptions'!$H$62/'Common Assumptions'!$C$57)*L39*('Common Assumptions'!$C$28+'Common Assumptions'!$C$29)*((1+'Common Assumptions'!$C$58)^(L$4-1)) -> 2637126.5 | M45: =('Commune Level Assumptions'!$H$62/'Common Assumptions'!$C$57)*M39*('Common Assumptions'!$C$28+'Common Assumptions'!$C$29)*((1+'Common Assumptions'!$C$58)^(M$4-1)) -> 2817296.433 | N45: =('Commune Level Assumptions'!$H$62/'Common Assumptions'!$C$57)*N39*('Common Assumptions'!$C$28+'Common Assumptions'!$C$29)*((1+'Common Assumptions'!$C$58)^(N$4-1)) -> 3009775.675 | O45: =('Commune Level Assumptions'!$H$62/'Common Assumptions'!$C$57)*O39*('Common Assumptions'!$C$28+'Common Assumptions'!$C$29)*((1+'Common Assumptions'!$C$58)^(O$4-1)) -> 3215405.205 | P45: =('Commune Level Assumptions'!$H$62/'Common Assumptions'!$C$57)*P39*('Common Assumptions'!$C$28+'Common Assumptions'!$C$29)*((1+'Common Assumptions'!$C$58)^(P$4-1)) -> 3435083.457 | Q45: =('Commune Level Assumptions'!$H$62/'Common Assumptions'!$C$57)*Q39*('Common Assumptions'!$C$28+'Common Assumptions'!$C$29)*((1+'Common Assumptions'!$C$58)^(Q$4-1)) -> 3669770.248 | R45: =('Commune Level Assumptions'!$H$62/'Common Assumptions'!$C$57)*R39*('Common Assumptions'!$C$28+'Common Assumptions'!$C$29)*((1+'Common Assumptions'!$C$58)^(R$4-1)) -> 3920490.969 | S45: =('Commune Level Assumptions'!$H$62/'Common Assumptions'!$C$57)*S39*('Common Assumptions'!$C$28+'Common Assumptions'!$C$29)*((1+'Common Assumptions'!$C$58)^(S$4-1)) -> 4188341.069 | T45: =('Commune Level Assumptions'!$H$62/'Common Assumptions'!$C$57)*T39*('Common Assumptions'!$C$28+'Common Assumptions'!$C$29)*((1+'Common Assumptions'!$C$58)^(T$4-1)) -> 4474490.834 | U45: =('Commune Level Assumptions'!$H$62/'Common Assumptions'!$C$57)*U39*('Common Assumptions'!$C$28+'Common Assumptions'!$C$29)*((1+'Common Assumptions'!$C$58)^(U$4-1)) -> 4780190.509 | V45: =('Commune Level Assumptions'!$H$62/'Common Assumptions'!$C$57)*V39*('Common Assumptions'!$C$28+'Common Assumptions'!$C$29)*((1+'Common Assumptions'!$C$58)^(V$4-1)) -> 5106775.754
B46: Hypothetical agricultural output without conflict, phase 1 communes | C46: ='Commune Level Assumptions'!$D$31 -> 72444730.6 | D46: =C46*(1+'Common Assumptions'!$C$54) -> 75606912.32 | E46: =D46*(1+'Common Assumptions'!$C$54) -> 78907121.93 | F46: =E46*(1+'Common Assumptions'!$C$54) -> 82351384.29 | G46: =F46*(1+'Common Assumptions'!$C$54) -> 85945987.23 | H46: =G46*(1+'Common Assumptions'!$C$54) -> 89697493.07 | I46: =H46*(1+'Common Assumptions'!$C$54) -> 93612750.55 | J46: =I46*(1+'Common Assumptions'!$C$54) -> 97698907.35 | K46: =J46*(1+'Common Assumptions'!$C$54) -> 101963423.2 | L46: =K46*(1+'Common Assumptions'!$C$54) -> 106414083.3 | M46: =L46*(1+'Common Assumptions'!$C$54) -> 111059012.8 | N46: =M46*(1+'Common Assumptions'!$C$54) -> 115906691.6 | O46: =N46*(1+'Common Assumptions'!$C$54) -> 120965969.4 | P46: =O46*(1+'Common Assumptions'!$C$54) -> 126246082.6 | Q46: =P46*(1+'Common Assumptions'!$C$54) -> 131756670.5 | R46: =Q46*(1+'Common Assumptions'!$C$54) -> 137507793.2 | S46: =R46*(1+'Common Assumptions'!$C$54) -> 143509950 | T46: =S46*(1+'Common Assumptions'!$C$54) -> 149774098.3 | U46: =T46*(1+'Common Assumptions'!$C$54) -> 156311674.1 | V46: =U46*(1+'Common Assumptions'!$C$54) -> 163134612.3
B47: Hypothetical agricultural output without conflict, phase 2 communes | C47: ='Commune Level Assumptions'!$D$62 -> 83867305.67 | D47: =C47*(1+'Common Assumptions'!$C$54) -> 87528077.95 | E47: =D47*(1+'Common Assumptions'!$C$54) -> 91348641.37 | F47: =E47*(1+'Common Assumptions'!$C$54) -> 95335970.77 | G47: =F47*(1+'Common Assumptions'!$C$54) -> 99497345.4 | H47: =G47*(1+'Common Assumptions'!$C$54) -> 103840362.3 | I47: =H47*(1+'Common Assumptions'!$C$54) -> 108372950 | J47: =I47*(1+'Common Assumptions'!$C$54) -> 113103383.2 | K47: =J47*(1+'Common Assumptions'!$C$54) -> 118040297.9 | L47: =K47*(1+'Common Assumptions'!$C$54) -> 123192706.7 | M47: =L47*(1+'Common Assumptions'!$C$54) -> 128570016 | N47: =M47*(1+'Common Assumptions'!$C$54) -> 134182042.6 | O47: =N47*(1+'Common Assumptions'!$C$54) -> 140039031.8 | P47: =O47*(1+'Common Assumptions'!$C$54) -> 146151676.1 | Q47: =P47*(1+'Common Assumptions'!$C$54) -> 152531134.7 | R47: =Q47*(1+'Common Assumptions'!$C$54) -> 159189053.9 | S47: =R47*(1+'Common Assumptions'!$C$54) -> 166137588.5 | T47: =S47*(1+'Common Assumptions'!$C$54) -> 173389423.7 | U47: =T47*(1+'Common Assumptions'!$C$54) -> 180957798.4 | V47: =U47*(1+'Common Assumptions'!$C$54) -> 188856529.4
B48: Agricultural output, phase 1 communes | C48: =C46*(1+C42) -> 72444730.6 | D48: =D46*(1+D42) -> 75606912.32 | E48: 78907121.93 | F48: 82351384.29 | G48: 85945987.23 | H48: 89697493.07 | I48: 93612750.55 | J48: 97698907.35 | K48: 101963423.2 | L48: 106414083.3 | M48: 111059012.8 | N48: 115906691.6 | O48: 120965969.4 | P48: 126246082.6 | Q48: 131756670.5 | R48: 137507793.2 | S48: 143509950 | T48: 149774098.3 | U48: 156311674.1 | V48: 163134612.3
B49: Agricultural output, phase 2 communes | C49: =C47*(1+C43) -> 83867305.67 | D49: 87528077.95 | E49: 91348641.37 | F49: 95335970.77 | G49: 99497345.4 | H49: 103840362.3 | I49: 108372950 | J49: 113103383.2 | K49: 118040297.9 | L49: 123192706.7 | M49: 128570016 | N49: 134182042.6 | O49: 140039031.8 | P49: 146151676.1 | Q49: 152531134.7 | R49: 159189053.9 | S49: 166137588.5 | T49: 173389423.7 | U49: 180957798.4 | V49: 188856529.4
B51: With Project
B52: % of HHs experiencing conflict, phase 1 communes | C52: =C38*(1-'Common Assumptions'!$C$15) -> 0.0412 | D52: =D38*(1-'Common Assumptions'!$C$16) -> 0.0401202201 | E52: =E38*(1-'Common Assumptions'!$C$17) -> 0.03890672757 | F52: =F38*(1-'Common Assumptions'!$C$17) -> 0.04032682312 | G52: =G38*(1-'Common Assumptions'!$C$17) -> 0.04179875217 | H52: =H38*(1-'Common Assumptions'!$C$17) -> 0.04332440662 | I52: =I38*(1-'Common Assumptions'!$C$17) -> 0.04490574746 | J52: =J38*(1-'Common Assumptions'!$C$17) -> 0.04654480725 | K52: =K38*(1-'Common Assumptions'!$C$17) -> 0.04824369271 | L52: =L38*(1-'Common Assumptions'!$C$17) -> 0.05000458749 | M52: =M38*(1-'Common Assumptions'!$C$17) -> 0.05182975494 | N52: =N38*(1-'Common Assumptions'!$C$17) -> 0.05372154099 | O52: =O38*(1-'Common Assumptions'!$C$17) -> 0.05568237724 | P52: =P38*(1-'Common Assumptions'!$C$17) -> 0.05771478401 | Q52: =Q38*(1-'Common Assumptions'!$C$17) -> 0.05982137362 | R52: =R38*(1-'Common Assumptions'!$C$17) -> 0.06200485376 | S52: =S38*(1-'Common Assumptions'!$C$17) -> 0.06426803092 | T52: =T38*(1-'Common Assumptions'!$C$17) -> 0.06661381405 | U52: =U38*(1-'Common Assumptions'!$C$17) -> 0.06904521827 | V52: =V38*(1-'Common Assumptions'!$C$17) -> 0.07156536873
B53: % of HHs experiencing conflict, phase 2 communes | C53: =C39 -> 0.0412 | D53: =D39 -> 0.0427038 | E53: =E39 -> 0.0442624887 | F53: =F39*(1-'Common Assumptions'!$C$15) -> 0.04587806954 | G53: =G39*(1-'Common Assumptions'!$C$16) -> 0.04467568562 | H53: =H39*(1-'Common Assumptions'!$C$17) -> 0.04332440662 | I53: =I39*(1-'Common Assumptions'!$C$17) -> 0.04490574746 | J53: =J39*(1-'Common Assumptions'!$C$17) -> 0.04654480725 | K53: =K39*(1-'Common Assumptions'!$C$17) -> 0.04824369271 | L53: =L39*(1-'Common Assumptions'!$C$17) -> 0.05000458749 | M53: =M39*(1-'Common Assumptions'!$C$17) -> 0.05182975494 | N53: =N39*(1-'Common Assumptions'!$C$17) -> 0.05372154099 | O53: =O39*(1-'Common Assumptions'!$C$17) -> 0.05568237724 | P53: =P39*(1-'Common Assumptions'!$C$17) -> 0.05771478401 | Q53: =Q39*(1-'Common Assumptions'!$C$17) -> 0.05982137362 | R53: =R39*(1-'Common Assumptions'!$C$17) -> 0.06200485376 | S53: =S39*(1-'Common Assumptions'!$C$17) -> 0.06426803092 | T53: =T39*(1-'Common Assumptions'!$C$17) -> 0.06661381405 | U53: =U39*(1-'Common Assumptions'!$C$17) -> 0.06904521827 | V53: =V39*(1-'Common Assumptions'!$C$17) -> 0.07156536873
B54: Project impact on conflict perceptions, phase 1 communes | C54: 0 | D54: 0.1 | E54: 0.3 | F54: 0.7 | G54: 0.9 | H54: 1 | I54: 1 | J54: 1 | K54: 1 | L54: 1 | M54: 1 | N54: 1 | O54: 1 | P54: 1 | Q54: 1 | R54: 1 | S54: 1 | T54: 1 | U54: 1 | V54: 1
B55: Project impact on conflict perceptions, phase 2 communes | C55: 0 | D55: 0 | E55: 0 | F55: 0 | G55: 0.1 | H55: 0.3 | I55: 0.7 | J55: 0.9 | K55: 1 | L55: 1 | M55: 1 | N55: 1 | O55: 1 | P55: 1 | Q55: 1 | R55: 1 | S55: 1 | T55: 1 | U55: 1 | V55: 1
B56: Perceptions impact on producitivity, phase 1 communes | C56: =C54*'Common Assumptions'!$C$27 -> 0 | D56: =D54*'Common Assumptions'!$C$27 -> 0.00257786 | E56: =E54*'Common Assumptions'!$C$27 -> 0.00773358 | F56: =F54*'Common Assumptions'!$C$27 -> 0.01804502 | G56: =G54*'Common Assumptions'!$C$27 -> 0.02320074 | H56: =H54*'Common Assumptions'!$C$27 -> 0.0257786 | I56: =I54*'Common Assumptions'!$C$27 -> 0.0257786 | J56: =J54*'Common Assumptions'!$C$27 -> 0.0257786 | K56: =K54*'Common Assumptions'!$C$27 -> 0.0257786 | L56: =L54*'Common Assumptions'!$C$27 -> 0.0257786 | M56: =M54*'Common Assumptions'!$C$27 -> 0.0257786 | N56: =N54*'Common Assumptions'!$C$27 -> 0.0257786 | O56: =O54*'Common Assumptions'!$C$27 -> 0.0257786 | P56: =P54*'Common Assumptions'!$C$27 -> 0.0257786 | Q56: =Q54*'Common Assumptions'!$C$27 -> 0.0257786 | R56: =R54*'Common Assumptions'!$C$27 -> 0.0257786 | S56: =S54*'Common Assumptions'!$C$27 -> 0.0257786 | T56: =T54*'Common Assumptions'!$C$27 -> 0.0257786 | U56: =U54*'Common Assumptions'!$C$27 -> 0.0257786 | V56: =V54*'Common Assumptions'!$C$27 -> 0.0257786
B57: Perceptions impact on producitivity, phase 2 communes | C57: =C55*'Common Assumptions'!$C$27 -> 0 | D57: =D55*'Common Assumptions'!$C$27 -> 0 | E57: =E55*'Common Assumptions'!$C$27 -> 0 | F57: =F55*'Common Assumptions'!$C$27 -> 0 | G57: =G55*'Common Assumptions'!$C$27 -> 0.00257786 | H57: =H55*'Common Assumptions'!$C$27 -> 0.00773358 | I57: =I55*'Common Assumptions'!$C$27 -> 0.01804502 | J57: =J55*'Common Assumptions'!$C$27 -> 0.02320074 | K57: =K55*'Common Assumptions'!$C$27 -> 0.0257786 | L57: =L55*'Common Assumptions'!$C$27 -> 0.0257786 | M57: =M55*'Common Assumptions'!$C$27 -> 0.0257786 | N57: =N55*'Common Assumptions'!$C$27 -> 0.0257786 | O57: =O55*'Common Assumptions'!$C$27 -> 0.0257786 | P57: =P55*'Common Assumptions'!$C$27 -> 0.0257786 | Q57: =Q55*'Common Assumptions'!$C$27 -> 0.0257786 | R57: =R55*'Common Assumptions'!$C$27 -> 0.0257786 | S57: =S55*'Common Assumptions'!$C$27 -> 0.0257786 | T57: =T55*'Common Assumptions'!$C$27 -> 0.0257786 | U57: =U55*'Common Assumptions'!$C$27 -> 0.0257786 | V57: =V55*'Common Assumptions'!$C$27 -> 0.0257786
B58: Direct costs due to conflict, phase 1 communes | C58: =('Commune Level Assumptions'!$H$31/'Common Assumptions'!$C$57)*C52*('Common Assumptions'!$C$28+'Common Assumptions'!$C$29) -> 1348871.755 | D58: =('Commune Level Assumptions'!$H$31/'Common Assumptions'!$C$57)*D52*('Common Assumptions'!$C$28+'Common Assumptions'!$C$29)*((1+'Common Assumptions'!$C$58)^(D$4-1)) -> 1353845.257 | E58: =('Commune Level Assumptions'!$H$31/'Common Assumptions'!$C$57)*E52*('Common Assumptions'!$C$28+'Common Assumptions'!$C$29)*((1+'Common Assumptions'!$C$58)^(E$4-1)) -> 1353202.218 | F58: =('Commune Level Assumptions'!$H$31/'Common Assumptions'!$C$57)*F52*('Common Assumptions'!$C$28+'Common Assumptions'!$C$29)*((1+'Common Assumptions'!$C$58)^(F$4-1)) -> 1445653.738 | G58: =('Commune Level Assumptions'!$H$31/'Common Assumptions'!$C$57)*G52*('Common Assumptions'!$C$28+'Common Assumptions'!$C$29)*((1+'Common Assumptions'!$C$58)^(G$4-1)) -> 1544421.596 | H58: =('Commune Level Assumptions'!$H$31/'Common Assumptions'!$C$57)*H52*('Common Assumptions'!$C$28+'Common Assumptions'!$C$29)*((1+'Common Assumptions'!$C$58)^(H$4-1)) -> 1649937.329 | I58: =('Commune Level Assumptions'!$H$31/'Common Assumptions'!$C$57)*I52*('Common Assumptions'!$C$28+'Common Assumptions'!$C$29)*((1+'Common Assumptions'!$C$58)^(I$4-1)) -> 1762661.955 | J58: =('Commune Level Assumptions'!$H$31/'Common Assumptions'!$C$57)*J52*('Common Assumptions'!$C$28+'Common Assumptions'!$C$29)*((1+'Common Assumptions'!$C$58)^(J$4-1)) -> 1883087.989 | K58: =('Commune Level Assumptions'!$H$31/'Common Assumptions'!$C$57)*K52*('Common Assumptions'!$C$28+'Common Assumptions'!$C$29)*((1+'Common Assumptions'!$C$58)^(K$4-1)) -> 2011741.596 | L58: =('Commune Level Assumptions'!$H$31/'Common Assumptions'!$C$57)*L52*('Common Assumptions'!$C$28+'Common Assumptions'!$C$29)*((1+'Common Assumptions'!$C$58)^(L$4-1)) -> 2149184.888 | M58: =('Commune Level Assumptions'!$H$31/'Common Assumptions'!$C$57)*M52*('Common Assumptions'!$C$28+'Common Assumptions'!$C$29)*((1+'Common Assumptions'!$C$58)^(M$4-1)) -> 2296018.382 | N58: =('Commune Level Assumptions'!$H$31/'Common Assumptions'!$C$57)*N52*('Common Assumptions'!$C$28+'Common Assumptions'!$C$29)*((1+'Common Assumptions'!$C$58)^(N$4-1)) -> 2452883.621 | O58: =('Commune Level Assumptions'!$H$31/'Common Assumptions'!$C$57)*O52*('Common Assumptions'!$C$28+'Common Assumptions'!$C$29)*((1+'Common Assumptions'!$C$58)^(O$4-1)) -> 2620465.979 | P58: =('Commune Level Assumptions'!$H$31/'Common Assumptions'!$C$57)*P52*('Common Assumptions'!$C$28+'Common Assumptions'!$C$29)*((1+'Common Assumptions'!$C$58)^(P$4-1)) -> 2799497.656 | Q58: =('Commune Level Assumptions'!$H$31/'Common Assumptions'!$C$57)*Q52*('Common Assumptions'!$C$28+'Common Assumptions'!$C$29)*((1+'Common Assumptions'!$C$58)^(Q$4-1)) -> 2990760.875 | R58: =('Commune Level Assumptions'!$H$31/'Common Assumptions'!$C$57)*R52*('Common Assumptions'!$C$28+'Common Assumptions'!$C$29)*((1+'Common Assumptions'!$C$58)^(R$4-1)) -> 3195091.303 | S58: =('Commune Level Assumptions'!$H$31/'Common Assumptions'!$C$57)*S52*('Common Assumptions'!$C$28+'Common Assumptions'!$C$29)*((1+'Common Assumptions'!$C$58)^(S$4-1)) -> 3413381.698 | T58: =('Commune Level Assumptions'!$H$31/'Common Assumptions'!$C$57)*T52*('Common Assumptions'!$C$28+'Common Assumptions'!$C$29)*((1+'Common Assumptions'!$C$58)^(T$4-1)) -> 3646585.813 | U58: =('Commune Level Assumptions'!$H$31/'Common Assumptions'!$C$57)*U52*('Common Assumptions'!$C$28+'Common Assumptions'!$C$29)*((1+'Common Assumptions'!$C$58)^(U$4-1)) -> 3895722.562 | V58: =('Commune Level Assumptions'!$H$31/'Common Assumptions'!$C$57)*V52*('Common Assumptions'!$C$28+'Common Assumptions'!$C$29)*((1+'Common Assumptions'!$C$58)^(V$4-1)) -> 4161880.47
B59: Direct costs due to conflict, phase 2 communes | C59: =('Commune Level Assumptions'!$H$62/'Common Assumptions'!$C$57)*C53*('Common Assumptions'!$C$28+'Common Assumptions'!$C$29) -> 1454844.983 | D59: =('Commune Level Assumptions'!$H$62/'Common Assumptions'!$C$57)*D53*('Common Assumptions'!$C$28+'Common Assumptions'!$C$29)*((1+'Common Assumptions'!$C$58)^(D$4-1)) -> 1554240.792 | E59: =('Commune Level Assumptions'!$H$62/'Common Assumptions'!$C$57)*E53*('Common Assumptions'!$C$28+'Common Assumptions'!$C$29)*((1+'Common Assumptions'!$C$58)^(E$4-1)) -> 1660427.378 | F59: =('Commune Level Assumptions'!$H$62/'Common Assumptions'!$C$57)*F53*('Common Assumptions'!$C$28+'Common Assumptions'!$C$29)*((1+'Common Assumptions'!$C$58)^(F$4-1)) -> 1773868.69 | G59: =('Commune Level Assumptions'!$H$62/'Common Assumptions'!$C$57)*G53*('Common Assumptions'!$C$28+'Common Assumptions'!$C$29)*((1+'Common Assumptions'!$C$58)^(G$4-1)) -> 1780409.222 | H59: =('Commune Level Assumptions'!$H$62/'Common Assumptions'!$C$57)*H53*('Common Assumptions'!$C$28+'Common Assumptions'!$C$29)*((1+'Common Assumptions'!$C$58)^(H$4-1)) -> 1779563.576 | I59: =('Commune Level Assumptions'!$H$62/'Common Assumptions'!$C$57)*I53*('Common Assumptions'!$C$28+'Common Assumptions'!$C$29)*((1+'Common Assumptions'!$C$58)^(I$4-1)) -> 1901144.339 | J59: =('Commune Level Assumptions'!$H$62/'Common Assumptions'!$C$57)*J53*('Common Assumptions'!$C$28+'Common Assumptions'!$C$29)*((1+'Common Assumptions'!$C$58)^(J$4-1)) -> 2031031.566 | K59: =('Commune Level Assumptions'!$H$62/'Common Assumptions'!$C$57)*K53*('Common Assumptions'!$C$28+'Common Assumptions'!$C$29)*((1+'Common Assumptions'!$C$58)^(K$4-1)) -> 2169792.759 | L59: =('Commune Level Assumptions'!$H$62/'Common Assumptions'!$C$57)*L53*('Common Assumptions'!$C$28+'Common Assumptions'!$C$29)*((1+'Common Assumptions'!$C$58)^(L$4-1)) -> 2318034.194 | M59: =('Commune Level Assumptions'!$H$62/'Common Assumptions'!$C$57)*M53*('Common Assumptions'!$C$28+'Common Assumptions'!$C$29)*((1+'Common Assumptions'!$C$58)^(M$4-1)) -> 2476403.565 | N59: =('Commune Level Assumptions'!$H$62/'Common Assumptions'!$C$57)*N53*('Common Assumptions'!$C$28+'Common Assumptions'!$C$29)*((1+'Common Assumptions'!$C$58)^(N$4-1)) -> 2645592.818 | O59: =('Commune Level Assumptions'!$H$62/'Common Assumptions'!$C$57)*O53*('Common Assumptions'!$C$28+'Common Assumptions'!$C$29)*((1+'Common Assumptions'!$C$58)^(O$4-1)) -> 2826341.175 | P59: =('Commune Level Assumptions'!$H$62/'Common Assumptions'!$C$57)*P53*('Common Assumptions'!$C$28+'Common Assumptions'!$C$29)*((1+'Common Assumptions'!$C$58)^(P$4-1)) -> 3019438.358 | Q59: =('Commune Level Assumptions'!$H$62/'Common Assumptions'!$C$57)*Q53*('Common Assumptions'!$C$28+'Common Assumptions'!$C$29)*((1+'Common Assumptions'!$C$58)^(Q$4-1)) -> 3225728.048 | R59: =('Commune Level Assumptions'!$H$62/'Common Assumptions'!$C$57)*R53*('Common Assumptions'!$C$28+'Common Assumptions'!$C$29)*((1+'Common Assumptions'!$C$58)^(R$4-1)) -> 3446111.562 | S59: =('Commune Level Assumptions'!$H$62/'Common Assumptions'!$C$57)*S53*('Common Assumptions'!$C$28+'Common Assumptions'!$C$29)*((1+'Common Assumptions'!$C$58)^(S$4-1)) -> 3681551.799 | T59: =('Commune Level Assumptions'!$H$62/'Common Assumptions'!$C$57)*T53*('Common Assumptions'!$C$28+'Common Assumptions'!$C$29)*((1+'Common Assumptions'!$C$58)^(T$4-1)) -> 3933077.443 | U59: =('Commune Level Assumptions'!$H$62/'Common Assumptions'!$C$57)*U53*('Common Assumptions'!$C$28+'Common Assumptions'!$C$29)*((1+'Common Assumptions'!$C$58)^(U$4-1)) -> 4201787.457 | V59: =('Commune Level Assumptions'!$H$62/'Common Assumptions'!$C$57)*V53*('Common Assumptions'!$C$28+'Common Assumptions'!$C$29)*((1+'Common Assumptions'!$C$58)^(V$4-1)) -> 4488855.887
B60: Hypothetical agricultural output without conflict, phase 1 communes | C60: ='Commune Level Assumptions'!$D$31 -> 72444730.6 | D60: =C60*(1+'Common Assumptions'!$C$54) -> 75606912.32 | E60: =D60*(1+'Common Assumptions'!$C$54) -> 78907121.93 | F60: =E60*(1+'Common Assumptions'!$C$54) -> 82351384.29 | G60: =F60*(1+'Common Assumptions'!$C$54) -> 85945987.23 | H60: =G60*(1+'Common Assumptions'!$C$54) -> 89697493.07 | I60: =H60*(1+'Common Assumptions'!$C$54) -> 93612750.55 | J60: =I60*(1+'Common Assumptions'!$C$54) -> 97698907.35 | K60: =J60*(1+'Common Assumptions'!$C$54) -> 101963423.2 | L60: =K60*(1+'Common Assumptions'!$C$54) -> 106414083.3 | M60: =L60*(1+'Common Assumptions'!$C$54) -> 111059012.8 | N60: =M60*(1+'Common Assumptions'!$C$54) -> 115906691.6 | O60: =N60*(1+'Common Assumptions'!$C$54) -> 120965969.4 | P60: =O60*(1+'Common Assumptions'!$C$54) -> 126246082.6 | Q60: =P60*(1+'Common Assumptions'!$C$54) -> 131756670.5 | R60: =Q60*(1+'Common Assumptions'!$C$54) -> 137507793.2 | S60: =R60*(1+'Common Assumptions'!$C$54) -> 143509950 | T60: =S60*(1+'Common Assumptions'!$C$54) -> 149774098.3 | U60: =T60*(1+'Common Assumptions'!$C$54) -> 156311674.1 | V60: =U60*(1+'Common Assumptions'!$C$54) -> 163134612.3
B61: Hypothetical agricultural output without conflict, phase 2 communes | C61: ='Commune Level Assumptions'!$D$62 -> 83867305.67 | D61: =C61*(1+'Common Assumptions'!$C$54) -> 87528077.95 | E61: =D61*(1+'Common Assumptions'!$C$54) -> 91348641.37 | F61: =E61*(1+'Common Assumptions'!$C$54) -> 95335970.77 | G61: =F61*(1+'Common Assumptions'!$C$54) -> 99497345.4 | H61: =G61*(1+'Common Assumptions'!$C$54) -> 103840362.3 | I61: =H61*(1+'Common Assumptions'!$C$54) -> 108372950 | J61: =I61*(1+'Common Assumptions'!$C$54) -> 113103383.2 | K61: =J61*(1+'Common Assumptions'!$C$54) -> 118040297.9 | L61: =K61*(1+'Common Assumptions'!$C$54) -> 123192706.7 | M61: =L61*(1+'Common Assumptions'!$C$54) -> 128570016 | N61: =M61*(1+'Common Assumptions'!$C$54) -> 134182042.6 | O61: =N61*(1+'Common Assumptions'!$C$54) -> 140039031.8 | P61: =O61*(1+'Common Assumptions'!$C$54) -> 146151676.1 | Q61: =P61*(1+'Common Assumptions'!$C$54) -> 152531134.7 | R61: =Q61*(1+'Common Assumptions'!$C$54) -> 159189053.9 | S61: =R61*(1+'Common Assumptions'!$C$54) -> 166137588.5 | T61: =S61*(1+'Common Assumptions'!$C$54) -> 173389423.7 | U61: =T61*(1+'Common Assumptions'!$C$54) -> 180957798.4 | V61: =U61*(1+'Common Assumptions'!$C$54) -> 188856529.4
B62: Agricultural output, phase 1 communes | C62: =C60*(1+C56) -> 72444730.6 | D62: 75801816.35 | E62: 79517356.47 | F62: 83837416.66 | G62: 87939997.74 | H62: 92009768.87 | I62: 96025956.2 | J62: 100217448.4 | K62: 104591897.5 | L62: 109157289.4 | M62: 113921958.7 | N62: 118894603.8 | O62: 124084302.8 | P62: 129500529.9 | Q62: 135153173 | R62: 141052551.6 | S62: 147209435.6 | T62: 153635064.9 | U62: 160341170.2 | V62: 167339994.2
B63: Agricultural output, phase 2 communes | C63: 83867305.67 | D63: 87528077.95 | E63: 91348641.37 | F63: 95335970.77 | G63: 99753835.63 | H63: 104643420 | I63: 110328542 | J63: 115727465.4 | K63: 121083211.5 | L63: 126368442.2 | M63: 131884371.1 | N63: 137641067.8 | O63: 143649042 | P63: 149919261.7 | Q63: 156463173.8 | R63: 163292724.8 | S63: 170420382.9 | T63: 177859160.3 | U63: 185622637.1 | V63: 193724986.3
B65: 1. Reduced Conflict Costs - Conflict Affected Households
B66: Potential conflicts resolved
B67: 2. Tenure Security / Reduced Conflict Costs for non-Conflict Affected Households
B68: Increased land-productivity related investment
B69: 3. Efficiency Gains Due to Improved Marketability
B70: Increased labor productivity due to migration to less crowded areas

Sheet Common Assumptions
A1: =IF('ERR & Sensitivity Analysis'!$I$9="N","Note: Current calculations are based on user input and are not the original MCC estimates.",IF('ERR & Sensitivity Analysis'!$I$13="N","Note: Current calculations are based on user input and are not the original MCC estimates.",0)) -> 0 | G1: Last updated: 10/26/2015
B3: Parameters and Assumptions
B5: Conflict Prevalence and Reduction Parameters | C5: Used | D5: Central | E5: Low | F5: High
B6: % of HHs under conflict, 2007 | C6: ='ERR & Sensitivity Analysis'!$G$14 -> 0.0412 | D6: 0.0412 | E6: 0.02 | F6: 0.06
B7: exog. % increase in conflict incidence, annual | C7: ='ERR & Sensitivity Analysis'!$G$15 -> 0.0365 | D7: 0.0365 | E7: 0 | F7: 0.05
B8: Incremental change in Perceptions (serious concerns)…
B9: ...Arrival of new migrants for cultivation increases land conflict for household | C9: =$D9 -> -0.02 | D9: ='DiD Estimates'!$B$5 -> -0.02 | E9: ='[13]DiD Estimates'!$E$3 -> -0.00912 | F9: ='[13]DiD Estimates'!$D$3 -> -0.03088
B10: …Arrival of new investors increases land conflict for household | C10: =$D10 -> -0.0135 | D10: ='DiD Estimates'!$B$6 -> -0.0135 | E10: ='[13]DiD Estimates'!$E$4 -> -0.00346 | F10: ='[13]DiD Estimates'!$D$4 -> -0.02354
B11: ...Returnees reclaiming land increases land conflict for household | C11: -0.0316 | D11: ='DiD Estimates'!$B$7 -> -0.0316 | E11: ='[13]DiD Estimates'!$E$5 -> -0.01918 | F11: ='[13]DiD Estimates'!$D$5 -> -0.04402
B12: …Inheritance disputes among villagers increases land conflict for household | C12: 0.00535 | D12: ='DiD Estimates'!C8 -> 0.00535 | E12: ='[13]DiD Estimates'!$E$6 -> -0.0079 | F12: ='[13]DiD Estimates'!$D$6 -> -0.0293
B13: …Property damage caused by animals increases land conflict for household | C13: -0.0654 | D13: ='DiD Estimates'!$B$9 -> -0.0654 | E13: ='[13]DiD Estimates'!$E$7 -> -0.0428 | F13: ='[13]DiD Estimates'!$D$7 -> -0.088
B14: …Water access restrictions for livestock increases land conflict for household | C14: -0.0146 | D14: ='DiD Estimates'!$B$10 -> -0.0146 | E14: ='[13]DiD Estimates'!$E$8 -> 0.00058 | F14: ='[13]DiD Estimates'!$D$8 -> -0.02978
B15: % decrease in conflicts due to dispute res. yr 1 | C15: =0 -> 0 | D15: 0 | E15: 0 | F15: 0
B16: % decrease in conflicts due to dispute res. yr 2 | C16: =$C$17/2 -> 0.0605 | D16: 0.0605 | E16: 0.03 | F16: 0.09
B17: % decrease in conflicts due to dispute res. yr 3+ | C17: ='ERR & Sensitivity Analysis'!$G$16 -> 0.121 | D17: 0.121 | E17: 0.05 | F17: 0.15
B19: Costs of Conflict
B20: Incremental change in Productivity (serious concerns)…
B21: ...Arrival of new migrants for cultivation increases land conflict for household | C21: ='ERR & Sensitivity Analysis'!$D$10*'Common Assumptions'!$D21 -> -0.455 | D21: ='DiD Estimates'!$B$14 -> -0.455 | E21: ='[13]DiD Estimates'!$E$12 -> -0.093 | F21: ='[13]DiD Estimates'!$D$12 -> -0.817
B22: …Arrival of new investors increases land conflict for household | C22: ='ERR & Sensitivity Analysis'!$D$10*'Common Assumptions'!$D22 -> 0 | D22: ='DiD Estimates'!$B$15 -> 0 | E22: ='[13]DiD Estimates'!$E$13 -> 0 | F22: ='[13]DiD Estimates'!$D$13 -> 0
B23: ...Returnees reclaiming land increases land conflict for household | C23: ='ERR & Sensitivity Analysis'!$D$10*'Common Assumptions'!$D23 -> -0.422 | D23: ='DiD Estimates'!$B$16 -> -0.422 | E23: ='[13]DiD Estimates'!$E$14 -> -0.148 | F23: ='[13]DiD Estimates'!$D$14 -> -0.696
B24: …Inheritance disputes among villagers increases land conflict for household | C24: ='ERR & Sensitivity Analysis'!$D$10*'Common Assumptions'!$D24 -> 0 | D24: ='DiD Estimates'!$B$17 -> 0 | E24: ='[13]DiD Estimates'!$E$15 -> 0 | F24: ='[13]DiD Estimates'!$D$15 -> 0
B25: …Property damage caused by animals increases land conflict for household | C25: ='ERR & Sensitivity Analysis'!$D$10*'Common Assumptions'!$D25 -> 0 | D25: ='DiD Estimates'!$B$18 -> 0 | E25: ='[13]DiD Estimates'!$E$16 -> 0 | F25: ='[13]DiD Estimates'!$D$16 -> 0
B26: …Water access restrictions for livestock increases land conflict for household | C26: ='ERR & Sensitivity Analysis'!$D$10*'Common Assumptions'!$D26 -> -0.229 | D26: ='DiD Estimates'!$B$19 -> -0.229 | E26: ='[13]DiD Estimates'!$E$17 -> 0.005 | F26: ='[13]DiD Estimates'!$D$17 -> -0.463
B27: Incremental increase in Productivity from perceptions change… | C27: ='ERR & Sensitivity Analysis'!$D$10*$D$27 -> 0.0257786 | D27: =SUM(D9*D21,D10*D22,D11*D23,D12*D24,D13*D25,D14*D26) -> 0.0257786 | E27: =C27-2*'[13]MC Simulation'!$B$3 -> 0.01112238544 | F27: =C27+2*'[13]MC Simulation'!$B$3 -> 0.04043481456
B28: Property damage/loss cost per dispute | C28: ='ERR & Sensitivity Analysis'!$G$12 -> 200 | D28: 200 | E28: 100 | F28: 300
B29: Resolution cost per dispute | C29: ='ERR & Sensitivity Analysis'!$G$13 -> 28 | D29: 28 | E29: 14 | F29: 42
B31: Building O&M Costs
B32: Finished Building Value, per Building | C32: 432069 | D32: 432069
B33: O&M after completion, per Building | C33: ='ERR & Sensitivity Analysis'!$G$17*$C$32 -> 12962.07 | D33: 12962.07 | E33: 8641.38 | F33: 21603.45
B34: Phase 1 building activity
B35: # of buildings in year 1 | C35: 0
B36: # of buildings in year 2 | C36: 0
B37: # of buildings in year 3 | C37: 0
B38: # of buildings in year 4 | C38: 17
B39: # of buildings in year 5 | C39: 17
B40: # of buildings in year 6+ | C40: 17
B41: Phase 2 building activity
B42: # of buildings in year 1 | C42: 0
B43: # of buildings in year 2 | C43: 0
B44: # of buildings in year 3 | C44: 0
B45: # of buildings in year 4 | C45: 0
B46: # of buildings in year 5 | C46: 0
B47: # of buildings in year 6+ | C47: 30
B49: Agricultural Productivity
B50: Baseline value of cereal crop production, national | C50: =(1800000*'Commune Level Assumptions'!$C$7)*((1+$C$52)^2) -> 913585298.8
B51: Baseline value of cash crop production, national | C51: =(1800000*'Commune Level Assumptions'!$C$8)*((1+$C$53)^2) -> 308732536.2
B52: exog. % increase in cereal crop production, annual | C52: =(('Commune Level Assumptions'!$C$5/'Commune Level Assumptions'!$B$5)-1)/6 -> 0.04441180585
B53: exog. % increase in cash crop production, annual | C53: =(('Commune Level Assumptions'!$C$6/'Commune Level Assumptions'!$B$6)-1)/6 -> 0.0415713196
B54: exog. % increase in overall ag. production, annual | C54: =((('Commune Level Assumptions'!$C$5+'Commune Level Assumptions'!$C$6)/('Commune Level Assumptions'!$B$5+'Commune Level Assumptions'!$B$6))-1)/6 -> 0.04364957527
B56: Demographic
B57: Average household size | C57: ='ERR & Sensitivity Analysis'!$G$18 -> 6.3
B58: Rate of population growth | C58: ='ERR & Sensitivity Analysis'!$G$19 -> 0.0307

Sheet Commune Level Assumptions
A1: =IF('ERR & Sensitivity Analysis'!$I$9="N","Note: Current calculations are based on user input and are not the original MCC estimates.",IF('ERR & Sensitivity Analysis'!$I$13="N","Note: Current calculations are based on user input and are not the original MCC estimates.",0)) -> 0 | H1: Last updated: 10/13/2015
A3: Beneficiary Analysis rows 62-68
A4: National Production | B4: 1999 | C4: 2005 | D4: 2007
A5: Subsistence Farming, constant prices, CFA bn | B5: 238.3 | C5: 301.8
A6: Cash Crops, constant prices, CFA bn | B6: 87.4 | C6: 109.2
A7: Subsistence Farming, 2005 prices, CFA bn | C7: 465.3
A8: Cash Crops, 2005 prices, CFA bn | C8: 158.1
A9: Cereals, thousand tonnes | D9: 3680.7
A10: Cotton, thousand tonnes | D10: 759.9
A12: Commune | B12: Province | C12: Region | D12: Value of Ag. Production, 2007 | E12: Baseline # of conflicts, 2007 | F12: Value of Ag. Production, Cereals, 2007 | G12: Value of Ag. Production, Cash Crops, 2007 | H12: Commune Population | I12: Province Population | J12: Commune Pop % | K12: Province Cereal Prod. | L12: Province Cotton Prod.
A13: Phase 1 Communes
A14: Di | B14: Sourou | C14: Boucle du Mouhoun | D14: =F14+G14 -> 1478004.972 | E14: =(H14/6.3)*'[13]Common Assumptions'!C$5 -> 156.0564444 | F14: =(K14/($D$9*1000)*J14)*'[13]Common Assumptions'!$C$38 -> 1478004.972 | G14: =(L14/($D$10*1000)*J14)*'[13]Common Assumptions'!$C$39 -> 0 | H14: 23863 | I14: 220622 | J14: =H14/I14 -> 0.1081623773 | K14: 55053 | L14: 0
A15: Sono | B15: Kossi | C15: Boucle du Mouhoun | D15: 1016566.939 | E15: =(H15/6.3)*'[13]Common Assumptions'!C$5 -> 47.85085714 | F15: =(K15/($D$9*1000)*J15)*'[13]Common Assumptions'!$C$38 -> 1013674.718 | G15: =(L15/($D$10*1000)*J15)*'[13]Common Assumptions'!$C$39 -> 2892.220338 | H15: 7317 | I15: 278546 | J15: =H15/I15 -> 0.02626855169 | K15: 155469 | L15: 271
A16: Banfora | B16: Comoe | C16: Cascades | D16: 10794174.2 | E16: =(H16/6.3)*'[13]Common Assumptions'!C$5 -> 718.2140952 | F16: =(K16/($D$9*1000)*J16)*'[13]Common Assumptions'!$C$38 -> 6229627.491 | G16: =(L16/($D$10*1000)*J16)*'[13]Common Assumptions'!$C$39 -> 4564546.709 | H16: 109824 | I16: 407528 | J16: 0.2694882315 | K16: 93133 | L16: 41690
A17: Pama | B17: Kompienga | C17: Est | D17: 3038012.455 | E17: =(H17/6.3)*'[13]Common Assumptions'!C$5 -> 243.904 | F17: =(K17/($D$9*1000)*J17)*'[13]Common Assumptions'!$C$38 -> 1898374.071 | G17: =(L17/($D$10*1000)*J17)*'[13]Common Assumptions'!$C$39 -> 1139638.385 | H17: 37296 | I17: 75867 | J17: 0.4915971371 | K17: 15558 | L17: 5706
A18: Sabou | B18: Boulkiemde | C18: Centre Ouest | D18: 2636747.632 | E18: =(H18/6.3)*'[13]Common Assumptions'!C$5 -> 297.1108571 | F18: =(K18/($D$9*1000)*J18)*'[13]Common Assumptions'!$C$38 -> 2636747.632 | G18: =(L18/($D$10*1000)*J18)*'[13]Common Assumptions'!$C$39 -> 0 | H18: 45432 | I18: 505206 | J18: 0.08992767307 | K18: 118129 | L18: 0
A19: Leo | B19: Sissili | C19: Centre Ouest | D19: 6440285.276 | E19: =(H19/6.3)*'[13]Common Assumptions'!C$5 -> 333.7657778 | F19: =(K19/($D$9*1000)*J19)*'[13]Common Assumptions'!$C$38 -> 4593487.287 | G19: =(L19/($D$10*1000)*J19)*'[13]Common Assumptions'!$C$39 -> 1846797.989 | H19: 51037 | I19: 208409 | J19: 0.2448886564 | K19: 75571 | L19: 18562
A20: Guiba | B20: Zounwéogo | C20: Centre Sud | D20: 2656795.159 | E20: =(H20/6.3)*'[13]Common Assumptions'!C$5 -> 197.2172063 | F20: =(K20/($D$9*1000)*J20)*'[13]Common Assumptions'!$C$38 -> 2029307.462 | G20: =(L20/($D$10*1000)*J20)*'[13]Common Assumptions'!$C$39 -> 627487.6962 | H20: 30157 | I20: 245947 | J20: 0.1226158481 | K20: 66678 | L20: 12596
A21: Kongoussi | B21: Bam | C21: Centre Nord | D21: 2056928.234 | E21: =(H21/6.3)*'[13]Common Assumptions'!C$5 -> 463.2711111 | F21: =(K21/($D$9*1000)*J21)*'[13]Common Assumptions'!$C$38 -> 2023983.892 | G21: =(L21/($D$10*1000)*J21)*'[13]Common Assumptions'!$C$39 -> 32944.34187 | H21: 70840 | I21: 275191 | J21: 0.2574212093 | K21: 31677 | L21: 315
A22: Ouargaye | B22: Koulpélogo | C22: Centre Est | D22: 1909453.085 | E22: =(H22/6.3)*'[13]Common Assumptions'!C$5 -> 213.5729524 | F22: =(K22/($D$9*1000)*J22)*'[13]Common Assumptions'!$C$38 -> 1780138.545 | G22: =(L22/($D$10*1000)*J22)*'[13]Common Assumptions'!$C$39 -> 129314.5403 | H22: 32658 | I22: 258667 | J22: 0.1262549919 | K22: 56805 | L22: 2521
A23: Bama | B23: Houet | C23: Hauts Bassins | D23: 8455176.682 | E23: =(H23/6.3)*'[13]Common Assumptions'!C$5 -> 456.064381 | F23: =(K23/($D$9*1000)*J23)*'[13]Common Assumptions'!$C$38 -> 5077883.178 | G23: =(L23/($D$10*1000)*J23)*'[13]Common Assumptions'!$C$39 -> 3377293.504 | H23: 69738 | I23: 955451 | J23: 0.07298961433 | K23: 280287 | L23: 113889
A24: Ouahigouya | B24: Yatenga | C24: Nord | D24: 12604679.91 | E24: =(H24/6.3)*'[13]Common Assumptions'!C$5 -> 817.6565079 | F24: =(K24/($D$9*1000)*J24)*'[13]Common Assumptions'!$C$38 -> 12604679.91 | G24: =(L24/($D$10*1000)*J24)*'[13]Common Assumptions'!$C$39 -> 0 | H24: 125030 | I24: 553164 | J24: 0.226027001 | K24: 224674 | L24: 0
A25: Loumbila | B25: Oubritenga | C25: Plateau Central | D25: 1476065.297 | E25: =(H25/6.3)*'[13]Common Assumptions'!C$5 -> 182.6664127 | F25: =(K25/($D$9*1000)*J25)*'[13]Common Assumptions'!$C$38 -> 1475970.244 | G25: =(L25/($D$10*1000)*J25)*'[13]Common Assumptions'!$C$39 -> 95.05372294 | H25: 27932 | I25: 238775 | J25: 0.1169804209 | K25: 50833 | L25: 2
A26: Djibo | B26: Soum | C26: Sahel | D26: 4248635.89 | E26: =(H26/6.3)*'[13]Common Assumptions'!C$5 -> 392.655619 | F26: =(K26/($D$9*1000)*J26)*'[13]Common Assumptions'!$C$38 -> 4248635.89 | G26: =(L26/($D$10*1000)*J26)*'[13]Common Assumptions'!$C$39 -> 0 | H26: 60042 | I26: 347355 | J26: 0.1728548603 | K26: 99026 | L26: 0
A27: Kampti | B27: Poni | C27: Sud Ouest | D27: 3094540.384 | E27: =(H27/6.3)*'[13]Common Assumptions'!C$5 -> 286.7650794 | F27: =(K27/($D$9*1000)*J27)*'[13]Common Assumptions'!$C$38 -> 2888464.177 | G27: =(L27/($D$10*1000)*J27)*'[13]Common Assumptions'!$C$39 -> 206076.2067 | H27: 43850 | I27: 256931 | J27: 0.1706683896 | K27: 68186 | L27: 2972
A28: Mogtedo | B28: Ganzourgou | C28: Plateau Central | D28: 3074437.352 | E28: =(H28/6.3)*'[13]Common Assumptions'!C$5 -> 323.3022857 | F28: =(K28/($D$9*1000)*J28)*'[13]Common Assumptions'!$C$38 -> 2893947.726 | G28: =(L28/($D$10*1000)*J28)*'[13]Common Assumptions'!$C$39 -> 180489.6259 | H28: 49437 | I28: 319380 | J28: 0.1547905317 | K28: 75323 | L28: 2870
A29: Boudri | B29: Ganzourgou | C29: Plateau Central | D29: 4969796.369 | E29: =(H29/6.3)*'[13]Common Assumptions'!C$5 -> 523.3511746 | F29: =(K29/($D$9*1000)*J29)*'[13]Common Assumptions'!$C$38 -> 4678036.745 | G29: =(L29/($D$10*1000)*J29)*'[13]Common Assumptions'!$C$39 -> 291759.6245 | H29: 80027 | I29: 319830 | J29: 0.2502173029 | K29: 75323 | L29: 2870
A30: Zam | B30: Ganzourgou | C30: Plateau Central | D30: 2494430.764 | E30: =(H30/6.3)*'[13]Common Assumptions'!C$5 -> 262.6794286 | F30: =(K30/($D$9*1000)*J30)*'[13]Common Assumptions'!$C$38 -> 2347991.327 | G30: =(L30/($D$10*1000)*J30)*'[13]Common Assumptions'!$C$39 -> 146439.4372 | H30: 40167 | I30: 319830 | J30: 0.1255885939 | K30: 75323 | L30: 2870
A31: Total | D31: =SUM(D14:D30) -> 72444730.6 | E31: =SUM(E14:E30) -> 5916.10419 | F31: =SUM(F14:F30) -> 59898955.26 | G31: =SUM(G14:G30) -> 12545775.33 | H31: =SUM(H14:H30) -> 904647
A32: Phase 2 Communes
A33: Bourasso | B33: Kossi | C33: Boucle du Mouhoun | D33: =F33+G33 -> 1631897.672 | E33: =(H33/6.3)*'[13]Common Assumptions'!C$5 -> 76.81511111 | F33: =(K33/($D$9*1000)*J33)*'[13]Common Assumptions'!$C$38 -> 1627254.782 | G33: =(L33/($D$10*1000)*J33)*'[13]Common Assumptions'!$C$39 -> 4642.889175 | H33: 11746 | I33: 278546 | J33: =H33/I33 -> 0.04216897748 | K33: 155469 | L33: 271
A34: Gassan | B34: Nayala | C34: Boucle du Mouhoun | D34: 4907311.335 | E34: =(H34/6.3)*'[13]Common Assumptions'!C$5 -> 211.8660952 | F34: =(K34/($D$9*1000)*J34)*'[13]Common Assumptions'!$C$38 -> 4098486.53 | G34: =(L34/($D$10*1000)*J34)*'[13]Common Assumptions'!$C$39 -> 808824.8054 | H34: 32397 | I34: 163433 | J34: =H34/I34 -> 0.19822802 | K34: 83299 | L34: 10043
A35: Kassoum | B35: Sourou | C35: Boucle du Mouhoun | D35: 1299006.759 | E35: =(H35/6.3)*'[13]Common Assumptions'!C$5 -> 137.1567619 | F35: =(K35/($D$9*1000)*J35)*'[13]Common Assumptions'!$C$38 -> 1299006.759 | G35: =(L35/($D$10*1000)*J35)*'[13]Common Assumptions'!$C$39 -> 0 | H35: 20973 | I35: 220622 | J35: 0.09506304902 | K35: 55053 | L35: 0
A36: Lanfiéra | B36: Sourou | C36: Boucle du Mouhoun | D36: 1165470.375 | E36: =(H36/6.3)*'[13]Common Assumptions'!C$5 -> 123.0572063 | F36: =(K36/($D$9*1000)*J36)*'[13]Common Assumptions'!$C$38 -> 1165470.375 | G36: =(L36/($D$10*1000)*J36)*'[13]Common Assumptions'!$C$39 -> 0 | H36: 18817 | I36: 220622 | J36: 0.08529067817 | K36: 55053 | L36: 0
A37: Moussodougou | B37: Comoe | C37: Cascades | D37: 1026107.032 | E37: =(H37/6.3)*'[13]Common Assumptions'!C$5 -> 68.27428571 | F37: =(K37/($D$9*1000)*J37)*'[13]Common Assumptions'!$C$38 -> 592195.7952 | G37: =(L37/($D$10*1000)*J37)*'[13]Common Assumptions'!$C$39 -> 433911.2365 | H37: 10440 | I37: 407528 | J37: 0.02561787166 | K37: 93133 | L37: 41690
A38: Niangoloko | B38: Comoé | C38: Cascades | D38: 5321013.648 | E38: =(H38/6.3)*'[13]Common Assumptions'!C$5 -> 354.0453333 | F38: =(K38/($D$9*1000)*J38)*'[13]Common Assumptions'!$C$38 -> 3070909.575 | G38: =(L38/($D$10*1000)*J38)*'[13]Common Assumptions'!$C$39 -> 2250104.073 | H38: 54138 | I38: 407528 | J38: 0.1328448597 | K38: 93133 | L38: 41690
A39: Sidéradougou | B39: Comoe | C39: Cascades | D39: 7410478.148 | E39: =(H39/6.3)*'[13]Common Assumptions'!C$5 -> 493.0724444 | F39: =(K39/($D$9*1000)*J39)*'[13]Common Assumptions'!$C$38 -> 4276799.46 | G39: =(L39/($D$10*1000)*J39)*'[13]Common Assumptions'!$C$39 -> 3133678.688 | H39: 75397 | I39: 407528 | J39: 0.1850106005 | K39: 93133 | L39: 41690
A40: Douna | B40: Léraba | C40: Cascades | D40: 1942733.271 | E40: =(H40/6.3)*'[13]Common Assumptions'!C$5 -> 59.15796825 | F40: =(K40/($D$9*1000)*J40)*'[13]Common Assumptions'!$C$38 -> 1053295.003 | G40: =(L40/($D$10*1000)*J40)*'[13]Common Assumptions'!$C$39 -> 889438.2675 | H40: 9046 | I40: 124280 | J40: 0.07278725459 | K40: 58301 | L40: 30077
A41: Tansarga | B41: Tapoa | C41: Est | D41: 2261464.236 | E41: =(H41/6.3)*'[13]Common Assumptions'!C$5 -> 235.8536508 | F41: =(K41/($D$9*1000)*J41)*'[13]Common Assumptions'!$C$38 -> 1984396.009 | G41: =(L41/($D$10*1000)*J41)*'[13]Common Assumptions'!$C$39 -> 277068.2272 | H41: 36065 | I41: 335391 | J41: 0.1075312098 | K41: 74349 | L41: 6342
A42: Kokologho | B42: Boulkiemdé | C42: Centre-Ouest | D42: 2263626.252 | E42: =(H42/6.3)*'[13]Common Assumptions'!C$5 -> 255.0672381 | F42: =(K42/($D$9*1000)*J42)*'[13]Common Assumptions'!$C$38 -> 2263626.252 | G42: =(L42/($D$10*1000)*J42)*'[13]Common Assumptions'!$C$39 -> 0 | H42: 39003 | I42: 505206 | J42: 0.077202171 | K42: 118129 | L42: 0
A43: Poa | B43: Boulkiemdé | C43: Centre-Ouest | D43: 1757309.42 | E43: =(H43/6.3)*'[13]Common Assumptions'!C$5 -> 198.0150476 | F43: =(K43/($D$9*1000)*J43)*'[13]Common Assumptions'!$C$38 -> 1757309.42 | G43: =(L43/($D$10*1000)*J43)*'[13]Common Assumptions'!$C$39 -> 0 | H43: 30279 | I43: 505206 | J43: 0.05993396753 | K43: 118129 | L43: 0
A44: Dydir | B44: Sanguie | C44: Centre-Ouest | D44: 2796795.341 | E44: =(H44/6.3)*'[13]Common Assumptions'!C$5 -> 267.8326984 | F44: =(K44/($D$9*1000)*J44)*'[13]Common Assumptions'!$C$38 -> 2619555.94 | G44: =(L44/($D$10*1000)*J44)*'[13]Common Assumptions'!$C$39 -> 177239.4009 | H44: 40955 | I44: 297036 | J44: 0.1378789103 | K44: 76544 | L44: 3164
A45: Ténado | B45: Sanguie | C45: Centre-Ouest | D45: 3107580.73 | E45: =(H45/6.3)*'[13]Common Assumptions'!C$5 -> 297.5947937 | F45: =(K45/($D$9*1000)*J45)*'[13]Common Assumptions'!$C$38 -> 2910646.139 | G45: =(L45/($D$10*1000)*J45)*'[13]Common Assumptions'!$C$39 -> 196934.591 | H45: 45506 | I45: 297036 | J45: 0.1532002855 | K45: 76544 | L45: 3164
A46: Cassou | B46: Ziro | C46: Centre-Ouest | D46: 3928260.548 | E46: =(H46/6.3)*'[13]Common Assumptions'!C$5 -> 261.8358095 | F46: =(K46/($D$9*1000)*J46)*'[13]Common Assumptions'!$C$38 -> 3154296.27 | G46: =(L46/($D$10*1000)*J46)*'[13]Common Assumptions'!$C$39 -> 773964.2784 | H46: 40038 | I46: 175915 | J46: 0.2275985561 | K46: 55836 | L46: 8370
A47: Sapouy | B47: Ziro | C47: Centre-Ouest | D47: 5491205.514 | E47: =(H47/6.3)*'[13]Common Assumptions'!C$5 -> 366.0129524 | F47: =(K47/($D$9*1000)*J47)*'[13]Common Assumptions'!$C$38 -> 4409302.503 | G47: =(L47/($D$10*1000)*J47)*'[13]Common Assumptions'!$C$39 -> 1081903.01 | H47: 55968 | I47: 175915 | J47: 0.3181536538 | K47: 55836 | L47: 8370
A48: Rollo | B48: Bam | C48: Centre-Nord | D48: 791005.6318 | E48: =(H48/6.3)*'[13]Common Assumptions'!C$5 -> 178.1540317 | F48: =(K48/($D$9*1000)*J48)*'[13]Common Assumptions'!$C$38 -> 778336.6629 | G48: =(L48/($D$10*1000)*J48)*'[13]Common Assumptions'!$C$39 -> 12668.96896 | H48: 27242 | I48: 275191 | J48: 0.098993063 | K48: 31677 | L48: 315
A49: Zimtenga | B49: Bam | C49: Centre-Nord | D49: 670679.3952 | E49: =(H49/6.3)*'[13]Common Assumptions'!C$5 -> 151.0535873 | F49: =(K49/($D$9*1000)*J49)*'[13]Common Assumptions'!$C$38 -> 659937.6051 | G49: =(L49/($D$10*1000)*J49)*'[13]Common Assumptions'!$C$39 -> 10741.79007 | H49: 23098 | I49: 275191 | J49: 0.083934431 | K49: 31677 | L49: 315
A50: Béré | B50: Zoundwéogo | C50: Centre-Sud | D50: 2531782.978 | E50: =(H50/6.3)*'[13]Common Assumptions'!C$5 -> 187.9373968 | F50: =(K50/($D$9*1000)*J50)*'[13]Common Assumptions'!$C$38 -> 1933820.932 | G50: =(L50/($D$10*1000)*J50)*'[13]Common Assumptions'!$C$39 -> 597962.0457 | H50: 28738 | I50: 245947 | J50: 0.1168463124 | K50: 66678 | L50: 12596
A51: Bittou | B51: Boulgou | C51: Centre-Est | D51: 1871198.474 | E51: =(H51/6.3)*'[13]Common Assumptions'!C$5 -> 471.203746 | F51: =(K51/($D$9*1000)*J51)*'[13]Common Assumptions'!$C$38 -> 1812443.141 | G51: =(L51/($D$10*1000)*J51)*'[13]Common Assumptions'!$C$39 -> 58755.33338 | H51: 72053 | I51: 543570 | J51: 0.1325551447 | K51: 55087 | L51: 1091
A52: Lalgaye | B52: Koulpéologo | C52: Centre-Est | D52: 882927.6451 | E52: =(H52/6.3)*'[13]Common Assumptions'!C$5 -> 98.75574603 | F52: =(K52/($D$9*1000)*J52)*'[13]Common Assumptions'!$C$38 -> 823132.8361 | G52: =(L52/($D$10*1000)*J52)*'[13]Common Assumptions'!$C$39 -> 59794.80902 | H52: 15101 | I52: 258667 | J52: 0.05838007941 | K52: 56805 | L52: 2521
A53: Padema | B53: Houet | C53: Haut-Bassins | D53: 6071679.616 | E53: =(H53/6.3)*'[13]Common Assumptions'!C$5 -> 327.5007619 | F53: =(K53/($D$9*1000)*J53)*'[13]Common Assumptions'!$C$38 -> 3646438.264 | G53: =(L53/($D$10*1000)*J53)*'[13]Common Assumptions'!$C$39 -> 2425241.351 | H53: 50079 | I53: 955451 | J53: 0.05241399088 | K53: 280287 | L53: 113889
A54: Toussiana | B54: Houet | C54: Haut-Bassins | D54: 2054446.197 | E54: =(H54/6.3)*'[13]Common Assumptions'!C$5 -> 110.8149206 | F54: =(K54/($D$9*1000)*J54)*'[13]Common Assumptions'!$C$38 -> 1233828.479 | G54: =(L54/($D$10*1000)*J54)*'[13]Common Assumptions'!$C$39 -> 820617.718 | H54: 16945 | I54: 955451 | J54: 0.01773508008 | K54: 280287 | L54: 113889
A55: Banzon | B55: Kénédougou | C55: Haut-Bassins | D55: 4741535.479 | E55: =(H55/6.3)*'[13]Common Assumptions'!C$5 -> 97.3431746 | F55: =(K55/($D$9*1000)*J55)*'[13]Common Assumptions'!$C$38 -> 2339200.427 | G55: =(L55/($D$10*1000)*J55)*'[13]Common Assumptions'!$C$39 -> 2402335.052 | H55: 14885 | I55: 285695 | J55: 0.05210101682 | K55: 180885 | L55: 113491
A56: Samorogouan | B56: Kénédougou | C56: Haut-Bassins | D56: 11153837.07 | E56: =(H56/6.3)*'[13]Common Assumptions'!C$5 -> 228.9869841 | F56: =(K56/($D$9*1000)*J56)*'[13]Common Assumptions'!$C$38 -> 5502660.595 | G56: =(L56/($D$10*1000)*J56)*'[13]Common Assumptions'!$C$39 -> 5651176.476 | H56: 35015 | I56: 285695 | J56: 0.1225607729 | K56: 180885 | L56: 113491
A57: Tangaye | B57: Yatenga | C57: Nord | D57: 3287721.516 | E57: =(H57/6.3)*'[13]Common Assumptions'!C$5 -> 213.272127 | F57: =(K57/($D$9*1000)*J57)*'[13]Common Assumptions'!$C$38 -> 3287721.516 | G57: =(L57/($D$10*1000)*J57)*'[13]Common Assumptions'!$C$39 -> 0 | H57: 32612 | I57: 553164 | J57: 0.05895539117 | K57: 224674 | L57: 0
A58: Koubri | B58: Kadiogo | C58: Centre | D58: 168809.1855 | E58: =(H58/6.3)*'[13]Common Assumptions'!C$5 -> 287.2751746 | F58: =(K58/($D$9*1000)*J58)*'[13]Common Assumptions'!$C$38 -> 168809.1855 | G58: =(L58/($D$10*1000)*J58)*'[13]Common Assumptions'!$C$39 -> 0 | H58: 43928 | I58: 1727390 | J58: 0.02543027342 | K58: 26744 | L58: 0
A59: Saaba | B59: Kadiogo | C59: Centre | D59: 195543.9675 | E59: =(H59/6.3)*'[13]Common Assumptions'!C$5 -> 332.771746 | F59: =(K59/($D$9*1000)*J59)*'[13]Common Assumptions'!$C$38 -> 195543.9675 | G59: =(L59/($D$10*1000)*J59)*'[13]Common Assumptions'!$C$39 -> 0 | H59: 50885 | I59: 1727390 | J59: 0.02945773682 | K59: 26744 | L59: 0
A60: Pobé-Mengao | B60: Soum | C60: Sahel | D60: 1701945.145 | E60: =(H60/6.3)*'[13]Common Assumptions'!C$5 -> 157.2924444 | F60: =(K60/($D$9*1000)*J60)*'[13]Common Assumptions'!$C$38 -> 1701945.145 | G60: =(L60/($D$10*1000)*J60)*'[13]Common Assumptions'!$C$39 -> 0 | H60: 24052 | I60: 347355 | J60: 0.06924328137 | K60: 99026 | L60: 0
A61: Djigoué | B61: Poni | C61: Sud-Ouest | D61: 1433933.092 | E61: =(H61/6.3)*'[13]Common Assumptions'!C$5 -> 132.8798095 | F61: =(K61/($D$9*1000)*J61)*'[13]Common Assumptions'!$C$38 -> 1338442.5 | G61: =(L61/($D$10*1000)*J61)*'[13]Common Assumptions'!$C$39 -> 95490.59167 | H61: 20319 | I61: 256931 | J61: 0.07908348934 | K61: 68186 | L61: 2972
A62: Total | D62: =SUM(D33:D61) -> 83867305.67 | E62: =SUM(E33:E61) -> 6380.899048 | F62: =SUM(F33:F61) -> 61704812.07 | G62: =SUM(G33:G61) -> 22162493.6 | H62: =SUM(H33:H61) -> 975720
A64: Total Population in 46 communes in 2007 | D64: count = | E64: =COUNT(E14:E62) -> 48 | F64: (one commune is missing) | H64: =H62+H31 -> 1880367
A65: Estimated population in 2027 at 3.07% annual population growth | H65: =H64*(1+'[13]Common Assumptions'!C46)^20 -> 3444617.101
A66: Percentage of households experiencing conflict in Year 20, Without Project | H66: ='[13]ERR Combined'!V21 -> 0.08141680174
A67: Percentage of households experiencing conflict in Year 20, With Project | H67: ='[13]ERR Combined'!V35 -> 0.07156536873
A68: Population of 47 communes experiencing conflict in Year 20, Without Project | H68: =H66*H65 -> 280449.7076
A69: Population of 47 communes experiencing conflict in Year 20, With Project | H69: =H67*H65 -> 246515.293
A70: Population experiencing increased income as a result of reduced land conflict due to the project | H70: =H68-H69 -> 33934.41462

Sheet DiD Estimates
A1: =IF('ERR & Sensitivity Analysis'!$I$9="N","Note: Current calculations are based on user input and are not the original MCC estimates.",IF('ERR & Sensitivity Analysis'!$I$13="N","Note: Current calculations are based on user input and are not the original MCC estimates.",0)) -> 0 | M1: Last updated: 10/13/2015
A3: Perception: Serious concerns | G3: Calculated using 2010 & 2012 survey data. See "Burkina Faso Rural Land Governance Project Impact Evaluation, findings after Phase I: interim evaluation report" Borelli & Zhang 2014, for an alternate analysis of the data. | O3: From "Perceptions of Land Tenure Insecurity: Survey Evidence from Burkina Faso" Linkow, 2015. Calculated using 2010 survey data.
B4: Point Estimate | C4: Standard Error | D4: High Estimate | E4: Low Estimate | F4: Significant?
A5: Migrants | B5: -0.02 | C5: 0.00544 | D5: =IF($B5<0,$B5-2*$C5,0) -> -0.03088 | E5: =IF($B5<0,$B5+2*$C5,0) -> -0.00912 | F5: 0.01
A6: Investors | B6: -0.0135 | C6: 0.00502 | D6: -0.02354 | E6: -0.00346 | F6: 0.01 | G6: Linear regression Number of obs = 19500 | O6: Table 5. Regressions of Agricultural Productivity on Single Tenure Insecurity Measures
A7: Reclaim | B7: -0.0316 | C7: 0.00621 | D7: -0.04402 | E7: -0.01918 | F7: 0.01 | G7: F( 11, 19488) = 19.16 | P7: For your household | R7: In the village today | T7: In the village in the near future | V7: In the village in the far future
A8: Inherit | B8: -0.0186 | C8: 0.00535 | D8: -0.0293 | E8: -0.0079 | F8: 0.01 | G8: Prob > F = 0.0000 | P8: Somewhat | Q8: Serious | R8: Somewhat | S8: Serious | T8: Somewhat | U8: Serious | V8: Somewhat | W8: Serious
A9: Damage | B9: -0.0654 | C9: 0.0113 | D9: -0.088 | E9: -0.0428 | F9: 0.01 | G9: R-squared = 0.0114 | O9: Arrival of new migrants | P9: -0.002 | Q9: -0.455** | R9: 0.068 | S9: -0.443*** | T9: 0.191*** | U9: -0.379*** | V9: 0.194** | W9: -0.231**
A10: Restrict | B10: -0.0146 | C10: 0.00759 | D10: -0.02978 | E10: 0.00058 | F10: 0.1 | G10: Root MSE = .18705 | P10: -0.084 | Q10: -0.181 | R10: -0.075 | S10: -0.148 | T10: -0.067 | U10: -0.126 | V10: -0.069 | W10: -0.102
O11: Outsiders seeking land for non-agricultural purposes | P11: -0.155 | Q11: -0.036 | R11: 0.018 | S11: -0.073 | T11: 0.093 | U11: -0.147 | V11: 0.119 | W11: -0.087
A12: Productivity Impact: Serious concerns | G12: ------------------------------------------------------------------------------ | P12: -0.084 | Q12: -0.162 | R12: -0.077 | S12: -0.144 | T12: -0.071 | U12: -0.123 | V12: -0.065 | W12: -0.108
B13: Point Estimate | C13: Standard Error | D13: High Estimate | E13: Low Estimate | F13: Significant? | G13: | Robust | O13: Former residents returning | P13: -0.025 | Q13: -0.422*** | R13: 0.078 | S13: -0.355** | T13: 0.101 | U13: -0.356*** | V13: 0.148** | W13: -0.314***
A14: Migrants | B14: -0.455 | C14: 0.181 | D14: =IF($B14<0,$B14-2*$C14,0) -> -0.817 | E14: =IF($B14<0,$B14+2*$C14,0) -> -0.093 | F14: 0.05 | G14: migrant | Coef. Std. Err. t P>|t| [95% Conf. Interval] | P14: -0.075 | Q14: -0.137 | R14: -0.069 | S14: -0.132 | T14: -0.069 | U14: -0.115 | V14: -0.066 | W14: -0.094
A15: Investors | B15: 0 | C15: 0.162 | D15: 0 | E15: 0 | F15: No | G15: -------------+---------------------------------------------------------------- | O15: Inheritance | P15: 0.013 | Q15: -0.044 | R15: 0.094 | S15: -0.098 | T15: 0.108 | U15: -0.071 | V15: 0.115 | W15: -0.119
A16: Reclaim | B16: -0.422 | C16: 0.137 | D16: -0.696 | E16: -0.148 | F16: 0.01 | G16: treat | .0140683 .0045423 3.10 0.002 .005165 .0229717 | P16: -0.079 | Q16: -0.134 | R16: -0.065 | S16: -0.119 | T16: -0.072 | U16: -0.117 | V16: -0.067 | W16: -0.098
A17: Inherit | B17: 0 | C17: 0.134 | D17: 0 | E17: 0 | F17: No | G17: postT | -.0194238 .0040296 -4.82 0.000 -.0273221 -.0115255 | O17: Livestock damage | P17: -0.117 | Q17: -0.077 | R17: -0.181** | S17: -0.165 | T17: -0.067 | U17: -0.092 | V17: -0.035 | W17: -0.058
A18: Damage | B18: 0 | C18: 0.091 | D18: 0 | E18: 0 | F18: No | G18: DiD | -.0200395 .0054361 -3.69 0.000 -.0306947 -.0093842 | P18: -0.068 | Q18: -0.091 | R18: -0.075 | S18: -0.094 | T18: -0.077 | U18: -0.09 | V18: -0.074 | W18: -0.084
A19: Restrict | B19: -0.229 | C19: 0.117 | D19: -0.463 | E19: 0.005 | F19: 0.1 | G19: Sex | -.0121683 .0030514 -3.99 0.000 -.0181493 -.0061872 | O19: Access to water for livestock | P19: -0.032 | Q19: -0.229* | R19: -0.021 | S19: -0.265** | T19: 0.005 | U19: -0.328*** | V19: 0.025 | W19: -0.313***
G20: Age | -.0000301 .0000854 -0.35 0.724 -.0001974 .0001372 | P20: -0.078 | Q20: -0.117 | R20: -0.073 | S20: -0.115 | T20: -0.071 | U20: -0.098 | V20: -0.07 | W20: -0.102
G21: link | -.017092 .0037995 -4.50 0.000 -.0245393 -.0096446 | O21: Conflicts in general | P21: 0.004 | Q21: -0.015 | R21: 0.071 | S21: -0.001 | T21: 0.097 | U21: -0.078 | V21: 0.017 | W21: -0.061
G22: read | .0178629 .0050802 3.52 0.000 .0079053 .0278205 | P22: -0.066 | Q22: -0.09 | R22: -0.062 | S22: -0.091 | T22: -0.07 | U22: -0.09 | V22: -0.072 | W22: -0.083
F23: Calculated using 2010 & 2012 survey data. See "Burkina Faso Rural Land Governance Project Impact Evaluation, findings after Phase I: interim evaluation report" Borelli & Zhang 2014, for an analysis of the data+G18:M18. | G23: degree | -.0072052 .0074551 -0.97 0.334 -.0218179 .0074075 | O23: Expropriation by state | P23: 0.063 | Q23: 0.002
G24: possess | -4.29e-09 7.25e-09 -0.59 0.554 -1.85e-08 9.91e-09 | P24: -0.081 | Q24: -0.085
G25: NFincome | 1.59e-08 6.74e-09 2.37 0.018 2.74e-09 2.92e-08 | O25: Expropriation by villager | P25: 0.099 | Q25: -0.083
G26: NoParcel | .0005815 .0016985 0.34 0.732 -.0027477 .0039106 | P26: -0.072 | Q26: -0.097
G27: _cons | .0619793 .0072607 8.54 0.000 .0477477 .0762109 | O27: Coefficients in bold, robust clustered standard errors below
G28: ------------------------------------------------------------------------------ | O28: Control variables results omitted
O29: *** p<0.01, ** p<0.05, * p<0.1
G30: Linear regression Number of obs = 19694
G31: F( 11, 19682) = 16.03
G32: Prob > F = 0.0000
G33: R-squared = 0.0097
G34: Root MSE = .17651
G36: ------------------------------------------------------------------------------
G37: | Robust
G38: investor | Coef. Std. Err. t P>|t| [95% Conf. Interval]
G39: -------------+----------------------------------------------------------------
G40: treat | .0162912 .0042795 3.81 0.000 .0079031 .0246794
G41: postT | -.0217818 .0035759 -6.09 0.000 -.0287908 -.0147728
G42: DiD | -.0134805 .0050231 -2.68 0.007 -.0233261 -.0036348
G43: Sex | -.0052873 .0029094 -1.82 0.069 -.0109901 .0004154
G44: Age | 9.86e-07 .0000828 0.01 0.990 -.0001613 .0001632
G45: link | -.0119747 .0043403 -2.76 0.006 -.020482 -.0034674
G46: read | .007949 .0046485 1.71 0.087 -.0011624 .0170604
G47: degree | .001954 .0072599 0.27 0.788 -.0122759 .0161839
G48: possess | -4.40e-09 5.69e-09 -0.77 0.439 -1.56e-08 6.76e-09
G49: NFincome | 1.42e-08 6.24e-09 2.27 0.023 1.93e-09 2.64e-08
G50: NoParcel | -.0017377 .0015395 -1.13 0.259 -.0047553 .0012798
G51: _cons | .0460754 .006886 6.69 0.000 .0325784 .0595725
G52: ------------------------------------------------------------------------------
G54: Linear regression Number of obs = 19879
G55: F( 11, 19867) = 33.60
G56: Prob > F = 0.0000
G57: R-squared = 0.0213
G58: Root MSE = .21904
G60: ------------------------------------------------------------------------------
G61: | Robust
G62: reclaim | Coef. Std. Err. t P>|t| [95% Conf. Interval]
G63: -------------+----------------------------------------------------------------
G64: treat | .0316095 .0054061 5.85 0.000 .0210131 .0422059
G65: postT | -.0389863 .004454 -8.75 0.000 -.0477166 -.030256
G66: DiD | -.0316202 .0062189 -5.08 0.000 -.0438097 -.0194306
G67: Sex | -.0034882 .0035433 -0.98 0.325 -.0104333 .003457
G68: Age | -.0000952 .0001 -0.95 0.341 -.0002912 .0001008
G69: link | -.0182121 .0054214 -3.36 0.001 -.0288384 -.0075858
G70: read | .0152075 .0055445 2.74 0.006 .0043398 .0260752
G71: degree | .0043675 .0088033 0.50 0.620 -.0128877 .0216228
G72: possess | -1.11e-08 8.58e-09 -1.29 0.197 -2.79e-08 5.75e-09
G73: NFincome | 2.42e-08 7.12e-09 3.40 0.001 1.02e-08 3.82e-08
G74: NoParcel | .0007892 .0018198 0.43 0.665 -.0027778 .0043562
G75: _cons | .0684329 .0082238 8.32 0.000 .0523136 .0845521
G76: ------------------------------------------------------------------------------
G78: Linear regression Number of obs = 19717
G79: F( 11, 19705) = 18.68
G80: Prob > F = 0.0000
G81: R-squared = 0.0116
G82: Root MSE = .18852
G84: ------------------------------------------------------------------------------
G85: | Robust
G86: inherit | Coef. Std. Err. t P>|t| [95% Conf. Interval]
G87: -------------+----------------------------------------------------------------
G88: treat | .0213093 .0045931 4.64 0.000 .0123065 .0303121
G89: postT | -.0263088 .0038056 -6.91 0.000 -.0337681 -.0188495
G90: DiD | -.0186184 .0053538 -3.48 0.001 -.0291124 -.0081244
G91: Sex | -.0013663 .0030778 -0.44 0.657 -.0073991 .0046665
G92: Age | -2.02e-06 .0000849 -0.02 0.981 -.0001685 .0001645
G93: link | -.0088944 .0052292 -1.70 0.089 -.0191441 .0013553
G94: read | .0068485 .0046653 1.47 0.142 -.0022958 .0159929
G95: degree | .00709 .0075542 0.94 0.348 -.0077168 .0218967
G96: possess | -4.58e-09 5.57e-09 -0.82 0.410 -1.55e-08 6.33e-09
G97: NFincome | 6.51e-09 4.30e-09 1.51 0.130 -1.92e-09 1.49e-08
G98: NoParcel | .0009671 .0015402 0.63 0.530 -.0020518 .0039861
G99: _cons | .0441853 .0072519 6.09 0.000 .0299709 .0583997
G100: ------------------------------------------------------------------------------
G102: Linear regression Number of obs = 20003
G103: F( 11, 19991) = 38.16
G104: Prob > F = 0.0000
G105: R-squared = 0.0204
G106: Root MSE = .39167
G108: ------------------------------------------------------------------------------
G109: | Robust
G110: damage | Coef. Std. Err. t P>|t| [95% Conf. Interval]
G111: -------------+----------------------------------------------------------------
G112: treat | .0297132 .0087301 3.40 0.001 .0126014 .0468249
G113: postT | -.0636732 .0086802 -7.34 0.000 -.0806872 -.0466593
G114: DiD | -.0653984 .011275 -5.80 0.000 -.0874984 -.0432985
G115: Sex | .0053255 .0063941 0.83 0.405 -.0072076 .0178585
G116: Age | -.0006437 .0001757 -3.66 0.000 -.0009881 -.0002993
G117: link | -.0375192 .0123069 -3.05 0.002 -.0616416 -.0133967
G118: read | .0153285 .0093935 1.63 0.103 -.0030836 .0337406
G119: degree | .012802 .0148427 0.86 0.388 -.0162909 .0418949
G120: possess | 1.30e-08 1.93e-08 0.67 0.500 -2.49e-08 5.09e-08
G121: NFincome | 3.97e-08 1.29e-08 3.08 0.002 1.44e-08 6.49e-08
G122: NoParcel | .0001931 .0031735 0.06 0.951 -.0060273 .0064135
G123: _cons | .2415772 .0149799 16.13 0.000 .2122153 .2709391
G124: ------------------------------------------------------------------------------
G126: Linear regression Number of obs = 19783
G127: F( 11, 19771) = 7.07
G128: Prob > F = 0.0000
G129: R-squared = 0.0060
G130: Root MSE = .26123
G132: ------------------------------------------------------------------------------
G133: | Robust
G134: restrict | Coef. Std. Err. t P>|t| [95% Conf. Interval]
G135: -------------+----------------------------------------------------------------
G136: treat | -.0052106 .0053432 -0.98 0.329 -.0156838 .0052625
G137: postT | .011149 .0059558 1.87 0.061 -.0005249 .022823
G138: DiD | -.0145701 .0075904 -1.92 0.055 -.0294479 .0003077
G139: Sex | -.0119817 .0042194 -2.84 0.005 -.020252 -.0037114
G140: Age | -.0001541 .000116 -1.33 0.184 -.0003815 .0000734
G141: link | -.0180197 .007936 -2.27 0.023 -.033575 -.0024644
G142: read | .0185425 .0066244 2.80 0.005 .0055582 .0315268
G143: degree | .0059346 .0103732 0.57 0.567 -.0143976 .0262669
G144: possess | -2.32e-08 9.23e-09 -2.52 0.012 -4.13e-08 -5.15e-09
G145: NFincome | 5.51e-08 1.12e-08 4.93 0.000 3.32e-08 7.70e-08
G146: NoParcel | -.0022809 .0022302 -1.02 0.306 -.0066524 .0020905
G147: _cons | .0969391 .0098646 9.83 0.000 .0776036 .1162746
G148: ------------------------------------------------------------------------------

Sheet Costs
A1: =IF('ERR & Sensitivity Analysis'!$I$9="N","Note: Current calculations are based on user input and are not the original MCC estimates.",IF('ERR & Sensitivity Analysis'!$I$13="N","Note: Current calculations are based on user input and are not the original MCC estimates.",0)) -> 0 | I1: Last updated: 2/8/2016
A3: NOTE 1: Year 1 costs include funds dispursed after compact signing but before EIF (year 1).
A4: NOTE 2: Project year measured from Q3 (EIF in July 2009, at beginning of Q3) of that year to Q2 of the next.
A5: NOTE 3: Phase I/II costs are allocated based on year of disprusement. Dispursements on/after phasing decision in 2012 are allocated to phase II.
B7: Year
A8: Note: Year 1 corresponds to 2008Q3 thru 2009Q2 | B8: 1 | C8: 2 | D8: 3 | E8: 4 | F8: 5 | G8: 6 | H8: 7 | I8: 8 | J8: 9 | K8: 10 | L8: 11 | M8: 12 | N8: 13 | O8: 14 | P8: 15 | Q8: 16 | R8: 17 | S8: 18 | T8: 19 | U8: 20
A9: RLG-related Activities, Phase I | B9: ='Quaterly Costs'!$F$15+'Quaterly Costs'!$K$15 -> 1543967.5 | C9: ='Quaterly Costs'!$P$15 -> 6340123.51 | D9: ='Quaterly Costs'!$U$15 -> 6667774.49 | E9: ='Quaterly Costs'!$Z$15 -> 7045935.69
A10: RLG-related Activities, Phase II | F10: ='Quaterly Costs'!$AE$15 -> 16133412.55 | G10: ='Quaterly Costs'!$AJ$15 -> 21126070.81
A11: Building O&M Costs, Phase I | B11: ='Common Assumptions'!$C$33*'Common Assumptions'!$C$35 -> 0 | C11: ='Common Assumptions'!$C$33*'Common Assumptions'!$C$36 -> 0 | D11: ='Common Assumptions'!$C$33*'Common Assumptions'!$C$37 -> 0 | E11: ='Common Assumptions'!$C$33*'Common Assumptions'!$C$38 -> 220355.19 | F11: ='Common Assumptions'!$C$33*'Common Assumptions'!$C$39 -> 220355.19 | G11: ='Common Assumptions'!$C$33*'Common Assumptions'!$C$40 -> 220355.19 | H11: ='Common Assumptions'!$C$33*'Common Assumptions'!$C$40 -> 220355.19 | I11: ='Common Assumptions'!$C$33*'Common Assumptions'!$C$40 -> 220355.19 | J11: ='Common Assumptions'!$C$33*'Common Assumptions'!$C$40 -> 220355.19 | K11: ='Common Assumptions'!$C$33*'Common Assumptions'!$C$40 -> 220355.19 | L11: ='Common Assumptions'!$C$33*'Common Assumptions'!$C$40 -> 220355.19 | M11: ='Common Assumptions'!$C$33*'Common Assumptions'!$C$40 -> 220355.19 | N11: ='Common Assumptions'!$C$33*'Common Assumptions'!$C$40 -> 220355.19 | O11: ='Common Assumptions'!$C$33*'Common Assumptions'!$C$40 -> 220355.19 | P11: ='Common Assumptions'!$C$33*'Common Assumptions'!$C$40 -> 220355.19 | Q11: ='Common Assumptions'!$C$33*'Common Assumptions'!$C$40 -> 220355.19 | R11: ='Common Assumptions'!$C$33*'Common Assumptions'!$C$40 -> 220355.19 | S11: ='Common Assumptions'!$C$33*'Common Assumptions'!$C$40 -> 220355.19 | T11: ='Common Assumptions'!$C$33*'Common Assumptions'!$C$40 -> 220355.19 | U11: ='Common Assumptions'!$C$33*'Common Assumptions'!$C$40 -> 220355.19
A12: Building O&M Costs, Phase II | B12: ='Common Assumptions'!$C$33*'Common Assumptions'!$C$42 -> 0 | C12: ='Common Assumptions'!$C$33*'Common Assumptions'!$C$43 -> 0 | D12: ='Common Assumptions'!$C$33*'Common Assumptions'!$C$44 -> 0 | E12: ='Common Assumptions'!$C$33*'Common Assumptions'!$C$45 -> 0 | F12: ='Common Assumptions'!$C$33*'Common Assumptions'!$C$46 -> 0 | G12: ='Common Assumptions'!$C$33*'Common Assumptions'!$C$47 -> 388862.1 | H12: ='Common Assumptions'!$C$33*'Common Assumptions'!$C$47 -> 388862.1 | I12: ='Common Assumptions'!$C$33*'Common Assumptions'!$C$47 -> 388862.1 | J12: ='Common Assumptions'!$C$33*'Common Assumptions'!$C$47 -> 388862.1 | K12: ='Common Assumptions'!$C$33*'Common Assumptions'!$C$47 -> 388862.1 | L12: ='Common Assumptions'!$C$33*'Common Assumptions'!$C$47 -> 388862.1 | M12: ='Common Assumptions'!$C$33*'Common Assumptions'!$C$47 -> 388862.1 | N12: ='Common Assumptions'!$C$33*'Common Assumptions'!$C$47 -> 388862.1 | O12: ='Common Assumptions'!$C$33*'Common Assumptions'!$C$47 -> 388862.1 | P12: ='Common Assumptions'!$C$33*'Common Assumptions'!$C$47 -> 388862.1 | Q12: ='Common Assumptions'!$C$33*'Common Assumptions'!$C$47 -> 388862.1 | R12: ='Common Assumptions'!$C$33*'Common Assumptions'!$C$47 -> 388862.1 | S12: ='Common Assumptions'!$C$33*'Common Assumptions'!$C$47 -> 388862.1 | T12: ='Common Assumptions'!$C$33*'Common Assumptions'!$C$47 -> 388862.1 | U12: ='Common Assumptions'!$C$33*'Common Assumptions'!$C$47 -> 388862.1
A14: Calculation of pro-rated Compact overhead
A15: Grand total compact budget | B15: ='Quaterly Costs'!A20 -> 474765824
A16: Program administration and oversight budget | B16: ='Quaterly Costs'!$AK$13 -> 54051210.5
A17: M&E budget | B17: ='Quaterly Costs'!$AK$12 -> 5166880.19
A18: Total overhead | B18: =$B$16+$B$17 -> 59218090.69
A19: Compact budget minus overhead and M&E | B19: =B15-B16-B17 -> 415547733.3
A21: Compact Overhead and M&E as a share of total compact | B21: =$B$18/$B$15 -> 0.1247311573

Sheet Quaterly Costs
I1: Last updated: 2/8/2016
A3: Quarterly Disbursements by MCC
A4: FY | B4: 2008 | C4: 2008 | D4: 2009 | E4: 2009 | F4: 2008 | G4: 2009 | H4: 2009 | I4: 2010 | J4: 2010 | K4: 2009 | L4: 2010 | M4: 2010 | N4: 2011 | O4: 2011 | P4: 2010 | Q4: 2011 | R4: 2011 | S4: 2012 | T4: 2012 | U4: 2011 | V4: 2012 | W4: 2012 | X4: 2013 | Y4: 2013 | Z4: 2012 | AA4: 2013 | AB4: 2013 | AC4: 2014 | AD4: 2014 | AE4: 2013 | AF4: 2014 | AG4: 2014 | AH4: 2015 | AI4: 2015 | AJ4: 2014 | AK4: TOTAL
A5: QTR | B5: Q3 | C5: Q4 | D5: Q1 | E5: Q2 | F5: Total | G5: Q3 | H5: Q4 | I5: Q1 | J5: Q2 | K5: Total | L5: Q3 | M5: Q4 | N5: Q1 | O5: Q2 | P5: Total | Q5: Q3 | R5: Q4 | S5: Q1 | T5: Q2 | U5: Total | V5: Q3 | W5: Q4 | X5: Q1 | Y5: Q2 | Z5: Total | AA5: Q3 | AB5: Q4 | AC5: Q1 | AD5: Q2 | AE5: Total | AF5: Q3 | AG5: Q4 | AH5: Q1 | AI5: Q2 | AJ5: Total
A6: Dev & Dissemination of Policy and Legislation Activity | B6: 0 | C6: 0 | D6: 0 | E6: 0 | F6: =+SUM($B6:$E6) -> 0 | G6: 0 | H6: 0 | I6: 0 | J6: 0 | K6: =+SUM($G6:$J6) -> 0 | L6: 0 | M6: 0 | N6: 0 | O6: 0 | P6: =+SUM($L6:$O6) -> 0 | Q6: 0 | R6: 0 | S6: 0 | T6: 0 | U6: =+SUM($Q6:$T6) -> 0 | V6: 0 | W6: 0 | X6: 0 | Y6: 0 | Z6: =+SUM($V6:$Y6) -> 0 | AA6: 0 | AB6: 0 | AC6: 0 | AD6: 0 | AE6: =+SUM($AA6:$AD6) -> 0 | AF6: 0 | AG6: 0 | AH6: 0 | AI6: 0 | AJ6: =+SUM($AF6:$AI6) -> 0 | AK6: =+SUM(B6:E6,G6:J6,L6:O6,Q6:T6,V6:Y6,AA6:AD6,AF6:AI6) -> 0
A7: Institutional Development & Capacity Building Activity | B7: 0 | C7: 0 | D7: 0 | E7: 0 | F7: =+SUM($B7:$E7) -> 0 | G7: -32467.53 | H7: 63562.34 | I7: 0 | J7: 300356.22 | K7: =+SUM($G7:$J7) -> 331451.03 | L7: 442051.24 | M7: 790978.7 | N7: 1221869.79 | O7: 798090.4 | P7: =+SUM($L7:$O7) -> 3252990.13 | Q7: 1922242.71 | R7: 711298.56 | S7: 907360.4 | T7: 578956.41 | U7: =+SUM($Q7:$T7) -> 4119858.08 | V7: 556703.71 | W7: 1078045.75 | X7: 1783114.37 | Y7: 1351734.32 | Z7: =+SUM($V7:$Y7) -> 4769598.15 | AA7: 1643240.63 | AB7: 2745327.27 | AC7: 2750048.19 | AD7: 3695968.54 | AE7: =+SUM($AA7:$AD7) -> 10834584.63 | AF7: 4476803.21 | AG7: 5777076.59 | AH7: 2882707.18 | AI7: 0.08 | AJ7: =+SUM($AF7:$AI7) -> 13136587.06 | AK7: =+SUM(B7:E7,G7:J7,L7:O7,Q7:T7,V7:Y7,AA7:AD7,AF7:AI7) -> 36445069.08
A8: Targeted Land Registration Interventions Activity | B8: 49237.32 | C8: 1733 | D8: -50970.32 | E8: 0 | F8: =+SUM($B8:$E8) -> 0 | G8: 0 | H8: 0 | I8: 0 | J8: 0 | K8: =+SUM($G8:$J8) -> 0 | L8: 0 | M8: 0 | N8: 0 | O8: 0 | P8: =+SUM($L8:$O8) -> 0 | Q8: 0 | R8: 0 | S8: 0 | T8: 0 | U8: =+SUM($Q8:$T8) -> 0 | V8: 0 | W8: 0 | X8: 0 | Y8: 0 | Z8: =+SUM($V8:$Y8) -> 0 | AA8: 0 | AB8: 0 | AC8: 0 | AD8: 0 | AE8: =+SUM($AA8:$AD8) -> 0 | AF8: 0 | AG8: 0 | AH8: 0 | AI8: 0 | AJ8: =+SUM($AF8:$AI8) -> 0 | AK8: =+SUM(B8:E8,G8:J8,L8:O8,Q8:T8,V8:Y8,AA8:AD8,AF8:AI8) -> 0
A9: Legal and Procedural Change and Communication Activity | B9: 0 | C9: 0 | D9: 113029.42 | E9: -11211 | F9: =+SUM($B9:$E9) -> 101818.42 | G9: 64084.2 | H9: 103735.92 | I9: 259660.22 | J9: 248193.87 | K9: =+SUM($G9:$J9) -> 675674.21 | L9: 284951.22 | M9: 188806.27 | N9: 205028.32 | O9: 7094.35 | P9: =+SUM($L9:$O9) -> 685880.16 | Q9: 75447.5 | R9: 59029.99 | S9: 18564.72 | T9: 38754.71 | U9: =+SUM($Q9:$T9) -> 191796.92 | V9: 7469.62 | W9: 75830.06 | X9: 125374.04 | Y9: -24069.36 | Z9: =+SUM($V9:$Y9) -> 184604.36 | AA9: 92512.81 | AB9: 111097.54 | AC9: 105196.31 | AD9: 244467.51 | AE9: =+SUM($AA9:$AD9) -> 553274.17 | AF9: 203340.6 | AG9: 363476.97 | AH9: 30817.91 | AI9: -0.21 | AJ9: =+SUM($AF9:$AI9) -> 597635.27 | AK9: =+SUM(B9:E9,G9:J9,L9:O9,Q9:T9,V9:Y9,AA9:AD9,AF9:AI9) -> 2990683.51
A10: Site-Specific Land Tenure Interventions Activity | B10: 0 | C10: 0 | D10: 0 | E10: 0 | F10: =+SUM($B10:$E10) -> 0 | G10: 0 | H10: 177599 | I10: 184392.79 | J10: 73032.05 | K10: =+SUM($G10:$J10) -> 435023.84 | L10: 511930.75 | M10: 1084272.37 | N10: 550734.17 | O10: 254315.93 | P10: =+SUM($L10:$O10) -> 2401253.22 | Q10: 1136074.89 | R10: 428389.53 | S10: 342961.25 | T10: 448693.82 | U10: =+SUM($Q10:$T10) -> 2356119.49 | V10: 260034.02 | W10: 666595.06 | X10: 869221.61 | Y10: 295882.49 | Z10: =+SUM($V10:$Y10) -> 2091733.18 | AA10: 948870.5 | AB10: 961842.62 | AC10: 1120699.2 | AD10: 1714141.43 | AE10: =+SUM($AA10:$AD10) -> 4745553.75 | AF10: 3121773.38 | AG10: 3725270.4 | AH10: 533695.92 | AI10: 11108.78 | AJ10: =+SUM($AF10:$AI10) -> 7391848.48 | AK10: =+SUM(B10:E10,G10:J10,L10:O10,Q10:T10,V10:Y10,AA10:AD10,AF10:AI10) -> 19421531.96
A12: M&E Related Activities | B12: 0 | C12: 5967 | D12: 3688.48 | E12: -4199 | F12: =+SUM($B12:$E12) -> 5456.48 | G12: 3352.8 | H12: 15531.41 | I12: 104451.89 | J12: 90397.25 | K12: =+SUM($G12:$J12) -> 213733.35 | L12: 45226.36 | M12: 398321.72 | N12: 84263.41 | O12: 128162.6 | P12: =+SUM($L12:$O12) -> 655974.09 | Q12: 175773.35 | R12: 363861.28 | S12: 122250.78 | T12: 338553.73 | U12: =+SUM($Q12:$T12) -> 1000439.14 | V12: 320911.19 | W12: 441222.04 | X12: 841121.04 | Y12: 29139.51 | Z12: =+SUM($V12:$Y12) -> 1632393.78 | AA12: 80711.2 | AB12: 215645.87 | AC12: 424223.46 | AD12: 242078.42 | AE12: =+SUM($AA12:$AD12) -> 962658.95 | AF12: 67133.58 | AG12: 437446.91 | AH12: 191643.91 | AI12: 0 | AJ12: =+SUM($AF12:$AI12) -> 696224.4 | AK12: =+SUM(B12:E12,G12:J12,L12:O12,Q12:T12,V12:Y12,AA12:AD12,AF12:AI12) -> 5166880.19
A13: Program Administration & Oversight | B13: 1005664.69 | C13: 1270948.92 | D13: 813247.21 | E13: 862533.24 | F13: =+SUM($B13:$E13) -> 3952394.06 | G13: 1874696.96 | H13: 1999330.96 | I13: 2004465.57 | J13: 1714987.36 | K13: =+SUM($G13:$J13) -> 7593480.85 | L13: 1236006.31 | M13: 3683384.84 | N13: 1767461.99 | O13: 1948786.51 | P13: =+SUM($L13:$O13) -> 8635639.65 | Q13: 2100679.41 | R13: 1943102.89 | S13: 1927907.89 | T13: 3455386 | U13: =+SUM($Q13:$T13) -> 9427076.19 | V13: 2259838.18 | W13: 1784123.78 | X13: 3539537.28 | Y13: 1543003.19 | Z13: =+SUM($V13:$Y13) -> 9126502.43 | AA13: 1872803.25 | AB13: 2247592.99 | AC13: 2404048.16 | AD13: 1718736.59 | AE13: =+SUM($AA13:$AD13) -> 8243180.99 | AF13: 2067683.24 | AG13: 2172460.14 | AH13: 2480361.17 | AI13: 352431.78 | AJ13: =+SUM($AF13:$AI13) -> 7072936.33 | AK13: =+SUM(B13:E13,G13:J13,L13:O13,Q13:T13,V13:Y13,AA13:AD13,AF13:AI13) -> 54051210.5
A14: RLG-Related Activities, Total Quarterly | B14: =+SUM(B$6:B$10) -> 49237.32 | C14: =+SUM(C$6:C$10) -> 1733 | D14: =+SUM(D$6:D$10) -> 62059.1 | E14: =+SUM(E$6:E$10) -> -11211 | G14: =+SUM(G$6:G$10) -> 31616.67 | H14: =+SUM(H$6:H$10) -> 344897.26 | I14: =+SUM(I$6:I$10) -> 444053.01 | J14: =+SUM(J$6:J$10) -> 621582.14 | L14: =+SUM(L$6:L$10) -> 1238933.21 | M14: =+SUM(M$6:M$10) -> 2064057.34 | N14: =+SUM(N$6:N$10) -> 1977632.28 | O14: =+SUM(O$6:O$10) -> 1059500.68 | Q14: =+SUM(Q$6:Q$10) -> 3133765.1 | R14: =+SUM(R$6:R$10) -> 1198718.08 | S14: =+SUM(S$6:S$10) -> 1268886.37 | T14: =+SUM(T$6:T$10) -> 1066404.94 | V14: =+SUM(V$6:V$10) -> 824207.35 | W14: =+SUM(W$6:W$10) -> 1820470.87 | X14: =+SUM(X$6:X$10) -> 2777710.02 | Y14: =+SUM(Y$6:Y$10) -> 1623547.45 | AA14: =+SUM(AA$6:AA$10) -> 2684623.94 | AB14: =+SUM(AB$6:AB$10) -> 3818267.43 | AC14: =+SUM(AC$6:AC$10) -> 3975943.7 | AD14: =+SUM(AD$6:AD$10) -> 5654577.48 | AF14: =+SUM(AF$6:AF$10) -> 7801917.19 | AG14: =+SUM(AG$6:AG$10) -> 9865823.96 | AH14: =+SUM(AH$6:AH$10) -> 3447221.01 | AI14: =+SUM(AI$6:AI$10) -> 11108.65 | AK14: =+SUM(AK$6:AK$10) -> 58857284.55
A15: RLG-Related Activities, Total YoY | F15: =+SUM($B$14:$E$14) -> 101818.42 | K15: =+SUM($G$14:$J$14) -> 1442149.08 | P15: =+SUM($L$14:$O$14) -> 6340123.51 | U15: =+SUM($Q$14:$T$14) -> 6667774.49 | Z15: =+SUM($V$14:$Y$14) -> 7045935.69 | AE15: =+SUM($AA$14:$AD$14) -> 16133412.55 | AJ15: =+SUM(AF14:AI14) -> 21126070.81 | AK15: =+SUM($B$15:$AJ$15) -> 58857284.55
A16: Compact Overhead and M&E, Total Quarterly | B16: =+SUM(B$12:B$13) -> 1005664.69 | C16: =+SUM(C$12:C$13) -> 1276915.92 | D16: =+SUM(D$12:D$13) -> 816935.69 | E16: =+SUM(E$12:E$13) -> 858334.24 | G16: =+SUM(G$12:G$13) -> 1878049.76 | H16: =+SUM(H$12:H$13) -> 2014862.37 | I16: =+SUM(I$12:I$13) -> 2108917.46 | J16: =+SUM(J$12:J$13) -> 1805384.61 | L16: =+SUM(L$12:L$13) -> 1281232.67 | M16: =+SUM(M$12:M$13) -> 4081706.56 | N16: =+SUM(N$12:N$13) -> 1851725.4 | O16: =+SUM(O$12:O$13) -> 2076949.11 | Q16: =+SUM(Q$12:Q$13) -> 2276452.76 | R16: =+SUM(R$12:R$13) -> 2306964.17 | S16: =+SUM(S$12:S$13) -> 2050158.67 | T16: =+SUM(T$12:T$13) -> 3793939.73 | V16: =+SUM(V$12:V$13) -> 2580749.37 | W16: =+SUM(W$12:W$13) -> 2225345.82 | X16: =+SUM(X$12:X$13) -> 4380658.32 | Y16: =+SUM(Y$12:Y$13) -> 1572142.7 | AA16: =+SUM(AA$12:AA$13) -> 1953514.45 | AB16: =+SUM(AB$12:AB$13) -> 2463238.86 | AC16: =+SUM(AC$12:AC$13) -> 2828271.62 | AD16: =+SUM(AD$12:AD$13) -> 1960815.01 | AF16: =+SUM(AF$12:AF$13) -> 2134816.82 | AG16: =+SUM(AG$12:AG$13) -> 2609907.05 | AH16: =+SUM(AH$12:AH$13) -> 2672005.08 | AI16: =+SUM(AI$12:AI$13) -> 352431.78 | AK16: =+SUM(AK$12:AK$13) -> 59218090.69
A17: Compact Overhead and M&E, Total YoY | F17: =+SUM($B$16:$E$16) -> 3957850.54 | K17: =+SUM($G$16:$J$16) -> 7807214.2 | P17: =+SUM($L$16:$O$16) -> 9291613.74 | U17: =+SUM($Q$16:$T$16) -> 10427515.33 | Z17: =+SUM($V$16:$Y$16) -> 10758896.21 | AE17: =+SUM($AA$16:$AD$16) -> 9205839.94 | AJ17: =+SUM($AF$16:$AI$16) -> 7769160.73 | AK17: =+SUM($B$17:$AJ$17) -> 59218090.69
A19: Grand Total Compact Costs*:
A20: 474765824
A22: * As reported in official press release

Sheet Sensitivity
A1: =IF('ERR & Sensitivity Analysis'!$I$9="N","Note: Current calculations are based on user input and are not the original MCC estimates.",IF('ERR & Sensitivity Analysis'!$I$13="N","Note: Current calculations are based on user input and are not the original MCC estimates.",0)) -> 0 | K1: Last updated: 10/15/2015
C2: ERR Sensitivity to changes in underlying parameters
F3: Year
F4: 1 | G4: =F4+1 -> 2 | H4: =G4+1 -> 3 | I4: 4 | J4: 5 | K4: 6 | L4: 7 | M4: 8 | N4: 9 | O4: 10 | P4: 11 | Q4: 12 | R4: 13 | S4: 14 | T4: 15 | U4: 16 | V4: 17 | W4: 18 | X4: 19 | Y4: 20
C5: Costs of Conflict
C6: High | D6: ='[13]Common Assumptions'!E27 -> 300 | E6: Increment | F6: =-(('ERR Combined Calculation'!C$58+'ERR Combined Calculation'!C$59)-('ERR Combined Calculation'!C$44+'ERR Combined Calculation'!C$45))*($D$6+'Common Assumptions'!$C$29)/('Common Assumptions'!$D$28+'Common Assumptions'!$D$29) -> 0 | G6: =-(('ERR Combined Calculation'!D$58+'ERR Combined Calculation'!D$59)-('ERR Combined Calculation'!D$44+'ERR Combined Calculation'!D$45))*($D$6+'Common Assumptions'!$C$29)/('Common Assumptions'!$D$28+'Common Assumptions'!$D$29) -> 125419.9475 | H6: =-(('ERR Combined Calculation'!E$58+'ERR Combined Calculation'!E$59)-('ERR Combined Calculation'!E$44+'ERR Combined Calculation'!E$45))*($D$6+'Common Assumptions'!$C$29)/('Common Assumptions'!$D$28+'Common Assumptions'!$D$29) -> 267977.4146 | I6: =-(('ERR Combined Calculation'!F$58+'ERR Combined Calculation'!F$59)-('ERR Combined Calculation'!F$44+'ERR Combined Calculation'!F$45))*($D$6+'Common Assumptions'!$C$29)/('Common Assumptions'!$D$28+'Common Assumptions'!$D$29) -> 286285.779 | J6: =-(('ERR Combined Calculation'!G$58+'ERR Combined Calculation'!G$59)-('ERR Combined Calculation'!G$44+'ERR Combined Calculation'!G$45))*($D$6+'Common Assumptions'!$C$29)/('Common Assumptions'!$D$28+'Common Assumptions'!$D$29) -> 470781.7268 | K6: =-(('ERR Combined Calculation'!H$58+'ERR Combined Calculation'!H$59)-('ERR Combined Calculation'!H$44+'ERR Combined Calculation'!H$45))*($D$6+'Common Assumptions'!$C$29)/('Common Assumptions'!$D$28+'Common Assumptions'!$D$29) -> 679151.1084 | L6: =-(('ERR Combined Calculation'!I$58+'ERR Combined Calculation'!I$59)-('ERR Combined Calculation'!I$44+'ERR Combined Calculation'!I$45))*($D$6+'Common Assumptions'!$C$29)/('Common Assumptions'!$D$28+'Common Assumptions'!$D$29) -> 725551.0856 | M6: =-(('ERR Combined Calculation'!J$58+'ERR Combined Calculation'!J$59)-('ERR Combined Calculation'!J$44+'ERR Combined Calculation'!J$45))*($D$6+'Common Assumptions'!$C$29)/('Common Assumptions'!$D$28+'Common Assumptions'!$D$29) -> 775121.1349 | N6: =-(('ERR Combined Calculation'!K$58+'ERR Combined Calculation'!K$59)-('ERR Combined Calculation'!K$44+'ERR Combined Calculation'!K$45))*($D$6+'Common Assumptions'!$C$29)/('Common Assumptions'!$D$28+'Common Assumptions'!$D$29) -> 828077.8371 | O6: =-(('ERR Combined Calculation'!L$58+'ERR Combined Calculation'!L$59)-('ERR Combined Calculation'!L$44+'ERR Combined Calculation'!L$45))*($D$6+'Common Assumptions'!$C$29)/('Common Assumptions'!$D$28+'Common Assumptions'!$D$29) -> 884652.5704 | P6: =-(('ERR Combined Calculation'!M$58+'ERR Combined Calculation'!M$59)-('ERR Combined Calculation'!M$44+'ERR Combined Calculation'!M$45))*($D$6+'Common Assumptions'!$C$29)/('Common Assumptions'!$D$28+'Common Assumptions'!$D$29) -> 945092.5206 | Q6: =-(('ERR Combined Calculation'!N$58+'ERR Combined Calculation'!N$59)-('ERR Combined Calculation'!N$44+'ERR Combined Calculation'!N$45))*($D$6+'Common Assumptions'!$C$29)/('Common Assumptions'!$D$28+'Common Assumptions'!$D$29) -> 1009661.761 | R6: =-(('ERR Combined Calculation'!O$58+'ERR Combined Calculation'!O$59)-('ERR Combined Calculation'!O$44+'ERR Combined Calculation'!O$45))*($D$6+'Common Assumptions'!$C$29)/('Common Assumptions'!$D$28+'Common Assumptions'!$D$29) -> 1078642.408 | S6: =-(('ERR Combined Calculation'!P$58+'ERR Combined Calculation'!P$59)-('ERR Combined Calculation'!P$44+'ERR Combined Calculation'!P$45))*($D$6+'Common Assumptions'!$C$29)/('Common Assumptions'!$D$28+'Common Assumptions'!$D$29) -> 1152335.851 | T6: =-(('ERR Combined Calculation'!Q$58+'ERR Combined Calculation'!Q$59)-('ERR Combined Calculation'!Q$44+'ERR Combined Calculation'!Q$45))*($D$6+'Common Assumptions'!$C$29)/('Common Assumptions'!$D$28+'Common Assumptions'!$D$29) -> 1231064.07 | U6: =-(('ERR Combined Calculation'!R$58+'ERR Combined Calculation'!R$59)-('ERR Combined Calculation'!R$44+'ERR Combined Calculation'!R$45))*($D$6+'Common Assumptions'!$C$29)/('Common Assumptions'!$D$28+'Common Assumptions'!$D$29) -> 1315171.044 | V6: =-(('ERR Combined Calculation'!S$58+'ERR Combined Calculation'!S$59)-('ERR Combined Calculation'!S$44+'ERR Combined Calculation'!S$45))*($D$6+'Common Assumptions'!$C$29)/('Common Assumptions'!$D$28+'Common Assumptions'!$D$29) -> 1405024.253 | W6: =-(('ERR Combined Calculation'!T$58+'ERR Combined Calculation'!T$59)-('ERR Combined Calculation'!T$44+'ERR Combined Calculation'!T$45))*($D$6+'Common Assumptions'!$C$29)/('Common Assumptions'!$D$28+'Common Assumptions'!$D$29) -> 1501016.283 | X6: =-(('ERR Combined Calculation'!U$58+'ERR Combined Calculation'!U$59)-('ERR Combined Calculation'!U$44+'ERR Combined Calculation'!U$45))*($D$6+'Common Assumptions'!$C$29)/('Common Assumptions'!$D$28+'Common Assumptions'!$D$29) -> 1603566.541 | Y6: =-(('ERR Combined Calculation'!V$58+'ERR Combined Calculation'!V$59)-('ERR Combined Calculation'!V$44+'ERR Combined Calculation'!V$45))*($D$6+'Common Assumptions'!$C$29)/('Common Assumptions'!$D$28+'Common Assumptions'!$D$29) -> 1713123.089
D7: Net Benefits | F7: ='ERR Combined Calculation'!C$11-'ERR Combined Calculation'!C$7+F$6 -> -1736548.353 | G7: ='ERR Combined Calculation'!D$11-'ERR Combined Calculation'!D$7+G$6 -> -6810610.471 | H7: ='ERR Combined Calculation'!E$11-'ERR Combined Calculation'!E$7+H$6 -> -6621241.764 | I7: ='ERR Combined Calculation'!F$11-'ERR Combined Calculation'!F$7+I$6 -> -6372820.438 | J7: ='ERR Combined Calculation'!G$11-'ERR Combined Calculation'!G$7+J$6 -> -15644824.5 | K7: ='ERR Combined Calculation'!H$11-'ERR Combined Calculation'!H$7+K$6 -> -20575882.71 | L7: ='ERR Combined Calculation'!I$11-'ERR Combined Calculation'!I$7+L$6 -> 4485131.497 | M7: ='ERR Combined Calculation'!J$11-'ERR Combined Calculation'!J$7+M$6 -> 5308527.085 | N7: ='ERR Combined Calculation'!K$11-'ERR Combined Calculation'!K$7+N$6 -> 5890248.47 | O7: ='ERR Combined Calculation'!L$11-'ERR Combined Calculation'!L$7+O$6 -> 6194376.877 | P7: ='ERR Combined Calculation'!M$11-'ERR Combined Calculation'!M$7+P$6 -> 6513176.114 | Q7: ='ERR Combined Calculation'!N$11-'ERR Combined Calculation'!N$7+Q$6 -> 6847381.915 | R7: ='ERR Combined Calculation'!O$11-'ERR Combined Calculation'!O$7+R$6 -> 7197768.643 | S7: ='ERR Combined Calculation'!P$11-'ERR Combined Calculation'!P$7+S$6 -> 7565151.423 | T7: ='ERR Combined Calculation'!Q$11-'ERR Combined Calculation'!Q$7+T$6 -> 7950388.394 | U7: ='ERR Combined Calculation'!R$11-'ERR Combined Calculation'!R$7+U$6 -> 8354383.097 | V7: ='ERR Combined Calculation'!S$11-'ERR Combined Calculation'!S$7+V$6 -> 8778086.998 | W7: ='ERR Combined Calculation'!T$11-'ERR Combined Calculation'!T$7+W$6 -> 9222502.161 | X7: ='ERR Combined Calculation'!U$11-'ERR Combined Calculation'!U$7+X$6 -> 9688684.074 | Y7: ='ERR Combined Calculation'!V$11-'ERR Combined Calculation'!V$7+Y$6 -> 10177744.64
D8: ERR | F8: =IRR(F7:Y7,10) -> 0.06462519467
C9: Low | D9: ='[13]Common Assumptions'!D27 -> 100 | E9: Increment | F9: =-(('ERR Combined Calculation'!C$58+'ERR Combined Calculation'!C$59)-('ERR Combined Calculation'!C$44+'ERR Combined Calculation'!C$45))*($D$9+'Common Assumptions'!$C$29)/('Common Assumptions'!$D$28+'Common Assumptions'!$D$29) -> 0 | G9: =-(('ERR Combined Calculation'!D$58+'ERR Combined Calculation'!D$59)-('ERR Combined Calculation'!D$44+'ERR Combined Calculation'!D$45))*($D$9+'Common Assumptions'!$C$29)/('Common Assumptions'!$D$28+'Common Assumptions'!$D$29) -> 48944.36977 | H9: =-(('ERR Combined Calculation'!E$58+'ERR Combined Calculation'!E$59)-('ERR Combined Calculation'!E$44+'ERR Combined Calculation'!E$45))*($D$9+'Common Assumptions'!$C$29)/('Common Assumptions'!$D$28+'Common Assumptions'!$D$29) -> 104576.5521 | I9: =-(('ERR Combined Calculation'!F$58+'ERR Combined Calculation'!F$59)-('ERR Combined Calculation'!F$44+'ERR Combined Calculation'!F$45))*($D$9+'Common Assumptions'!$C$29)/('Common Assumptions'!$D$28+'Common Assumptions'!$D$29) -> 111721.2796 | J9: =-(('ERR Combined Calculation'!G$58+'ERR Combined Calculation'!G$59)-('ERR Combined Calculation'!G$44+'ERR Combined Calculation'!G$45))*($D$9+'Common Assumptions'!$C$29)/('Common Assumptions'!$D$28+'Common Assumptions'!$D$29) -> 183719.6983 | K9: =-(('ERR Combined Calculation'!H$58+'ERR Combined Calculation'!H$59)-('ERR Combined Calculation'!H$44+'ERR Combined Calculation'!H$45))*($D$9+'Common Assumptions'!$C$29)/('Common Assumptions'!$D$28+'Common Assumptions'!$D$29) -> 265034.5789 | L9: =-(('ERR Combined Calculation'!I$58+'ERR Combined Calculation'!I$59)-('ERR Combined Calculation'!I$44+'ERR Combined Calculation'!I$45))*($D$9+'Common Assumptions'!$C$29)/('Common Assumptions'!$D$28+'Common Assumptions'!$D$29) -> 283141.8871 | M9: =-(('ERR Combined Calculation'!J$58+'ERR Combined Calculation'!J$59)-('ERR Combined Calculation'!J$44+'ERR Combined Calculation'!J$45))*($D$9+'Common Assumptions'!$C$29)/('Common Assumptions'!$D$28+'Common Assumptions'!$D$29) -> 302486.2965 | N9: =-(('ERR Combined Calculation'!K$58+'ERR Combined Calculation'!K$59)-('ERR Combined Calculation'!K$44+'ERR Combined Calculation'!K$45))*($D$9+'Common Assumptions'!$C$29)/('Common Assumptions'!$D$28+'Common Assumptions'!$D$29) -> 323152.3267 | O9: =-(('ERR Combined Calculation'!L$58+'ERR Combined Calculation'!L$59)-('ERR Combined Calculation'!L$44+'ERR Combined Calculation'!L$45))*($D$9+'Common Assumptions'!$C$29)/('Common Assumptions'!$D$28+'Common Assumptions'!$D$29) -> 345230.2714 | P9: =-(('ERR Combined Calculation'!M$58+'ERR Combined Calculation'!M$59)-('ERR Combined Calculation'!M$44+'ERR Combined Calculation'!M$45))*($D$9+'Common Assumptions'!$C$29)/('Common Assumptions'!$D$28+'Common Assumptions'!$D$29) -> 368816.5934 | Q9: =-(('ERR Combined Calculation'!N$58+'ERR Combined Calculation'!N$59)-('ERR Combined Calculation'!N$44+'ERR Combined Calculation'!N$45))*($D$9+'Common Assumptions'!$C$29)/('Common Assumptions'!$D$28+'Common Assumptions'!$D$29) -> 394014.3459 | R9: =-(('ERR Combined Calculation'!O$58+'ERR Combined Calculation'!O$59)-('ERR Combined Calculation'!O$44+'ERR Combined Calculation'!O$45))*($D$9+'Common Assumptions'!$C$29)/('Common Assumptions'!$D$28+'Common Assumptions'!$D$29) -> 420933.6227 | S9: =-(('ERR Combined Calculation'!P$58+'ERR Combined Calculation'!P$59)-('ERR Combined Calculation'!P$44+'ERR Combined Calculation'!P$45))*($D$9+'Common Assumptions'!$C$29)/('Common Assumptions'!$D$28+'Common Assumptions'!$D$29) -> 449692.0393 | T9: =-(('ERR Combined Calculation'!Q$58+'ERR Combined Calculation'!Q$59)-('ERR Combined Calculation'!Q$44+'ERR Combined Calculation'!Q$45))*($D$9+'Common Assumptions'!$C$29)/('Common Assumptions'!$D$28+'Common Assumptions'!$D$29) -> 480415.2468 | U9: =-(('ERR Combined Calculation'!R$58+'ERR Combined Calculation'!R$59)-('ERR Combined Calculation'!R$44+'ERR Combined Calculation'!R$45))*($D$9+'Common Assumptions'!$C$29)/('Common Assumptions'!$D$28+'Common Assumptions'!$D$29) -> 513237.4807 | V9: =-(('ERR Combined Calculation'!S$58+'ERR Combined Calculation'!S$59)-('ERR Combined Calculation'!S$44+'ERR Combined Calculation'!S$45))*($D$9+'Common Assumptions'!$C$29)/('Common Assumptions'!$D$28+'Common Assumptions'!$D$29) -> 548302.1476 | W9: =-(('ERR Combined Calculation'!T$58+'ERR Combined Calculation'!T$59)-('ERR Combined Calculation'!T$44+'ERR Combined Calculation'!T$45))*($D$9+'Common Assumptions'!$C$29)/('Common Assumptions'!$D$28+'Common Assumptions'!$D$29) -> 585762.4519 | X9: =-(('ERR Combined Calculation'!U$58+'ERR Combined Calculation'!U$59)-('ERR Combined Calculation'!U$44+'ERR Combined Calculation'!U$45))*($D$9+'Common Assumptions'!$C$29)/('Common Assumptions'!$D$28+'Common Assumptions'!$D$29) -> 625782.0648 | Y9: =-(('ERR Combined Calculation'!V$58+'ERR Combined Calculation'!V$59)-('ERR Combined Calculation'!V$44+'ERR Combined Calculation'!V$45))*($D$9+'Common Assumptions'!$C$29)/('Common Assumptions'!$D$28+'Common Assumptions'!$D$29) -> 668535.8397
D10: Net Benefits | F10: ='ERR Combined Calculation'!C$11-'ERR Combined Calculation'!C$7+F$9 -> -1736548.353 | G10: ='ERR Combined Calculation'!D$11-'ERR Combined Calculation'!D$7+G$9 -> -6887086.048 | H10: ='ERR Combined Calculation'!E$11-'ERR Combined Calculation'!E$7+H$9 -> -6784642.627 | I10: ='ERR Combined Calculation'!F$11-'ERR Combined Calculation'!F$7+I$9 -> -6547384.937 | J10: ='ERR Combined Calculation'!G$11-'ERR Combined Calculation'!G$7+J$9 -> -15931886.53 | K10: ='ERR Combined Calculation'!H$11-'ERR Combined Calculation'!H$7+K$9 -> -20989999.24 | L10: ='ERR Combined Calculation'!I$11-'ERR Combined Calculation'!I$7+L$9 -> 4042722.298 | M10: ='ERR Combined Calculation'!J$11-'ERR Combined Calculation'!J$7+M$9 -> 4835892.247 | N10: ='ERR Combined Calculation'!K$11-'ERR Combined Calculation'!K$7+N$9 -> 5385322.959 | O10: ='ERR Combined Calculation'!L$11-'ERR Combined Calculation'!L$7+O$9 -> 5654954.578 | P10: ='ERR Combined Calculation'!M$11-'ERR Combined Calculation'!M$7+P$9 -> 5936900.187 | Q10: ='ERR Combined Calculation'!N$11-'ERR Combined Calculation'!N$7+Q$9 -> 6231734.499 | R10: ='ERR Combined Calculation'!O$11-'ERR Combined Calculation'!O$7+R$9 -> 6540059.857 | S10: ='ERR Combined Calculation'!P$11-'ERR Combined Calculation'!P$7+S$9 -> 6862507.611 | T10: ='ERR Combined Calculation'!Q$11-'ERR Combined Calculation'!Q$7+T$9 -> 7199739.57 | U10: ='ERR Combined Calculation'!R$11-'ERR Combined Calculation'!R$7+U$9 -> 7552449.533 | V10: ='ERR Combined Calculation'!S$11-'ERR Combined Calculation'!S$7+V$9 -> 7921364.892 | W10: ='ERR Combined Calculation'!T$11-'ERR Combined Calculation'!T$7+W$9 -> 8307248.33 | X10: ='ERR Combined Calculation'!U$11-'ERR Combined Calculation'!U$7+X$9 -> 8710899.598 | Y10: ='ERR Combined Calculation'!V$11-'ERR Combined Calculation'!V$7+Y$9 -> 9133157.395
D11: ERR | F11: =IRR(F10:Y10,10) -> 0.05094506027
C13: Resolution Cost
C14: High | D14: ='Common Assumptions'!$F$29 -> 42 | E14: Increment | F14: =-(('ERR Combined Calculation'!C$58+'ERR Combined Calculation'!C$59)-('ERR Combined Calculation'!C$44+'ERR Combined Calculation'!C$45))*($D$14+'Common Assumptions'!$C$28)/('Common Assumptions'!$D$28+'Common Assumptions'!$D$29) -> 0 | G14: =-(('ERR Combined Calculation'!D$58+'ERR Combined Calculation'!D$59)-('ERR Combined Calculation'!D$44+'ERR Combined Calculation'!D$45))*($D$14+'Common Assumptions'!$C$28)/('Common Assumptions'!$D$28+'Common Assumptions'!$D$29) -> 92535.44909 | H14: =-(('ERR Combined Calculation'!E$58+'ERR Combined Calculation'!E$59)-('ERR Combined Calculation'!E$44+'ERR Combined Calculation'!E$45))*($D$14+'Common Assumptions'!$C$28)/('Common Assumptions'!$D$28+'Common Assumptions'!$D$29) -> 197715.0437 | I14: =-(('ERR Combined Calculation'!F$58+'ERR Combined Calculation'!F$59)-('ERR Combined Calculation'!F$44+'ERR Combined Calculation'!F$45))*($D$14+'Common Assumptions'!$C$28)/('Common Assumptions'!$D$28+'Common Assumptions'!$D$29) -> 211223.0443 | J14: =-(('ERR Combined Calculation'!G$58+'ERR Combined Calculation'!G$59)-('ERR Combined Calculation'!G$44+'ERR Combined Calculation'!G$45))*($D$14+'Common Assumptions'!$C$28)/('Common Assumptions'!$D$28+'Common Assumptions'!$D$29) -> 347345.0545 | K14: =-(('ERR Combined Calculation'!H$58+'ERR Combined Calculation'!H$59)-('ERR Combined Calculation'!H$44+'ERR Combined Calculation'!H$45))*($D$14+'Common Assumptions'!$C$28)/('Common Assumptions'!$D$28+'Common Assumptions'!$D$29) -> 501081.0007 | L14: =-(('ERR Combined Calculation'!I$58+'ERR Combined Calculation'!I$59)-('ERR Combined Calculation'!I$44+'ERR Combined Calculation'!I$45))*($D$14+'Common Assumptions'!$C$28)/('Common Assumptions'!$D$28+'Common Assumptions'!$D$29) -> 535315.1303 | M14: =-(('ERR Combined Calculation'!J$58+'ERR Combined Calculation'!J$59)-('ERR Combined Calculation'!J$44+'ERR Combined Calculation'!J$45))*($D$14+'Common Assumptions'!$C$28)/('Common Assumptions'!$D$28+'Common Assumptions'!$D$29) -> 571888.1544 | N14: =-(('ERR Combined Calculation'!K$58+'ERR Combined Calculation'!K$59)-('ERR Combined Calculation'!K$44+'ERR Combined Calculation'!K$45))*($D$14+'Common Assumptions'!$C$28)/('Common Assumptions'!$D$28+'Common Assumptions'!$D$29) -> 610959.8676 | O14: =-(('ERR Combined Calculation'!L$58+'ERR Combined Calculation'!L$59)-('ERR Combined Calculation'!L$44+'ERR Combined Calculation'!L$45))*($D$14+'Common Assumptions'!$C$28)/('Common Assumptions'!$D$28+'Common Assumptions'!$D$29) -> 652700.9818 | P14: =-(('ERR Combined Calculation'!M$58+'ERR Combined Calculation'!M$59)-('ERR Combined Calculation'!M$44+'ERR Combined Calculation'!M$45))*($D$14+'Common Assumptions'!$C$28)/('Common Assumptions'!$D$28+'Common Assumptions'!$D$29) -> 697293.8719 | Q14: =-(('ERR Combined Calculation'!N$58+'ERR Combined Calculation'!N$59)-('ERR Combined Calculation'!N$44+'ERR Combined Calculation'!N$45))*($D$14+'Common Assumptions'!$C$28)/('Common Assumptions'!$D$28+'Common Assumptions'!$D$29) -> 744933.3727 | R14: =-(('ERR Combined Calculation'!O$58+'ERR Combined Calculation'!O$59)-('ERR Combined Calculation'!O$44+'ERR Combined Calculation'!O$45))*($D$14+'Common Assumptions'!$C$28)/('Common Assumptions'!$D$28+'Common Assumptions'!$D$29) -> 795827.6305 | S14: =-(('ERR Combined Calculation'!P$58+'ERR Combined Calculation'!P$59)-('ERR Combined Calculation'!P$44+'ERR Combined Calculation'!P$45))*($D$14+'Common Assumptions'!$C$28)/('Common Assumptions'!$D$28+'Common Assumptions'!$D$29) -> 850199.0119 | T14: =-(('ERR Combined Calculation'!Q$58+'ERR Combined Calculation'!Q$59)-('ERR Combined Calculation'!Q$44+'ERR Combined Calculation'!Q$45))*($D$14+'Common Assumptions'!$C$28)/('Common Assumptions'!$D$28+'Common Assumptions'!$D$29) -> 908285.076 | U14: =-(('ERR Combined Calculation'!R$58+'ERR Combined Calculation'!R$59)-('ERR Combined Calculation'!R$44+'ERR Combined Calculation'!R$45))*($D$14+'Common Assumptions'!$C$28)/('Common Assumptions'!$D$28+'Common Assumptions'!$D$29) -> 970339.6119 | V14: =-(('ERR Combined Calculation'!S$58+'ERR Combined Calculation'!S$59)-('ERR Combined Calculation'!S$44+'ERR Combined Calculation'!S$45))*($D$14+'Common Assumptions'!$C$28)/('Common Assumptions'!$D$28+'Common Assumptions'!$D$29) -> 1036633.748 | W14: =-(('ERR Combined Calculation'!T$58+'ERR Combined Calculation'!T$59)-('ERR Combined Calculation'!T$44+'ERR Combined Calculation'!T$45))*($D$14+'Common Assumptions'!$C$28)/('Common Assumptions'!$D$28+'Common Assumptions'!$D$29) -> 1107457.136 | X14: =-(('ERR Combined Calculation'!U$58+'ERR Combined Calculation'!U$59)-('ERR Combined Calculation'!U$44+'ERR Combined Calculation'!U$45))*($D$14+'Common Assumptions'!$C$28)/('Common Assumptions'!$D$28+'Common Assumptions'!$D$29) -> 1183119.216 | Y14: =-(('ERR Combined Calculation'!V$58+'ERR Combined Calculation'!V$59)-('ERR Combined Calculation'!V$44+'ERR Combined Calculation'!V$45))*($D$14+'Common Assumptions'!$C$28)/('Common Assumptions'!$D$28+'Common Assumptions'!$D$29) -> 1263950.572
D15: Net Benefits | F15: ='ERR Combined Calculation'!C$11-'ERR Combined Calculation'!C$7+F$14 -> -1736548.353 | G15: ='ERR Combined Calculation'!D$11-'ERR Combined Calculation'!D$7+G$14 -> -6843494.969 | H15: ='ERR Combined Calculation'!E$11-'ERR Combined Calculation'!E$7+H$14 -> -6691504.135 | I15: ='ERR Combined Calculation'!F$11-'ERR Combined Calculation'!F$7+I$14 -> -6447883.172 | J15: ='ERR Combined Calculation'!G$11-'ERR Combined Calculation'!G$7+J$14 -> -15768261.17 | K15: ='ERR Combined Calculation'!H$11-'ERR Combined Calculation'!H$7+K$14 -> -20753952.82 | L15: ='ERR Combined Calculation'!I$11-'ERR Combined Calculation'!I$7+L$14 -> 4294895.541 | M15: ='ERR Combined Calculation'!J$11-'ERR Combined Calculation'!J$7+M$14 -> 5105294.105 | N15: ='ERR Combined Calculation'!K$11-'ERR Combined Calculation'!K$7+N$14 -> 5673130.5 | O15: ='ERR Combined Calculation'!L$11-'ERR Combined Calculation'!L$7+O$14 -> 5962425.288 | P15: ='ERR Combined Calculation'!M$11-'ERR Combined Calculation'!M$7+P$14 -> 6265377.465 | Q15: ='ERR Combined Calculation'!N$11-'ERR Combined Calculation'!N$7+Q$14 -> 6582653.526 | R15: ='ERR Combined Calculation'!O$11-'ERR Combined Calculation'!O$7+R$14 -> 6914953.865 | S15: ='ERR Combined Calculation'!P$11-'ERR Combined Calculation'!P$7+S$14 -> 7263014.584 | T15: ='ERR Combined Calculation'!Q$11-'ERR Combined Calculation'!Q$7+T$14 -> 7627609.4 | U15: ='ERR Combined Calculation'!R$11-'ERR Combined Calculation'!R$7+U$14 -> 8009551.664 | V15: ='ERR Combined Calculation'!S$11-'ERR Combined Calculation'!S$7+V$14 -> 8409696.493 | W15: ='ERR Combined Calculation'!T$11-'ERR Combined Calculation'!T$7+W$14 -> 8828943.014 | X15: ='ERR Combined Calculation'!U$11-'ERR Combined Calculation'!U$7+X$14 -> 9268236.749 | Y15: ='ERR Combined Calculation'!V$11-'ERR Combined Calculation'!V$7+Y$14 -> 9728572.127
D16: ERR | F16: =IRR(F15:Y15,10) -> 0.05882942831
C17: Low | D17: ='Common Assumptions'!$E$29 -> 14 | E17: Increment | F17: =-(('ERR Combined Calculation'!C$58+'ERR Combined Calculation'!C$59)-('ERR Combined Calculation'!C$44+'ERR Combined Calculation'!C$45))*($D$17+'Common Assumptions'!$C$28)/('Common Assumptions'!$D$28+'Common Assumptions'!$D$29) -> 0 | G17: =-(('ERR Combined Calculation'!D$58+'ERR Combined Calculation'!D$59)-('ERR Combined Calculation'!D$44+'ERR Combined Calculation'!D$45))*($D$17+'Common Assumptions'!$C$28)/('Common Assumptions'!$D$28+'Common Assumptions'!$D$29) -> 81828.8682 | H17: =-(('ERR Combined Calculation'!E$58+'ERR Combined Calculation'!E$59)-('ERR Combined Calculation'!E$44+'ERR Combined Calculation'!E$45))*($D$17+'Common Assumptions'!$C$28)/('Common Assumptions'!$D$28+'Common Assumptions'!$D$29) -> 174838.923 | I17: =-(('ERR Combined Calculation'!F$58+'ERR Combined Calculation'!F$59)-('ERR Combined Calculation'!F$44+'ERR Combined Calculation'!F$45))*($D$17+'Common Assumptions'!$C$28)/('Common Assumptions'!$D$28+'Common Assumptions'!$D$29) -> 186784.0143 | J17: =-(('ERR Combined Calculation'!G$58+'ERR Combined Calculation'!G$59)-('ERR Combined Calculation'!G$44+'ERR Combined Calculation'!G$45))*($D$17+'Common Assumptions'!$C$28)/('Common Assumptions'!$D$28+'Common Assumptions'!$D$29) -> 307156.3705 | K17: =-(('ERR Combined Calculation'!H$58+'ERR Combined Calculation'!H$59)-('ERR Combined Calculation'!H$44+'ERR Combined Calculation'!H$45))*($D$17+'Common Assumptions'!$C$28)/('Common Assumptions'!$D$28+'Common Assumptions'!$D$29) -> 443104.6866 | L17: =-(('ERR Combined Calculation'!I$58+'ERR Combined Calculation'!I$59)-('ERR Combined Calculation'!I$44+'ERR Combined Calculation'!I$45))*($D$17+'Common Assumptions'!$C$28)/('Common Assumptions'!$D$28+'Common Assumptions'!$D$29) -> 473377.8425 | M17: =-(('ERR Combined Calculation'!J$58+'ERR Combined Calculation'!J$59)-('ERR Combined Calculation'!J$44+'ERR Combined Calculation'!J$45))*($D$17+'Common Assumptions'!$C$28)/('Common Assumptions'!$D$28+'Common Assumptions'!$D$29) -> 505719.277 | N17: =-(('ERR Combined Calculation'!K$58+'ERR Combined Calculation'!K$59)-('ERR Combined Calculation'!K$44+'ERR Combined Calculation'!K$45))*($D$17+'Common Assumptions'!$C$28)/('Common Assumptions'!$D$28+'Common Assumptions'!$D$29) -> 540270.2962 | O17: =-(('ERR Combined Calculation'!L$58+'ERR Combined Calculation'!L$59)-('ERR Combined Calculation'!L$44+'ERR Combined Calculation'!L$45))*($D$17+'Common Assumptions'!$C$28)/('Common Assumptions'!$D$28+'Common Assumptions'!$D$29) -> 577181.86 | P17: =-(('ERR Combined Calculation'!M$58+'ERR Combined Calculation'!M$59)-('ERR Combined Calculation'!M$44+'ERR Combined Calculation'!M$45))*($D$17+'Common Assumptions'!$C$28)/('Common Assumptions'!$D$28+'Common Assumptions'!$D$29) -> 616615.2421 | Q17: =-(('ERR Combined Calculation'!N$58+'ERR Combined Calculation'!N$59)-('ERR Combined Calculation'!N$44+'ERR Combined Calculation'!N$45))*($D$17+'Common Assumptions'!$C$28)/('Common Assumptions'!$D$28+'Common Assumptions'!$D$29) -> 658742.7345 | R17: =-(('ERR Combined Calculation'!O$58+'ERR Combined Calculation'!O$59)-('ERR Combined Calculation'!O$44+'ERR Combined Calculation'!O$45))*($D$17+'Common Assumptions'!$C$28)/('Common Assumptions'!$D$28+'Common Assumptions'!$D$29) -> 703748.4005 | S17: =-(('ERR Combined Calculation'!P$58+'ERR Combined Calculation'!P$59)-('ERR Combined Calculation'!P$44+'ERR Combined Calculation'!P$45))*($D$17+'Common Assumptions'!$C$28)/('Common Assumptions'!$D$28+'Common Assumptions'!$D$29) -> 751828.8783 | T17: =-(('ERR Combined Calculation'!Q$58+'ERR Combined Calculation'!Q$59)-('ERR Combined Calculation'!Q$44+'ERR Combined Calculation'!Q$45))*($D$17+'Common Assumptions'!$C$28)/('Common Assumptions'!$D$28+'Common Assumptions'!$D$29) -> 803194.2407 | U17: =-(('ERR Combined Calculation'!R$58+'ERR Combined Calculation'!R$59)-('ERR Combined Calculation'!R$44+'ERR Combined Calculation'!R$45))*($D$17+'Common Assumptions'!$C$28)/('Common Assumptions'!$D$28+'Common Assumptions'!$D$29) -> 858068.913 | V17: =-(('ERR Combined Calculation'!S$58+'ERR Combined Calculation'!S$59)-('ERR Combined Calculation'!S$44+'ERR Combined Calculation'!S$45))*($D$17+'Common Assumptions'!$C$28)/('Common Assumptions'!$D$28+'Common Assumptions'!$D$29) -> 916692.6531 | W17: =-(('ERR Combined Calculation'!T$58+'ERR Combined Calculation'!T$59)-('ERR Combined Calculation'!T$44+'ERR Combined Calculation'!T$45))*($D$17+'Common Assumptions'!$C$28)/('Common Assumptions'!$D$28+'Common Assumptions'!$D$29) -> 979321.5993 | X17: =-(('ERR Combined Calculation'!U$58+'ERR Combined Calculation'!U$59)-('ERR Combined Calculation'!U$44+'ERR Combined Calculation'!U$45))*($D$17+'Common Assumptions'!$C$28)/('Common Assumptions'!$D$28+'Common Assumptions'!$D$29) -> 1046229.39 | Y17: =-(('ERR Combined Calculation'!V$58+'ERR Combined Calculation'!V$59)-('ERR Combined Calculation'!V$44+'ERR Combined Calculation'!V$45))*($D$17+'Common Assumptions'!$C$28)/('Common Assumptions'!$D$28+'Common Assumptions'!$D$29) -> 1117708.357
D18: Net Benefits | F18: ='ERR Combined Calculation'!C$11-'ERR Combined Calculation'!C$7+F$17 -> -1736548.353 | G18: ='ERR Combined Calculation'!D$11-'ERR Combined Calculation'!D$7+G$17 -> -6854201.55 | H18: ='ERR Combined Calculation'!E$11-'ERR Combined Calculation'!E$7+H$17 -> -6714380.256 | I18: ='ERR Combined Calculation'!F$11-'ERR Combined Calculation'!F$7+I$17 -> -6472322.202 | J18: ='ERR Combined Calculation'!G$11-'ERR Combined Calculation'!G$7+J$17 -> -15808449.86 | K18: ='ERR Combined Calculation'!H$11-'ERR Combined Calculation'!H$7+K$17 -> -20811929.13 | L18: ='ERR Combined Calculation'!I$11-'ERR Combined Calculation'!I$7+L$17 -> 4232958.254 | M18: ='ERR Combined Calculation'!J$11-'ERR Combined Calculation'!J$7+M$17 -> 5039125.227 | N18: ='ERR Combined Calculation'!K$11-'ERR Combined Calculation'!K$7+N$17 -> 5602440.929 | O18: ='ERR Combined Calculation'!L$11-'ERR Combined Calculation'!L$7+O$17 -> 5886906.167 | P18: ='ERR Combined Calculation'!M$11-'ERR Combined Calculation'!M$7+P$17 -> 6184698.836 | Q18: ='ERR Combined Calculation'!N$11-'ERR Combined Calculation'!N$7+Q$17 -> 6496462.888 | R18: ='ERR Combined Calculation'!O$11-'ERR Combined Calculation'!O$7+R$17 -> 6822874.635 | S18: ='ERR Combined Calculation'!P$11-'ERR Combined Calculation'!P$7+S$17 -> 7164644.45 | T18: ='ERR Combined Calculation'!Q$11-'ERR Combined Calculation'!Q$7+T$17 -> 7522518.564 | U18: ='ERR Combined Calculation'!R$11-'ERR Combined Calculation'!R$7+U$17 -> 7897280.966 | V18: ='ERR Combined Calculation'!S$11-'ERR Combined Calculation'!S$7+V$17 -> 8289755.398 | W18: ='ERR Combined Calculation'!T$11-'ERR Combined Calculation'!T$7+W$17 -> 8700807.477 | X18: ='ERR Combined Calculation'!U$11-'ERR Combined Calculation'!U$7+X$17 -> 9131346.923 | Y18: ='ERR Combined Calculation'!V$11-'ERR Combined Calculation'!V$7+Y$17 -> 9582329.912
D19: ERR | F19: =IRR(F18:Y18,10) -> 0.05691513526
C21: Program Cost
C22: High | D22: 0.1 | E22: Cost Overrun | F22: ='ERR Combined Calculation'!C$8*$D$22 -> 154396.75 | G22: ='ERR Combined Calculation'!D$8*$D$22 -> 634012.351 | H22: ='ERR Combined Calculation'!E$8*$D$22 -> 666777.449 | I22: ='ERR Combined Calculation'!F$8*$D$22 -> 704593.569 | J22: ='ERR Combined Calculation'!G$8*$D$22 -> 1613341.255 | K22: ='ERR Combined Calculation'!H$8*$D$22 -> 2112607.081 | L22: ='ERR Combined Calculation'!I$8*$D$22 -> 0 | M22: ='ERR Combined Calculation'!J$8*$D$22 -> 0 | N22: ='ERR Combined Calculation'!K$8*$D$22 -> 0 | O22: ='ERR Combined Calculation'!L$8*$D$22 -> 0 | P22: ='ERR Combined Calculation'!M$8*$D$22 -> 0 | Q22: ='ERR Combined Calculation'!N$8*$D$22 -> 0 | R22: ='ERR Combined Calculation'!O$8*$D$22 -> 0 | S22: ='ERR Combined Calculation'!P$8*$D$22 -> 0 | T22: ='ERR Combined Calculation'!Q$8*$D$22 -> 0 | U22: ='ERR Combined Calculation'!R$8*$D$22 -> 0 | V22: ='ERR Combined Calculation'!S$8*$D$22 -> 0 | W22: ='ERR Combined Calculation'!T$8*$D$22 -> 0 | X22: ='ERR Combined Calculation'!U$8*$D$22 -> 0 | Y22: ='ERR Combined Calculation'!V$8*$D$22 -> 0
D23: Net Benefits | F23: ='ERR Combined Calculation'!C$11+F$22 -> -1582151.603 | G23: ='ERR Combined Calculation'!D$11+G$22 -> -6214835.908 | H23: ='ERR Combined Calculation'!E$11+H$22 -> -6036164.747 | I23: ='ERR Combined Calculation'!F$11+I$22 -> -5755509.118 | J23: ='ERR Combined Calculation'!G$11+J$22 -> -14175014.26 | K23: ='ERR Combined Calculation'!H$11+K$22 -> -18670333.89 | L23: ='ERR Combined Calculation'!I$11+L$22 -> 4263926.898 | M23: ='ERR Combined Calculation'!J$11+M$22 -> 5072209.666 | N23: ='ERR Combined Calculation'!K$11+N$22 -> 5637785.715 | O23: ='ERR Combined Calculation'!L$11+O$22 -> 5924665.728 | P23: ='ERR Combined Calculation'!M$11+P$22 -> 6225038.15 | Q23: ='ERR Combined Calculation'!N$11+Q$22 -> 6539558.207 | R23: ='ERR Combined Calculation'!O$11+R$22 -> 6868914.25 | S23: ='ERR Combined Calculation'!P$11+S$22 -> 7213829.517 | T23: ='ERR Combined Calculation'!Q$11+T$22 -> 7575063.982 | U23: ='ERR Combined Calculation'!R$11+U$22 -> 7953416.315 | V23: ='ERR Combined Calculation'!S$11+V$22 -> 8349725.945 | W23: ='ERR Combined Calculation'!T$11+W$22 -> 8764875.246 | X23: ='ERR Combined Calculation'!U$11+X$22 -> 9199791.836 | Y23: ='ERR Combined Calculation'!V$11+Y$22 -> 9655451.02
D24: ERR | F24: =IRR(F23:Y23,10) -> 0.07042491073
C25: Low | D25: -0.1 | E25: Cost Overrun | F25: ='ERR Combined Calculation'!C$8*$D$25 -> -154396.75 | G25: ='[13]ERR Combined'!D$7*([13]Sensitivity!$C$27) -> 411887.7108 | H25: ='[13]ERR Combined'!E$7*([13]Sensitivity!$C$27) -> 411887.7108 | I25: ='[13]ERR Combined'!F$7*([13]Sensitivity!$C$27) -> 1954211.306 | J25: ='[13]ERR Combined'!G$7*([13]Sensitivity!$C$27) -> 1954211.306 | K25: ='[13]ERR Combined'!H$7*([13]Sensitivity!$C$27) -> 0 | L25: ='[13]ERR Combined'!I$7*([13]Sensitivity!$C$27) -> 0 | M25: ='[13]ERR Combined'!J$7*([13]Sensitivity!$C$27) -> 0 | N25: ='[13]ERR Combined'!K$7*([13]Sensitivity!$C$27) -> 0 | O25: ='[13]ERR Combined'!L$7*([13]Sensitivity!$C$27) -> 0 | P25: ='[13]ERR Combined'!M$7*([13]Sensitivity!$C$27) -> 0 | Q25: ='[13]ERR Combined'!N$7*([13]Sensitivity!$C$27) -> 0 | R25: ='[13]ERR Combined'!O$7*([13]Sensitivity!$C$27) -> 0 | S25: ='[13]ERR Combined'!P$7*([13]Sensitivity!$C$27) -> 0 | T25: ='[13]ERR Combined'!Q$7*([13]Sensitivity!$C$27) -> 0 | U25: ='[13]ERR Combined'!R$7*([13]Sensitivity!$C$27) -> 0 | V25: ='[13]ERR Combined'!S$7*([13]Sensitivity!$C$27) -> 0 | W25: ='[13]ERR Combined'!T$7*([13]Sensitivity!$C$27) -> 0 | X25: ='[13]ERR Combined'!U$7*([13]Sensitivity!$C$27) -> 0 | Y25: ='[13]ERR Combined'!V$7*([13]Sensitivity!$C$27) -> 0
D26: Net Benefits | F26: ='ERR Combined Calculation'!C$11+F$25 -> -1890945.103 | G26: ='ERR Combined Calculation'!D$11+G$25 -> -6436960.549 | H26: ='ERR Combined Calculation'!E$11+H$25 -> -6291054.485 | I26: ='ERR Combined Calculation'!F$11+I$25 -> -4505891.381 | J26: ='ERR Combined Calculation'!G$11+J$25 -> -13834144.21 | K26: ='ERR Combined Calculation'!H$11+K$25 -> -20782940.97 | L26: ='ERR Combined Calculation'!I$11+L$25 -> 4263926.898 | M26: ='ERR Combined Calculation'!J$11+M$25 -> 5072209.666 | N26: ='ERR Combined Calculation'!K$11+N$25 -> 5637785.715 | O26: ='ERR Combined Calculation'!L$11+O$25 -> 5924665.728 | P26: ='ERR Combined Calculation'!M$11+P$25 -> 6225038.15 | Q26: ='ERR Combined Calculation'!N$11+Q$25 -> 6539558.207 | R26: ='ERR Combined Calculation'!O$11+R$25 -> 6868914.25 | S26: ='ERR Combined Calculation'!P$11+S$25 -> 7213829.517 | T26: ='ERR Combined Calculation'!Q$11+T$25 -> 7575063.982 | U26: ='ERR Combined Calculation'!R$11+U$25 -> 7953416.315 | V26: ='ERR Combined Calculation'!S$11+V$25 -> 8349725.945 | W26: ='ERR Combined Calculation'!T$11+W$25 -> 8764875.246 | X26: ='ERR Combined Calculation'!U$11+X$25 -> 9199791.836 | Y26: ='ERR Combined Calculation'!V$11+Y$25 -> 9655451.02
D27: ERR | F27: =IRR(F26:Y26,10) -> 0.06766816811
AA28: 0 | AE28: 0
C29: Productivity | E29: ERR: | AA29: =FREQUENCY($E$31:$E$5030,$AC29:$AC$149) -> 13 | AB29: =IF(AA29-AA28<0,0,AA29-AA28) -> 13 | AC29: -0.05 | AE29: =FREQUENCY($E$31:$E$5031,$AG29:$AG$79) -> 13 | AF29: =100*IF($AE29-$AE28<0,0,$AE29-$AE28)/$AE$54 -> 0.26 | AG29: -0.05 | AH29: =_xlfn.NORM.DIST($AG29,$F$30,$J$30,0) -> 0.1305841746
E30: MEAN: | F30: =AVERAGE($E$31:$E$5030) -> 0.05569295597 | G30: MEDIAN: | H30: =MEDIAN($E$31:$E$5030) -> 0.05624377313 | I30: STD. ERROR: | J30: =_xlfn.STDEV.P($E$31:$E$5030) -> 0.03539682725 | AA30: =FREQUENCY($E$31:$E$5030,$AC30:$AC$149) -> 16 | AB30: =IF(AA30-AA29<0,0,AA30-AA29) -> 3 | AC30: =AC29+0.25% -> -0.0475 | AE30: =FREQUENCY($E$31:$E$5031,$AG30:$AG$79) -> 29 | AF30: =100*IF($AE30-$AE29<0,0,$AE30-$AE29)/$AE$54 -> 0.32 | AG30: =AG29+1% -> -0.04 | AH30: 0.2916850002
C31: Productivity, from Monte Carlo Simulation | D31: ='Monte Carlo Simulation'!$P9 -> 0.02132414836 | E31: =IRR($F31:$Y31,10) -> 0.03441562857 | F31: =('ERR Combined Calculation'!C$11-'ERR Combined Calculation'!C$6)+('ERR Combined Calculation'!C$60*(1+'ERR Combined Calculation'!C$54*Sensitivity!$D31))-('ERR Combined Calculation'!C$48)+('ERR Combined Calculation'!C$61*(1+'ERR Combined Calculation'!C$55*Sensitivity!$D31))-('ERR Combined Calculation'!C$49) -> -1736548.353 | G31: =('ERR Combined Calculation'!D$11-'ERR Combined Calculation'!D$6)+('ERR Combined Calculation'!D$60*(1+'ERR Combined Calculation'!D$54*Sensitivity!$D31))-('ERR Combined Calculation'!D$48)+('ERR Combined Calculation'!D$61*(1+'ERR Combined Calculation'!D$55*Sensitivity!$D31))-('ERR Combined Calculation'!D$49) -> -6882526.993 | H31: =('ERR Combined Calculation'!E$11-'ERR Combined Calculation'!E$6)+('ERR Combined Calculation'!E$60*(1+'ERR Combined Calculation'!E$54*Sensitivity!$D31))-('ERR Combined Calculation'!E$48)+('ERR Combined Calculation'!E$61*(1+'ERR Combined Calculation'!E$55*Sensitivity!$D31))-('ERR Combined Calculation'!E$49) -> -6808388.583 | I31: =('ERR Combined Calculation'!F$11-'ERR Combined Calculation'!F$6)+('ERR Combined Calculation'!F$60*(1+'ERR Combined Calculation'!F$54*Sensitivity!$D31))-('ERR Combined Calculation'!F$48)+('ERR Combined Calculation'!F$61*(1+'ERR Combined Calculation'!F$55*Sensitivity!$D31))-('ERR Combined Calculation'!F$49) -> -6716883.868 | J31: =('ERR Combined Calculation'!G$11-'ERR Combined Calculation'!G$6)+('ERR Combined Calculation'!G$60*(1+'ERR Combined Calculation'!G$54*Sensitivity!$D31))-('ERR Combined Calculation'!G$48)+('ERR Combined Calculation'!G$61*(1+'ERR Combined Calculation'!G$55*Sensitivity!$D31))-('ERR Combined Calculation'!G$49) -> -16177234.15 | K31: =('ERR Combined Calculation'!H$11-'ERR Combined Calculation'!H$6)+('ERR Combined Calculation'!H$60*(1+'ERR Combined Calculation'!H$54*Sensitivity!$D31))-('ERR Combined Calculation'!H$48)+('ERR Combined Calculation'!H$61*(1+'ERR Combined Calculation'!H$55*Sensitivity!$D31))-('ERR Combined Calculation'!H$49) -> -21321259.68 | L31: =('ERR Combined Calculation'!I$11-'ERR Combined Calculation'!I$6)+('ERR Combined Calculation'!I$60*(1+'ERR Combined Calculation'!I$54*Sensitivity!$D31))-('ERR Combined Calculation'!I$48)+('ERR Combined Calculation'!I$61*(1+'ERR Combined Calculation'!I$55*Sensitivity!$D31))-('ERR Combined Calculation'!I$49) -> 3509013.982 | M31: =('ERR Combined Calculation'!J$11-'ERR Combined Calculation'!J$6)+('ERR Combined Calculation'!J$60*(1+'ERR Combined Calculation'!J$54*Sensitivity!$D31))-('ERR Combined Calculation'!J$48)+('ERR Combined Calculation'!J$61*(1+'ERR Combined Calculation'!J$55*Sensitivity!$D31))-('ERR Combined Calculation'!J$49) -> 4183582.412 | N31: =('ERR Combined Calculation'!K$11-'ERR Combined Calculation'!K$6)+('ERR Combined Calculation'!K$60*(1+'ERR Combined Calculation'!K$54*Sensitivity!$D31))-('ERR Combined Calculation'!K$48)+('ERR Combined Calculation'!K$61*(1+'ERR Combined Calculation'!K$55*Sensitivity!$D31))-('ERR Combined Calculation'!K$49) -> 4657789.779 | O31: =('ERR Combined Calculation'!L$11-'ERR Combined Calculation'!L$6)+('ERR Combined Calculation'!L$60*(1+'ERR Combined Calculation'!L$54*Sensitivity!$D31))-('ERR Combined Calculation'!L$48)+('ERR Combined Calculation'!L$61*(1+'ERR Combined Calculation'!L$55*Sensitivity!$D31))-('ERR Combined Calculation'!L$49) -> 4901893.385 | P31: =('ERR Combined Calculation'!M$11-'ERR Combined Calculation'!M$6)+('ERR Combined Calculation'!M$60*(1+'ERR Combined Calculation'!M$54*Sensitivity!$D31))-('ERR Combined Calculation'!M$48)+('ERR Combined Calculation'!M$61*(1+'ERR Combined Calculation'!M$55*Sensitivity!$D31))-('ERR Combined Calculation'!M$49) -> 5157622.23 | Q31: =('ERR Combined Calculation'!N$11-'ERR Combined Calculation'!N$6)+('ERR Combined Calculation'!N$60*(1+'ERR Combined Calculation'!N$54*Sensitivity!$D31))-('ERR Combined Calculation'!N$48)+('ERR Combined Calculation'!N$61*(1+'ERR Combined Calculation'!N$55*Sensitivity!$D31))-('ERR Combined Calculation'!N$49) -> 5425550.035 | R31: =('ERR Combined Calculation'!O$11-'ERR Combined Calculation'!O$6)+('ERR Combined Calculation'!O$60*(1+'ERR Combined Calculation'!O$54*Sensitivity!$D31))-('ERR Combined Calculation'!O$48)+('ERR Combined Calculation'!O$61*(1+'ERR Combined Calculation'!O$55*Sensitivity!$D31))-('ERR Combined Calculation'!O$49) -> 5706280.094 | S31: =('ERR Combined Calculation'!P$11-'ERR Combined Calculation'!P$6)+('ERR Combined Calculation'!P$60*(1+'ERR Combined Calculation'!P$54*Sensitivity!$D31))-('ERR Combined Calculation'!P$48)+('ERR Combined Calculation'!P$61*(1+'ERR Combined Calculation'!P$55*Sensitivity!$D31))-('ERR Combined Calculation'!P$49) -> 6000446.874 | T31: =('ERR Combined Calculation'!Q$11-'ERR Combined Calculation'!Q$6)+('ERR Combined Calculation'!Q$60*(1+'ERR Combined Calculation'!Q$54*Sensitivity!$D31))-('ERR Combined Calculation'!Q$48)+('ERR Combined Calculation'!Q$61*(1+'ERR Combined Calculation'!Q$55*Sensitivity!$D31))-('ERR Combined Calculation'!Q$49) -> 6308717.702 | U31: =('ERR Combined Calculation'!R$11-'ERR Combined Calculation'!R$6)+('ERR Combined Calculation'!R$60*(1+'ERR Combined Calculation'!R$54*Sensitivity!$D31))-('ERR Combined Calculation'!R$48)+('ERR Combined Calculation'!R$61*(1+'ERR Combined Calculation'!R$55*Sensitivity!$D31))-('ERR Combined Calculation'!R$49) -> 6631794.558 | V31: =('ERR Combined Calculation'!S$11-'ERR Combined Calculation'!S$6)+('ERR Combined Calculation'!S$60*(1+'ERR Combined Calculation'!S$54*Sensitivity!$D31))-('ERR Combined Calculation'!S$48)+('ERR Combined Calculation'!S$61*(1+'ERR Combined Calculation'!S$55*Sensitivity!$D31))-('ERR Combined Calculation'!S$49) -> 6970415.96 | W31: =('ERR Combined Calculation'!T$11-'ERR Combined Calculation'!T$6)+('ERR Combined Calculation'!T$60*(1+'ERR Combined Calculation'!T$54*Sensitivity!$D31))-('ERR Combined Calculation'!T$48)+('ERR Combined Calculation'!T$61*(1+'ERR Combined Calculation'!T$55*Sensitivity!$D31))-('ERR Combined Calculation'!T$49) -> 7325358.965 | X31: =('ERR Combined Calculation'!U$11-'ERR Combined Calculation'!U$6)+('ERR Combined Calculation'!U$60*(1+'ERR Combined Calculation'!U$54*Sensitivity!$D31))-('ERR Combined Calculation'!U$48)+('ERR Combined Calculation'!U$61*(1+'ERR Combined Calculation'!U$55*Sensitivity!$D31))-('ERR Combined Calculation'!U$49) -> 7697441.281 | Y31: =('ERR Combined Calculation'!V$11-'ERR Combined Calculation'!V$6)+('ERR Combined Calculation'!V$60*(1+'ERR Combined Calculation'!V$54*Sensitivity!$D31))-('ERR Combined Calculation'!V$48)+('ERR Combined Calculation'!V$61*(1+'ERR Combined Calculation'!V$55*Sensitivity!$D31))-('ERR Combined Calculation'!V$49) -> 8087523.501 | AA31: =FREQUENCY($E$31:$E$5030,$AC31:$AC$149) -> 18 | AB31: 2 | AC31: =AC30+0.25% -> -0.045 | AE31: =FREQUENCY($E$31:$E$5031,$AG31:$AG$79) -> 51 | AF31: 0.44 | AG31: =AG30+1% -> -0.03 | AH31: 0.6015551966
D32: ='Monte Carlo Simulation'!$P10 -> 0.03622355945 | E32: =IRR($F32:$Y32,10) -> 0.1055811616 | F32: =('ERR Combined Calculation'!C$11-'ERR Combined Calculation'!C$6)+('ERR Combined Calculation'!C$60*(1+'ERR Combined Calculation'!C$54*Sensitivity!$D32))-('ERR Combined Calculation'!C$48)+('ERR Combined Calculation'!C$61*(1+'ERR Combined Calculation'!C$55*Sensitivity!$D32))-('ERR Combined Calculation'!C$49) -> -1736548.353 | G32: =('ERR Combined Calculation'!D$11-'ERR Combined Calculation'!D$6)+('ERR Combined Calculation'!D$60*(1+'ERR Combined Calculation'!D$54*Sensitivity!$D32))-('ERR Combined Calculation'!D$48)+('ERR Combined Calculation'!D$61*(1+'ERR Combined Calculation'!D$55*Sensitivity!$D32))-('ERR Combined Calculation'!D$49) -> -6769877.146 | H32: =('ERR Combined Calculation'!E$11-'ERR Combined Calculation'!E$6)+('ERR Combined Calculation'!E$60*(1+'ERR Combined Calculation'!E$54*Sensitivity!$D32))-('ERR Combined Calculation'!E$48)+('ERR Combined Calculation'!E$61*(1+'ERR Combined Calculation'!E$55*Sensitivity!$D32))-('ERR Combined Calculation'!E$49) -> -6455687.689 | I32: =('ERR Combined Calculation'!F$11-'ERR Combined Calculation'!F$6)+('ERR Combined Calculation'!F$60*(1+'ERR Combined Calculation'!F$54*Sensitivity!$D32))-('ERR Combined Calculation'!F$48)+('ERR Combined Calculation'!F$61*(1+'ERR Combined Calculation'!F$55*Sensitivity!$D32))-('ERR Combined Calculation'!F$49) -> -5857992.879 | J32: =('ERR Combined Calculation'!G$11-'ERR Combined Calculation'!G$6)+('ERR Combined Calculation'!G$60*(1+'ERR Combined Calculation'!G$54*Sensitivity!$D32))-('ERR Combined Calculation'!G$48)+('ERR Combined Calculation'!G$61*(1+'ERR Combined Calculation'!G$55*Sensitivity!$D32))-('ERR Combined Calculation'!G$49) -> -14876498.83 | K32: =('ERR Combined Calculation'!H$11-'ERR Combined Calculation'!H$6)+('ERR Combined Calculation'!H$60*(1+'ERR Combined Calculation'!H$54*Sensitivity!$D32))-('ERR Combined Calculation'!H$48)+('ERR Combined Calculation'!H$61*(1+'ERR Combined Calculation'!H$55*Sensitivity!$D32))-('ERR Combined Calculation'!H$49) -> -19520671.78 | L32: =('ERR Combined Calculation'!I$11-'ERR Combined Calculation'!I$6)+('ERR Combined Calculation'!I$60*(1+'ERR Combined Calculation'!I$54*Sensitivity!$D32))-('ERR Combined Calculation'!I$48)+('ERR Combined Calculation'!I$61*(1+'ERR Combined Calculation'!I$55*Sensitivity!$D32))-('ERR Combined Calculation'!I$49) -> 6034074.029 | M32: =('ERR Combined Calculation'!J$11-'ERR Combined Calculation'!J$6)+('ERR Combined Calculation'!J$60*(1+'ERR Combined Calculation'!J$54*Sensitivity!$D32))-('ERR Combined Calculation'!J$48)+('ERR Combined Calculation'!J$61*(1+'ERR Combined Calculation'!J$55*Sensitivity!$D32))-('ERR Combined Calculation'!J$49) -> 7155895.018 | N32: =('ERR Combined Calculation'!K$11-'ERR Combined Calculation'!K$6)+('ERR Combined Calculation'!K$60*(1+'ERR Combined Calculation'!K$54*Sensitivity!$D32))-('ERR Combined Calculation'!K$48)+('ERR Combined Calculation'!K$61*(1+'ERR Combined Calculation'!K$55*Sensitivity!$D32))-('ERR Combined Calculation'!K$49) -> 7935715.66 | O32: =('ERR Combined Calculation'!L$11-'ERR Combined Calculation'!L$6)+('ERR Combined Calculation'!L$60*(1+'ERR Combined Calculation'!L$54*Sensitivity!$D32))-('ERR Combined Calculation'!L$48)+('ERR Combined Calculation'!L$61*(1+'ERR Combined Calculation'!L$55*Sensitivity!$D32))-('ERR Combined Calculation'!L$49) -> 8322899.339 | P32: =('ERR Combined Calculation'!M$11-'ERR Combined Calculation'!M$6)+('ERR Combined Calculation'!M$60*(1+'ERR Combined Calculation'!M$54*Sensitivity!$D32))-('ERR Combined Calculation'!M$48)+('ERR Combined Calculation'!M$61*(1+'ERR Combined Calculation'!M$55*Sensitivity!$D32))-('ERR Combined Calculation'!M$49) -> 8727953.64 | Q32: =('ERR Combined Calculation'!N$11-'ERR Combined Calculation'!N$6)+('ERR Combined Calculation'!N$60*(1+'ERR Combined Calculation'!N$54*Sensitivity!$D32))-('ERR Combined Calculation'!N$48)+('ERR Combined Calculation'!N$61*(1+'ERR Combined Calculation'!N$55*Sensitivity!$D32))-('ERR Combined Calculation'!N$49) -> 9151724.895 | R32: =('ERR Combined Calculation'!O$11-'ERR Combined Calculation'!O$6)+('ERR Combined Calculation'!O$60*(1+'ERR Combined Calculation'!O$54*Sensitivity!$D32))-('ERR Combined Calculation'!O$48)+('ERR Combined Calculation'!O$61*(1+'ERR Combined Calculation'!O$55*Sensitivity!$D32))-('ERR Combined Calculation'!O$49) -> 9595100.904 | S32: =('ERR Combined Calculation'!P$11-'ERR Combined Calculation'!P$6)+('ERR Combined Calculation'!P$60*(1+'ERR Combined Calculation'!P$54*Sensitivity!$D32))-('ERR Combined Calculation'!P$48)+('ERR Combined Calculation'!P$61*(1+'ERR Combined Calculation'!P$55*Sensitivity!$D32))-('ERR Combined Calculation'!P$49) -> 10059013.06 | T32: =('ERR Combined Calculation'!Q$11-'ERR Combined Calculation'!Q$6)+('ERR Combined Calculation'!Q$60*(1+'ERR Combined Calculation'!Q$54*Sensitivity!$D32))-('ERR Combined Calculation'!Q$48)+('ERR Combined Calculation'!Q$61*(1+'ERR Combined Calculation'!Q$55*Sensitivity!$D32))-('ERR Combined Calculation'!Q$49) -> 10544438.58 | U32: =('ERR Combined Calculation'!R$11-'ERR Combined Calculation'!R$6)+('ERR Combined Calculation'!R$60*(1+'ERR Combined Calculation'!R$54*Sensitivity!$D32))-('ERR Combined Calculation'!R$48)+('ERR Combined Calculation'!R$61*(1+'ERR Combined Calculation'!R$55*Sensitivity!$D32))-('ERR Combined Calculation'!R$49) -> 11052402.85 | V32: =('ERR Combined Calculation'!S$11-'ERR Combined Calculation'!S$6)+('ERR Combined Calculation'!S$60*(1+'ERR Combined Calculation'!S$54*Sensitivity!$D32))-('ERR Combined Calculation'!S$48)+('ERR Combined Calculation'!S$61*(1+'ERR Combined Calculation'!S$55*Sensitivity!$D32))-('ERR Combined Calculation'!S$49) -> 11583981.93 | W32: =('ERR Combined Calculation'!T$11-'ERR Combined Calculation'!T$6)+('ERR Combined Calculation'!T$60*(1+'ERR Combined Calculation'!T$54*Sensitivity!$D32))-('ERR Combined Calculation'!T$48)+('ERR Combined Calculation'!T$61*(1+'ERR Combined Calculation'!T$55*Sensitivity!$D32))-('ERR Combined Calculation'!T$49) -> 12140305.13 | X32: =('ERR Combined Calculation'!U$11-'ERR Combined Calculation'!U$6)+('ERR Combined Calculation'!U$60*(1+'ERR Combined Calculation'!U$54*Sensitivity!$D32))-('ERR Combined Calculation'!U$48)+('ERR Combined Calculation'!U$61*(1+'ERR Combined Calculation'!U$55*Sensitivity!$D32))-('ERR Combined Calculation'!U$49) -> 12722557.8 | Y32: =('ERR Combined Calculation'!V$11-'ERR Combined Calculation'!V$6)+('ERR Combined Calculation'!V$60*(1+'ERR Combined Calculation'!V$54*Sensitivity!$D32))-('ERR Combined Calculation'!V$48)+('ERR Combined Calculation'!V$61*(1+'ERR Combined Calculation'!V$55*Sensitivity!$D32))-('ERR Combined Calculation'!V$49) -> 13331984.22 | AA32: =FREQUENCY($E$31:$E$5030,$AC32:$AC$149) -> 24 | AB32: 6 | AC32: -0.0425 | AE32: =FREQUENCY($E$31:$E$5031,$AG32:$AG$79) -> 97 | AF32: 0.92 | AG32: -0.02 | AH32: 1.145446233
D33: ='Monte Carlo Simulation'!$P11 -> 0.02988826288 | E33: 0.07763587526 | F33: =('ERR Combined Calculation'!C$11-'ERR Combined Calculation'!C$6)+('ERR Combined Calculation'!C$60*(1+'ERR Combined Calculation'!C$54*Sensitivity!$D33))-('ERR Combined Calculation'!C$48)+('ERR Combined Calculation'!C$61*(1+'ERR Combined Calculation'!C$55*Sensitivity!$D33))-('ERR Combined Calculation'!C$49) -> -1736548.353 | G33: =('ERR Combined Calculation'!D$11-'ERR Combined Calculation'!D$6)+('ERR Combined Calculation'!D$60*(1+'ERR Combined Calculation'!D$54*Sensitivity!$D33))-('ERR Combined Calculation'!D$48)+('ERR Combined Calculation'!D$61*(1+'ERR Combined Calculation'!D$55*Sensitivity!$D33))-('ERR Combined Calculation'!D$49) -> -6817776.367 | H33: =('ERR Combined Calculation'!E$11-'ERR Combined Calculation'!E$6)+('ERR Combined Calculation'!E$60*(1+'ERR Combined Calculation'!E$54*Sensitivity!$D33))-('ERR Combined Calculation'!E$48)+('ERR Combined Calculation'!E$61*(1+'ERR Combined Calculation'!E$55*Sensitivity!$D33))-('ERR Combined Calculation'!E$49) -> -6605657.695 | I33: =('ERR Combined Calculation'!F$11-'ERR Combined Calculation'!F$6)+('ERR Combined Calculation'!F$60*(1+'ERR Combined Calculation'!F$54*Sensitivity!$D33))-('ERR Combined Calculation'!F$48)+('ERR Combined Calculation'!F$61*(1+'ERR Combined Calculation'!F$55*Sensitivity!$D33))-('ERR Combined Calculation'!F$49) -> -6223197.188 | J33: =('ERR Combined Calculation'!G$11-'ERR Combined Calculation'!G$6)+('ERR Combined Calculation'!G$60*(1+'ERR Combined Calculation'!G$54*Sensitivity!$D33))-('ERR Combined Calculation'!G$48)+('ERR Combined Calculation'!G$61*(1+'ERR Combined Calculation'!G$55*Sensitivity!$D33))-('ERR Combined Calculation'!G$49) -> -15429577.33 | K33: =('ERR Combined Calculation'!H$11-'ERR Combined Calculation'!H$6)+('ERR Combined Calculation'!H$60*(1+'ERR Combined Calculation'!H$54*Sensitivity!$D33))-('ERR Combined Calculation'!H$48)+('ERR Combined Calculation'!H$61*(1+'ERR Combined Calculation'!H$55*Sensitivity!$D33))-('ERR Combined Calculation'!H$49) -> -20286289.85 | L33: =('ERR Combined Calculation'!I$11-'ERR Combined Calculation'!I$6)+('ERR Combined Calculation'!I$60*(1+'ERR Combined Calculation'!I$54*Sensitivity!$D33))-('ERR Combined Calculation'!I$48)+('ERR Combined Calculation'!I$61*(1+'ERR Combined Calculation'!I$55*Sensitivity!$D33))-('ERR Combined Calculation'!I$49) -> 4960407.147 | M33: =('ERR Combined Calculation'!J$11-'ERR Combined Calculation'!J$6)+('ERR Combined Calculation'!J$60*(1+'ERR Combined Calculation'!J$54*Sensitivity!$D33))-('ERR Combined Calculation'!J$48)+('ERR Combined Calculation'!J$61*(1+'ERR Combined Calculation'!J$55*Sensitivity!$D33))-('ERR Combined Calculation'!J$49) -> 5892054.338 | N33: =('ERR Combined Calculation'!K$11-'ERR Combined Calculation'!K$6)+('ERR Combined Calculation'!K$60*(1+'ERR Combined Calculation'!K$54*Sensitivity!$D33))-('ERR Combined Calculation'!K$48)+('ERR Combined Calculation'!K$61*(1+'ERR Combined Calculation'!K$55*Sensitivity!$D33))-('ERR Combined Calculation'!K$49) -> 6541926.841 | O33: =('ERR Combined Calculation'!L$11-'ERR Combined Calculation'!L$6)+('ERR Combined Calculation'!L$60*(1+'ERR Combined Calculation'!L$54*Sensitivity!$D33))-('ERR Combined Calculation'!L$48)+('ERR Combined Calculation'!L$61*(1+'ERR Combined Calculation'!L$55*Sensitivity!$D33))-('ERR Combined Calculation'!L$49) -> 6868272.23 | P33: =('ERR Combined Calculation'!M$11-'ERR Combined Calculation'!M$6)+('ERR Combined Calculation'!M$60*(1+'ERR Combined Calculation'!M$54*Sensitivity!$D33))-('ERR Combined Calculation'!M$48)+('ERR Combined Calculation'!M$61*(1+'ERR Combined Calculation'!M$55*Sensitivity!$D33))-('ERR Combined Calculation'!M$49) -> 7209832.676 | Q33: =('ERR Combined Calculation'!N$11-'ERR Combined Calculation'!N$6)+('ERR Combined Calculation'!N$60*(1+'ERR Combined Calculation'!N$54*Sensitivity!$D33))-('ERR Combined Calculation'!N$48)+('ERR Combined Calculation'!N$61*(1+'ERR Combined Calculation'!N$55*Sensitivity!$D33))-('ERR Combined Calculation'!N$49) -> 7567338.595 | R33: =('ERR Combined Calculation'!O$11-'ERR Combined Calculation'!O$6)+('ERR Combined Calculation'!O$60*(1+'ERR Combined Calculation'!O$54*Sensitivity!$D33))-('ERR Combined Calculation'!O$48)+('ERR Combined Calculation'!O$61*(1+'ERR Combined Calculation'!O$55*Sensitivity!$D33))-('ERR Combined Calculation'!O$49) -> 7941556.816 | S33: =('ERR Combined Calculation'!P$11-'ERR Combined Calculation'!P$6)+('ERR Combined Calculation'!P$60*(1+'ERR Combined Calculation'!P$54*Sensitivity!$D33))-('ERR Combined Calculation'!P$48)+('ERR Combined Calculation'!P$61*(1+'ERR Combined Calculation'!P$55*Sensitivity!$D33))-('ERR Combined Calculation'!P$49) -> 8333292.475 | T33: =('ERR Combined Calculation'!Q$11-'ERR Combined Calculation'!Q$6)+('ERR Combined Calculation'!Q$60*(1+'ERR Combined Calculation'!Q$54*Sensitivity!$D33))-('ERR Combined Calculation'!Q$48)+('ERR Combined Calculation'!Q$61*(1+'ERR Combined Calculation'!Q$55*Sensitivity!$D33))-('ERR Combined Calculation'!Q$49) -> 8743391.023 | U33: =('ERR Combined Calculation'!R$11-'ERR Combined Calculation'!R$6)+('ERR Combined Calculation'!R$60*(1+'ERR Combined Calculation'!R$54*Sensitivity!$D33))-('ERR Combined Calculation'!R$48)+('ERR Combined Calculation'!R$61*(1+'ERR Combined Calculation'!R$55*Sensitivity!$D33))-('ERR Combined Calculation'!R$49) -> 9172740.335 | V33: =('ERR Combined Calculation'!S$11-'ERR Combined Calculation'!S$6)+('ERR Combined Calculation'!S$60*(1+'ERR Combined Calculation'!S$54*Sensitivity!$D33))-('ERR Combined Calculation'!S$48)+('ERR Combined Calculation'!S$61*(1+'ERR Combined Calculation'!S$55*Sensitivity!$D33))-('ERR Combined Calculation'!S$49) -> 9622272.941 | W33: =('ERR Combined Calculation'!T$11-'ERR Combined Calculation'!T$6)+('ERR Combined Calculation'!T$60*(1+'ERR Combined Calculation'!T$54*Sensitivity!$D33))-('ERR Combined Calculation'!T$48)+('ERR Combined Calculation'!T$61*(1+'ERR Combined Calculation'!T$55*Sensitivity!$D33))-('ERR Combined Calculation'!T$49) -> 10092968.38 | X33: =('ERR Combined Calculation'!U$11-'ERR Combined Calculation'!U$6)+('ERR Combined Calculation'!U$60*(1+'ERR Combined Calculation'!U$54*Sensitivity!$D33))-('ERR Combined Calculation'!U$48)+('ERR Combined Calculation'!U$61*(1+'ERR Combined Calculation'!U$55*Sensitivity!$D33))-('ERR Combined Calculation'!U$49) -> 10585855.67 | Y33: =('ERR Combined Calculation'!V$11-'ERR Combined Calculation'!V$6)+('ERR Combined Calculation'!V$60*(1+'ERR Combined Calculation'!V$54*Sensitivity!$D33))-('ERR Combined Calculation'!V$48)+('ERR Combined Calculation'!V$61*(1+'ERR Combined Calculation'!V$55*Sensitivity!$D33))-('ERR Combined Calculation'!V$49) -> 11102015.95 | AA33: =FREQUENCY($E$31:$E$5030,$AC33:$AC$149) -> 29 | AB33: 5 | AC33: -0.04 | AE33: =FREQUENCY($E$31:$E$5031,$AG33:$AG$79) -> 175 | AF33: 1.56 | AG33: -0.01 | AH33: 2.013778836
D34: ='Monte Carlo Simulation'!$P12 -> 0.02938950342 | E34: 0.07531635374 | F34: =('ERR Combined Calculation'!C$11-'ERR Combined Calculation'!C$6)+('ERR Combined Calculation'!C$60*(1+'ERR Combined Calculation'!C$54*Sensitivity!$D34))-('ERR Combined Calculation'!C$48)+('ERR Combined Calculation'!C$61*(1+'ERR Combined Calculation'!C$55*Sensitivity!$D34))-('ERR Combined Calculation'!C$49) -> -1736548.353 | G34: =('ERR Combined Calculation'!D$11-'ERR Combined Calculation'!D$6)+('ERR Combined Calculation'!D$60*(1+'ERR Combined Calculation'!D$54*Sensitivity!$D34))-('ERR Combined Calculation'!D$48)+('ERR Combined Calculation'!D$61*(1+'ERR Combined Calculation'!D$55*Sensitivity!$D34))-('ERR Combined Calculation'!D$49) -> -6821547.334 | H34: =('ERR Combined Calculation'!E$11-'ERR Combined Calculation'!E$6)+('ERR Combined Calculation'!E$60*(1+'ERR Combined Calculation'!E$54*Sensitivity!$D34))-('ERR Combined Calculation'!E$48)+('ERR Combined Calculation'!E$61*(1+'ERR Combined Calculation'!E$55*Sensitivity!$D34))-('ERR Combined Calculation'!E$49) -> -6617464.397 | I34: =('ERR Combined Calculation'!F$11-'ERR Combined Calculation'!F$6)+('ERR Combined Calculation'!F$60*(1+'ERR Combined Calculation'!F$54*Sensitivity!$D34))-('ERR Combined Calculation'!F$48)+('ERR Combined Calculation'!F$61*(1+'ERR Combined Calculation'!F$55*Sensitivity!$D34))-('ERR Combined Calculation'!F$49) -> -6251948.661 | J34: =('ERR Combined Calculation'!G$11-'ERR Combined Calculation'!G$6)+('ERR Combined Calculation'!G$60*(1+'ERR Combined Calculation'!G$54*Sensitivity!$D34))-('ERR Combined Calculation'!G$48)+('ERR Combined Calculation'!G$61*(1+'ERR Combined Calculation'!G$55*Sensitivity!$D34))-('ERR Combined Calculation'!G$49) -> -15473119.59 | K34: =('ERR Combined Calculation'!H$11-'ERR Combined Calculation'!H$6)+('ERR Combined Calculation'!H$60*(1+'ERR Combined Calculation'!H$54*Sensitivity!$D34))-('ERR Combined Calculation'!H$48)+('ERR Combined Calculation'!H$61*(1+'ERR Combined Calculation'!H$55*Sensitivity!$D34))-('ERR Combined Calculation'!H$49) -> -20346564.73 | L34: =('ERR Combined Calculation'!I$11-'ERR Combined Calculation'!I$6)+('ERR Combined Calculation'!I$60*(1+'ERR Combined Calculation'!I$54*Sensitivity!$D34))-('ERR Combined Calculation'!I$48)+('ERR Combined Calculation'!I$61*(1+'ERR Combined Calculation'!I$55*Sensitivity!$D34))-('ERR Combined Calculation'!I$49) -> 4875880.477 | M34: =('ERR Combined Calculation'!J$11-'ERR Combined Calculation'!J$6)+('ERR Combined Calculation'!J$60*(1+'ERR Combined Calculation'!J$54*Sensitivity!$D34))-('ERR Combined Calculation'!J$48)+('ERR Combined Calculation'!J$61*(1+'ERR Combined Calculation'!J$55*Sensitivity!$D34))-('ERR Combined Calculation'!J$49) -> 5792555.838 | N34: =('ERR Combined Calculation'!K$11-'ERR Combined Calculation'!K$6)+('ERR Combined Calculation'!K$60*(1+'ERR Combined Calculation'!K$54*Sensitivity!$D34))-('ERR Combined Calculation'!K$48)+('ERR Combined Calculation'!K$61*(1+'ERR Combined Calculation'!K$55*Sensitivity!$D34))-('ERR Combined Calculation'!K$49) -> 6432197.902 | O34: =('ERR Combined Calculation'!L$11-'ERR Combined Calculation'!L$6)+('ERR Combined Calculation'!L$60*(1+'ERR Combined Calculation'!L$54*Sensitivity!$D34))-('ERR Combined Calculation'!L$48)+('ERR Combined Calculation'!L$61*(1+'ERR Combined Calculation'!L$55*Sensitivity!$D34))-('ERR Combined Calculation'!L$49) -> 6753753.67 | P34: =('ERR Combined Calculation'!M$11-'ERR Combined Calculation'!M$6)+('ERR Combined Calculation'!M$60*(1+'ERR Combined Calculation'!M$54*Sensitivity!$D34))-('ERR Combined Calculation'!M$48)+('ERR Combined Calculation'!M$61*(1+'ERR Combined Calculation'!M$55*Sensitivity!$D34))-('ERR Combined Calculation'!M$49) -> 7090315.43 | Q34: =('ERR Combined Calculation'!N$11-'ERR Combined Calculation'!N$6)+('ERR Combined Calculation'!N$60*(1+'ERR Combined Calculation'!N$54*Sensitivity!$D34))-('ERR Combined Calculation'!N$48)+('ERR Combined Calculation'!N$61*(1+'ERR Combined Calculation'!N$55*Sensitivity!$D34))-('ERR Combined Calculation'!N$49) -> 7442604.472 | R34: =('ERR Combined Calculation'!O$11-'ERR Combined Calculation'!O$6)+('ERR Combined Calculation'!O$60*(1+'ERR Combined Calculation'!O$54*Sensitivity!$D34))-('ERR Combined Calculation'!O$48)+('ERR Combined Calculation'!O$61*(1+'ERR Combined Calculation'!O$55*Sensitivity!$D34))-('ERR Combined Calculation'!O$49) -> 7811378.101 | S34: =('ERR Combined Calculation'!P$11-'ERR Combined Calculation'!P$6)+('ERR Combined Calculation'!P$60*(1+'ERR Combined Calculation'!P$54*Sensitivity!$D34))-('ERR Combined Calculation'!P$48)+('ERR Combined Calculation'!P$61*(1+'ERR Combined Calculation'!P$55*Sensitivity!$D34))-('ERR Combined Calculation'!P$49) -> 8197431.514 | T34: =('ERR Combined Calculation'!Q$11-'ERR Combined Calculation'!Q$6)+('ERR Combined Calculation'!Q$60*(1+'ERR Combined Calculation'!Q$54*Sensitivity!$D34))-('ERR Combined Calculation'!Q$48)+('ERR Combined Calculation'!Q$61*(1+'ERR Combined Calculation'!Q$55*Sensitivity!$D34))-('ERR Combined Calculation'!Q$49) -> 8601599.789 | U34: =('ERR Combined Calculation'!R$11-'ERR Combined Calculation'!R$6)+('ERR Combined Calculation'!R$60*(1+'ERR Combined Calculation'!R$54*Sensitivity!$D34))-('ERR Combined Calculation'!R$48)+('ERR Combined Calculation'!R$61*(1+'ERR Combined Calculation'!R$55*Sensitivity!$D34))-('ERR Combined Calculation'!R$49) -> 9024759.974 | V34: =('ERR Combined Calculation'!S$11-'ERR Combined Calculation'!S$6)+('ERR Combined Calculation'!S$60*(1+'ERR Combined Calculation'!S$54*Sensitivity!$D34))-('ERR Combined Calculation'!S$48)+('ERR Combined Calculation'!S$61*(1+'ERR Combined Calculation'!S$55*Sensitivity!$D34))-('ERR Combined Calculation'!S$49) -> 9467833.3 | W34: =('ERR Combined Calculation'!T$11-'ERR Combined Calculation'!T$6)+('ERR Combined Calculation'!T$60*(1+'ERR Combined Calculation'!T$54*Sensitivity!$D34))-('ERR Combined Calculation'!T$48)+('ERR Combined Calculation'!T$61*(1+'ERR Combined Calculation'!T$55*Sensitivity!$D34))-('ERR Combined Calculation'!T$49) -> 9931787.511 | X34: =('ERR Combined Calculation'!U$11-'ERR Combined Calculation'!U$6)+('ERR Combined Calculation'!U$60*(1+'ERR Combined Calculation'!U$54*Sensitivity!$D34))-('ERR Combined Calculation'!U$48)+('ERR Combined Calculation'!U$61*(1+'ERR Combined Calculation'!U$55*Sensitivity!$D34))-('ERR Combined Calculation'!U$49) -> 10417639.33 | Y34: =('ERR Combined Calculation'!V$11-'ERR Combined Calculation'!V$6)+('ERR Combined Calculation'!V$60*(1+'ERR Combined Calculation'!V$54*Sensitivity!$D34))-('ERR Combined Calculation'!V$48)+('ERR Combined Calculation'!V$61*(1+'ERR Combined Calculation'!V$55*Sensitivity!$D34))-('ERR Combined Calculation'!V$49) -> 10926457.04 | AA34: =FREQUENCY($E$31:$E$5030,$AC34:$AC$149) -> 34 | AB34: 5 | AC34: -0.0375 | AE34: =FREQUENCY($E$31:$E$5031,$AG34:$AG$79) -> 302 | AF34: 2.54 | AG34: 0 | AH34: 3.268787399
D35: ='Monte Carlo Simulation'!$P13 -> 0.02472036752 | E35: 0.05251821827 | F35: =('ERR Combined Calculation'!C$11-'ERR Combined Calculation'!C$6)+('ERR Combined Calculation'!C$60*(1+'ERR Combined Calculation'!C$54*Sensitivity!$D35))-('ERR Combined Calculation'!C$48)+('ERR Combined Calculation'!C$61*(1+'ERR Combined Calculation'!C$55*Sensitivity!$D35))-('ERR Combined Calculation'!C$49) -> -1736548.353 | G35: =('ERR Combined Calculation'!D$11-'ERR Combined Calculation'!D$6)+('ERR Combined Calculation'!D$60*(1+'ERR Combined Calculation'!D$54*Sensitivity!$D35))-('ERR Combined Calculation'!D$48)+('ERR Combined Calculation'!D$61*(1+'ERR Combined Calculation'!D$55*Sensitivity!$D35))-('ERR Combined Calculation'!D$49) -> -6856849.228 | H35: =('ERR Combined Calculation'!E$11-'ERR Combined Calculation'!E$6)+('ERR Combined Calculation'!E$60*(1+'ERR Combined Calculation'!E$54*Sensitivity!$D35))-('ERR Combined Calculation'!E$48)+('ERR Combined Calculation'!E$61*(1+'ERR Combined Calculation'!E$55*Sensitivity!$D35))-('ERR Combined Calculation'!E$49) -> -6727992.82 | I35: =('ERR Combined Calculation'!F$11-'ERR Combined Calculation'!F$6)+('ERR Combined Calculation'!F$60*(1+'ERR Combined Calculation'!F$54*Sensitivity!$D35))-('ERR Combined Calculation'!F$48)+('ERR Combined Calculation'!F$61*(1+'ERR Combined Calculation'!F$55*Sensitivity!$D35))-('ERR Combined Calculation'!F$49) -> -6521105.524 | J35: =('ERR Combined Calculation'!G$11-'ERR Combined Calculation'!G$6)+('ERR Combined Calculation'!G$60*(1+'ERR Combined Calculation'!G$54*Sensitivity!$D35))-('ERR Combined Calculation'!G$48)+('ERR Combined Calculation'!G$61*(1+'ERR Combined Calculation'!G$55*Sensitivity!$D35))-('ERR Combined Calculation'!G$49) -> -15880740.4 | K35: =('ERR Combined Calculation'!H$11-'ERR Combined Calculation'!H$6)+('ERR Combined Calculation'!H$60*(1+'ERR Combined Calculation'!H$54*Sensitivity!$D35))-('ERR Combined Calculation'!H$48)+('ERR Combined Calculation'!H$61*(1+'ERR Combined Calculation'!H$55*Sensitivity!$D35))-('ERR Combined Calculation'!H$49) -> -20910827.95 | L35: =('ERR Combined Calculation'!I$11-'ERR Combined Calculation'!I$6)+('ERR Combined Calculation'!I$60*(1+'ERR Combined Calculation'!I$54*Sensitivity!$D35))-('ERR Combined Calculation'!I$48)+('ERR Combined Calculation'!I$61*(1+'ERR Combined Calculation'!I$55*Sensitivity!$D35))-('ERR Combined Calculation'!I$49) -> 4084584.201 | M35: =('ERR Combined Calculation'!J$11-'ERR Combined Calculation'!J$6)+('ERR Combined Calculation'!J$60*(1+'ERR Combined Calculation'!J$54*Sensitivity!$D35))-('ERR Combined Calculation'!J$48)+('ERR Combined Calculation'!J$61*(1+'ERR Combined Calculation'!J$55*Sensitivity!$D35))-('ERR Combined Calculation'!J$49) -> 4861100.802 | N35: =('ERR Combined Calculation'!K$11-'ERR Combined Calculation'!K$6)+('ERR Combined Calculation'!K$60*(1+'ERR Combined Calculation'!K$54*Sensitivity!$D35))-('ERR Combined Calculation'!K$48)+('ERR Combined Calculation'!K$61*(1+'ERR Combined Calculation'!K$55*Sensitivity!$D35))-('ERR Combined Calculation'!K$49) -> 5404970.63 | O35: =('ERR Combined Calculation'!L$11-'ERR Combined Calculation'!L$6)+('ERR Combined Calculation'!L$60*(1+'ERR Combined Calculation'!L$54*Sensitivity!$D35))-('ERR Combined Calculation'!L$48)+('ERR Combined Calculation'!L$61*(1+'ERR Combined Calculation'!L$55*Sensitivity!$D35))-('ERR Combined Calculation'!L$49) -> 5681688.364 | P35: =('ERR Combined Calculation'!M$11-'ERR Combined Calculation'!M$6)+('ERR Combined Calculation'!M$60*(1+'ERR Combined Calculation'!M$54*Sensitivity!$D35))-('ERR Combined Calculation'!M$48)+('ERR Combined Calculation'!M$61*(1+'ERR Combined Calculation'!M$55*Sensitivity!$D35))-('ERR Combined Calculation'!M$49) -> 5971454.928 | Q35: =('ERR Combined Calculation'!N$11-'ERR Combined Calculation'!N$6)+('ERR Combined Calculation'!N$60*(1+'ERR Combined Calculation'!N$54*Sensitivity!$D35))-('ERR Combined Calculation'!N$48)+('ERR Combined Calculation'!N$61*(1+'ERR Combined Calculation'!N$55*Sensitivity!$D35))-('ERR Combined Calculation'!N$49) -> 6274906.184 | R35: =('ERR Combined Calculation'!O$11-'ERR Combined Calculation'!O$6)+('ERR Combined Calculation'!O$60*(1+'ERR Combined Calculation'!O$54*Sensitivity!$D35))-('ERR Combined Calculation'!O$48)+('ERR Combined Calculation'!O$61*(1+'ERR Combined Calculation'!O$55*Sensitivity!$D35))-('ERR Combined Calculation'!O$49) -> 6592710.279 | S35: =('ERR Combined Calculation'!P$11-'ERR Combined Calculation'!P$6)+('ERR Combined Calculation'!P$60*(1+'ERR Combined Calculation'!P$54*Sensitivity!$D35))-('ERR Combined Calculation'!P$48)+('ERR Combined Calculation'!P$61*(1+'ERR Combined Calculation'!P$55*Sensitivity!$D35))-('ERR Combined Calculation'!P$49) -> 6925569.36 | T35: =('ERR Combined Calculation'!Q$11-'ERR Combined Calculation'!Q$6)+('ERR Combined Calculation'!Q$60*(1+'ERR Combined Calculation'!Q$54*Sensitivity!$D35))-('ERR Combined Calculation'!Q$48)+('ERR Combined Calculation'!Q$61*(1+'ERR Combined Calculation'!Q$55*Sensitivity!$D35))-('ERR Combined Calculation'!Q$49) -> 7274221.392 | U35: =('ERR Combined Calculation'!R$11-'ERR Combined Calculation'!R$6)+('ERR Combined Calculation'!R$60*(1+'ERR Combined Calculation'!R$54*Sensitivity!$D35))-('ERR Combined Calculation'!R$48)+('ERR Combined Calculation'!R$61*(1+'ERR Combined Calculation'!R$55*Sensitivity!$D35))-('ERR Combined Calculation'!R$49) -> 7639442.073 | V35: =('ERR Combined Calculation'!S$11-'ERR Combined Calculation'!S$6)+('ERR Combined Calculation'!S$60*(1+'ERR Combined Calculation'!S$54*Sensitivity!$D35))-('ERR Combined Calculation'!S$48)+('ERR Combined Calculation'!S$61*(1+'ERR Combined Calculation'!S$55*Sensitivity!$D35))-('ERR Combined Calculation'!S$49) -> 8022046.861 | W35: =('ERR Combined Calculation'!T$11-'ERR Combined Calculation'!T$6)+('ERR Combined Calculation'!T$60*(1+'ERR Combined Calculation'!T$54*Sensitivity!$D35))-('ERR Combined Calculation'!T$48)+('ERR Combined Calculation'!T$61*(1+'ERR Combined Calculation'!T$55*Sensitivity!$D35))-('ERR Combined Calculation'!T$49) -> 8422893.109 | X35: =('ERR Combined Calculation'!U$11-'ERR Combined Calculation'!U$6)+('ERR Combined Calculation'!U$60*(1+'ERR Combined Calculation'!U$54*Sensitivity!$D35))-('ERR Combined Calculation'!U$48)+('ERR Combined Calculation'!U$61*(1+'ERR Combined Calculation'!U$55*Sensitivity!$D35))-('ERR Combined Calculation'!U$49) -> 8842882.324 | Y35: =('ERR Combined Calculation'!V$11-'ERR Combined Calculation'!V$6)+('ERR Combined Calculation'!V$60*(1+'ERR Combined Calculation'!V$54*Sensitivity!$D35))-('ERR Combined Calculation'!V$48)+('ERR Combined Calculation'!V$61*(1+'ERR Combined Calculation'!V$55*Sensitivity!$D35))-('ERR Combined Calculation'!V$49) -> 9282962.559 | AA35: =FREQUENCY($E$31:$E$5030,$AC35:$AC$149) -> 39 | AB35: 5 | AC35: -0.035 | AE35: =FREQUENCY($E$31:$E$5031,$AG35:$AG$79) -> 487 | AF35: 3.7 | AG35: 0.01 | AH35: 4.8989095
D36: ='Monte Carlo Simulation'!$P14 -> 0.0261165794 | E36: 0.05955941132 | F36: =('ERR Combined Calculation'!C$11-'ERR Combined Calculation'!C$6)+('ERR Combined Calculation'!C$60*(1+'ERR Combined Calculation'!C$54*Sensitivity!$D36))-('ERR Combined Calculation'!C$48)+('ERR Combined Calculation'!C$61*(1+'ERR Combined Calculation'!C$55*Sensitivity!$D36))-('ERR Combined Calculation'!C$49) -> -1736548.353 | G36: =('ERR Combined Calculation'!D$11-'ERR Combined Calculation'!D$6)+('ERR Combined Calculation'!D$60*(1+'ERR Combined Calculation'!D$54*Sensitivity!$D36))-('ERR Combined Calculation'!D$48)+('ERR Combined Calculation'!D$61*(1+'ERR Combined Calculation'!D$55*Sensitivity!$D36))-('ERR Combined Calculation'!D$49) -> -6846292.902 | H36: =('ERR Combined Calculation'!E$11-'ERR Combined Calculation'!E$6)+('ERR Combined Calculation'!E$60*(1+'ERR Combined Calculation'!E$54*Sensitivity!$D36))-('ERR Combined Calculation'!E$48)+('ERR Combined Calculation'!E$61*(1+'ERR Combined Calculation'!E$55*Sensitivity!$D36))-('ERR Combined Calculation'!E$49) -> -6694941.501 | I36: =('ERR Combined Calculation'!F$11-'ERR Combined Calculation'!F$6)+('ERR Combined Calculation'!F$60*(1+'ERR Combined Calculation'!F$54*Sensitivity!$D36))-('ERR Combined Calculation'!F$48)+('ERR Combined Calculation'!F$61*(1+'ERR Combined Calculation'!F$55*Sensitivity!$D36))-('ERR Combined Calculation'!F$49) -> -6440619.538 | J36: =('ERR Combined Calculation'!G$11-'ERR Combined Calculation'!G$6)+('ERR Combined Calculation'!G$60*(1+'ERR Combined Calculation'!G$54*Sensitivity!$D36))-('ERR Combined Calculation'!G$48)+('ERR Combined Calculation'!G$61*(1+'ERR Combined Calculation'!G$55*Sensitivity!$D36))-('ERR Combined Calculation'!G$49) -> -15758849.54 | K36: =('ERR Combined Calculation'!H$11-'ERR Combined Calculation'!H$6)+('ERR Combined Calculation'!H$60*(1+'ERR Combined Calculation'!H$54*Sensitivity!$D36))-('ERR Combined Calculation'!H$48)+('ERR Combined Calculation'!H$61*(1+'ERR Combined Calculation'!H$55*Sensitivity!$D36))-('ERR Combined Calculation'!H$49) -> -20742096.3 | L36: =('ERR Combined Calculation'!I$11-'ERR Combined Calculation'!I$6)+('ERR Combined Calculation'!I$60*(1+'ERR Combined Calculation'!I$54*Sensitivity!$D36))-('ERR Combined Calculation'!I$48)+('ERR Combined Calculation'!I$61*(1+'ERR Combined Calculation'!I$55*Sensitivity!$D36))-('ERR Combined Calculation'!I$49) -> 4321205.555 | M36: =('ERR Combined Calculation'!J$11-'ERR Combined Calculation'!J$6)+('ERR Combined Calculation'!J$60*(1+'ERR Combined Calculation'!J$54*Sensitivity!$D36))-('ERR Combined Calculation'!J$48)+('ERR Combined Calculation'!J$61*(1+'ERR Combined Calculation'!J$55*Sensitivity!$D36))-('ERR Combined Calculation'!J$49) -> 5139633.835 | N36: =('ERR Combined Calculation'!K$11-'ERR Combined Calculation'!K$6)+('ERR Combined Calculation'!K$60*(1+'ERR Combined Calculation'!K$54*Sensitivity!$D36))-('ERR Combined Calculation'!K$48)+('ERR Combined Calculation'!K$61*(1+'ERR Combined Calculation'!K$55*Sensitivity!$D36))-('ERR Combined Calculation'!K$49) -> 5712142.439 | O36: =('ERR Combined Calculation'!L$11-'ERR Combined Calculation'!L$6)+('ERR Combined Calculation'!L$60*(1+'ERR Combined Calculation'!L$54*Sensitivity!$D36))-('ERR Combined Calculation'!L$48)+('ERR Combined Calculation'!L$61*(1+'ERR Combined Calculation'!L$55*Sensitivity!$D36))-('ERR Combined Calculation'!L$49) -> 6002268.092 | P36: =('ERR Combined Calculation'!M$11-'ERR Combined Calculation'!M$6)+('ERR Combined Calculation'!M$60*(1+'ERR Combined Calculation'!M$54*Sensitivity!$D36))-('ERR Combined Calculation'!M$48)+('ERR Combined Calculation'!M$61*(1+'ERR Combined Calculation'!M$55*Sensitivity!$D36))-('ERR Combined Calculation'!M$49) -> 6306027.825 | Q36: =('ERR Combined Calculation'!N$11-'ERR Combined Calculation'!N$6)+('ERR Combined Calculation'!N$60*(1+'ERR Combined Calculation'!N$54*Sensitivity!$D36))-('ERR Combined Calculation'!N$48)+('ERR Combined Calculation'!N$61*(1+'ERR Combined Calculation'!N$55*Sensitivity!$D36))-('ERR Combined Calculation'!N$49) -> 6624083.046 | R36: =('ERR Combined Calculation'!O$11-'ERR Combined Calculation'!O$6)+('ERR Combined Calculation'!O$60*(1+'ERR Combined Calculation'!O$54*Sensitivity!$D36))-('ERR Combined Calculation'!O$48)+('ERR Combined Calculation'!O$61*(1+'ERR Combined Calculation'!O$55*Sensitivity!$D36))-('ERR Combined Calculation'!O$49) -> 6957128.563 | S36: =('ERR Combined Calculation'!P$11-'ERR Combined Calculation'!P$6)+('ERR Combined Calculation'!P$60*(1+'ERR Combined Calculation'!P$54*Sensitivity!$D36))-('ERR Combined Calculation'!P$48)+('ERR Combined Calculation'!P$61*(1+'ERR Combined Calculation'!P$55*Sensitivity!$D36))-('ERR Combined Calculation'!P$49) -> 7305894.347 | T36: =('ERR Combined Calculation'!Q$11-'ERR Combined Calculation'!Q$6)+('ERR Combined Calculation'!Q$60*(1+'ERR Combined Calculation'!Q$54*Sensitivity!$D36))-('ERR Combined Calculation'!Q$48)+('ERR Combined Calculation'!Q$61*(1+'ERR Combined Calculation'!Q$55*Sensitivity!$D36))-('ERR Combined Calculation'!Q$49) -> 7671147.403 | U36: =('ERR Combined Calculation'!R$11-'ERR Combined Calculation'!R$6)+('ERR Combined Calculation'!R$60*(1+'ERR Combined Calculation'!R$54*Sensitivity!$D36))-('ERR Combined Calculation'!R$48)+('ERR Combined Calculation'!R$61*(1+'ERR Combined Calculation'!R$55*Sensitivity!$D36))-('ERR Combined Calculation'!R$49) -> 8053693.736 | V36: =('ERR Combined Calculation'!S$11-'ERR Combined Calculation'!S$6)+('ERR Combined Calculation'!S$60*(1+'ERR Combined Calculation'!S$54*Sensitivity!$D36))-('ERR Combined Calculation'!S$48)+('ERR Combined Calculation'!S$61*(1+'ERR Combined Calculation'!S$55*Sensitivity!$D36))-('ERR Combined Calculation'!S$49) -> 8454380.433 | W36: =('ERR Combined Calculation'!T$11-'ERR Combined Calculation'!T$6)+('ERR Combined Calculation'!T$60*(1+'ERR Combined Calculation'!T$54*Sensitivity!$D36))-('ERR Combined Calculation'!T$48)+('ERR Combined Calculation'!T$61*(1+'ERR Combined Calculation'!T$55*Sensitivity!$D36))-('ERR Combined Calculation'!T$49) -> 8874097.857 | X36: =('ERR Combined Calculation'!U$11-'ERR Combined Calculation'!U$6)+('ERR Combined Calculation'!U$60*(1+'ERR Combined Calculation'!U$54*Sensitivity!$D36))-('ERR Combined Calculation'!U$48)+('ERR Combined Calculation'!U$61*(1+'ERR Combined Calculation'!U$55*Sensitivity!$D36))-('ERR Combined Calculation'!U$49) -> 9313781.969 | Y36: =('ERR Combined Calculation'!V$11-'ERR Combined Calculation'!V$6)+('ERR Combined Calculation'!V$60*(1+'ERR Combined Calculation'!V$54*Sensitivity!$D36))-('ERR Combined Calculation'!V$48)+('ERR Combined Calculation'!V$61*(1+'ERR Combined Calculation'!V$55*Sensitivity!$D36))-('ERR Combined Calculation'!V$49) -> 9774416.773 | AA36: =FREQUENCY($E$31:$E$5030,$AC36:$AC$149) -> 48 | AB36: 9 | AC36: -0.0325 | AE36: =FREQUENCY($E$31:$E$5031,$AG36:$AG$79) -> 747 | AF36: 5.2 | AG36: 0.02 | AH36: 6.778755922
D37: ='Monte Carlo Simulation'!$P15 -> 0.02635488849 | E37: 0.06074074761 | F37: =('ERR Combined Calculation'!C$11-'ERR Combined Calculation'!C$6)+('ERR Combined Calculation'!C$60*(1+'ERR Combined Calculation'!C$54*Sensitivity!$D37))-('ERR Combined Calculation'!C$48)+('ERR Combined Calculation'!C$61*(1+'ERR Combined Calculation'!C$55*Sensitivity!$D37))-('ERR Combined Calculation'!C$49) -> -1736548.353 | G37: =('ERR Combined Calculation'!D$11-'ERR Combined Calculation'!D$6)+('ERR Combined Calculation'!D$60*(1+'ERR Combined Calculation'!D$54*Sensitivity!$D37))-('ERR Combined Calculation'!D$48)+('ERR Combined Calculation'!D$61*(1+'ERR Combined Calculation'!D$55*Sensitivity!$D37))-('ERR Combined Calculation'!D$49) -> -6844491.12 | H37: =('ERR Combined Calculation'!E$11-'ERR Combined Calculation'!E$6)+('ERR Combined Calculation'!E$60*(1+'ERR Combined Calculation'!E$54*Sensitivity!$D37))-('ERR Combined Calculation'!E$48)+('ERR Combined Calculation'!E$61*(1+'ERR Combined Calculation'!E$55*Sensitivity!$D37))-('ERR Combined Calculation'!E$49) -> -6689300.216 | I37: =('ERR Combined Calculation'!F$11-'ERR Combined Calculation'!F$6)+('ERR Combined Calculation'!F$60*(1+'ERR Combined Calculation'!F$54*Sensitivity!$D37))-('ERR Combined Calculation'!F$48)+('ERR Combined Calculation'!F$61*(1+'ERR Combined Calculation'!F$55*Sensitivity!$D37))-('ERR Combined Calculation'!F$49) -> -6426881.979 | J37: =('ERR Combined Calculation'!G$11-'ERR Combined Calculation'!G$6)+('ERR Combined Calculation'!G$60*(1+'ERR Combined Calculation'!G$54*Sensitivity!$D37))-('ERR Combined Calculation'!G$48)+('ERR Combined Calculation'!G$61*(1+'ERR Combined Calculation'!G$55*Sensitivity!$D37))-('ERR Combined Calculation'!G$49) -> -15738044.88 | K37: =('ERR Combined Calculation'!H$11-'ERR Combined Calculation'!H$6)+('ERR Combined Calculation'!H$60*(1+'ERR Combined Calculation'!H$54*Sensitivity!$D37))-('ERR Combined Calculation'!H$48)+('ERR Combined Calculation'!H$61*(1+'ERR Combined Calculation'!H$55*Sensitivity!$D37))-('ERR Combined Calculation'!H$49) -> -20713296.74 | L37: =('ERR Combined Calculation'!I$11-'ERR Combined Calculation'!I$6)+('ERR Combined Calculation'!I$60*(1+'ERR Combined Calculation'!I$54*Sensitivity!$D37))-('ERR Combined Calculation'!I$48)+('ERR Combined Calculation'!I$61*(1+'ERR Combined Calculation'!I$55*Sensitivity!$D37))-('ERR Combined Calculation'!I$49) -> 4361592.706 | M37: =('ERR Combined Calculation'!J$11-'ERR Combined Calculation'!J$6)+('ERR Combined Calculation'!J$60*(1+'ERR Combined Calculation'!J$54*Sensitivity!$D37))-('ERR Combined Calculation'!J$48)+('ERR Combined Calculation'!J$61*(1+'ERR Combined Calculation'!J$55*Sensitivity!$D37))-('ERR Combined Calculation'!J$49) -> 5187174.581 | N37: =('ERR Combined Calculation'!K$11-'ERR Combined Calculation'!K$6)+('ERR Combined Calculation'!K$60*(1+'ERR Combined Calculation'!K$54*Sensitivity!$D37))-('ERR Combined Calculation'!K$48)+('ERR Combined Calculation'!K$61*(1+'ERR Combined Calculation'!K$55*Sensitivity!$D37))-('ERR Combined Calculation'!K$49) -> 5764571.326 | O37: =('ERR Combined Calculation'!L$11-'ERR Combined Calculation'!L$6)+('ERR Combined Calculation'!L$60*(1+'ERR Combined Calculation'!L$54*Sensitivity!$D37))-('ERR Combined Calculation'!L$48)+('ERR Combined Calculation'!L$61*(1+'ERR Combined Calculation'!L$55*Sensitivity!$D37))-('ERR Combined Calculation'!L$49) -> 6056985.477 | P37: =('ERR Combined Calculation'!M$11-'ERR Combined Calculation'!M$6)+('ERR Combined Calculation'!M$60*(1+'ERR Combined Calculation'!M$54*Sensitivity!$D37))-('ERR Combined Calculation'!M$48)+('ERR Combined Calculation'!M$61*(1+'ERR Combined Calculation'!M$55*Sensitivity!$D37))-('ERR Combined Calculation'!M$49) -> 6363133.601 | Q37: =('ERR Combined Calculation'!N$11-'ERR Combined Calculation'!N$6)+('ERR Combined Calculation'!N$60*(1+'ERR Combined Calculation'!N$54*Sensitivity!$D37))-('ERR Combined Calculation'!N$48)+('ERR Combined Calculation'!N$61*(1+'ERR Combined Calculation'!N$55*Sensitivity!$D37))-('ERR Combined Calculation'!N$49) -> 6683681.465 | R37: =('ERR Combined Calculation'!O$11-'ERR Combined Calculation'!O$6)+('ERR Combined Calculation'!O$60*(1+'ERR Combined Calculation'!O$54*Sensitivity!$D37))-('ERR Combined Calculation'!O$48)+('ERR Combined Calculation'!O$61*(1+'ERR Combined Calculation'!O$55*Sensitivity!$D37))-('ERR Combined Calculation'!O$49) -> 7019328.427 | S37: =('ERR Combined Calculation'!P$11-'ERR Combined Calculation'!P$6)+('ERR Combined Calculation'!P$60*(1+'ERR Combined Calculation'!P$54*Sensitivity!$D37))-('ERR Combined Calculation'!P$48)+('ERR Combined Calculation'!P$61*(1+'ERR Combined Calculation'!P$55*Sensitivity!$D37))-('ERR Combined Calculation'!P$49) -> 7370809.209 | T37: =('ERR Combined Calculation'!Q$11-'ERR Combined Calculation'!Q$6)+('ERR Combined Calculation'!Q$60*(1+'ERR Combined Calculation'!Q$54*Sensitivity!$D37))-('ERR Combined Calculation'!Q$48)+('ERR Combined Calculation'!Q$61*(1+'ERR Combined Calculation'!Q$55*Sensitivity!$D37))-('ERR Combined Calculation'!Q$49) -> 7738895.771 | U37: =('ERR Combined Calculation'!R$11-'ERR Combined Calculation'!R$6)+('ERR Combined Calculation'!R$60*(1+'ERR Combined Calculation'!R$54*Sensitivity!$D37))-('ERR Combined Calculation'!R$48)+('ERR Combined Calculation'!R$61*(1+'ERR Combined Calculation'!R$55*Sensitivity!$D37))-('ERR Combined Calculation'!R$49) -> 8124399.292 | V37: =('ERR Combined Calculation'!S$11-'ERR Combined Calculation'!S$6)+('ERR Combined Calculation'!S$60*(1+'ERR Combined Calculation'!S$54*Sensitivity!$D37))-('ERR Combined Calculation'!S$48)+('ERR Combined Calculation'!S$61*(1+'ERR Combined Calculation'!S$55*Sensitivity!$D37))-('ERR Combined Calculation'!S$49) -> 8528172.257 | W37: =('ERR Combined Calculation'!T$11-'ERR Combined Calculation'!T$6)+('ERR Combined Calculation'!T$60*(1+'ERR Combined Calculation'!T$54*Sensitivity!$D37))-('ERR Combined Calculation'!T$48)+('ERR Combined Calculation'!T$61*(1+'ERR Combined Calculation'!T$55*Sensitivity!$D37))-('ERR Combined Calculation'!T$49) -> 8951110.663 | X37: =('ERR Combined Calculation'!U$11-'ERR Combined Calculation'!U$6)+('ERR Combined Calculation'!U$60*(1+'ERR Combined Calculation'!U$54*Sensitivity!$D37))-('ERR Combined Calculation'!U$48)+('ERR Combined Calculation'!U$61*(1+'ERR Combined Calculation'!U$55*Sensitivity!$D37))-('ERR Combined Calculation'!U$49) -> 9394156.35 | Y37: =('ERR Combined Calculation'!V$11-'ERR Combined Calculation'!V$6)+('ERR Combined Calculation'!V$60*(1+'ERR Combined Calculation'!V$54*Sensitivity!$D37))-('ERR Combined Calculation'!V$48)+('ERR Combined Calculation'!V$61*(1+'ERR Combined Calculation'!V$55*Sensitivity!$D37))-('ERR Combined Calculation'!V$49) -> 9858299.462 | AA37: =FREQUENCY($E$31:$E$5030,$AC37:$AC$149) -> 51 | AB37: 3 | AC37: -0.03 | AE37: =FREQUENCY($E$31:$E$5031,$AG37:$AG$79) -> 1123 | AF37: 7.52 | AG37: 0.03 | AH37: 8.660409262
D38: ='Monte Carlo Simulation'!$P16 -> 0.02627358718 | E38: 0.06033836971 | F38: =('ERR Combined Calculation'!C$11-'ERR Combined Calculation'!C$6)+('ERR Combined Calculation'!C$60*(1+'ERR Combined Calculation'!C$54*Sensitivity!$D38))-('ERR Combined Calculation'!C$48)+('ERR Combined Calculation'!C$61*(1+'ERR Combined Calculation'!C$55*Sensitivity!$D38))-('ERR Combined Calculation'!C$49) -> -1736548.353 | G38: =('ERR Combined Calculation'!D$11-'ERR Combined Calculation'!D$6)+('ERR Combined Calculation'!D$60*(1+'ERR Combined Calculation'!D$54*Sensitivity!$D38))-('ERR Combined Calculation'!D$48)+('ERR Combined Calculation'!D$61*(1+'ERR Combined Calculation'!D$55*Sensitivity!$D38))-('ERR Combined Calculation'!D$49) -> -6845105.814 | H38: =('ERR Combined Calculation'!E$11-'ERR Combined Calculation'!E$6)+('ERR Combined Calculation'!E$60*(1+'ERR Combined Calculation'!E$54*Sensitivity!$D38))-('ERR Combined Calculation'!E$48)+('ERR Combined Calculation'!E$61*(1+'ERR Combined Calculation'!E$55*Sensitivity!$D38))-('ERR Combined Calculation'!E$49) -> -6691224.792 | I38: =('ERR Combined Calculation'!F$11-'ERR Combined Calculation'!F$6)+('ERR Combined Calculation'!F$60*(1+'ERR Combined Calculation'!F$54*Sensitivity!$D38))-('ERR Combined Calculation'!F$48)+('ERR Combined Calculation'!F$61*(1+'ERR Combined Calculation'!F$55*Sensitivity!$D38))-('ERR Combined Calculation'!F$49) -> -6431568.672 | J38: =('ERR Combined Calculation'!G$11-'ERR Combined Calculation'!G$6)+('ERR Combined Calculation'!G$60*(1+'ERR Combined Calculation'!G$54*Sensitivity!$D38))-('ERR Combined Calculation'!G$48)+('ERR Combined Calculation'!G$61*(1+'ERR Combined Calculation'!G$55*Sensitivity!$D38))-('ERR Combined Calculation'!G$49) -> -15745142.58 | K38: =('ERR Combined Calculation'!H$11-'ERR Combined Calculation'!H$6)+('ERR Combined Calculation'!H$60*(1+'ERR Combined Calculation'!H$54*Sensitivity!$D38))-('ERR Combined Calculation'!H$48)+('ERR Combined Calculation'!H$61*(1+'ERR Combined Calculation'!H$55*Sensitivity!$D38))-('ERR Combined Calculation'!H$49) -> -20723121.97 | L38: =('ERR Combined Calculation'!I$11-'ERR Combined Calculation'!I$6)+('ERR Combined Calculation'!I$60*(1+'ERR Combined Calculation'!I$54*Sensitivity!$D38))-('ERR Combined Calculation'!I$48)+('ERR Combined Calculation'!I$61*(1+'ERR Combined Calculation'!I$55*Sensitivity!$D38))-('ERR Combined Calculation'!I$49) -> 4347814.263 | M38: =('ERR Combined Calculation'!J$11-'ERR Combined Calculation'!J$6)+('ERR Combined Calculation'!J$60*(1+'ERR Combined Calculation'!J$54*Sensitivity!$D38))-('ERR Combined Calculation'!J$48)+('ERR Combined Calculation'!J$61*(1+'ERR Combined Calculation'!J$55*Sensitivity!$D38))-('ERR Combined Calculation'!J$49) -> 5170955.624 | N38: =('ERR Combined Calculation'!K$11-'ERR Combined Calculation'!K$6)+('ERR Combined Calculation'!K$60*(1+'ERR Combined Calculation'!K$54*Sensitivity!$D38))-('ERR Combined Calculation'!K$48)+('ERR Combined Calculation'!K$61*(1+'ERR Combined Calculation'!K$55*Sensitivity!$D38))-('ERR Combined Calculation'!K$49) -> 5746684.735 | O38: =('ERR Combined Calculation'!L$11-'ERR Combined Calculation'!L$6)+('ERR Combined Calculation'!L$60*(1+'ERR Combined Calculation'!L$54*Sensitivity!$D38))-('ERR Combined Calculation'!L$48)+('ERR Combined Calculation'!L$61*(1+'ERR Combined Calculation'!L$55*Sensitivity!$D38))-('ERR Combined Calculation'!L$49) -> 6038318.144 | P38: =('ERR Combined Calculation'!M$11-'ERR Combined Calculation'!M$6)+('ERR Combined Calculation'!M$60*(1+'ERR Combined Calculation'!M$54*Sensitivity!$D38))-('ERR Combined Calculation'!M$48)+('ERR Combined Calculation'!M$61*(1+'ERR Combined Calculation'!M$55*Sensitivity!$D38))-('ERR Combined Calculation'!M$49) -> 6343651.447 | Q38: =('ERR Combined Calculation'!N$11-'ERR Combined Calculation'!N$6)+('ERR Combined Calculation'!N$60*(1+'ERR Combined Calculation'!N$54*Sensitivity!$D38))-('ERR Combined Calculation'!N$48)+('ERR Combined Calculation'!N$61*(1+'ERR Combined Calculation'!N$55*Sensitivity!$D38))-('ERR Combined Calculation'!N$49) -> 6663348.923 | R38: =('ERR Combined Calculation'!O$11-'ERR Combined Calculation'!O$6)+('ERR Combined Calculation'!O$60*(1+'ERR Combined Calculation'!O$54*Sensitivity!$D38))-('ERR Combined Calculation'!O$48)+('ERR Combined Calculation'!O$61*(1+'ERR Combined Calculation'!O$55*Sensitivity!$D38))-('ERR Combined Calculation'!O$49) -> 6998108.379 | S38: =('ERR Combined Calculation'!P$11-'ERR Combined Calculation'!P$6)+('ERR Combined Calculation'!P$60*(1+'ERR Combined Calculation'!P$54*Sensitivity!$D38))-('ERR Combined Calculation'!P$48)+('ERR Combined Calculation'!P$61*(1+'ERR Combined Calculation'!P$55*Sensitivity!$D38))-('ERR Combined Calculation'!P$49) -> 7348662.914 | T38: =('ERR Combined Calculation'!Q$11-'ERR Combined Calculation'!Q$6)+('ERR Combined Calculation'!Q$60*(1+'ERR Combined Calculation'!Q$54*Sensitivity!$D38))-('ERR Combined Calculation'!Q$48)+('ERR Combined Calculation'!Q$61*(1+'ERR Combined Calculation'!Q$55*Sensitivity!$D38))-('ERR Combined Calculation'!Q$49) -> 7715782.8 | U38: =('ERR Combined Calculation'!R$11-'ERR Combined Calculation'!R$6)+('ERR Combined Calculation'!R$60*(1+'ERR Combined Calculation'!R$54*Sensitivity!$D38))-('ERR Combined Calculation'!R$48)+('ERR Combined Calculation'!R$61*(1+'ERR Combined Calculation'!R$55*Sensitivity!$D38))-('ERR Combined Calculation'!R$49) -> 8100277.45 | V38: =('ERR Combined Calculation'!S$11-'ERR Combined Calculation'!S$6)+('ERR Combined Calculation'!S$60*(1+'ERR Combined Calculation'!S$54*Sensitivity!$D38))-('ERR Combined Calculation'!S$48)+('ERR Combined Calculation'!S$61*(1+'ERR Combined Calculation'!S$55*Sensitivity!$D38))-('ERR Combined Calculation'!S$49) -> 8502997.506 | W38: =('ERR Combined Calculation'!T$11-'ERR Combined Calculation'!T$6)+('ERR Combined Calculation'!T$60*(1+'ERR Combined Calculation'!T$54*Sensitivity!$D38))-('ERR Combined Calculation'!T$48)+('ERR Combined Calculation'!T$61*(1+'ERR Combined Calculation'!T$55*Sensitivity!$D38))-('ERR Combined Calculation'!T$49) -> 8924837.045 | X38: =('ERR Combined Calculation'!U$11-'ERR Combined Calculation'!U$6)+('ERR Combined Calculation'!U$60*(1+'ERR Combined Calculation'!U$54*Sensitivity!$D38))-('ERR Combined Calculation'!U$48)+('ERR Combined Calculation'!U$61*(1+'ERR Combined Calculation'!U$55*Sensitivity!$D38))-('ERR Combined Calculation'!U$49) -> 9366735.9 | Y38: =('ERR Combined Calculation'!V$11-'ERR Combined Calculation'!V$6)+('ERR Combined Calculation'!V$60*(1+'ERR Combined Calculation'!V$54*Sensitivity!$D38))-('ERR Combined Calculation'!V$48)+('ERR Combined Calculation'!V$61*(1+'ERR Combined Calculation'!V$55*Sensitivity!$D38))-('ERR Combined Calculation'!V$49) -> 9829682.121 | AA38: =FREQUENCY($E$31:$E$5030,$AC38:$AC$149) -> 62 | AB38: 11 | AC38: -0.0275 | AE38: =FREQUENCY($E$31:$E$5031,$AG38:$AG$79) -> 1582 | AF38: 9.18 | AG38: 0.04 | AH38: 10.21561868
D39: ='Monte Carlo Simulation'!$P17 -> 0.03323268721 | E39: 0.09271186351 | F39: =('ERR Combined Calculation'!C$11-'ERR Combined Calculation'!C$6)+('ERR Combined Calculation'!C$60*(1+'ERR Combined Calculation'!C$54*Sensitivity!$D39))-('ERR Combined Calculation'!C$48)+('ERR Combined Calculation'!C$61*(1+'ERR Combined Calculation'!C$55*Sensitivity!$D39))-('ERR Combined Calculation'!C$49) -> -1736548.353 | G39: =('ERR Combined Calculation'!D$11-'ERR Combined Calculation'!D$6)+('ERR Combined Calculation'!D$60*(1+'ERR Combined Calculation'!D$54*Sensitivity!$D39))-('ERR Combined Calculation'!D$48)+('ERR Combined Calculation'!D$61*(1+'ERR Combined Calculation'!D$55*Sensitivity!$D39))-('ERR Combined Calculation'!D$49) -> -6792490.208 | H39: =('ERR Combined Calculation'!E$11-'ERR Combined Calculation'!E$6)+('ERR Combined Calculation'!E$60*(1+'ERR Combined Calculation'!E$54*Sensitivity!$D39))-('ERR Combined Calculation'!E$48)+('ERR Combined Calculation'!E$61*(1+'ERR Combined Calculation'!E$55*Sensitivity!$D39))-('ERR Combined Calculation'!E$49) -> -6526488.025 | I39: =('ERR Combined Calculation'!F$11-'ERR Combined Calculation'!F$6)+('ERR Combined Calculation'!F$60*(1+'ERR Combined Calculation'!F$54*Sensitivity!$D39))-('ERR Combined Calculation'!F$48)+('ERR Combined Calculation'!F$61*(1+'ERR Combined Calculation'!F$55*Sensitivity!$D39))-('ERR Combined Calculation'!F$49) -> -6030404.607 | J39: =('ERR Combined Calculation'!G$11-'ERR Combined Calculation'!G$6)+('ERR Combined Calculation'!G$60*(1+'ERR Combined Calculation'!G$54*Sensitivity!$D39))-('ERR Combined Calculation'!G$48)+('ERR Combined Calculation'!G$61*(1+'ERR Combined Calculation'!G$55*Sensitivity!$D39))-('ERR Combined Calculation'!G$49) -> -15137605.33 | K39: =('ERR Combined Calculation'!H$11-'ERR Combined Calculation'!H$6)+('ERR Combined Calculation'!H$60*(1+'ERR Combined Calculation'!H$54*Sensitivity!$D39))-('ERR Combined Calculation'!H$48)+('ERR Combined Calculation'!H$61*(1+'ERR Combined Calculation'!H$55*Sensitivity!$D39))-('ERR Combined Calculation'!H$49) -> -19882117.5 | L39: =('ERR Combined Calculation'!I$11-'ERR Combined Calculation'!I$6)+('ERR Combined Calculation'!I$60*(1+'ERR Combined Calculation'!I$54*Sensitivity!$D39))-('ERR Combined Calculation'!I$48)+('ERR Combined Calculation'!I$61*(1+'ERR Combined Calculation'!I$55*Sensitivity!$D39))-('ERR Combined Calculation'!I$49) -> 5527199.498 | M39: =('ERR Combined Calculation'!J$11-'ERR Combined Calculation'!J$6)+('ERR Combined Calculation'!J$60*(1+'ERR Combined Calculation'!J$54*Sensitivity!$D39))-('ERR Combined Calculation'!J$48)+('ERR Combined Calculation'!J$61*(1+'ERR Combined Calculation'!J$55*Sensitivity!$D39))-('ERR Combined Calculation'!J$49) -> 6559240.075 | N39: =('ERR Combined Calculation'!K$11-'ERR Combined Calculation'!K$6)+('ERR Combined Calculation'!K$60*(1+'ERR Combined Calculation'!K$54*Sensitivity!$D39))-('ERR Combined Calculation'!K$48)+('ERR Combined Calculation'!K$61*(1+'ERR Combined Calculation'!K$55*Sensitivity!$D39))-('ERR Combined Calculation'!K$49) -> 7277712.637 | O39: =('ERR Combined Calculation'!L$11-'ERR Combined Calculation'!L$6)+('ERR Combined Calculation'!L$60*(1+'ERR Combined Calculation'!L$54*Sensitivity!$D39))-('ERR Combined Calculation'!L$48)+('ERR Combined Calculation'!L$61*(1+'ERR Combined Calculation'!L$55*Sensitivity!$D39))-('ERR Combined Calculation'!L$49) -> 7636174.764 | P39: =('ERR Combined Calculation'!M$11-'ERR Combined Calculation'!M$6)+('ERR Combined Calculation'!M$60*(1+'ERR Combined Calculation'!M$54*Sensitivity!$D39))-('ERR Combined Calculation'!M$48)+('ERR Combined Calculation'!M$61*(1+'ERR Combined Calculation'!M$55*Sensitivity!$D39))-('ERR Combined Calculation'!M$49) -> 8011253.829 | Q39: =('ERR Combined Calculation'!N$11-'ERR Combined Calculation'!N$6)+('ERR Combined Calculation'!N$60*(1+'ERR Combined Calculation'!N$54*Sensitivity!$D39))-('ERR Combined Calculation'!N$48)+('ERR Combined Calculation'!N$61*(1+'ERR Combined Calculation'!N$55*Sensitivity!$D39))-('ERR Combined Calculation'!N$49) -> 8403741.441 | R39: =('ERR Combined Calculation'!O$11-'ERR Combined Calculation'!O$6)+('ERR Combined Calculation'!O$60*(1+'ERR Combined Calculation'!O$54*Sensitivity!$D39))-('ERR Combined Calculation'!O$48)+('ERR Combined Calculation'!O$61*(1+'ERR Combined Calculation'!O$55*Sensitivity!$D39))-('ERR Combined Calculation'!O$49) -> 8814468.291 | S39: =('ERR Combined Calculation'!P$11-'ERR Combined Calculation'!P$6)+('ERR Combined Calculation'!P$60*(1+'ERR Combined Calculation'!P$54*Sensitivity!$D39))-('ERR Combined Calculation'!P$48)+('ERR Combined Calculation'!P$61*(1+'ERR Combined Calculation'!P$55*Sensitivity!$D39))-('ERR Combined Calculation'!P$49) -> 9244306.165 | T39: =('ERR Combined Calculation'!Q$11-'ERR Combined Calculation'!Q$6)+('ERR Combined Calculation'!Q$60*(1+'ERR Combined Calculation'!Q$54*Sensitivity!$D39))-('ERR Combined Calculation'!Q$48)+('ERR Combined Calculation'!Q$61*(1+'ERR Combined Calculation'!Q$55*Sensitivity!$D39))-('ERR Combined Calculation'!Q$49) -> 9694170.074 | U39: =('ERR Combined Calculation'!R$11-'ERR Combined Calculation'!R$6)+('ERR Combined Calculation'!R$60*(1+'ERR Combined Calculation'!R$54*Sensitivity!$D39))-('ERR Combined Calculation'!R$48)+('ERR Combined Calculation'!R$61*(1+'ERR Combined Calculation'!R$55*Sensitivity!$D39))-('ERR Combined Calculation'!R$49) -> 10165020.49 | V39: =('ERR Combined Calculation'!S$11-'ERR Combined Calculation'!S$6)+('ERR Combined Calculation'!S$60*(1+'ERR Combined Calculation'!S$54*Sensitivity!$D39))-('ERR Combined Calculation'!S$48)+('ERR Combined Calculation'!S$61*(1+'ERR Combined Calculation'!S$55*Sensitivity!$D39))-('ERR Combined Calculation'!S$49) -> 10657865.7 | W39: =('ERR Combined Calculation'!T$11-'ERR Combined Calculation'!T$6)+('ERR Combined Calculation'!T$60*(1+'ERR Combined Calculation'!T$54*Sensitivity!$D39))-('ERR Combined Calculation'!T$48)+('ERR Combined Calculation'!T$61*(1+'ERR Combined Calculation'!T$55*Sensitivity!$D39))-('ERR Combined Calculation'!T$49) -> 11173764.32 | X39: =('ERR Combined Calculation'!U$11-'ERR Combined Calculation'!U$6)+('ERR Combined Calculation'!U$60*(1+'ERR Combined Calculation'!U$54*Sensitivity!$D39))-('ERR Combined Calculation'!U$48)+('ERR Combined Calculation'!U$61*(1+'ERR Combined Calculation'!U$55*Sensitivity!$D39))-('ERR Combined Calculation'!U$49) -> 11713827.9 | Y39: =('ERR Combined Calculation'!V$11-'ERR Combined Calculation'!V$6)+('ERR Combined Calculation'!V$60*(1+'ERR Combined Calculation'!V$54*Sensitivity!$D39))-('ERR Combined Calculation'!V$48)+('ERR Combined Calculation'!V$61*(1+'ERR Combined Calculation'!V$55*Sensitivity!$D39))-('ERR Combined Calculation'!V$49) -> 12279223.69 | AA39: =FREQUENCY($E$31:$E$5030,$AC39:$AC$149) -> 71 | AB39: 9 | AC39: -0.025 | AE39: =FREQUENCY($E$31:$E$5031,$AG39:$AG$79) -> 2124 | AF39: 10.84 | AG39: 0.05 | AH39: 11.1257365
D40: ='Monte Carlo Simulation'!$P18 -> 0.02680777714 | E40: 0.06297015565 | F40: =('ERR Combined Calculation'!C$11-'ERR Combined Calculation'!C$6)+('ERR Combined Calculation'!C$60*(1+'ERR Combined Calculation'!C$54*Sensitivity!$D40))-('ERR Combined Calculation'!C$48)+('ERR Combined Calculation'!C$61*(1+'ERR Combined Calculation'!C$55*Sensitivity!$D40))-('ERR Combined Calculation'!C$49) -> -1736548.353 | G40: =('ERR Combined Calculation'!D$11-'ERR Combined Calculation'!D$6)+('ERR Combined Calculation'!D$60*(1+'ERR Combined Calculation'!D$54*Sensitivity!$D40))-('ERR Combined Calculation'!D$48)+('ERR Combined Calculation'!D$61*(1+'ERR Combined Calculation'!D$55*Sensitivity!$D40))-('ERR Combined Calculation'!D$49) -> -6841066.969 | H40: =('ERR Combined Calculation'!E$11-'ERR Combined Calculation'!E$6)+('ERR Combined Calculation'!E$60*(1+'ERR Combined Calculation'!E$54*Sensitivity!$D40))-('ERR Combined Calculation'!E$48)+('ERR Combined Calculation'!E$61*(1+'ERR Combined Calculation'!E$55*Sensitivity!$D40))-('ERR Combined Calculation'!E$49) -> -6678579.374 | I40: =('ERR Combined Calculation'!F$11-'ERR Combined Calculation'!F$6)+('ERR Combined Calculation'!F$60*(1+'ERR Combined Calculation'!F$54*Sensitivity!$D40))-('ERR Combined Calculation'!F$48)+('ERR Combined Calculation'!F$61*(1+'ERR Combined Calculation'!F$55*Sensitivity!$D40))-('ERR Combined Calculation'!F$49) -> -6400774.774 | J40: =('ERR Combined Calculation'!G$11-'ERR Combined Calculation'!G$6)+('ERR Combined Calculation'!G$60*(1+'ERR Combined Calculation'!G$54*Sensitivity!$D40))-('ERR Combined Calculation'!G$48)+('ERR Combined Calculation'!G$61*(1+'ERR Combined Calculation'!G$55*Sensitivity!$D40))-('ERR Combined Calculation'!G$49) -> -15698507.2 | K40: =('ERR Combined Calculation'!H$11-'ERR Combined Calculation'!H$6)+('ERR Combined Calculation'!H$60*(1+'ERR Combined Calculation'!H$54*Sensitivity!$D40))-('ERR Combined Calculation'!H$48)+('ERR Combined Calculation'!H$61*(1+'ERR Combined Calculation'!H$55*Sensitivity!$D40))-('ERR Combined Calculation'!H$49) -> -20658565.33 | L40: =('ERR Combined Calculation'!I$11-'ERR Combined Calculation'!I$6)+('ERR Combined Calculation'!I$60*(1+'ERR Combined Calculation'!I$54*Sensitivity!$D40))-('ERR Combined Calculation'!I$48)+('ERR Combined Calculation'!I$61*(1+'ERR Combined Calculation'!I$55*Sensitivity!$D40))-('ERR Combined Calculation'!I$49) -> 4438345.474 | M40: =('ERR Combined Calculation'!J$11-'ERR Combined Calculation'!J$6)+('ERR Combined Calculation'!J$60*(1+'ERR Combined Calculation'!J$54*Sensitivity!$D40))-('ERR Combined Calculation'!J$48)+('ERR Combined Calculation'!J$61*(1+'ERR Combined Calculation'!J$55*Sensitivity!$D40))-('ERR Combined Calculation'!J$49) -> 5277522.223 | N40: =('ERR Combined Calculation'!K$11-'ERR Combined Calculation'!K$6)+('ERR Combined Calculation'!K$60*(1+'ERR Combined Calculation'!K$54*Sensitivity!$D40))-('ERR Combined Calculation'!K$48)+('ERR Combined Calculation'!K$61*(1+'ERR Combined Calculation'!K$55*Sensitivity!$D40))-('ERR Combined Calculation'!K$49) -> 5864208.515 | O40: =('ERR Combined Calculation'!L$11-'ERR Combined Calculation'!L$6)+('ERR Combined Calculation'!L$60*(1+'ERR Combined Calculation'!L$54*Sensitivity!$D40))-('ERR Combined Calculation'!L$48)+('ERR Combined Calculation'!L$61*(1+'ERR Combined Calculation'!L$55*Sensitivity!$D40))-('ERR Combined Calculation'!L$49) -> 6160971.787 | P40: =('ERR Combined Calculation'!M$11-'ERR Combined Calculation'!M$6)+('ERR Combined Calculation'!M$60*(1+'ERR Combined Calculation'!M$54*Sensitivity!$D40))-('ERR Combined Calculation'!M$48)+('ERR Combined Calculation'!M$61*(1+'ERR Combined Calculation'!M$55*Sensitivity!$D40))-('ERR Combined Calculation'!M$49) -> 6471658.869 | Q40: =('ERR Combined Calculation'!N$11-'ERR Combined Calculation'!N$6)+('ERR Combined Calculation'!N$60*(1+'ERR Combined Calculation'!N$54*Sensitivity!$D40))-('ERR Combined Calculation'!N$48)+('ERR Combined Calculation'!N$61*(1+'ERR Combined Calculation'!N$55*Sensitivity!$D40))-('ERR Combined Calculation'!N$49) -> 6796943.815 | R40: =('ERR Combined Calculation'!O$11-'ERR Combined Calculation'!O$6)+('ERR Combined Calculation'!O$60*(1+'ERR Combined Calculation'!O$54*Sensitivity!$D40))-('ERR Combined Calculation'!O$48)+('ERR Combined Calculation'!O$61*(1+'ERR Combined Calculation'!O$55*Sensitivity!$D40))-('ERR Combined Calculation'!O$49) -> 7137534.631 | S40: =('ERR Combined Calculation'!P$11-'ERR Combined Calculation'!P$6)+('ERR Combined Calculation'!P$60*(1+'ERR Combined Calculation'!P$54*Sensitivity!$D40))-('ERR Combined Calculation'!P$48)+('ERR Combined Calculation'!P$61*(1+'ERR Combined Calculation'!P$55*Sensitivity!$D40))-('ERR Combined Calculation'!P$49) -> 7494175.063 | T40: =('ERR Combined Calculation'!Q$11-'ERR Combined Calculation'!Q$6)+('ERR Combined Calculation'!Q$60*(1+'ERR Combined Calculation'!Q$54*Sensitivity!$D40))-('ERR Combined Calculation'!Q$48)+('ERR Combined Calculation'!Q$61*(1+'ERR Combined Calculation'!Q$55*Sensitivity!$D40))-('ERR Combined Calculation'!Q$49) -> 7867646.492 | U40: =('ERR Combined Calculation'!R$11-'ERR Combined Calculation'!R$6)+('ERR Combined Calculation'!R$60*(1+'ERR Combined Calculation'!R$54*Sensitivity!$D40))-('ERR Combined Calculation'!R$48)+('ERR Combined Calculation'!R$61*(1+'ERR Combined Calculation'!R$55*Sensitivity!$D40))-('ERR Combined Calculation'!R$49) -> 8258769.928 | V40: =('ERR Combined Calculation'!S$11-'ERR Combined Calculation'!S$6)+('ERR Combined Calculation'!S$60*(1+'ERR Combined Calculation'!S$54*Sensitivity!$D40))-('ERR Combined Calculation'!S$48)+('ERR Combined Calculation'!S$61*(1+'ERR Combined Calculation'!S$55*Sensitivity!$D40))-('ERR Combined Calculation'!S$49) -> 8668408.113 | W40: =('ERR Combined Calculation'!T$11-'ERR Combined Calculation'!T$6)+('ERR Combined Calculation'!T$60*(1+'ERR Combined Calculation'!T$54*Sensitivity!$D40))-('ERR Combined Calculation'!T$48)+('ERR Combined Calculation'!T$61*(1+'ERR Combined Calculation'!T$55*Sensitivity!$D40))-('ERR Combined Calculation'!T$49) -> 9097467.755 | X40: =('ERR Combined Calculation'!U$11-'ERR Combined Calculation'!U$6)+('ERR Combined Calculation'!U$60*(1+'ERR Combined Calculation'!U$54*Sensitivity!$D40))-('ERR Combined Calculation'!U$48)+('ERR Combined Calculation'!U$61*(1+'ERR Combined Calculation'!U$55*Sensitivity!$D40))-('ERR Combined Calculation'!U$49) -> 9546901.867 | Y40: =('ERR Combined Calculation'!V$11-'ERR Combined Calculation'!V$6)+('ERR Combined Calculation'!V$60*(1+'ERR Combined Calculation'!V$54*Sensitivity!$D40))-('ERR Combined Calculation'!V$48)+('ERR Combined Calculation'!V$61*(1+'ERR Combined Calculation'!V$55*Sensitivity!$D40))-('ERR Combined Calculation'!V$49) -> 10017712.26 | AA40: =FREQUENCY($E$31:$E$5030,$AC40:$AC$149) -> 83 | AB40: 12 | AC40: -0.0225 | AE40: =FREQUENCY($E$31:$E$5031,$AG40:$AG$79) -> 2723 | AF40: 11.98 | AG40: 0.06 | AH40: 11.18743964
D41: ='Monte Carlo Simulation'!$P19 -> 0.02200157407 | E41: 0.03814934554 | F41: =('ERR Combined Calculation'!C$11-'ERR Combined Calculation'!C$6)+('ERR Combined Calculation'!C$60*(1+'ERR Combined Calculation'!C$54*Sensitivity!$D41))-('ERR Combined Calculation'!C$48)+('ERR Combined Calculation'!C$61*(1+'ERR Combined Calculation'!C$55*Sensitivity!$D41))-('ERR Combined Calculation'!C$49) -> -1736548.353 | G41: =('ERR Combined Calculation'!D$11-'ERR Combined Calculation'!D$6)+('ERR Combined Calculation'!D$60*(1+'ERR Combined Calculation'!D$54*Sensitivity!$D41))-('ERR Combined Calculation'!D$48)+('ERR Combined Calculation'!D$61*(1+'ERR Combined Calculation'!D$55*Sensitivity!$D41))-('ERR Combined Calculation'!D$49) -> -6877405.186 | H41: =('ERR Combined Calculation'!E$11-'ERR Combined Calculation'!E$6)+('ERR Combined Calculation'!E$60*(1+'ERR Combined Calculation'!E$54*Sensitivity!$D41))-('ERR Combined Calculation'!E$48)+('ERR Combined Calculation'!E$61*(1+'ERR Combined Calculation'!E$55*Sensitivity!$D41))-('ERR Combined Calculation'!E$49) -> -6792352.469 | I41: =('ERR Combined Calculation'!F$11-'ERR Combined Calculation'!F$6)+('ERR Combined Calculation'!F$60*(1+'ERR Combined Calculation'!F$54*Sensitivity!$D41))-('ERR Combined Calculation'!F$48)+('ERR Combined Calculation'!F$61*(1+'ERR Combined Calculation'!F$55*Sensitivity!$D41))-('ERR Combined Calculation'!F$49) -> -6677833.007 | J41: =('ERR Combined Calculation'!G$11-'ERR Combined Calculation'!G$6)+('ERR Combined Calculation'!G$60*(1+'ERR Combined Calculation'!G$54*Sensitivity!$D41))-('ERR Combined Calculation'!G$48)+('ERR Combined Calculation'!G$61*(1+'ERR Combined Calculation'!G$55*Sensitivity!$D41))-('ERR Combined Calculation'!G$49) -> -16118094.12 | K41: =('ERR Combined Calculation'!H$11-'ERR Combined Calculation'!H$6)+('ERR Combined Calculation'!H$60*(1+'ERR Combined Calculation'!H$54*Sensitivity!$D41))-('ERR Combined Calculation'!H$48)+('ERR Combined Calculation'!H$61*(1+'ERR Combined Calculation'!H$55*Sensitivity!$D41))-('ERR Combined Calculation'!H$49) -> -21239393.05 | L41: =('ERR Combined Calculation'!I$11-'ERR Combined Calculation'!I$6)+('ERR Combined Calculation'!I$60*(1+'ERR Combined Calculation'!I$54*Sensitivity!$D41))-('ERR Combined Calculation'!I$48)+('ERR Combined Calculation'!I$61*(1+'ERR Combined Calculation'!I$55*Sensitivity!$D41))-('ERR Combined Calculation'!I$49) -> 3623819.901 | M41: =('ERR Combined Calculation'!J$11-'ERR Combined Calculation'!J$6)+('ERR Combined Calculation'!J$60*(1+'ERR Combined Calculation'!J$54*Sensitivity!$D41))-('ERR Combined Calculation'!J$48)+('ERR Combined Calculation'!J$61*(1+'ERR Combined Calculation'!J$55*Sensitivity!$D41))-('ERR Combined Calculation'!J$49) -> 4318723.389 | N41: =('ERR Combined Calculation'!K$11-'ERR Combined Calculation'!K$6)+('ERR Combined Calculation'!K$60*(1+'ERR Combined Calculation'!K$54*Sensitivity!$D41))-('ERR Combined Calculation'!K$48)+('ERR Combined Calculation'!K$61*(1+'ERR Combined Calculation'!K$55*Sensitivity!$D41))-('ERR Combined Calculation'!K$49) -> 4806825.955 | O41: =('ERR Combined Calculation'!L$11-'ERR Combined Calculation'!L$6)+('ERR Combined Calculation'!L$60*(1+'ERR Combined Calculation'!L$54*Sensitivity!$D41))-('ERR Combined Calculation'!L$48)+('ERR Combined Calculation'!L$61*(1+'ERR Combined Calculation'!L$55*Sensitivity!$D41))-('ERR Combined Calculation'!L$49) -> 5057434.927 | P41: =('ERR Combined Calculation'!M$11-'ERR Combined Calculation'!M$6)+('ERR Combined Calculation'!M$60*(1+'ERR Combined Calculation'!M$54*Sensitivity!$D41))-('ERR Combined Calculation'!M$48)+('ERR Combined Calculation'!M$61*(1+'ERR Combined Calculation'!M$55*Sensitivity!$D41))-('ERR Combined Calculation'!M$49) -> 5319953.094 | Q41: =('ERR Combined Calculation'!N$11-'ERR Combined Calculation'!N$6)+('ERR Combined Calculation'!N$60*(1+'ERR Combined Calculation'!N$54*Sensitivity!$D41))-('ERR Combined Calculation'!N$48)+('ERR Combined Calculation'!N$61*(1+'ERR Combined Calculation'!N$55*Sensitivity!$D41))-('ERR Combined Calculation'!N$49) -> 5594966.572 | R41: =('ERR Combined Calculation'!O$11-'ERR Combined Calculation'!O$6)+('ERR Combined Calculation'!O$60*(1+'ERR Combined Calculation'!O$54*Sensitivity!$D41))-('ERR Combined Calculation'!O$48)+('ERR Combined Calculation'!O$61*(1+'ERR Combined Calculation'!O$55*Sensitivity!$D41))-('ERR Combined Calculation'!O$49) -> 5883091.592 | S41: =('ERR Combined Calculation'!P$11-'ERR Combined Calculation'!P$6)+('ERR Combined Calculation'!P$60*(1+'ERR Combined Calculation'!P$54*Sensitivity!$D41))-('ERR Combined Calculation'!P$48)+('ERR Combined Calculation'!P$61*(1+'ERR Combined Calculation'!P$55*Sensitivity!$D41))-('ERR Combined Calculation'!P$49) -> 6184976.118 | T41: =('ERR Combined Calculation'!Q$11-'ERR Combined Calculation'!Q$6)+('ERR Combined Calculation'!Q$60*(1+'ERR Combined Calculation'!Q$54*Sensitivity!$D41))-('ERR Combined Calculation'!Q$48)+('ERR Combined Calculation'!Q$61*(1+'ERR Combined Calculation'!Q$55*Sensitivity!$D41))-('ERR Combined Calculation'!Q$49) -> 6501301.569 | U41: =('ERR Combined Calculation'!R$11-'ERR Combined Calculation'!R$6)+('ERR Combined Calculation'!R$60*(1+'ERR Combined Calculation'!R$54*Sensitivity!$D41))-('ERR Combined Calculation'!R$48)+('ERR Combined Calculation'!R$61*(1+'ERR Combined Calculation'!R$55*Sensitivity!$D41))-('ERR Combined Calculation'!R$49) -> 6832784.629 | V41: =('ERR Combined Calculation'!S$11-'ERR Combined Calculation'!S$6)+('ERR Combined Calculation'!S$60*(1+'ERR Combined Calculation'!S$54*Sensitivity!$D41))-('ERR Combined Calculation'!S$48)+('ERR Combined Calculation'!S$61*(1+'ERR Combined Calculation'!S$55*Sensitivity!$D41))-('ERR Combined Calculation'!S$49) -> 7180179.162 | W41: =('ERR Combined Calculation'!T$11-'ERR Combined Calculation'!T$6)+('ERR Combined Calculation'!T$60*(1+'ERR Combined Calculation'!T$54*Sensitivity!$D41))-('ERR Combined Calculation'!T$48)+('ERR Combined Calculation'!T$61*(1+'ERR Combined Calculation'!T$55*Sensitivity!$D41))-('ERR Combined Calculation'!T$49) -> 7544278.242 | X41: =('ERR Combined Calculation'!U$11-'ERR Combined Calculation'!U$6)+('ERR Combined Calculation'!U$60*(1+'ERR Combined Calculation'!U$54*Sensitivity!$D41))-('ERR Combined Calculation'!U$48)+('ERR Combined Calculation'!U$61*(1+'ERR Combined Calculation'!U$55*Sensitivity!$D41))-('ERR Combined Calculation'!U$49) -> 7925916.292 | Y41: =('ERR Combined Calculation'!V$11-'ERR Combined Calculation'!V$6)+('ERR Combined Calculation'!V$60*(1+'ERR Combined Calculation'!V$54*Sensitivity!$D41))-('ERR Combined Calculation'!V$48)+('ERR Combined Calculation'!V$61*(1+'ERR Combined Calculation'!V$55*Sensitivity!$D41))-('ERR Combined Calculation'!V$49) -> 8325971.349 | AA41: =FREQUENCY($E$31:$E$5030,$AC41:$AC$149) -> 97 | AB41: 14 | AC41: -0.02 | AE41: =FREQUENCY($E$31:$E$5031,$AG41:$AG$79) -> 3282 | AF41: 11.18 | AG41: 0.07 | AH41: 10.38652998
D42: ='Monte Carlo Simulation'!$P20 -> 0.025792124 | E42: 0.05794168911 | F42: =('ERR Combined Calculation'!C$11-'ERR Combined Calculation'!C$6)+('ERR Combined Calculation'!C$60*(1+'ERR Combined Calculation'!C$54*Sensitivity!$D42))-('ERR Combined Calculation'!C$48)+('ERR Combined Calculation'!C$61*(1+'ERR Combined Calculation'!C$55*Sensitivity!$D42))-('ERR Combined Calculation'!C$49) -> -1736548.353 | G42: =('ERR Combined Calculation'!D$11-'ERR Combined Calculation'!D$6)+('ERR Combined Calculation'!D$60*(1+'ERR Combined Calculation'!D$54*Sensitivity!$D42))-('ERR Combined Calculation'!D$48)+('ERR Combined Calculation'!D$61*(1+'ERR Combined Calculation'!D$55*Sensitivity!$D42))-('ERR Combined Calculation'!D$49) -> -6848746.009 | H42: =('ERR Combined Calculation'!E$11-'ERR Combined Calculation'!E$6)+('ERR Combined Calculation'!E$60*(1+'ERR Combined Calculation'!E$54*Sensitivity!$D42))-('ERR Combined Calculation'!E$48)+('ERR Combined Calculation'!E$61*(1+'ERR Combined Calculation'!E$55*Sensitivity!$D42))-('ERR Combined Calculation'!E$49) -> -6702622.054 | I42: =('ERR Combined Calculation'!F$11-'ERR Combined Calculation'!F$6)+('ERR Combined Calculation'!F$60*(1+'ERR Combined Calculation'!F$54*Sensitivity!$D42))-('ERR Combined Calculation'!F$48)+('ERR Combined Calculation'!F$61*(1+'ERR Combined Calculation'!F$55*Sensitivity!$D42))-('ERR Combined Calculation'!F$49) -> -6459323.083 | J42: =('ERR Combined Calculation'!G$11-'ERR Combined Calculation'!G$6)+('ERR Combined Calculation'!G$60*(1+'ERR Combined Calculation'!G$54*Sensitivity!$D42))-('ERR Combined Calculation'!G$48)+('ERR Combined Calculation'!G$61*(1+'ERR Combined Calculation'!G$55*Sensitivity!$D42))-('ERR Combined Calculation'!G$49) -> -15787174.86 | K42: =('ERR Combined Calculation'!H$11-'ERR Combined Calculation'!H$6)+('ERR Combined Calculation'!H$60*(1+'ERR Combined Calculation'!H$54*Sensitivity!$D42))-('ERR Combined Calculation'!H$48)+('ERR Combined Calculation'!H$61*(1+'ERR Combined Calculation'!H$55*Sensitivity!$D42))-('ERR Combined Calculation'!H$49) -> -20781306.6 | L42: =('ERR Combined Calculation'!I$11-'ERR Combined Calculation'!I$6)+('ERR Combined Calculation'!I$60*(1+'ERR Combined Calculation'!I$54*Sensitivity!$D42))-('ERR Combined Calculation'!I$48)+('ERR Combined Calculation'!I$61*(1+'ERR Combined Calculation'!I$55*Sensitivity!$D42))-('ERR Combined Calculation'!I$49) -> 4266218.861 | M42: =('ERR Combined Calculation'!J$11-'ERR Combined Calculation'!J$6)+('ERR Combined Calculation'!J$60*(1+'ERR Combined Calculation'!J$54*Sensitivity!$D42))-('ERR Combined Calculation'!J$48)+('ERR Combined Calculation'!J$61*(1+'ERR Combined Calculation'!J$55*Sensitivity!$D42))-('ERR Combined Calculation'!J$49) -> 5074907.595 | N42: =('ERR Combined Calculation'!K$11-'ERR Combined Calculation'!K$6)+('ERR Combined Calculation'!K$60*(1+'ERR Combined Calculation'!K$54*Sensitivity!$D42))-('ERR Combined Calculation'!K$48)+('ERR Combined Calculation'!K$61*(1+'ERR Combined Calculation'!K$55*Sensitivity!$D42))-('ERR Combined Calculation'!K$49) -> 5640761.044 | O42: =('ERR Combined Calculation'!L$11-'ERR Combined Calculation'!L$6)+('ERR Combined Calculation'!L$60*(1+'ERR Combined Calculation'!L$54*Sensitivity!$D42))-('ERR Combined Calculation'!L$48)+('ERR Combined Calculation'!L$61*(1+'ERR Combined Calculation'!L$55*Sensitivity!$D42))-('ERR Combined Calculation'!L$49) -> 5927770.929 | P42: =('ERR Combined Calculation'!M$11-'ERR Combined Calculation'!M$6)+('ERR Combined Calculation'!M$60*(1+'ERR Combined Calculation'!M$54*Sensitivity!$D42))-('ERR Combined Calculation'!M$48)+('ERR Combined Calculation'!M$61*(1+'ERR Combined Calculation'!M$55*Sensitivity!$D42))-('ERR Combined Calculation'!M$49) -> 6228278.893 | Q42: =('ERR Combined Calculation'!N$11-'ERR Combined Calculation'!N$6)+('ERR Combined Calculation'!N$60*(1+'ERR Combined Calculation'!N$54*Sensitivity!$D42))-('ERR Combined Calculation'!N$48)+('ERR Combined Calculation'!N$61*(1+'ERR Combined Calculation'!N$55*Sensitivity!$D42))-('ERR Combined Calculation'!N$49) -> 6542940.406 | R42: =('ERR Combined Calculation'!O$11-'ERR Combined Calculation'!O$6)+('ERR Combined Calculation'!O$60*(1+'ERR Combined Calculation'!O$54*Sensitivity!$D42))-('ERR Combined Calculation'!O$48)+('ERR Combined Calculation'!O$61*(1+'ERR Combined Calculation'!O$55*Sensitivity!$D42))-('ERR Combined Calculation'!O$49) -> 6872444.081 | S42: =('ERR Combined Calculation'!P$11-'ERR Combined Calculation'!P$6)+('ERR Combined Calculation'!P$60*(1+'ERR Combined Calculation'!P$54*Sensitivity!$D42))-('ERR Combined Calculation'!P$48)+('ERR Combined Calculation'!P$61*(1+'ERR Combined Calculation'!P$55*Sensitivity!$D42))-('ERR Combined Calculation'!P$49) -> 7217513.423 | T42: =('ERR Combined Calculation'!Q$11-'ERR Combined Calculation'!Q$6)+('ERR Combined Calculation'!Q$60*(1+'ERR Combined Calculation'!Q$54*Sensitivity!$D42))-('ERR Combined Calculation'!Q$48)+('ERR Combined Calculation'!Q$61*(1+'ERR Combined Calculation'!Q$55*Sensitivity!$D42))-('ERR Combined Calculation'!Q$49) -> 7578908.69 | U42: =('ERR Combined Calculation'!R$11-'ERR Combined Calculation'!R$6)+('ERR Combined Calculation'!R$60*(1+'ERR Combined Calculation'!R$54*Sensitivity!$D42))-('ERR Combined Calculation'!R$48)+('ERR Combined Calculation'!R$61*(1+'ERR Combined Calculation'!R$55*Sensitivity!$D42))-('ERR Combined Calculation'!R$49) -> 7957428.842 | V42: =('ERR Combined Calculation'!S$11-'ERR Combined Calculation'!S$6)+('ERR Combined Calculation'!S$60*(1+'ERR Combined Calculation'!S$54*Sensitivity!$D42))-('ERR Combined Calculation'!S$48)+('ERR Combined Calculation'!S$61*(1+'ERR Combined Calculation'!S$55*Sensitivity!$D42))-('ERR Combined Calculation'!S$49) -> 8353913.618 | W42: =('ERR Combined Calculation'!T$11-'ERR Combined Calculation'!T$6)+('ERR Combined Calculation'!T$60*(1+'ERR Combined Calculation'!T$54*Sensitivity!$D42))-('ERR Combined Calculation'!T$48)+('ERR Combined Calculation'!T$61*(1+'ERR Combined Calculation'!T$55*Sensitivity!$D42))-('ERR Combined Calculation'!T$49) -> 8769245.708 | X42: =('ERR Combined Calculation'!U$11-'ERR Combined Calculation'!U$6)+('ERR Combined Calculation'!U$60*(1+'ERR Combined Calculation'!U$54*Sensitivity!$D42))-('ERR Combined Calculation'!U$48)+('ERR Combined Calculation'!U$61*(1+'ERR Combined Calculation'!U$55*Sensitivity!$D42))-('ERR Combined Calculation'!U$49) -> 9204353.068 | Y42: =('ERR Combined Calculation'!V$11-'ERR Combined Calculation'!V$6)+('ERR Combined Calculation'!V$60*(1+'ERR Combined Calculation'!V$54*Sensitivity!$D42))-('ERR Combined Calculation'!V$48)+('ERR Combined Calculation'!V$61*(1+'ERR Combined Calculation'!V$55*Sensitivity!$D42))-('ERR Combined Calculation'!V$49) -> 9660211.347 | AA42: =FREQUENCY($E$31:$E$5030,$AC42:$AC$149) -> 115 | AB42: 18 | AC42: -0.0175 | AE42: =FREQUENCY($E$31:$E$5031,$AG42:$AG$79) -> 3762 | AF42: 9.6 | AG42: 0.08 | AH42: 8.903240226
D43: ='Monte Carlo Simulation'!$P21 -> 0.02779000851 | E43: 0.06773766025 | F43: =('ERR Combined Calculation'!C$11-'ERR Combined Calculation'!C$6)+('ERR Combined Calculation'!C$60*(1+'ERR Combined Calculation'!C$54*Sensitivity!$D43))-('ERR Combined Calculation'!C$48)+('ERR Combined Calculation'!C$61*(1+'ERR Combined Calculation'!C$55*Sensitivity!$D43))-('ERR Combined Calculation'!C$49) -> -1736548.353 | G43: =('ERR Combined Calculation'!D$11-'ERR Combined Calculation'!D$6)+('ERR Combined Calculation'!D$60*(1+'ERR Combined Calculation'!D$54*Sensitivity!$D43))-('ERR Combined Calculation'!D$48)+('ERR Combined Calculation'!D$61*(1+'ERR Combined Calculation'!D$55*Sensitivity!$D43))-('ERR Combined Calculation'!D$49) -> -6833640.621 | H43: =('ERR Combined Calculation'!E$11-'ERR Combined Calculation'!E$6)+('ERR Combined Calculation'!E$60*(1+'ERR Combined Calculation'!E$54*Sensitivity!$D43))-('ERR Combined Calculation'!E$48)+('ERR Combined Calculation'!E$61*(1+'ERR Combined Calculation'!E$55*Sensitivity!$D43))-('ERR Combined Calculation'!E$49) -> -6655327.859 | I43: =('ERR Combined Calculation'!F$11-'ERR Combined Calculation'!F$6)+('ERR Combined Calculation'!F$60*(1+'ERR Combined Calculation'!F$54*Sensitivity!$D43))-('ERR Combined Calculation'!F$48)+('ERR Combined Calculation'!F$61*(1+'ERR Combined Calculation'!F$55*Sensitivity!$D43))-('ERR Combined Calculation'!F$49) -> -6344153.094 | J43: =('ERR Combined Calculation'!G$11-'ERR Combined Calculation'!G$6)+('ERR Combined Calculation'!G$60*(1+'ERR Combined Calculation'!G$54*Sensitivity!$D43))-('ERR Combined Calculation'!G$48)+('ERR Combined Calculation'!G$61*(1+'ERR Combined Calculation'!G$55*Sensitivity!$D43))-('ERR Combined Calculation'!G$49) -> -15612757.29 | K43: =('ERR Combined Calculation'!H$11-'ERR Combined Calculation'!H$6)+('ERR Combined Calculation'!H$60*(1+'ERR Combined Calculation'!H$54*Sensitivity!$D43))-('ERR Combined Calculation'!H$48)+('ERR Combined Calculation'!H$61*(1+'ERR Combined Calculation'!H$55*Sensitivity!$D43))-('ERR Combined Calculation'!H$49) -> -20539863.06 | L43: =('ERR Combined Calculation'!I$11-'ERR Combined Calculation'!I$6)+('ERR Combined Calculation'!I$60*(1+'ERR Combined Calculation'!I$54*Sensitivity!$D43))-('ERR Combined Calculation'!I$48)+('ERR Combined Calculation'!I$61*(1+'ERR Combined Calculation'!I$55*Sensitivity!$D43))-('ERR Combined Calculation'!I$49) -> 4604807.973 | M43: =('ERR Combined Calculation'!J$11-'ERR Combined Calculation'!J$6)+('ERR Combined Calculation'!J$60*(1+'ERR Combined Calculation'!J$54*Sensitivity!$D43))-('ERR Combined Calculation'!J$48)+('ERR Combined Calculation'!J$61*(1+'ERR Combined Calculation'!J$55*Sensitivity!$D43))-('ERR Combined Calculation'!J$49) -> 5473469.477 | N43: =('ERR Combined Calculation'!K$11-'ERR Combined Calculation'!K$6)+('ERR Combined Calculation'!K$60*(1+'ERR Combined Calculation'!K$54*Sensitivity!$D43))-('ERR Combined Calculation'!K$48)+('ERR Combined Calculation'!K$61*(1+'ERR Combined Calculation'!K$55*Sensitivity!$D43))-('ERR Combined Calculation'!K$49) -> 6080303.072 | O43: =('ERR Combined Calculation'!L$11-'ERR Combined Calculation'!L$6)+('ERR Combined Calculation'!L$60*(1+'ERR Combined Calculation'!L$54*Sensitivity!$D43))-('ERR Combined Calculation'!L$48)+('ERR Combined Calculation'!L$61*(1+'ERR Combined Calculation'!L$55*Sensitivity!$D43))-('ERR Combined Calculation'!L$49) -> 6386498.78 | P43: =('ERR Combined Calculation'!M$11-'ERR Combined Calculation'!M$6)+('ERR Combined Calculation'!M$60*(1+'ERR Combined Calculation'!M$54*Sensitivity!$D43))-('ERR Combined Calculation'!M$48)+('ERR Combined Calculation'!M$61*(1+'ERR Combined Calculation'!M$55*Sensitivity!$D43))-('ERR Combined Calculation'!M$49) -> 6707030.019 | Q43: =('ERR Combined Calculation'!N$11-'ERR Combined Calculation'!N$6)+('ERR Combined Calculation'!N$60*(1+'ERR Combined Calculation'!N$54*Sensitivity!$D43))-('ERR Combined Calculation'!N$48)+('ERR Combined Calculation'!N$61*(1+'ERR Combined Calculation'!N$55*Sensitivity!$D43))-('ERR Combined Calculation'!N$49) -> 7042588.816 | R43: =('ERR Combined Calculation'!O$11-'ERR Combined Calculation'!O$6)+('ERR Combined Calculation'!O$60*(1+'ERR Combined Calculation'!O$54*Sensitivity!$D43))-('ERR Combined Calculation'!O$48)+('ERR Combined Calculation'!O$61*(1+'ERR Combined Calculation'!O$55*Sensitivity!$D43))-('ERR Combined Calculation'!O$49) -> 7393901.932 | S43: =('ERR Combined Calculation'!P$11-'ERR Combined Calculation'!P$6)+('ERR Combined Calculation'!P$60*(1+'ERR Combined Calculation'!P$54*Sensitivity!$D43))-('ERR Combined Calculation'!P$48)+('ERR Combined Calculation'!P$61*(1+'ERR Combined Calculation'!P$55*Sensitivity!$D43))-('ERR Combined Calculation'!P$49) -> 7761732.688 | T43: =('ERR Combined Calculation'!Q$11-'ERR Combined Calculation'!Q$6)+('ERR Combined Calculation'!Q$60*(1+'ERR Combined Calculation'!Q$54*Sensitivity!$D43))-('ERR Combined Calculation'!Q$48)+('ERR Combined Calculation'!Q$61*(1+'ERR Combined Calculation'!Q$55*Sensitivity!$D43))-('ERR Combined Calculation'!Q$49) -> 8146882.894 | U43: =('ERR Combined Calculation'!R$11-'ERR Combined Calculation'!R$6)+('ERR Combined Calculation'!R$60*(1+'ERR Combined Calculation'!R$54*Sensitivity!$D43))-('ERR Combined Calculation'!R$48)+('ERR Combined Calculation'!R$61*(1+'ERR Combined Calculation'!R$55*Sensitivity!$D43))-('ERR Combined Calculation'!R$49) -> 8550194.879 | V43: =('ERR Combined Calculation'!S$11-'ERR Combined Calculation'!S$6)+('ERR Combined Calculation'!S$60*(1+'ERR Combined Calculation'!S$54*Sensitivity!$D43))-('ERR Combined Calculation'!S$48)+('ERR Combined Calculation'!S$61*(1+'ERR Combined Calculation'!S$55*Sensitivity!$D43))-('ERR Combined Calculation'!S$49) -> 8972553.641 | W43: =('ERR Combined Calculation'!T$11-'ERR Combined Calculation'!T$6)+('ERR Combined Calculation'!T$60*(1+'ERR Combined Calculation'!T$54*Sensitivity!$D43))-('ERR Combined Calculation'!T$48)+('ERR Combined Calculation'!T$61*(1+'ERR Combined Calculation'!T$55*Sensitivity!$D43))-('ERR Combined Calculation'!T$49) -> 9414889.105 | X43: =('ERR Combined Calculation'!U$11-'ERR Combined Calculation'!U$6)+('ERR Combined Calculation'!U$60*(1+'ERR Combined Calculation'!U$54*Sensitivity!$D43))-('ERR Combined Calculation'!U$48)+('ERR Combined Calculation'!U$61*(1+'ERR Combined Calculation'!U$55*Sensitivity!$D43))-('ERR Combined Calculation'!U$49) -> 9878178.525 | Y43: =('ERR Combined Calculation'!V$11-'ERR Combined Calculation'!V$6)+('ERR Combined Calculation'!V$60*(1+'ERR Combined Calculation'!V$54*Sensitivity!$D43))-('ERR Combined Calculation'!V$48)+('ERR Combined Calculation'!V$61*(1+'ERR Combined Calculation'!V$55*Sensitivity!$D43))-('ERR Combined Calculation'!V$49) -> 10363449 | AA43: =FREQUENCY($E$31:$E$5030,$AC43:$AC$149) -> 132 | AB43: 17 | AC43: -0.015 | AE43: =FREQUENCY($E$31:$E$5031,$AG43:$AG$79) -> 4175 | AF43: 8.26 | AG43: 0.09 | AH43: 7.046339157
D44: ='Monte Carlo Simulation'!$P22 -> 0.01922556443 | E44: 0.02239516054 | F44: =('ERR Combined Calculation'!C$11-'ERR Combined Calculation'!C$6)+('ERR Combined Calculation'!C$60*(1+'ERR Combined Calculation'!C$54*Sensitivity!$D44))-('ERR Combined Calculation'!C$48)+('ERR Combined Calculation'!C$61*(1+'ERR Combined Calculation'!C$55*Sensitivity!$D44))-('ERR Combined Calculation'!C$49) -> -1736548.353 | G44: =('ERR Combined Calculation'!D$11-'ERR Combined Calculation'!D$6)+('ERR Combined Calculation'!D$60*(1+'ERR Combined Calculation'!D$54*Sensitivity!$D44))-('ERR Combined Calculation'!D$48)+('ERR Combined Calculation'!D$61*(1+'ERR Combined Calculation'!D$55*Sensitivity!$D44))-('ERR Combined Calculation'!D$49) -> -6898393.738 | H44: =('ERR Combined Calculation'!E$11-'ERR Combined Calculation'!E$6)+('ERR Combined Calculation'!E$60*(1+'ERR Combined Calculation'!E$54*Sensitivity!$D44))-('ERR Combined Calculation'!E$48)+('ERR Combined Calculation'!E$61*(1+'ERR Combined Calculation'!E$55*Sensitivity!$D44))-('ERR Combined Calculation'!E$49) -> -6858066.549 | I44: =('ERR Combined Calculation'!F$11-'ERR Combined Calculation'!F$6)+('ERR Combined Calculation'!F$60*(1+'ERR Combined Calculation'!F$54*Sensitivity!$D44))-('ERR Combined Calculation'!F$48)+('ERR Combined Calculation'!F$61*(1+'ERR Combined Calculation'!F$55*Sensitivity!$D44))-('ERR Combined Calculation'!F$49) -> -6837858.773 | J44: =('ERR Combined Calculation'!G$11-'ERR Combined Calculation'!G$6)+('ERR Combined Calculation'!G$60*(1+'ERR Combined Calculation'!G$54*Sensitivity!$D44))-('ERR Combined Calculation'!G$48)+('ERR Combined Calculation'!G$61*(1+'ERR Combined Calculation'!G$55*Sensitivity!$D44))-('ERR Combined Calculation'!G$49) -> -16360442.88 | K44: =('ERR Combined Calculation'!H$11-'ERR Combined Calculation'!H$6)+('ERR Combined Calculation'!H$60*(1+'ERR Combined Calculation'!H$54*Sensitivity!$D44))-('ERR Combined Calculation'!H$48)+('ERR Combined Calculation'!H$61*(1+'ERR Combined Calculation'!H$55*Sensitivity!$D44))-('ERR Combined Calculation'!H$49) -> -21574872.71 | L44: =('ERR Combined Calculation'!I$11-'ERR Combined Calculation'!I$6)+('ERR Combined Calculation'!I$60*(1+'ERR Combined Calculation'!I$54*Sensitivity!$D44))-('ERR Combined Calculation'!I$48)+('ERR Combined Calculation'!I$61*(1+'ERR Combined Calculation'!I$55*Sensitivity!$D44))-('ERR Combined Calculation'!I$49) -> 3153358.956 | M44: =('ERR Combined Calculation'!J$11-'ERR Combined Calculation'!J$6)+('ERR Combined Calculation'!J$60*(1+'ERR Combined Calculation'!J$54*Sensitivity!$D44))-('ERR Combined Calculation'!J$48)+('ERR Combined Calculation'!J$61*(1+'ERR Combined Calculation'!J$55*Sensitivity!$D44))-('ERR Combined Calculation'!J$49) -> 3764931.807 | N44: =('ERR Combined Calculation'!K$11-'ERR Combined Calculation'!K$6)+('ERR Combined Calculation'!K$60*(1+'ERR Combined Calculation'!K$54*Sensitivity!$D44))-('ERR Combined Calculation'!K$48)+('ERR Combined Calculation'!K$61*(1+'ERR Combined Calculation'!K$55*Sensitivity!$D44))-('ERR Combined Calculation'!K$49) -> 4196093.505 | O44: =('ERR Combined Calculation'!L$11-'ERR Combined Calculation'!L$6)+('ERR Combined Calculation'!L$60*(1+'ERR Combined Calculation'!L$54*Sensitivity!$D44))-('ERR Combined Calculation'!L$48)+('ERR Combined Calculation'!L$61*(1+'ERR Combined Calculation'!L$55*Sensitivity!$D44))-('ERR Combined Calculation'!L$49) -> 4420044.265 | P44: =('ERR Combined Calculation'!M$11-'ERR Combined Calculation'!M$6)+('ERR Combined Calculation'!M$60*(1+'ERR Combined Calculation'!M$54*Sensitivity!$D44))-('ERR Combined Calculation'!M$48)+('ERR Combined Calculation'!M$61*(1+'ERR Combined Calculation'!M$55*Sensitivity!$D44))-('ERR Combined Calculation'!M$49) -> 4654740.6 | Q44: =('ERR Combined Calculation'!N$11-'ERR Combined Calculation'!N$6)+('ERR Combined Calculation'!N$60*(1+'ERR Combined Calculation'!N$54*Sensitivity!$D44))-('ERR Combined Calculation'!N$48)+('ERR Combined Calculation'!N$61*(1+'ERR Combined Calculation'!N$55*Sensitivity!$D44))-('ERR Combined Calculation'!N$49) -> 4900717.836 | R44: =('ERR Combined Calculation'!O$11-'ERR Combined Calculation'!O$6)+('ERR Combined Calculation'!O$60*(1+'ERR Combined Calculation'!O$54*Sensitivity!$D44))-('ERR Combined Calculation'!O$48)+('ERR Combined Calculation'!O$61*(1+'ERR Combined Calculation'!O$55*Sensitivity!$D44))-('ERR Combined Calculation'!O$49) -> 5158539.193 | S44: =('ERR Combined Calculation'!P$11-'ERR Combined Calculation'!P$6)+('ERR Combined Calculation'!P$60*(1+'ERR Combined Calculation'!P$54*Sensitivity!$D44))-('ERR Combined Calculation'!P$48)+('ERR Combined Calculation'!P$61*(1+'ERR Combined Calculation'!P$55*Sensitivity!$D44))-('ERR Combined Calculation'!P$49) -> 5428797.315 | T44: =('ERR Combined Calculation'!Q$11-'ERR Combined Calculation'!Q$6)+('ERR Combined Calculation'!Q$60*(1+'ERR Combined Calculation'!Q$54*Sensitivity!$D44))-('ERR Combined Calculation'!Q$48)+('ERR Combined Calculation'!Q$61*(1+'ERR Combined Calculation'!Q$55*Sensitivity!$D44))-('ERR Combined Calculation'!Q$49) -> 5712115.882 | U44: =('ERR Combined Calculation'!R$11-'ERR Combined Calculation'!R$6)+('ERR Combined Calculation'!R$60*(1+'ERR Combined Calculation'!R$54*Sensitivity!$D44))-('ERR Combined Calculation'!R$48)+('ERR Combined Calculation'!R$61*(1+'ERR Combined Calculation'!R$55*Sensitivity!$D44))-('ERR Combined Calculation'!R$49) -> 6009151.322 | V44: =('ERR Combined Calculation'!S$11-'ERR Combined Calculation'!S$6)+('ERR Combined Calculation'!S$60*(1+'ERR Combined Calculation'!S$54*Sensitivity!$D44))-('ERR Combined Calculation'!S$48)+('ERR Combined Calculation'!S$61*(1+'ERR Combined Calculation'!S$55*Sensitivity!$D44))-('ERR Combined Calculation'!S$49) -> 6320594.611 | W44: =('ERR Combined Calculation'!T$11-'ERR Combined Calculation'!T$6)+('ERR Combined Calculation'!T$60*(1+'ERR Combined Calculation'!T$54*Sensitivity!$D44))-('ERR Combined Calculation'!T$48)+('ERR Combined Calculation'!T$61*(1+'ERR Combined Calculation'!T$55*Sensitivity!$D44))-('ERR Combined Calculation'!T$49) -> 6647173.19 | X44: =('ERR Combined Calculation'!U$11-'ERR Combined Calculation'!U$6)+('ERR Combined Calculation'!U$60*(1+'ERR Combined Calculation'!U$54*Sensitivity!$D44))-('ERR Combined Calculation'!U$48)+('ERR Combined Calculation'!U$61*(1+'ERR Combined Calculation'!U$55*Sensitivity!$D44))-('ERR Combined Calculation'!U$49) -> 6989652.986 | Y44: =('ERR Combined Calculation'!V$11-'ERR Combined Calculation'!V$6)+('ERR Combined Calculation'!V$60*(1+'ERR Combined Calculation'!V$54*Sensitivity!$D44))-('ERR Combined Calculation'!V$48)+('ERR Combined Calculation'!V$61*(1+'ERR Combined Calculation'!V$55*Sensitivity!$D44))-('ERR Combined Calculation'!V$49) -> 7348840.547 | AA44: =FREQUENCY($E$31:$E$5030,$AC44:$AC$149) -> 147 | AB44: 15 | AC44: -0.0125 | AE44: =FREQUENCY($E$31:$E$5031,$AG44:$AG$79) -> 4502 | AF44: 6.54 | AG44: 0.1 | AH44: 5.148928167
D45: ='Monte Carlo Simulation'!$P23 -> 0.02478790915 | E45: 0.05286373815 | F45: =('ERR Combined Calculation'!C$11-'ERR Combined Calculation'!C$6)+('ERR Combined Calculation'!C$60*(1+'ERR Combined Calculation'!C$54*Sensitivity!$D45))-('ERR Combined Calculation'!C$48)+('ERR Combined Calculation'!C$61*(1+'ERR Combined Calculation'!C$55*Sensitivity!$D45))-('ERR Combined Calculation'!C$49) -> -1736548.353 | G45: =('ERR Combined Calculation'!D$11-'ERR Combined Calculation'!D$6)+('ERR Combined Calculation'!D$60*(1+'ERR Combined Calculation'!D$54*Sensitivity!$D45))-('ERR Combined Calculation'!D$48)+('ERR Combined Calculation'!D$61*(1+'ERR Combined Calculation'!D$55*Sensitivity!$D45))-('ERR Combined Calculation'!D$49) -> -6856338.567 | H45: =('ERR Combined Calculation'!E$11-'ERR Combined Calculation'!E$6)+('ERR Combined Calculation'!E$60*(1+'ERR Combined Calculation'!E$54*Sensitivity!$D45))-('ERR Combined Calculation'!E$48)+('ERR Combined Calculation'!E$61*(1+'ERR Combined Calculation'!E$55*Sensitivity!$D45))-('ERR Combined Calculation'!E$49) -> -6726393.965 | I45: =('ERR Combined Calculation'!F$11-'ERR Combined Calculation'!F$6)+('ERR Combined Calculation'!F$60*(1+'ERR Combined Calculation'!F$54*Sensitivity!$D45))-('ERR Combined Calculation'!F$48)+('ERR Combined Calculation'!F$61*(1+'ERR Combined Calculation'!F$55*Sensitivity!$D45))-('ERR Combined Calculation'!F$49) -> -6517212.021 | J45: =('ERR Combined Calculation'!G$11-'ERR Combined Calculation'!G$6)+('ERR Combined Calculation'!G$60*(1+'ERR Combined Calculation'!G$54*Sensitivity!$D45))-('ERR Combined Calculation'!G$48)+('ERR Combined Calculation'!G$61*(1+'ERR Combined Calculation'!G$55*Sensitivity!$D45))-('ERR Combined Calculation'!G$49) -> -15874843.94 | K45: =('ERR Combined Calculation'!H$11-'ERR Combined Calculation'!H$6)+('ERR Combined Calculation'!H$60*(1+'ERR Combined Calculation'!H$54*Sensitivity!$D45))-('ERR Combined Calculation'!H$48)+('ERR Combined Calculation'!H$61*(1+'ERR Combined Calculation'!H$55*Sensitivity!$D45))-('ERR Combined Calculation'!H$49) -> -20902665.57 | L45: =('ERR Combined Calculation'!I$11-'ERR Combined Calculation'!I$6)+('ERR Combined Calculation'!I$60*(1+'ERR Combined Calculation'!I$54*Sensitivity!$D45))-('ERR Combined Calculation'!I$48)+('ERR Combined Calculation'!I$61*(1+'ERR Combined Calculation'!I$55*Sensitivity!$D45))-('ERR Combined Calculation'!I$49) -> 4096030.74 | M45: =('ERR Combined Calculation'!J$11-'ERR Combined Calculation'!J$6)+('ERR Combined Calculation'!J$60*(1+'ERR Combined Calculation'!J$54*Sensitivity!$D45))-('ERR Combined Calculation'!J$48)+('ERR Combined Calculation'!J$61*(1+'ERR Combined Calculation'!J$55*Sensitivity!$D45))-('ERR Combined Calculation'!J$49) -> 4874574.815 | N45: =('ERR Combined Calculation'!K$11-'ERR Combined Calculation'!K$6)+('ERR Combined Calculation'!K$60*(1+'ERR Combined Calculation'!K$54*Sensitivity!$D45))-('ERR Combined Calculation'!K$48)+('ERR Combined Calculation'!K$61*(1+'ERR Combined Calculation'!K$55*Sensitivity!$D45))-('ERR Combined Calculation'!K$49) -> 5419830.042 | O45: =('ERR Combined Calculation'!L$11-'ERR Combined Calculation'!L$6)+('ERR Combined Calculation'!L$60*(1+'ERR Combined Calculation'!L$54*Sensitivity!$D45))-('ERR Combined Calculation'!L$48)+('ERR Combined Calculation'!L$61*(1+'ERR Combined Calculation'!L$55*Sensitivity!$D45))-('ERR Combined Calculation'!L$49) -> 5697196.382 | P45: =('ERR Combined Calculation'!M$11-'ERR Combined Calculation'!M$6)+('ERR Combined Calculation'!M$60*(1+'ERR Combined Calculation'!M$54*Sensitivity!$D45))-('ERR Combined Calculation'!M$48)+('ERR Combined Calculation'!M$61*(1+'ERR Combined Calculation'!M$55*Sensitivity!$D45))-('ERR Combined Calculation'!M$49) -> 5987639.865 | Q45: =('ERR Combined Calculation'!N$11-'ERR Combined Calculation'!N$6)+('ERR Combined Calculation'!N$60*(1+'ERR Combined Calculation'!N$54*Sensitivity!$D45))-('ERR Combined Calculation'!N$48)+('ERR Combined Calculation'!N$61*(1+'ERR Combined Calculation'!N$55*Sensitivity!$D45))-('ERR Combined Calculation'!N$49) -> 6291797.587 | R45: =('ERR Combined Calculation'!O$11-'ERR Combined Calculation'!O$6)+('ERR Combined Calculation'!O$60*(1+'ERR Combined Calculation'!O$54*Sensitivity!$D45))-('ERR Combined Calculation'!O$48)+('ERR Combined Calculation'!O$61*(1+'ERR Combined Calculation'!O$55*Sensitivity!$D45))-('ERR Combined Calculation'!O$49) -> 6610338.984 | S45: =('ERR Combined Calculation'!P$11-'ERR Combined Calculation'!P$6)+('ERR Combined Calculation'!P$60*(1+'ERR Combined Calculation'!P$54*Sensitivity!$D45))-('ERR Combined Calculation'!P$48)+('ERR Combined Calculation'!P$61*(1+'ERR Combined Calculation'!P$55*Sensitivity!$D45))-('ERR Combined Calculation'!P$49) -> 6943967.55 | T45: =('ERR Combined Calculation'!Q$11-'ERR Combined Calculation'!Q$6)+('ERR Combined Calculation'!Q$60*(1+'ERR Combined Calculation'!Q$54*Sensitivity!$D45))-('ERR Combined Calculation'!Q$48)+('ERR Combined Calculation'!Q$61*(1+'ERR Combined Calculation'!Q$55*Sensitivity!$D45))-('ERR Combined Calculation'!Q$49) -> 7293422.655 | U45: =('ERR Combined Calculation'!R$11-'ERR Combined Calculation'!R$6)+('ERR Combined Calculation'!R$60*(1+'ERR Combined Calculation'!R$54*Sensitivity!$D45))-('ERR Combined Calculation'!R$48)+('ERR Combined Calculation'!R$61*(1+'ERR Combined Calculation'!R$55*Sensitivity!$D45))-('ERR Combined Calculation'!R$49) -> 7659481.464 | V45: =('ERR Combined Calculation'!S$11-'ERR Combined Calculation'!S$6)+('ERR Combined Calculation'!S$60*(1+'ERR Combined Calculation'!S$54*Sensitivity!$D45))-('ERR Combined Calculation'!S$48)+('ERR Combined Calculation'!S$61*(1+'ERR Combined Calculation'!S$55*Sensitivity!$D45))-('ERR Combined Calculation'!S$49) -> 8042960.963 | W45: =('ERR Combined Calculation'!T$11-'ERR Combined Calculation'!T$6)+('ERR Combined Calculation'!T$60*(1+'ERR Combined Calculation'!T$54*Sensitivity!$D45))-('ERR Combined Calculation'!T$48)+('ERR Combined Calculation'!T$61*(1+'ERR Combined Calculation'!T$55*Sensitivity!$D45))-('ERR Combined Calculation'!T$49) -> 8444720.102 | X45: =('ERR Combined Calculation'!U$11-'ERR Combined Calculation'!U$6)+('ERR Combined Calculation'!U$60*(1+'ERR Combined Calculation'!U$54*Sensitivity!$D45))-('ERR Combined Calculation'!U$48)+('ERR Combined Calculation'!U$61*(1+'ERR Combined Calculation'!U$55*Sensitivity!$D45))-('ERR Combined Calculation'!U$49) -> 8865662.056 | Y45: =('ERR Combined Calculation'!V$11-'ERR Combined Calculation'!V$6)+('ERR Combined Calculation'!V$60*(1+'ERR Combined Calculation'!V$54*Sensitivity!$D45))-('ERR Combined Calculation'!V$48)+('ERR Combined Calculation'!V$61*(1+'ERR Combined Calculation'!V$55*Sensitivity!$D45))-('ERR Combined Calculation'!V$49) -> 9306736.617 | AA45: =FREQUENCY($E$31:$E$5030,$AC45:$AC$149) -> 175 | AB45: 28 | AC45: -0.01 | AE45: =FREQUENCY($E$31:$E$5031,$AG45:$AG$79) -> 4723 | AF45: 4.42 | AG45: 0.11 | AH45: 3.473825204
D46: ='Monte Carlo Simulation'!$P24 -> 0.02717237324 | E46: 0.06475041608 | F46: =('ERR Combined Calculation'!C$11-'ERR Combined Calculation'!C$6)+('ERR Combined Calculation'!C$60*(1+'ERR Combined Calculation'!C$54*Sensitivity!$D46))-('ERR Combined Calculation'!C$48)+('ERR Combined Calculation'!C$61*(1+'ERR Combined Calculation'!C$55*Sensitivity!$D46))-('ERR Combined Calculation'!C$49) -> -1736548.353 | G46: =('ERR Combined Calculation'!D$11-'ERR Combined Calculation'!D$6)+('ERR Combined Calculation'!D$60*(1+'ERR Combined Calculation'!D$54*Sensitivity!$D46))-('ERR Combined Calculation'!D$48)+('ERR Combined Calculation'!D$61*(1+'ERR Combined Calculation'!D$55*Sensitivity!$D46))-('ERR Combined Calculation'!D$49) -> -6838310.37 | H46: =('ERR Combined Calculation'!E$11-'ERR Combined Calculation'!E$6)+('ERR Combined Calculation'!E$60*(1+'ERR Combined Calculation'!E$54*Sensitivity!$D46))-('ERR Combined Calculation'!E$48)+('ERR Combined Calculation'!E$61*(1+'ERR Combined Calculation'!E$55*Sensitivity!$D46))-('ERR Combined Calculation'!E$49) -> -6669948.605 | I46: =('ERR Combined Calculation'!F$11-'ERR Combined Calculation'!F$6)+('ERR Combined Calculation'!F$60*(1+'ERR Combined Calculation'!F$54*Sensitivity!$D46))-('ERR Combined Calculation'!F$48)+('ERR Combined Calculation'!F$61*(1+'ERR Combined Calculation'!F$55*Sensitivity!$D46))-('ERR Combined Calculation'!F$49) -> -6379757.278 | J46: =('ERR Combined Calculation'!G$11-'ERR Combined Calculation'!G$6)+('ERR Combined Calculation'!G$60*(1+'ERR Combined Calculation'!G$54*Sensitivity!$D46))-('ERR Combined Calculation'!G$48)+('ERR Combined Calculation'!G$61*(1+'ERR Combined Calculation'!G$55*Sensitivity!$D46))-('ERR Combined Calculation'!G$49) -> -15666677.55 | K46: =('ERR Combined Calculation'!H$11-'ERR Combined Calculation'!H$6)+('ERR Combined Calculation'!H$60*(1+'ERR Combined Calculation'!H$54*Sensitivity!$D46))-('ERR Combined Calculation'!H$48)+('ERR Combined Calculation'!H$61*(1+'ERR Combined Calculation'!H$55*Sensitivity!$D46))-('ERR Combined Calculation'!H$49) -> -20614504.03 | L46: =('ERR Combined Calculation'!I$11-'ERR Combined Calculation'!I$6)+('ERR Combined Calculation'!I$60*(1+'ERR Combined Calculation'!I$54*Sensitivity!$D46))-('ERR Combined Calculation'!I$48)+('ERR Combined Calculation'!I$61*(1+'ERR Combined Calculation'!I$55*Sensitivity!$D46))-('ERR Combined Calculation'!I$49) -> 4500134.967 | M46: =('ERR Combined Calculation'!J$11-'ERR Combined Calculation'!J$6)+('ERR Combined Calculation'!J$60*(1+'ERR Combined Calculation'!J$54*Sensitivity!$D46))-('ERR Combined Calculation'!J$48)+('ERR Combined Calculation'!J$61*(1+'ERR Combined Calculation'!J$55*Sensitivity!$D46))-('ERR Combined Calculation'!J$49) -> 5350256.211 | N46: =('ERR Combined Calculation'!K$11-'ERR Combined Calculation'!K$6)+('ERR Combined Calculation'!K$60*(1+'ERR Combined Calculation'!K$54*Sensitivity!$D46))-('ERR Combined Calculation'!K$48)+('ERR Combined Calculation'!K$61*(1+'ERR Combined Calculation'!K$55*Sensitivity!$D46))-('ERR Combined Calculation'!K$49) -> 5944421.014 | O46: =('ERR Combined Calculation'!L$11-'ERR Combined Calculation'!L$6)+('ERR Combined Calculation'!L$60*(1+'ERR Combined Calculation'!L$54*Sensitivity!$D46))-('ERR Combined Calculation'!L$48)+('ERR Combined Calculation'!L$61*(1+'ERR Combined Calculation'!L$55*Sensitivity!$D46))-('ERR Combined Calculation'!L$49) -> 6244685.528 | P46: =('ERR Combined Calculation'!M$11-'ERR Combined Calculation'!M$6)+('ERR Combined Calculation'!M$60*(1+'ERR Combined Calculation'!M$54*Sensitivity!$D46))-('ERR Combined Calculation'!M$48)+('ERR Combined Calculation'!M$61*(1+'ERR Combined Calculation'!M$55*Sensitivity!$D46))-('ERR Combined Calculation'!M$49) -> 6559026.679 | Q46: =('ERR Combined Calculation'!N$11-'ERR Combined Calculation'!N$6)+('ERR Combined Calculation'!N$60*(1+'ERR Combined Calculation'!N$54*Sensitivity!$D46))-('ERR Combined Calculation'!N$48)+('ERR Combined Calculation'!N$61*(1+'ERR Combined Calculation'!N$55*Sensitivity!$D46))-('ERR Combined Calculation'!N$49) -> 6888125.193 | R46: =('ERR Combined Calculation'!O$11-'ERR Combined Calculation'!O$6)+('ERR Combined Calculation'!O$60*(1+'ERR Combined Calculation'!O$54*Sensitivity!$D46))-('ERR Combined Calculation'!O$48)+('ERR Combined Calculation'!O$61*(1+'ERR Combined Calculation'!O$55*Sensitivity!$D46))-('ERR Combined Calculation'!O$49) -> 7232696.037 | S46: =('ERR Combined Calculation'!P$11-'ERR Combined Calculation'!P$6)+('ERR Combined Calculation'!P$60*(1+'ERR Combined Calculation'!P$54*Sensitivity!$D46))-('ERR Combined Calculation'!P$48)+('ERR Combined Calculation'!P$61*(1+'ERR Combined Calculation'!P$55*Sensitivity!$D46))-('ERR Combined Calculation'!P$49) -> 7593490.224 | T46: =('ERR Combined Calculation'!Q$11-'ERR Combined Calculation'!Q$6)+('ERR Combined Calculation'!Q$60*(1+'ERR Combined Calculation'!Q$54*Sensitivity!$D46))-('ERR Combined Calculation'!Q$48)+('ERR Combined Calculation'!Q$61*(1+'ERR Combined Calculation'!Q$55*Sensitivity!$D46))-('ERR Combined Calculation'!Q$49) -> 7971296.718 | U46: =('ERR Combined Calculation'!R$11-'ERR Combined Calculation'!R$6)+('ERR Combined Calculation'!R$60*(1+'ERR Combined Calculation'!R$54*Sensitivity!$D46))-('ERR Combined Calculation'!R$48)+('ERR Combined Calculation'!R$61*(1+'ERR Combined Calculation'!R$55*Sensitivity!$D46))-('ERR Combined Calculation'!R$49) -> 8366944.441 | V46: =('ERR Combined Calculation'!S$11-'ERR Combined Calculation'!S$6)+('ERR Combined Calculation'!S$60*(1+'ERR Combined Calculation'!S$54*Sensitivity!$D46))-('ERR Combined Calculation'!S$48)+('ERR Combined Calculation'!S$61*(1+'ERR Combined Calculation'!S$55*Sensitivity!$D46))-('ERR Combined Calculation'!S$49) -> 8781304.399 | W46: =('ERR Combined Calculation'!T$11-'ERR Combined Calculation'!T$6)+('ERR Combined Calculation'!T$60*(1+'ERR Combined Calculation'!T$54*Sensitivity!$D46))-('ERR Combined Calculation'!T$48)+('ERR Combined Calculation'!T$61*(1+'ERR Combined Calculation'!T$55*Sensitivity!$D46))-('ERR Combined Calculation'!T$49) -> 9215291.915 | X46: =('ERR Combined Calculation'!U$11-'ERR Combined Calculation'!U$6)+('ERR Combined Calculation'!U$60*(1+'ERR Combined Calculation'!U$54*Sensitivity!$D46))-('ERR Combined Calculation'!U$48)+('ERR Combined Calculation'!U$61*(1+'ERR Combined Calculation'!U$55*Sensitivity!$D46))-('ERR Combined Calculation'!U$49) -> 9669869.002 | Y46: =('ERR Combined Calculation'!V$11-'ERR Combined Calculation'!V$6)+('ERR Combined Calculation'!V$60*(1+'ERR Combined Calculation'!V$54*Sensitivity!$D46))-('ERR Combined Calculation'!V$48)+('ERR Combined Calculation'!V$61*(1+'ERR Combined Calculation'!V$55*Sensitivity!$D46))-('ERR Combined Calculation'!V$49) -> 10146046.85 | AA46: =FREQUENCY($E$31:$E$5030,$AC46:$AC$149) -> 201 | AB46: 26 | AC46: -0.0075 | AE46: =FREQUENCY($E$31:$E$5031,$AG46:$AG$79) -> 4852 | AF46: 2.58 | AG46: 0.12 | AH46: 2.163898716
D47: ='Monte Carlo Simulation'!$P25 -> 0.0237472481 | E47: 0.04748133935 | F47: =('ERR Combined Calculation'!C$11-'ERR Combined Calculation'!C$6)+('ERR Combined Calculation'!C$60*(1+'ERR Combined Calculation'!C$54*Sensitivity!$D47))-('ERR Combined Calculation'!C$48)+('ERR Combined Calculation'!C$61*(1+'ERR Combined Calculation'!C$55*Sensitivity!$D47))-('ERR Combined Calculation'!C$49) -> -1736548.353 | G47: =('ERR Combined Calculation'!D$11-'ERR Combined Calculation'!D$6)+('ERR Combined Calculation'!D$60*(1+'ERR Combined Calculation'!D$54*Sensitivity!$D47))-('ERR Combined Calculation'!D$48)+('ERR Combined Calculation'!D$61*(1+'ERR Combined Calculation'!D$55*Sensitivity!$D47))-('ERR Combined Calculation'!D$49) -> -6864206.684 | H47: =('ERR Combined Calculation'!E$11-'ERR Combined Calculation'!E$6)+('ERR Combined Calculation'!E$60*(1+'ERR Combined Calculation'!E$54*Sensitivity!$D47))-('ERR Combined Calculation'!E$48)+('ERR Combined Calculation'!E$61*(1+'ERR Combined Calculation'!E$55*Sensitivity!$D47))-('ERR Combined Calculation'!E$49) -> -6751028.635 | I47: =('ERR Combined Calculation'!F$11-'ERR Combined Calculation'!F$6)+('ERR Combined Calculation'!F$60*(1+'ERR Combined Calculation'!F$54*Sensitivity!$D47))-('ERR Combined Calculation'!F$48)+('ERR Combined Calculation'!F$61*(1+'ERR Combined Calculation'!F$55*Sensitivity!$D47))-('ERR Combined Calculation'!F$49) -> -6577201.936 | J47: =('ERR Combined Calculation'!G$11-'ERR Combined Calculation'!G$6)+('ERR Combined Calculation'!G$60*(1+'ERR Combined Calculation'!G$54*Sensitivity!$D47))-('ERR Combined Calculation'!G$48)+('ERR Combined Calculation'!G$61*(1+'ERR Combined Calculation'!G$55*Sensitivity!$D47))-('ERR Combined Calculation'!G$49) -> -15965694.82 | K47: =('ERR Combined Calculation'!H$11-'ERR Combined Calculation'!H$6)+('ERR Combined Calculation'!H$60*(1+'ERR Combined Calculation'!H$54*Sensitivity!$D47))-('ERR Combined Calculation'!H$48)+('ERR Combined Calculation'!H$61*(1+'ERR Combined Calculation'!H$55*Sensitivity!$D47))-('ERR Combined Calculation'!H$49) -> -21028429.04 | L47: =('ERR Combined Calculation'!I$11-'ERR Combined Calculation'!I$6)+('ERR Combined Calculation'!I$60*(1+'ERR Combined Calculation'!I$54*Sensitivity!$D47))-('ERR Combined Calculation'!I$48)+('ERR Combined Calculation'!I$61*(1+'ERR Combined Calculation'!I$55*Sensitivity!$D47))-('ERR Combined Calculation'!I$49) -> 3919665.94 | M47: =('ERR Combined Calculation'!J$11-'ERR Combined Calculation'!J$6)+('ERR Combined Calculation'!J$60*(1+'ERR Combined Calculation'!J$54*Sensitivity!$D47))-('ERR Combined Calculation'!J$48)+('ERR Combined Calculation'!J$61*(1+'ERR Combined Calculation'!J$55*Sensitivity!$D47))-('ERR Combined Calculation'!J$49) -> 4666971.309 | N47: =('ERR Combined Calculation'!K$11-'ERR Combined Calculation'!K$6)+('ERR Combined Calculation'!K$60*(1+'ERR Combined Calculation'!K$54*Sensitivity!$D47))-('ERR Combined Calculation'!K$48)+('ERR Combined Calculation'!K$61*(1+'ERR Combined Calculation'!K$55*Sensitivity!$D47))-('ERR Combined Calculation'!K$49) -> 5190880.737 | O47: =('ERR Combined Calculation'!L$11-'ERR Combined Calculation'!L$6)+('ERR Combined Calculation'!L$60*(1+'ERR Combined Calculation'!L$54*Sensitivity!$D47))-('ERR Combined Calculation'!L$48)+('ERR Combined Calculation'!L$61*(1+'ERR Combined Calculation'!L$55*Sensitivity!$D47))-('ERR Combined Calculation'!L$49) -> 5458253.538 | P47: =('ERR Combined Calculation'!M$11-'ERR Combined Calculation'!M$6)+('ERR Combined Calculation'!M$60*(1+'ERR Combined Calculation'!M$54*Sensitivity!$D47))-('ERR Combined Calculation'!M$48)+('ERR Combined Calculation'!M$61*(1+'ERR Combined Calculation'!M$55*Sensitivity!$D47))-('ERR Combined Calculation'!M$49) -> 5738267.267 | Q47: =('ERR Combined Calculation'!N$11-'ERR Combined Calculation'!N$6)+('ERR Combined Calculation'!N$60*(1+'ERR Combined Calculation'!N$54*Sensitivity!$D47))-('ERR Combined Calculation'!N$48)+('ERR Combined Calculation'!N$61*(1+'ERR Combined Calculation'!N$55*Sensitivity!$D47))-('ERR Combined Calculation'!N$49) -> 6031539.981 | R47: =('ERR Combined Calculation'!O$11-'ERR Combined Calculation'!O$6)+('ERR Combined Calculation'!O$60*(1+'ERR Combined Calculation'!O$54*Sensitivity!$D47))-('ERR Combined Calculation'!O$48)+('ERR Combined Calculation'!O$61*(1+'ERR Combined Calculation'!O$55*Sensitivity!$D47))-('ERR Combined Calculation'!O$49) -> 6338721.244 | S47: =('ERR Combined Calculation'!P$11-'ERR Combined Calculation'!P$6)+('ERR Combined Calculation'!P$60*(1+'ERR Combined Calculation'!P$54*Sensitivity!$D47))-('ERR Combined Calculation'!P$48)+('ERR Combined Calculation'!P$61*(1+'ERR Combined Calculation'!P$55*Sensitivity!$D47))-('ERR Combined Calculation'!P$49) -> 6660493.811 | T47: =('ERR Combined Calculation'!Q$11-'ERR Combined Calculation'!Q$6)+('ERR Combined Calculation'!Q$60*(1+'ERR Combined Calculation'!Q$54*Sensitivity!$D47))-('ERR Combined Calculation'!Q$48)+('ERR Combined Calculation'!Q$61*(1+'ERR Combined Calculation'!Q$55*Sensitivity!$D47))-('ERR Combined Calculation'!Q$49) -> 6997575.408 | U47: =('ERR Combined Calculation'!R$11-'ERR Combined Calculation'!R$6)+('ERR Combined Calculation'!R$60*(1+'ERR Combined Calculation'!R$54*Sensitivity!$D47))-('ERR Combined Calculation'!R$48)+('ERR Combined Calculation'!R$61*(1+'ERR Combined Calculation'!R$55*Sensitivity!$D47))-('ERR Combined Calculation'!R$49) -> 7350720.61 | V47: =('ERR Combined Calculation'!S$11-'ERR Combined Calculation'!S$6)+('ERR Combined Calculation'!S$60*(1+'ERR Combined Calculation'!S$54*Sensitivity!$D47))-('ERR Combined Calculation'!S$48)+('ERR Combined Calculation'!S$61*(1+'ERR Combined Calculation'!S$55*Sensitivity!$D47))-('ERR Combined Calculation'!S$49) -> 7720722.829 | W47: =('ERR Combined Calculation'!T$11-'ERR Combined Calculation'!T$6)+('ERR Combined Calculation'!T$60*(1+'ERR Combined Calculation'!T$54*Sensitivity!$D47))-('ERR Combined Calculation'!T$48)+('ERR Combined Calculation'!T$61*(1+'ERR Combined Calculation'!T$55*Sensitivity!$D47))-('ERR Combined Calculation'!T$49) -> 8108416.41 | X47: =('ERR Combined Calculation'!U$11-'ERR Combined Calculation'!U$6)+('ERR Combined Calculation'!U$60*(1+'ERR Combined Calculation'!U$54*Sensitivity!$D47))-('ERR Combined Calculation'!U$48)+('ERR Combined Calculation'!U$61*(1+'ERR Combined Calculation'!U$55*Sensitivity!$D47))-('ERR Combined Calculation'!U$49) -> 8514678.851 | Y47: =('ERR Combined Calculation'!V$11-'ERR Combined Calculation'!V$6)+('ERR Combined Calculation'!V$60*(1+'ERR Combined Calculation'!V$54*Sensitivity!$D47))-('ERR Combined Calculation'!V$48)+('ERR Combined Calculation'!V$61*(1+'ERR Combined Calculation'!V$55*Sensitivity!$D47))-('ERR Combined Calculation'!V$49) -> 8940433.144 | AA47: =FREQUENCY($E$31:$E$5030,$AC47:$AC$149) -> 232 | AB47: 31 | AC47: -0.005 | AE47: =FREQUENCY($E$31:$E$5031,$AG47:$AG$79) -> 4917 | AF47: 1.3 | AG47: 0.13 | AH47: 1.244525316
D48: ='Monte Carlo Simulation'!$P26 -> 0.01419037263 | E48: -0.01006772357 | F48: =('ERR Combined Calculation'!C$11-'ERR Combined Calculation'!C$6)+('ERR Combined Calculation'!C$60*(1+'ERR Combined Calculation'!C$54*Sensitivity!$D48))-('ERR Combined Calculation'!C$48)+('ERR Combined Calculation'!C$61*(1+'ERR Combined Calculation'!C$55*Sensitivity!$D48))-('ERR Combined Calculation'!C$49) -> -1736548.353 | G48: =('ERR Combined Calculation'!D$11-'ERR Combined Calculation'!D$6)+('ERR Combined Calculation'!D$60*(1+'ERR Combined Calculation'!D$54*Sensitivity!$D48))-('ERR Combined Calculation'!D$48)+('ERR Combined Calculation'!D$61*(1+'ERR Combined Calculation'!D$55*Sensitivity!$D48))-('ERR Combined Calculation'!D$49) -> -6936463.268 | H48: =('ERR Combined Calculation'!E$11-'ERR Combined Calculation'!E$6)+('ERR Combined Calculation'!E$60*(1+'ERR Combined Calculation'!E$54*Sensitivity!$D48))-('ERR Combined Calculation'!E$48)+('ERR Combined Calculation'!E$61*(1+'ERR Combined Calculation'!E$55*Sensitivity!$D48))-('ERR Combined Calculation'!E$49) -> -6977260.297 | I48: =('ERR Combined Calculation'!F$11-'ERR Combined Calculation'!F$6)+('ERR Combined Calculation'!F$60*(1+'ERR Combined Calculation'!F$54*Sensitivity!$D48))-('ERR Combined Calculation'!F$48)+('ERR Combined Calculation'!F$61*(1+'ERR Combined Calculation'!F$55*Sensitivity!$D48))-('ERR Combined Calculation'!F$49) -> -7128117.283 | J48: =('ERR Combined Calculation'!G$11-'ERR Combined Calculation'!G$6)+('ERR Combined Calculation'!G$60*(1+'ERR Combined Calculation'!G$54*Sensitivity!$D48))-('ERR Combined Calculation'!G$48)+('ERR Combined Calculation'!G$61*(1+'ERR Combined Calculation'!G$55*Sensitivity!$D48))-('ERR Combined Calculation'!G$49) -> -16800020.78 | K48: =('ERR Combined Calculation'!H$11-'ERR Combined Calculation'!H$6)+('ERR Combined Calculation'!H$60*(1+'ERR Combined Calculation'!H$54*Sensitivity!$D48))-('ERR Combined Calculation'!H$48)+('ERR Combined Calculation'!H$61*(1+'ERR Combined Calculation'!H$55*Sensitivity!$D48))-('ERR Combined Calculation'!H$49) -> -22183373.64 | L48: =('ERR Combined Calculation'!I$11-'ERR Combined Calculation'!I$6)+('ERR Combined Calculation'!I$60*(1+'ERR Combined Calculation'!I$54*Sensitivity!$D48))-('ERR Combined Calculation'!I$48)+('ERR Combined Calculation'!I$61*(1+'ERR Combined Calculation'!I$55*Sensitivity!$D48))-('ERR Combined Calculation'!I$49) -> 2300025.79 | M48: =('ERR Combined Calculation'!J$11-'ERR Combined Calculation'!J$6)+('ERR Combined Calculation'!J$60*(1+'ERR Combined Calculation'!J$54*Sensitivity!$D48))-('ERR Combined Calculation'!J$48)+('ERR Combined Calculation'!J$61*(1+'ERR Combined Calculation'!J$55*Sensitivity!$D48))-('ERR Combined Calculation'!J$49) -> 2760451.565 | N48: =('ERR Combined Calculation'!K$11-'ERR Combined Calculation'!K$6)+('ERR Combined Calculation'!K$60*(1+'ERR Combined Calculation'!K$54*Sensitivity!$D48))-('ERR Combined Calculation'!K$48)+('ERR Combined Calculation'!K$61*(1+'ERR Combined Calculation'!K$55*Sensitivity!$D48))-('ERR Combined Calculation'!K$49) -> 3088332.573 | O48: =('ERR Combined Calculation'!L$11-'ERR Combined Calculation'!L$6)+('ERR Combined Calculation'!L$60*(1+'ERR Combined Calculation'!L$54*Sensitivity!$D48))-('ERR Combined Calculation'!L$48)+('ERR Combined Calculation'!L$61*(1+'ERR Combined Calculation'!L$55*Sensitivity!$D48))-('ERR Combined Calculation'!L$49) -> 3263930.04 | P48: =('ERR Combined Calculation'!M$11-'ERR Combined Calculation'!M$6)+('ERR Combined Calculation'!M$60*(1+'ERR Combined Calculation'!M$54*Sensitivity!$D48))-('ERR Combined Calculation'!M$48)+('ERR Combined Calculation'!M$61*(1+'ERR Combined Calculation'!M$55*Sensitivity!$D48))-('ERR Combined Calculation'!M$49) -> 3448162.48 | Q48: =('ERR Combined Calculation'!N$11-'ERR Combined Calculation'!N$6)+('ERR Combined Calculation'!N$60*(1+'ERR Combined Calculation'!N$54*Sensitivity!$D48))-('ERR Combined Calculation'!N$48)+('ERR Combined Calculation'!N$61*(1+'ERR Combined Calculation'!N$55*Sensitivity!$D48))-('ERR Combined Calculation'!N$49) -> 3641473.093 | R48: =('ERR Combined Calculation'!O$11-'ERR Combined Calculation'!O$6)+('ERR Combined Calculation'!O$60*(1+'ERR Combined Calculation'!O$54*Sensitivity!$D48))-('ERR Combined Calculation'!O$48)+('ERR Combined Calculation'!O$61*(1+'ERR Combined Calculation'!O$55*Sensitivity!$D48))-('ERR Combined Calculation'!O$49) -> 3844328.952 | S48: =('ERR Combined Calculation'!P$11-'ERR Combined Calculation'!P$6)+('ERR Combined Calculation'!P$60*(1+'ERR Combined Calculation'!P$54*Sensitivity!$D48))-('ERR Combined Calculation'!P$48)+('ERR Combined Calculation'!P$61*(1+'ERR Combined Calculation'!P$55*Sensitivity!$D48))-('ERR Combined Calculation'!P$49) -> 4057222.355 | T48: =('ERR Combined Calculation'!Q$11-'ERR Combined Calculation'!Q$6)+('ERR Combined Calculation'!Q$60*(1+'ERR Combined Calculation'!Q$54*Sensitivity!$D48))-('ERR Combined Calculation'!Q$48)+('ERR Combined Calculation'!Q$61*(1+'ERR Combined Calculation'!Q$55*Sensitivity!$D48))-('ERR Combined Calculation'!Q$49) -> 4280672.258 | U48: =('ERR Combined Calculation'!R$11-'ERR Combined Calculation'!R$6)+('ERR Combined Calculation'!R$60*(1+'ERR Combined Calculation'!R$54*Sensitivity!$D48))-('ERR Combined Calculation'!R$48)+('ERR Combined Calculation'!R$61*(1+'ERR Combined Calculation'!R$55*Sensitivity!$D48))-('ERR Combined Calculation'!R$49) -> 4515225.791 | V48: =('ERR Combined Calculation'!S$11-'ERR Combined Calculation'!S$6)+('ERR Combined Calculation'!S$60*(1+'ERR Combined Calculation'!S$54*Sensitivity!$D48))-('ERR Combined Calculation'!S$48)+('ERR Combined Calculation'!S$61*(1+'ERR Combined Calculation'!S$55*Sensitivity!$D48))-('ERR Combined Calculation'!S$49) -> 4761459.866 | W48: =('ERR Combined Calculation'!T$11-'ERR Combined Calculation'!T$6)+('ERR Combined Calculation'!T$60*(1+'ERR Combined Calculation'!T$54*Sensitivity!$D48))-('ERR Combined Calculation'!T$48)+('ERR Combined Calculation'!T$61*(1+'ERR Combined Calculation'!T$55*Sensitivity!$D48))-('ERR Combined Calculation'!T$49) -> 5019982.875 | X48: =('ERR Combined Calculation'!U$11-'ERR Combined Calculation'!U$6)+('ERR Combined Calculation'!U$60*(1+'ERR Combined Calculation'!U$54*Sensitivity!$D48))-('ERR Combined Calculation'!U$48)+('ERR Combined Calculation'!U$61*(1+'ERR Combined Calculation'!U$55*Sensitivity!$D48))-('ERR Combined Calculation'!U$49) -> 5291436.505 | Y48: =('ERR Combined Calculation'!V$11-'ERR Combined Calculation'!V$6)+('ERR Combined Calculation'!V$60*(1+'ERR Combined Calculation'!V$54*Sensitivity!$D48))-('ERR Combined Calculation'!V$48)+('ERR Combined Calculation'!V$61*(1+'ERR Combined Calculation'!V$55*Sensitivity!$D48))-('ERR Combined Calculation'!V$49) -> 5576497.638 | AA48: =FREQUENCY($E$31:$E$5030,$AC48:$AC$149) -> 264 | AB48: 32 | AC48: -0.0025 | AE48: =FREQUENCY($E$31:$E$5031,$AG48:$AG$79) -> 4958 | AF48: 0.82 | AG48: 0.14 | AH48: 0.6608583481
D49: ='Monte Carlo Simulation'!$P27 -> 0.0191869996 | E49: 0.02216728313 | F49: =('ERR Combined Calculation'!C$11-'ERR Combined Calculation'!C$6)+('ERR Combined Calculation'!C$60*(1+'ERR Combined Calculation'!C$54*Sensitivity!$D49))-('ERR Combined Calculation'!C$48)+('ERR Combined Calculation'!C$61*(1+'ERR Combined Calculation'!C$55*Sensitivity!$D49))-('ERR Combined Calculation'!C$49) -> -1736548.353 | G49: =('ERR Combined Calculation'!D$11-'ERR Combined Calculation'!D$6)+('ERR Combined Calculation'!D$60*(1+'ERR Combined Calculation'!D$54*Sensitivity!$D49))-('ERR Combined Calculation'!D$48)+('ERR Combined Calculation'!D$61*(1+'ERR Combined Calculation'!D$55*Sensitivity!$D49))-('ERR Combined Calculation'!D$49) -> -6898685.315 | H49: =('ERR Combined Calculation'!E$11-'ERR Combined Calculation'!E$6)+('ERR Combined Calculation'!E$60*(1+'ERR Combined Calculation'!E$54*Sensitivity!$D49))-('ERR Combined Calculation'!E$48)+('ERR Combined Calculation'!E$61*(1+'ERR Combined Calculation'!E$55*Sensitivity!$D49))-('ERR Combined Calculation'!E$49) -> -6858979.461 | I49: =('ERR Combined Calculation'!F$11-'ERR Combined Calculation'!F$6)+('ERR Combined Calculation'!F$60*(1+'ERR Combined Calculation'!F$54*Sensitivity!$D49))-('ERR Combined Calculation'!F$48)+('ERR Combined Calculation'!F$61*(1+'ERR Combined Calculation'!F$55*Sensitivity!$D49))-('ERR Combined Calculation'!F$49) -> -6840081.88 | J49: =('ERR Combined Calculation'!G$11-'ERR Combined Calculation'!G$6)+('ERR Combined Calculation'!G$60*(1+'ERR Combined Calculation'!G$54*Sensitivity!$D49))-('ERR Combined Calculation'!G$48)+('ERR Combined Calculation'!G$61*(1+'ERR Combined Calculation'!G$55*Sensitivity!$D49))-('ERR Combined Calculation'!G$49) -> -16363809.63 | K49: =('ERR Combined Calculation'!H$11-'ERR Combined Calculation'!H$6)+('ERR Combined Calculation'!H$60*(1+'ERR Combined Calculation'!H$54*Sensitivity!$D49))-('ERR Combined Calculation'!H$48)+('ERR Combined Calculation'!H$61*(1+'ERR Combined Calculation'!H$55*Sensitivity!$D49))-('ERR Combined Calculation'!H$49) -> -21579533.26 | L49: =('ERR Combined Calculation'!I$11-'ERR Combined Calculation'!I$6)+('ERR Combined Calculation'!I$60*(1+'ERR Combined Calculation'!I$54*Sensitivity!$D49))-('ERR Combined Calculation'!I$48)+('ERR Combined Calculation'!I$61*(1+'ERR Combined Calculation'!I$55*Sensitivity!$D49))-('ERR Combined Calculation'!I$49) -> 3146823.227 | M49: =('ERR Combined Calculation'!J$11-'ERR Combined Calculation'!J$6)+('ERR Combined Calculation'!J$60*(1+'ERR Combined Calculation'!J$54*Sensitivity!$D49))-('ERR Combined Calculation'!J$48)+('ERR Combined Calculation'!J$61*(1+'ERR Combined Calculation'!J$55*Sensitivity!$D49))-('ERR Combined Calculation'!J$49) -> 3757238.434 | N49: =('ERR Combined Calculation'!K$11-'ERR Combined Calculation'!K$6)+('ERR Combined Calculation'!K$60*(1+'ERR Combined Calculation'!K$54*Sensitivity!$D49))-('ERR Combined Calculation'!K$48)+('ERR Combined Calculation'!K$61*(1+'ERR Combined Calculation'!K$55*Sensitivity!$D49))-('ERR Combined Calculation'!K$49) -> 4187609.099 | O49: =('ERR Combined Calculation'!L$11-'ERR Combined Calculation'!L$6)+('ERR Combined Calculation'!L$60*(1+'ERR Combined Calculation'!L$54*Sensitivity!$D49))-('ERR Combined Calculation'!L$48)+('ERR Combined Calculation'!L$61*(1+'ERR Combined Calculation'!L$55*Sensitivity!$D49))-('ERR Combined Calculation'!L$49) -> 4411189.519 | P49: =('ERR Combined Calculation'!M$11-'ERR Combined Calculation'!M$6)+('ERR Combined Calculation'!M$60*(1+'ERR Combined Calculation'!M$54*Sensitivity!$D49))-('ERR Combined Calculation'!M$48)+('ERR Combined Calculation'!M$61*(1+'ERR Combined Calculation'!M$55*Sensitivity!$D49))-('ERR Combined Calculation'!M$49) -> 4645499.348 | Q49: =('ERR Combined Calculation'!N$11-'ERR Combined Calculation'!N$6)+('ERR Combined Calculation'!N$60*(1+'ERR Combined Calculation'!N$54*Sensitivity!$D49))-('ERR Combined Calculation'!N$48)+('ERR Combined Calculation'!N$61*(1+'ERR Combined Calculation'!N$55*Sensitivity!$D49))-('ERR Combined Calculation'!N$49) -> 4891073.207 | R49: =('ERR Combined Calculation'!O$11-'ERR Combined Calculation'!O$6)+('ERR Combined Calculation'!O$60*(1+'ERR Combined Calculation'!O$54*Sensitivity!$D49))-('ERR Combined Calculation'!O$48)+('ERR Combined Calculation'!O$61*(1+'ERR Combined Calculation'!O$55*Sensitivity!$D49))-('ERR Combined Calculation'!O$49) -> 5148473.58 | S49: =('ERR Combined Calculation'!P$11-'ERR Combined Calculation'!P$6)+('ERR Combined Calculation'!P$60*(1+'ERR Combined Calculation'!P$54*Sensitivity!$D49))-('ERR Combined Calculation'!P$48)+('ERR Combined Calculation'!P$61*(1+'ERR Combined Calculation'!P$55*Sensitivity!$D49))-('ERR Combined Calculation'!P$49) -> 5418292.342 | T49: =('ERR Combined Calculation'!Q$11-'ERR Combined Calculation'!Q$6)+('ERR Combined Calculation'!Q$60*(1+'ERR Combined Calculation'!Q$54*Sensitivity!$D49))-('ERR Combined Calculation'!Q$48)+('ERR Combined Calculation'!Q$61*(1+'ERR Combined Calculation'!Q$55*Sensitivity!$D49))-('ERR Combined Calculation'!Q$49) -> 5701152.372 | U49: =('ERR Combined Calculation'!R$11-'ERR Combined Calculation'!R$6)+('ERR Combined Calculation'!R$60*(1+'ERR Combined Calculation'!R$54*Sensitivity!$D49))-('ERR Combined Calculation'!R$48)+('ERR Combined Calculation'!R$61*(1+'ERR Combined Calculation'!R$55*Sensitivity!$D49))-('ERR Combined Calculation'!R$49) -> 5997709.259 | V49: =('ERR Combined Calculation'!S$11-'ERR Combined Calculation'!S$6)+('ERR Combined Calculation'!S$60*(1+'ERR Combined Calculation'!S$54*Sensitivity!$D49))-('ERR Combined Calculation'!S$48)+('ERR Combined Calculation'!S$61*(1+'ERR Combined Calculation'!S$55*Sensitivity!$D49))-('ERR Combined Calculation'!S$49) -> 6308653.107 | W49: =('ERR Combined Calculation'!T$11-'ERR Combined Calculation'!T$6)+('ERR Combined Calculation'!T$60*(1+'ERR Combined Calculation'!T$54*Sensitivity!$D49))-('ERR Combined Calculation'!T$48)+('ERR Combined Calculation'!T$61*(1+'ERR Combined Calculation'!T$55*Sensitivity!$D49))-('ERR Combined Calculation'!T$49) -> 6634710.445 | X49: =('ERR Combined Calculation'!U$11-'ERR Combined Calculation'!U$6)+('ERR Combined Calculation'!U$60*(1+'ERR Combined Calculation'!U$54*Sensitivity!$D49))-('ERR Combined Calculation'!U$48)+('ERR Combined Calculation'!U$61*(1+'ERR Combined Calculation'!U$55*Sensitivity!$D49))-('ERR Combined Calculation'!U$49) -> 6976646.247 | Y49: =('ERR Combined Calculation'!V$11-'ERR Combined Calculation'!V$6)+('ERR Combined Calculation'!V$60*(1+'ERR Combined Calculation'!V$54*Sensitivity!$D49))-('ERR Combined Calculation'!V$48)+('ERR Combined Calculation'!V$61*(1+'ERR Combined Calculation'!V$55*Sensitivity!$D49))-('ERR Combined Calculation'!V$49) -> 7335266.07 | AA49: =FREQUENCY($E$31:$E$5030,$AC49:$AC$149) -> 302 | AB49: 38 | AC49: 7.806255642e-18 | AE49: =FREQUENCY($E$31:$E$5031,$AG49:$AG$79) -> 4984 | AF49: 0.52 | AG49: 0.15 | AH49: 0.3240043673
D50: ='Monte Carlo Simulation'!$P28 -> 0.02058408315 | E50: 0.03025822878 | F50: =('ERR Combined Calculation'!C$11-'ERR Combined Calculation'!C$6)+('ERR Combined Calculation'!C$60*(1+'ERR Combined Calculation'!C$54*Sensitivity!$D50))-('ERR Combined Calculation'!C$48)+('ERR Combined Calculation'!C$61*(1+'ERR Combined Calculation'!C$55*Sensitivity!$D50))-('ERR Combined Calculation'!C$49) -> -1736548.353 | G50: =('ERR Combined Calculation'!D$11-'ERR Combined Calculation'!D$6)+('ERR Combined Calculation'!D$60*(1+'ERR Combined Calculation'!D$54*Sensitivity!$D50))-('ERR Combined Calculation'!D$48)+('ERR Combined Calculation'!D$61*(1+'ERR Combined Calculation'!D$55*Sensitivity!$D50))-('ERR Combined Calculation'!D$49) -> -6888122.397 | H50: =('ERR Combined Calculation'!E$11-'ERR Combined Calculation'!E$6)+('ERR Combined Calculation'!E$60*(1+'ERR Combined Calculation'!E$54*Sensitivity!$D50))-('ERR Combined Calculation'!E$48)+('ERR Combined Calculation'!E$61*(1+'ERR Combined Calculation'!E$55*Sensitivity!$D50))-('ERR Combined Calculation'!E$49) -> -6825907.508 | I50: =('ERR Combined Calculation'!F$11-'ERR Combined Calculation'!F$6)+('ERR Combined Calculation'!F$60*(1+'ERR Combined Calculation'!F$54*Sensitivity!$D50))-('ERR Combined Calculation'!F$48)+('ERR Combined Calculation'!F$61*(1+'ERR Combined Calculation'!F$55*Sensitivity!$D50))-('ERR Combined Calculation'!F$49) -> -6759545.644 | J50: =('ERR Combined Calculation'!G$11-'ERR Combined Calculation'!G$6)+('ERR Combined Calculation'!G$60*(1+'ERR Combined Calculation'!G$54*Sensitivity!$D50))-('ERR Combined Calculation'!G$48)+('ERR Combined Calculation'!G$61*(1+'ERR Combined Calculation'!G$55*Sensitivity!$D50))-('ERR Combined Calculation'!G$49) -> -16241842.67 | K50: =('ERR Combined Calculation'!H$11-'ERR Combined Calculation'!H$6)+('ERR Combined Calculation'!H$60*(1+'ERR Combined Calculation'!H$54*Sensitivity!$D50))-('ERR Combined Calculation'!H$48)+('ERR Combined Calculation'!H$61*(1+'ERR Combined Calculation'!H$55*Sensitivity!$D50))-('ERR Combined Calculation'!H$49) -> -21410696.27 | L50: =('ERR Combined Calculation'!I$11-'ERR Combined Calculation'!I$6)+('ERR Combined Calculation'!I$60*(1+'ERR Combined Calculation'!I$54*Sensitivity!$D50))-('ERR Combined Calculation'!I$48)+('ERR Combined Calculation'!I$61*(1+'ERR Combined Calculation'!I$55*Sensitivity!$D50))-('ERR Combined Calculation'!I$49) -> 3383592.308 | M50: =('ERR Combined Calculation'!J$11-'ERR Combined Calculation'!J$6)+('ERR Combined Calculation'!J$60*(1+'ERR Combined Calculation'!J$54*Sensitivity!$D50))-('ERR Combined Calculation'!J$48)+('ERR Combined Calculation'!J$61*(1+'ERR Combined Calculation'!J$55*Sensitivity!$D50))-('ERR Combined Calculation'!J$49) -> 4035945.359 | N50: =('ERR Combined Calculation'!K$11-'ERR Combined Calculation'!K$6)+('ERR Combined Calculation'!K$60*(1+'ERR Combined Calculation'!K$54*Sensitivity!$D50))-('ERR Combined Calculation'!K$48)+('ERR Combined Calculation'!K$61*(1+'ERR Combined Calculation'!K$55*Sensitivity!$D50))-('ERR Combined Calculation'!K$49) -> 4494972.679 | O50: =('ERR Combined Calculation'!L$11-'ERR Combined Calculation'!L$6)+('ERR Combined Calculation'!L$60*(1+'ERR Combined Calculation'!L$54*Sensitivity!$D50))-('ERR Combined Calculation'!L$48)+('ERR Combined Calculation'!L$61*(1+'ERR Combined Calculation'!L$55*Sensitivity!$D50))-('ERR Combined Calculation'!L$49) -> 4731969.389 | P50: =('ERR Combined Calculation'!M$11-'ERR Combined Calculation'!M$6)+('ERR Combined Calculation'!M$60*(1+'ERR Combined Calculation'!M$54*Sensitivity!$D50))-('ERR Combined Calculation'!M$48)+('ERR Combined Calculation'!M$61*(1+'ERR Combined Calculation'!M$55*Sensitivity!$D50))-('ERR Combined Calculation'!M$49) -> 4980281.123 | Q50: =('ERR Combined Calculation'!N$11-'ERR Combined Calculation'!N$6)+('ERR Combined Calculation'!N$60*(1+'ERR Combined Calculation'!N$54*Sensitivity!$D50))-('ERR Combined Calculation'!N$48)+('ERR Combined Calculation'!N$61*(1+'ERR Combined Calculation'!N$55*Sensitivity!$D50))-('ERR Combined Calculation'!N$49) -> 5240468.064 | R50: =('ERR Combined Calculation'!O$11-'ERR Combined Calculation'!O$6)+('ERR Combined Calculation'!O$60*(1+'ERR Combined Calculation'!O$54*Sensitivity!$D50))-('ERR Combined Calculation'!O$48)+('ERR Combined Calculation'!O$61*(1+'ERR Combined Calculation'!O$55*Sensitivity!$D50))-('ERR Combined Calculation'!O$49) -> 5513119.374 | S50: =('ERR Combined Calculation'!P$11-'ERR Combined Calculation'!P$6)+('ERR Combined Calculation'!P$60*(1+'ERR Combined Calculation'!P$54*Sensitivity!$D50))-('ERR Combined Calculation'!P$48)+('ERR Combined Calculation'!P$61*(1+'ERR Combined Calculation'!P$55*Sensitivity!$D50))-('ERR Combined Calculation'!P$49) -> 5798854.77 | T50: =('ERR Combined Calculation'!Q$11-'ERR Combined Calculation'!Q$6)+('ERR Combined Calculation'!Q$60*(1+'ERR Combined Calculation'!Q$54*Sensitivity!$D50))-('ERR Combined Calculation'!Q$48)+('ERR Combined Calculation'!Q$61*(1+'ERR Combined Calculation'!Q$55*Sensitivity!$D50))-('ERR Combined Calculation'!Q$49) -> 6098326.189 | U50: =('ERR Combined Calculation'!R$11-'ERR Combined Calculation'!R$6)+('ERR Combined Calculation'!R$60*(1+'ERR Combined Calculation'!R$54*Sensitivity!$D50))-('ERR Combined Calculation'!R$48)+('ERR Combined Calculation'!R$61*(1+'ERR Combined Calculation'!R$55*Sensitivity!$D50))-('ERR Combined Calculation'!R$49) -> 6412219.544 | V50: =('ERR Combined Calculation'!S$11-'ERR Combined Calculation'!S$6)+('ERR Combined Calculation'!S$60*(1+'ERR Combined Calculation'!S$54*Sensitivity!$D50))-('ERR Combined Calculation'!S$48)+('ERR Combined Calculation'!S$61*(1+'ERR Combined Calculation'!S$55*Sensitivity!$D50))-('ERR Combined Calculation'!S$49) -> 6741256.59 | W50: =('ERR Combined Calculation'!T$11-'ERR Combined Calculation'!T$6)+('ERR Combined Calculation'!T$60*(1+'ERR Combined Calculation'!T$54*Sensitivity!$D50))-('ERR Combined Calculation'!T$48)+('ERR Combined Calculation'!T$61*(1+'ERR Combined Calculation'!T$55*Sensitivity!$D50))-('ERR Combined Calculation'!T$49) -> 7086196.886 | X50: =('ERR Combined Calculation'!U$11-'ERR Combined Calculation'!U$6)+('ERR Combined Calculation'!U$60*(1+'ERR Combined Calculation'!U$54*Sensitivity!$D50))-('ERR Combined Calculation'!U$48)+('ERR Combined Calculation'!U$61*(1+'ERR Combined Calculation'!U$55*Sensitivity!$D50))-('ERR Combined Calculation'!U$49) -> 7447839.879 | Y50: =('ERR Combined Calculation'!V$11-'ERR Combined Calculation'!V$6)+('ERR Combined Calculation'!V$60*(1+'ERR Combined Calculation'!V$54*Sensitivity!$D50))-('ERR Combined Calculation'!V$48)+('ERR Combined Calculation'!V$61*(1+'ERR Combined Calculation'!V$55*Sensitivity!$D50))-('ERR Combined Calculation'!V$49) -> 7827027.104 | AA50: =FREQUENCY($E$31:$E$5030,$AC50:$AC$149) -> 346 | AB50: 44 | AC50: 0.0025 | AE50: =FREQUENCY($E$31:$E$5031,$AG50:$AG$79) -> 4994 | AF50: 0.2 | AG50: 0.16 | AH50: 0.1466665872
